Workbook

Sheet Navigation Pane
C2: Goondiwindi Regional Council
C3: Refer to the accompanying User Manual for detailed instructions on how to use the Spreadsheet
B6: Version No | D6: 1 | F6: Date | G6: =TODAY() -> 2018-05-30 | J6: Author | K6: KG
B8: Comments | D8: GRC_LGIP_V1
D10: Inputs | I10: Calculation | N10: Outputs
C12: General Input Sheet | H12: Calculation Function | M12: Summary Cost Schedule
C13: l Financial Inputs l Other "generic" inputs | H13: l Catchment based summary of demand, infrastructure (existing and new) and cost allocation l Infrastructure Cost calculation for each catchment ("Average Cost" approach) l Optional Discounted Cashflow | M13: l Summary of demand and cost allocation by catchment l Final costs by catchment
M15: Summary Cash flow Projections
C16: l Unit Cost of Passive Assets l Unit Cost of Land | M16: l Summary of forecast Cap X and anticipated IC revenues
C19: l Estimates of current and future demand (per cost catchment)
C21: Asset Inputs

Sheet General Input Sheet
B2: ='Navigation Pane'!C2 -> Goondiwindi Regional Council
A3: Return to Navigation Pane
B4: General Input Sheet
B6: General Inputs | E6: Reference | G6: Value | I6: Comments
C8: Base Year | E8: YEAR | G8: 2016
G9: =YEAR -> 2016
C10: Term (between 15 and 30 years) | E10: TERM | G10: 15
B12: Application of Discounted Cash flow
C14: Calculate charges using Discounted Cash flow? (Y/N) | E14: DCFTRIGGER | G14: Yes | I14: DCF Mtdology used to recognise inherent uncertainty in long term financial projections
B16: General Financial Inputs
B18: Discount Rate (WACC):
C19: Average 10 Year Bond Rate | E19: TenYr | G19: 0.0275 | I19: Currently 10yr Bond Rate = 2.75%; (15 year bond rate = 3.02%). Adopt 2.75%
B21: Option 1 | C21: Basic Margin on 10 Yr. Bond Rate | E21: Margin | G21: 0.035 | I21: 3.5% is the baseline figure quoted in LG Bulletin 06/01
C23: WACC: | E23: WACC1 | G23: =G19+G21 -> 0.0625
B25: Option 2 | C25: Capital Structure (% Debt) | E25: Capstr
C26: Market Risk Premium | E26: Risk | G26: 0.06
C27: Asset Beta | E27: AssetBeta
C28: Cost of Debt | E28: Debt
C30: WACC: | E30: WACC2 | G30: =(G25*G28)+(G19+(G27*G26)*(1-G25)) -> 0.0275
C32: WACC Option to be applied in the calculation? | E32: WACC1 | G32: =IF(G14="No",0,IF(E32="WACC1",WACC1,IF(E32="WACC2",WACC2,"Error"))) -> 0.0625 | I32: More Appropriate for DSC as (Small-Medium Council)
B34: Escalation Rates
C35: Capital Escalation - Future Cap X | E35: PPI | G35: 0.0384 | I35: ten (10) yr. average Roads and Bridges Index (ABS 6427, Table 17, Index 3101)
C37: Capital Indexation Rates - Historical (June Qtr.)
E38: =YEAR -> 2016 | G38: 100.3 | I38: Roads and Bridges Index (ABS 6427, Table 17, Index 3101)
E39: =E38-1 -> 2015 | G39: 96.6
E40: =E39-1 -> 2014 | G40: 95.2
E41: 2013 | G41: 91.8
E42: 2012 | G42: 83.2
E43: 2011 | G43: 80.1
E44: 2010 | G44: 73.3
C46: Land Escalation | E46: LandInd | G46: 0.02718181818 | I46: ten (10) yr. average Consumer Price Index (ABS 640101, Series A2325817T, Series ID A2325820F : June Qtr - from base year)
C48: Charges Escalation Rate | E48: Chargeind | G48: 0.03
G49: =Chargeind -> 0.03
G51: =Chargeind -> 0.03

Sheet Unit Rates
B2: ='Navigation Pane'!C2 -> Goondiwindi Regional Council
B4: Unit Rates
B6: Land Cost | D6: Transportation
B8: Water Supply | D8: Sewerage
B10: Stormwater | D10: Parks & Community Facilities

Sheet Catchment Demand
B2: ='Navigation Pane'!C2 -> Goondiwindi Regional Council
B4: Demand Forecast
B6: Anticpated Growth Residential | D6: Anticpated Growth - NON Residential
B8: Water Supply | D8: Transportation
B10: Sewerage | D10: Parks & Community Facilities
B12: Stormwater

Sheet Existing Trunk Assets
B2: ='Navigation Pane'!C2 -> Goondiwindi Regional Council
B4: Existing Trunk Assets
B6: Water Supply | D6: Transportation
B8: Sewerage | D8: Parks & Community Facilities
B10: Stormwater

Sheet Existing Trunk Assets - Water
B2: ='Navigation Pane'!C2 -> Goondiwindi Regional Council
B3: Water Supply
A4: Return to "Existing Trunk Assets"
B5: EXISTING TRUNK ASSETS
B8: Land Valuation Type | E8: Location
I10: Asset Data | W10: Catchment Asset Allocation | BP10: Asset Usage | CV10: Cost Allocation
B11: Basic Asset Data | H11: Asset Attributes | K11: Baseline Asset Valuation | P11: Land Attributes | T11: Refined Asset Value | W11: ='Catchment Demand - Water Supply'!$C8 -> Goondiwindi | X11: ='Catchment Demand - Water Supply'!$C9 -> Texas | Y11: ='Catchment Demand - Water Supply'!$C10 -> Inglewood | Z11: ='Catchment Demand - Water Supply'!$C11 -> Yelarbon | AA11: ='Catchment Demand - Water Supply'!$C12 -> Talwood | AB11: ='Catchment Demand - Water Supply'!$C13 -> Toobeah | AC11: ='Catchment Demand - Water Supply'!$C14 -> Bungunya | AD11: ='Catchment Demand - Water Supply'!$C15 -> 0 | AE11: ='Catchment Demand - Water Supply'!$C16 -> 0 | AF11: ='Catchment Demand - Water Supply'!$C17 -> 0 | AG11: ='Catchment Demand - Water Supply'!$C18 -> 0 | AH11: ='Catchment Demand - Water Supply'!$C19 -> 0 | AI11: ='Catchment Demand - Water Supply'!$C20 -> 0 | AJ11: ='Catchment Demand - Water Supply'!$C21 -> 0 | AK11: ='Catchment Demand - Water Supply'!$C22 -> 0 | AL11: ='Catchment Demand - Water Supply'!$C23 -> 0 | AM11: ='Catchment Demand - Water Supply'!$C24 -> 0 | AN11: ='Catchment Demand - Water Supply'!$C25 -> 0 | AO11: ='Catchment Demand - Water Supply'!$C26 -> 0 | AP11: ='Catchment Demand - Water Supply'!$C27 -> 0 | AQ11: ='Catchment Demand - Water Supply'!$C28 -> 0 | AR11: ='Catchment Demand - Water Supply'!$C29 -> 0 | AS11: ='Catchment Demand - Water Supply'!$C30 -> 0 | AT11: ='Catchment Demand - Water Supply'!$C31 -> 0 | AU11: ='Catchment Demand - Water Supply'!$C32 -> 0 | AV11: ='Catchment Demand - Water Supply'!$C33 -> 0 | AW11: ='Catchment Demand - Water Supply'!$C34 -> 0 | AX11: ='Catchment Demand - Water Supply'!$C35 -> 0 | AY11: ='Catchment Demand - Water Supply'!$C36 -> 0 | AZ11: ='Catchment Demand - Water Supply'!$C37 -> 0 | BB11: ='Catchment Demand - Water Supply'!$C8 -> Goondiwindi | BC11: ='Catchment Demand - Water Supply'!$C9 -> Texas | BD11: ='Catchment Demand - Water Supply'!$C10 -> Inglewood | BE11: ='Catchment Demand - Water Supply'!$C11 -> Yelarbon | BF11: ='Catchment Demand - Water Supply'!$C12 -> Talwood | BG11: ='Catchment Demand - Water Supply'!$C13 -> Toobeah | BH11: ='Catchment Demand - Water Supply'!$C14 -> Bungunya | BI11: ='Catchment Demand - Water Supply'!$C15 -> 0 | BJ11: ='Catchment Demand - Water Supply'!$C16 -> 0 | BK11: ='Catchment Demand - Water Supply'!$C17 -> 0 | BL11: ='Catchment Demand - Water Supply'!$C18 -> 0 | BM11: ='Catchment Demand - Water Supply'!$C19 -> 0 | BN11: ='Catchment Demand - Water Supply'!$C20 -> 0 | BO11: ='Catchment Demand - Water Supply'!$C21 -> 0 | BP11: ='Catchment Demand - Water Supply'!$C22 -> 0 | BQ11: ='Catchment Demand - Water Supply'!$C23 -> 0 | BR11: ='Catchment Demand - Water Supply'!$C24 -> 0 | BS11: ='Catchment Demand - Water Supply'!$C25 -> 0 | BT11: ='Catchment Demand - Water Supply'!$C26 -> 0 | BU11: ='Catchment Demand - Water Supply'!$C27 -> 0 | BV11: ='Catchment Demand - Water Supply'!$C28 -> 0 | BW11: ='Catchment Demand - Water Supply'!$C29 -> 0 | BX11: ='Catchment Demand - Water Supply'!$C30 -> 0 | BY11: ='Catchment Demand - Water Supply'!$C31 -> 0 | BZ11: ='Catchment Demand - Water Supply'!$C32 -> 0 | CA11: ='Catchment Demand - Water Supply'!$C33 -> 0 | CB11: ='Catchment Demand - Water Supply'!$C34 -> 0 | CC11: ='Catchment Demand - Water Supply'!$C35 -> 0 | CD11: ='Catchment Demand - Water Supply'!$C36 -> 0 | CE11: ='Catchment Demand - Water Supply'!$C37 -> 0 | CF11: TOTALS | CH11: ='Catchment Demand - Water Supply'!$C8 -> Goondiwindi | CI11: ='Catchment Demand - Water Supply'!$C9 -> Texas | CJ11: ='Catchment Demand - Water Supply'!$C10 -> Inglewood | CK11: ='Catchment Demand - Water Supply'!$C11 -> Yelarbon | CL11: ='Catchment Demand - Water Supply'!$C12 -> Talwood | CM11: ='Catchment Demand - Water Supply'!$C13 -> Toobeah | CN11: ='Catchment Demand - Water Supply'!$C14 -> Bungunya | CO11: ='Catchment Demand - Water Supply'!$C15 -> 0 | CP11: ='Catchment Demand - Water Supply'!$C16 -> 0 | CQ11: ='Catchment Demand - Water Supply'!$C17 -> 0 | CR11: ='Catchment Demand - Water Supply'!$C18 -> 0 | CS11: ='Catchment Demand - Water Supply'!$C19 -> 0 | CT11: ='Catchment Demand - Water Supply'!$C20 -> 0 | CU11: ='Catchment Demand - Water Supply'!$C21 -> 0 | CV11: ='Catchment Demand - Water Supply'!$C22 -> 0 | CW11: ='Catchment Demand - Water Supply'!$C23 -> 0 | CX11: ='Catchment Demand - Water Supply'!$C24 -> 0 | CY11: ='Catchment Demand - Water Supply'!$C25 -> 0 | CZ11: ='Catchment Demand - Water Supply'!$C26 -> 0 | DA11: ='Catchment Demand - Water Supply'!$C27 -> 0 | DB11: ='Catchment Demand - Water Supply'!$C28 -> 0 | DC11: ='Catchment Demand - Water Supply'!$C29 -> 0 | DD11: ='Catchment Demand - Water Supply'!$C30 -> 0 | DE11: ='Catchment Demand - Water Supply'!$C31 -> 0 | DF11: ='Catchment Demand - Water Supply'!$C32 -> 0 | DG11: ='Catchment Demand - Water Supply'!$C33 -> 0 | DH11: ='Catchment Demand - Water Supply'!$C34 -> 0 | DI11: ='Catchment Demand - Water Supply'!$C35 -> 0 | DJ11: ='Catchment Demand - Water Supply'!$C36 -> 0 | DK11: ='Catchment Demand - Water Supply'!$C37 -> 0 | DL11: Checksum 2
B12: Asset ID | C12: LGIP ID | D12: Asset Type (*) | E12: Asset Class | F12: Asset Name | G12: Description | H12: Unit Rate Type (*) | I12: Length/unit (*) | J12: Diameter (*) | K12: Unit Rate | L12: Baseline Valuation | M12: Site/Condition | N12: Multiplier | O12: Gross Value | P12: Land Location/Type | Q12: Size of land (ha) (*) | R12: Unit Cost | S12: Land Value | T12: Valuation Year | U12: Escalation | V12: Current Replacement Cost
W13: 1 | X13: =W13+1 -> 2 | Y13: =X13+1 -> 3 | Z13: 4 | AA13: 5 | AB13: 6 | AC13: 7 | AD13: 8 | AE13: 9 | AF13: 10 | AG13: 11 | AH13: 12 | AI13: 13 | AJ13: 14 | AK13: 15 | AL13: 16 | AM13: 17 | AN13: 18 | AO13: 19 | AP13: 20 | AQ13: 21 | AR13: 22 | AS13: 23 | AT13: 24 | AU13: 25 | AV13: 26 | AW13: 27 | AX13: 28 | AY13: 29 | AZ13: 30
B14: Councils ID (from GIS, FAR, AMA etc.) | C14: ID from the LGIP drawings | E14: Reservoir, Trunk Main, etc. | L14: May be calculated from unit rates OR unique values can be direct entered | V14: CRC | W14: =IFERROR(VLOOKUP(W11,watercatch,5,FALSE),"") -> 5592 | X14: =IFERROR(VLOOKUP(X11,watercatch,5,FALSE),"") -> 699 | Y14: =IFERROR(VLOOKUP(Y11,watercatch,5,FALSE),"") -> 726 | Z14: =IFERROR(VLOOKUP(Z11,watercatch,5,FALSE),"") -> 238 | AA14: =IFERROR(VLOOKUP(AA11,watercatch,5,FALSE),"") -> 75 | AB14: =IFERROR(VLOOKUP(AB11,watercatch,6,FALSE),"") -> 0 | AC14: 0 | BB14: =W14 -> 5592 | BC14: =X14 -> 699 | BD14: 726 | BE14: 238 | BF14: 75 | BG14: =VLOOKUP(BG11,'Catchment Demand - Water Supply'!$C$8:$H$37,6,FALSE) -> 0 | BH14: =VLOOKUP(BH11,'Catchment Demand - Water Supply'!$C$8:$H$37,6,FALSE) -> 0 | BI14: =VLOOKUP(BI11,'Catchment Demand - Water Supply'!$C$8:$H$37,6,FALSE) ->  | BJ14: =VLOOKUP(BJ11,'Catchment Demand - Water Supply'!$C$8:$H$37,6,FALSE) ->  | BK14: =VLOOKUP(BK11,'Catchment Demand - Water Supply'!$C$8:$H$37,6,FALSE) ->  | BL14: =VLOOKUP(BL11,'Catchment Demand - Water Supply'!$C$8:$H$37,6,FALSE) ->  | BM14: =VLOOKUP(BM11,'Catchment Demand - Water Supply'!$C$8:$H$37,6,FALSE) ->  | BN14: =VLOOKUP(BN11,'Catchment Demand - Water Supply'!$C$8:$H$37,6,FALSE) ->  | BO14: =VLOOKUP(BO11,'Catchment Demand - Water Supply'!$C$8:$H$37,6,FALSE) ->  | BP14: =VLOOKUP(BP11,'Catchment Demand - Water Supply'!$C$8:$H$37,6,FALSE) ->  | BQ14: =VLOOKUP(BQ11,'Catchment Demand - Water Supply'!$C$8:$H$37,6,FALSE) ->  | BR14: =VLOOKUP(BR11,'Catchment Demand - Water Supply'!$C$8:$H$37,6,FALSE) ->  | BS14: =VLOOKUP(BS11,'Catchment Demand - Water Supply'!$C$8:$H$37,6,FALSE) ->  | BT14: =VLOOKUP(BT11,'Catchment Demand - Water Supply'!$C$8:$H$37,6,FALSE) ->  | BU14: =VLOOKUP(BU11,'Catchment Demand - Water Supply'!$C$8:$H$37,6,FALSE) ->  | BV14: =VLOOKUP(BV11,'Catchment Demand - Water Supply'!$C$8:$H$37,6,FALSE) ->  | BW14: =VLOOKUP(BW11,'Catchment Demand - Water Supply'!$C$8:$H$37,6,FALSE) ->  | BX14: =VLOOKUP(BX11,'Catchment Demand - Water Supply'!$C$8:$H$37,6,FALSE) ->  | BY14: =VLOOKUP(BY11,'Catchment Demand - Water Supply'!$C$8:$H$37,6,FALSE) ->  | BZ14: =VLOOKUP(BZ11,'Catchment Demand - Water Supply'!$C$8:$H$37,6,FALSE) ->  | CA14: =VLOOKUP(CA11,'Catchment Demand - Water Supply'!$C$8:$H$37,6,FALSE) ->  | CB14: =VLOOKUP(CB11,'Catchment Demand - Water Supply'!$C$8:$H$37,6,FALSE) ->  | CC14: =VLOOKUP(CC11,'Catchment Demand - Water Supply'!$C$8:$H$37,6,FALSE) ->  | CD14: =VLOOKUP(CD11,'Catchment Demand - Water Supply'!$C$8:$H$37,6,FALSE) ->  | CE14: =VLOOKUP(CE11,'Catchment Demand - Water Supply'!$C$8:$H$37,6,FALSE) ->  | CH14: =SUM(CH15:CH25) -> 4381510.244 | CI14: 457631.1048 | CJ14: 326685.2344 | CK14: 0 | CL14: 0 | CM14: 0 | CN14: 0 | CO14: 0 | CP14: 0 | CQ14: 0 | CR14: 0 | CS14: 0 | CT14: 0 | CU14: 0 | CV14: 0 | CW14: 0 | CX14: 0 | CY14: 0 | CZ14: 0 | DA14: 0 | DB14: 0 | DC14: 0 | DD14: 0 | DE14: 0 | DF14: 0 | DG14: 0 | DH14: 0 | DI14: 0 | DJ14: 0 | DK14: 0 | DL14: 0
C15: Goondiwindi | E15: Trunk mains | K15: =IF(H15=TYPE1,VLOOKUP(J15,WaterUnitrates1,2,FALSE),IF(H15=TYPE2,VLOOKUP(J15,Unitrates2,2,FALSE),0)) -> 0 | L15: 4381510.244 | N15: =IF(M15="",1,VLOOKUP(M15,'Unit Rates - Water'!$H$12:$I$23,2,FALSE)) -> 1 | O15: =L15*N15 -> 4381510.244 | R15: =IF(P15="",'Unit Rates - Land'!landcst,IF($E$8="Landuse",VLOOKUP(P15,LAndcost3,2,FALSE),IF($E$8="Location",VLOOKUP(P15,Landcost2,2,FALSE),"Error"))) -> 0 | S15: =IF(R15="",0,R15*10000*Q15) -> 0 | T15: 2016 | U15: =IFERROR(('General Input Sheet'!$G$38/(VLOOKUP('Existing Trunk Assets - Water'!T15,'General Input Sheet'!$E$38:$G$44,3,FALSE))),1) -> 1 | V15: =IFERROR((O15+S15)*U15,0) -> 4381510.244 | W15: y | BB15: =IF(W15="y",BB$14,IF(AND(W15>0,W15<=1),W15*BB$14,"")) -> 5592 | BC15: =IF(X15="y",BC$14,IF(AND(X15>0,X15<=1),X15*BC$14,"")) ->  | BD15: =IF(Y15="y",BD$14,IF(AND(Y15>0,Y15<=1),Y15*BD$14,"")) ->  | BE15: =IF(Z15="y",BE$14,IF(AND(Z15>0,Z15<=1),Z15*BE$14,"")) ->  | BF15: =IF(AA15="y",BF$14,IF(AND(AA15>0,AA15<=1),AA15*BF$14,"")) ->  | BG15: =IF(AB15="y",BG$14,IF(AND(AB15>0,AB15<=1),AB15*BG$14,"")) ->  | BH15: =IF(AC15="y",BH$14,IF(AND(AC15>0,AC15<=1),AC15*BH$14,"")) ->  | BI15: =IF(AD15="y",BI$14,IF(AND(AD15>0,AD15<=1),AD15*BI$14,"")) ->  | BJ15: =IF(AE15="y",BJ$14,IF(AND(AE15>0,AE15<=1),AE15*BJ$14,"")) ->  | BK15: =IF(AF15="y",BK$14,IF(AND(AF15>0,AF15<=1),AF15*BK$14,"")) ->  | BL15: =IF(AG15="y",BL$14,IF(AND(AG15>0,AG15<=1),AG15*BL$14,"")) ->  | BM15: =IF(AH15="y",BM$14,IF(AND(AH15>0,AH15<=1),AH15*BM$14,"")) ->  | BN15: =IF(AI15="y",BN$14,IF(AND(AI15>0,AI15<=1),AI15*BN$14,"")) ->  | BO15: =IF(AJ15="y",BO$14,IF(AND(AJ15>0,AJ15<=1),AJ15*BO$14,"")) ->  | BP15: =IF(AK15="y",BP$14,IF(AND(AK15>0,AK15<=1),AK15*BP$14,"")) ->  | BQ15: =IF(AL15="y",BQ$14,IF(AND(AL15>0,AL15<=1),AL15*BQ$14,"")) ->  | BR15: =IF(AM15="y",BR$14,IF(AND(AM15>0,AM15<=1),AM15*BR$14,"")) ->  | BS15: =IF(AN15="y",BS$14,IF(AND(AN15>0,AN15<=1),AN15*BS$14,"")) ->  | BT15: =IF(AO15="y",BT$14,IF(AND(AO15>0,AO15<=1),AO15*BT$14,"")) ->  | BU15: =IF(AP15="y",BU$14,IF(AND(AP15>0,AP15<=1),AP15*BU$14,"")) ->  | BV15: =IF(AQ15="y",BV$14,IF(AND(AQ15>0,AQ15<=1),AQ15*BV$14,"")) ->  | BW15: =IF(AR15="y",BW$14,IF(AND(AR15>0,AR15<=1),AR15*BW$14,"")) ->  | BX15: =IF(AS15="y",BX$14,IF(AND(AS15>0,AS15<=1),AS15*BX$14,"")) ->  | BY15: =IF(AT15="y",BY$14,IF(AND(AT15>0,AT15<=1),AT15*BY$14,"")) ->  | BZ15: =IF(AU15="y",BZ$14,IF(AND(AU15>0,AU15<=1),AU15*BZ$14,"")) ->  | CA15: =IF(AV15="y",CA$14,IF(AND(AV15>0,AV15<=1),AV15*CA$14,"")) ->  | CB15: =IF(AW15="y",CB$14,IF(AND(AW15>0,AW15<=1),AW15*CB$14,"")) ->  | CC15: =IF(AX15="y",CC$14,IF(AND(AX15>0,AX15<=1),AX15*CC$14,"")) ->  | CD15: =IF(AY15="y",CD$14,IF(AND(AY15>0,AY15<=1),AY15*CD$14,"")) ->  | CE15: =IF(AZ15="y",CE$14,IF(AND(AZ15>0,AZ15<=1),AZ15*CE$14,"")) ->  | CF15: =SUM(BB15:CE15) -> 5592 | CH15: =IF(BB15="","",(BB15/$CF15)*$V15) -> 4381510.244 | CN15: =IF(BH15="","",(BH15/$CF15)*$V15) ->  | CW15: =IF(BQ15="","",(BQ15/$CF15)*$V15) ->  | DG15: =IF(CA15="","",(CA15/$CF15)*$V15) ->  | DL15: =IF(SUM(CH15:DK15)=V15,"","ERROR") -> 
C16: Inglewood | E16: Trunk mains | K16: 0 | L16: 326685.2344 | N16: =IF(M16="",1,VLOOKUP(M16,'Unit Rates - Water'!$H$12:$I$23,2,FALSE)) -> 1 | O16: 326685.2344 | R16: =IF(P16="",'Unit Rates - Land'!landcst,IF($E$8="Landuse",VLOOKUP(P16,LAndcost3,2,FALSE),IF($E$8="Location",VLOOKUP(P16,Landcost2,2,FALSE),"Error"))) -> 0 | S16: 0 | T16: 2016 | U16: =IFERROR(('General Input Sheet'!$G$38/(VLOOKUP('Existing Trunk Assets - Water'!T16,'General Input Sheet'!$E$38:$G$44,3,FALSE))),1) -> 1 | V16: 326685.2344 | Y16: y | BD16: 726 | CF16: 726 | CJ16: 326685.2344
C17: Texas | E17: Trunk mains | K17: 0 | L17: 457631.1048 | N17: =IF(M17="",1,VLOOKUP(M17,'Unit Rates - Water'!$H$12:$I$23,2,FALSE)) -> 1 | O17: 457631.1048 | R17: =IF(P17="",'Unit Rates - Land'!landcst,IF($E$8="Landuse",VLOOKUP(P17,LAndcost3,2,FALSE),IF($E$8="Location",VLOOKUP(P17,Landcost2,2,FALSE),"Error"))) -> 0 | S17: 0 | T17: 2016 | U17: =IFERROR(('General Input Sheet'!$G$38/(VLOOKUP('Existing Trunk Assets - Water'!T17,'General Input Sheet'!$E$38:$G$44,3,FALSE))),1) -> 1 | V17: 457631.1048 | X17: y | BC17: 699 | CF17: 699 | CI17: 457631.1048
K18: 0 | L18: =K18*I18 -> 0 | N18: =IF(M18="",1,VLOOKUP(M18,'Unit Rates - Water'!$H$12:$I$23,2,FALSE)) -> 1 | O18: 0 | R18: =IF(P18="",'Unit Rates - Land'!landcst,IF($E$8="Landuse",VLOOKUP(P18,LAndcost3,2,FALSE),IF($E$8="Location",VLOOKUP(P18,Landcost2,2,FALSE),"Error"))) -> 0 | S18: 0 | U18: =IFERROR(('General Input Sheet'!$G$38/(VLOOKUP('Existing Trunk Assets - Water'!T18,'General Input Sheet'!$E$38:$G$44,3,FALSE))),1) -> 1 | V18: 0 | CF18: 0
K19: 0 | L19: 0 | N19: =IF(M19="",1,VLOOKUP(M19,'Unit Rates - Water'!$H$12:$I$23,2,FALSE)) -> 1 | O19: 0 | R19: =IF(P19="",'Unit Rates - Land'!landcst,IF($E$8="Landuse",VLOOKUP(P19,LAndcost3,2,FALSE),IF($E$8="Location",VLOOKUP(P19,Landcost2,2,FALSE),"Error"))) -> 0 | S19: 0 | U19: =IFERROR(('General Input Sheet'!$G$38/(VLOOKUP('Existing Trunk Assets - Water'!T19,'General Input Sheet'!$E$38:$G$44,3,FALSE))),1) -> 1 | V19: 0 | CF19: 0
K20: 0 | L20: 0 | N20: =IF(M20="",1,VLOOKUP(M20,'Unit Rates - Water'!$H$12:$I$23,2,FALSE)) -> 1 | O20: 0 | R20: =IF(P20="",'Unit Rates - Land'!landcst,IF($E$8="Landuse",VLOOKUP(P20,LAndcost3,2,FALSE),IF($E$8="Location",VLOOKUP(P20,Landcost2,2,FALSE),"Error"))) -> 0 | S20: 0 | U20: =IFERROR(('General Input Sheet'!$G$38/(VLOOKUP('Existing Trunk Assets - Water'!T20,'General Input Sheet'!$E$38:$G$44,3,FALSE))),1) -> 1 | V20: 0 | CF20: 0
K21: 0 | L21: 0 | N21: =IF(M21="",1,VLOOKUP(M21,'Unit Rates - Water'!$H$12:$I$23,2,FALSE)) -> 1 | O21: 0 | R21: =IF(P21="",'Unit Rates - Land'!landcst,IF($E$8="Landuse",VLOOKUP(P21,LAndcost3,2,FALSE),IF($E$8="Location",VLOOKUP(P21,Landcost2,2,FALSE),"Error"))) -> 0 | S21: 0 | U21: =IFERROR(('General Input Sheet'!$G$38/(VLOOKUP('Existing Trunk Assets - Water'!T21,'General Input Sheet'!$E$38:$G$44,3,FALSE))),1) -> 1 | V21: 0 | CF21: 0
K22: 0 | L22: 0 | N22: =IF(M22="",1,VLOOKUP(M22,'Unit Rates - Water'!$H$12:$I$23,2,FALSE)) -> 1 | O22: 0 | R22: =IF(P22="",'Unit Rates - Land'!landcst,IF($E$8="Landuse",VLOOKUP(P22,LAndcost3,2,FALSE),IF($E$8="Location",VLOOKUP(P22,Landcost2,2,FALSE),"Error"))) -> 0 | S22: 0 | U22: =IFERROR(('General Input Sheet'!$G$38/(VLOOKUP('Existing Trunk Assets - Water'!T22,'General Input Sheet'!$E$38:$G$44,3,FALSE))),1) -> 1 | V22: 0 | CF22: 0
K23: =IF(H23=TYPE1,VLOOKUP(J23,WaterUnitrates1,2,FALSE),IF(H23=TYPE2,VLOOKUP(J23,Unitrates2,2,FALSE),0)) -> 0 | L23: 0 | N23: =IF(M23="",1,VLOOKUP(M23,'Unit Rates - Water'!$H$12:$I$23,2,FALSE)) -> 1 | O23: 0 | R23: =IF(P23="",'Unit Rates - Land'!landcst,IF($E$8="Landuse",VLOOKUP(P23,LAndcost3,2,FALSE),IF($E$8="Location",VLOOKUP(P23,Landcost2,2,FALSE),"Error"))) -> 0 | S23: 0 | U23: =IFERROR(('General Input Sheet'!$G$38/(VLOOKUP('Existing Trunk Assets - Water'!T23,'General Input Sheet'!$E$38:$G$44,3,FALSE))),1) -> 1 | V23: 0 | CF23: 0
K24: 0 | L24: =K24*I24 -> 0 | N24: =IF(M24="",1,VLOOKUP(M24,'Unit Rates - Water'!$H$12:$I$23,2,FALSE)) -> 1 | O24: =L24*N24 -> 0 | R24: =IF(P24="",'Unit Rates - Land'!landcst,IF($E$8="Landuse",VLOOKUP(P24,LAndcost3,2,FALSE),IF($E$8="Location",VLOOKUP(P24,Landcost2,2,FALSE),"Error"))) -> 0 | S24: =IF(R24="",0,R24*10000*Q24) -> 0 | U24: =IFERROR(('General Input Sheet'!$G$38/(VLOOKUP('Existing Trunk Assets - Water'!T24,'General Input Sheet'!$E$38:$G$44,3,FALSE))),1) -> 1 | V24: =IFERROR((O24+S24)*U24,0) -> 0 | CF24: 0
K25: 0 | L25: 0 | N25: =IF(M25="",1,VLOOKUP(M25,'Unit Rates - Water'!$H$12:$I$23,2,FALSE)) -> 1 | O25: 0 | R25: =IF(P25="",'Unit Rates - Land'!landcst,IF($E$8="Landuse",VLOOKUP(P25,LAndcost3,2,FALSE),IF($E$8="Location",VLOOKUP(P25,Landcost2,2,FALSE),"Error"))) -> 0 | S25: 0 | U25: =IFERROR(('General Input Sheet'!$G$38/(VLOOKUP('Existing Trunk Assets - Water'!T25,'General Input Sheet'!$E$38:$G$44,3,FALSE))),1) -> 1 | V25: 0 | CF25: 0
B34: Location
B35: =IF($E$8="Location",'Unit Rates - Land'!B18,IF($E$8="Landuse",'Unit Rates - Land'!G18,"""Error")) -> 0
B36: =IF($E$8="Location",'Unit Rates - Land'!B19,IF($E$8="Landuse",'Unit Rates - Land'!G19,"""Error")) -> 0
B37: =IF($E$8="Location",'Unit Rates - Land'!B20,IF($E$8="Landuse",'Unit Rates - Land'!G20,"""Error")) -> 0
B38: =IF($E$8="Location",'Unit Rates - Land'!B21,IF($E$8="Landuse",'Unit Rates - Land'!G21,"""Error")) -> 0
B39: =IF($E$8="Location",'Unit Rates - Land'!B22,IF($E$8="Landuse",'Unit Rates - Land'!G22,"""Error")) -> 0
B40: =IF($E$8="Location",'Unit Rates - Land'!B23,IF($E$8="Landuse",'Unit Rates - Land'!G23,"""Error")) -> 0
B41: =IF($E$8="Location",'Unit Rates - Land'!B24,IF($E$8="Landuse",'Unit Rates - Land'!G24,"""Error")) -> 0
B42: =IF($E$8="Location",'Unit Rates - Land'!B25,IF($E$8="Landuse",'Unit Rates - Land'!G25,"""Error")) -> 0
B43: =IF($E$8="Location",'Unit Rates - Land'!B26,IF($E$8="Landuse",'Unit Rates - Land'!G26,"""Error")) -> 0
B44: =IF($E$8="Location",'Unit Rates - Land'!B27,IF($E$8="Landuse",'Unit Rates - Land'!G27,"""Error")) -> 0
B45: =IF($E$8="Location",'Unit Rates - Land'!B28,IF($E$8="Landuse",'Unit Rates - Land'!G28,"""Error")) -> 0
B46: =IF($E$8="Location",'Unit Rates - Land'!B29,IF($E$8="Landuse",'Unit Rates - Land'!G29,"""Error")) -> 0
B47: =IF($E$8="Location",'Unit Rates - Land'!B30,IF($E$8="Landuse",'Unit Rates - Land'!G30,"""Error")) -> 0
B48: =IF($E$8="Location",'Unit Rates - Land'!B31,IF($E$8="Landuse",'Unit Rates - Land'!G31,"""Error")) -> 0
B49: =IF($E$8="Location",'Unit Rates - Land'!B32,IF($E$8="Landuse",'Unit Rates - Land'!G32,"""Error")) -> 0
B50: =IF($E$8="Location",'Unit Rates - Land'!B33,IF($E$8="Landuse",'Unit Rates - Land'!G33,"""Error")) -> 0
B51: =IF($E$8="Location",'Unit Rates - Land'!B34,IF($E$8="Landuse",'Unit Rates - Land'!G34,"""Error")) -> 0
B52: =IF($E$8="Location",'Unit Rates - Land'!B35,IF($E$8="Landuse",'Unit Rates - Land'!G35,"""Error")) -> 0
B53: =IF($E$8="Location",'Unit Rates - Land'!B36,IF($E$8="Landuse",'Unit Rates - Land'!G36,"""Error")) -> 0
B54: =IF($E$8="Location",'Unit Rates - Land'!B37,IF($E$8="Landuse",'Unit Rates - Land'!G37,"""Error")) -> 0
B55: =IF($E$8="Location",'Unit Rates - Land'!B38,IF($E$8="Landuse",'Unit Rates - Land'!G38,"""Error")) -> 0
B56: =IF($E$8="Location",'Unit Rates - Land'!B39,IF($E$8="Landuse",'Unit Rates - Land'!G39,"""Error")) -> 0
B57: =IF($E$8="Location",'Unit Rates - Land'!B40,IF($E$8="Landuse",'Unit Rates - Land'!G40,"""Error")) -> 0
B58: =IF($E$8="Location",'Unit Rates - Land'!B41,IF($E$8="Landuse",'Unit Rates - Land'!G41,"""Error")) -> 0
B59: =IF($E$8="Location",'Unit Rates - Land'!B42,IF($E$8="Landuse",'Unit Rates - Land'!G42,"""Error")) -> 0
B60: =IF($E$8="Location",'Unit Rates - Land'!B43,IF($E$8="Landuse",'Unit Rates - Land'!G43,"""Error")) -> 0

Sheet Existing Trunk Assets - Sewer
B2: ='Navigation Pane'!C2 -> Goondiwindi Regional Council
B3: Wastewater
A4: Return to "Existing Trunk Assets"
B5: EXISTING TRUNK ASSETS
B8: Land Valuation Type | E8: Location
I10: Asset Data | X10: Catchment Asset Allocation | BQ10: Asset Usage | CW10: Cost Allocation
B11: Basic Asset Data | H11: Asset Attributes | L11: Basic Asset Valuation | Q11: Land Attributes | U11: Refined Asset Value | X11: ='Catchment Demand- Sewer'!C8 -> Goondiwindi | Y11: ='Catchment Demand- Sewer'!$C9 -> Texas | Z11: ='Catchment Demand- Sewer'!$C10 -> Inglewood | AA11: ='Catchment Demand- Sewer'!$C11 -> Yelarbon | AB11: ='Catchment Demand- Sewer'!$C12 -> Talwood | AC11: ='Catchment Demand- Sewer'!$C13 -> 0 | AD11: ='Catchment Demand- Sewer'!$C14 -> 0 | AE11: ='Catchment Demand- Sewer'!$C15 -> 0 | AF11: ='Catchment Demand- Sewer'!$C16 -> 0 | AG11: ='Catchment Demand- Sewer'!$C17 -> 0 | AH11: ='Catchment Demand- Sewer'!$C18 -> 0 | AI11: ='Catchment Demand- Sewer'!$C19 -> 0 | AJ11: ='Catchment Demand- Sewer'!$C20 -> 0 | AK11: ='Catchment Demand- Sewer'!$C21 -> 0 | AL11: ='Catchment Demand- Sewer'!$C22 -> 0 | AM11: ='Catchment Demand- Sewer'!$C23 -> 0 | AN11: ='Catchment Demand- Sewer'!$C24 -> 0 | AO11: ='Catchment Demand- Sewer'!$C25 -> 0 | AP11: ='Catchment Demand- Sewer'!$C26 -> 0 | AQ11: ='Catchment Demand- Sewer'!$C27 -> 0 | AR11: ='Catchment Demand- Sewer'!$C28 -> 0 | AS11: ='Catchment Demand- Sewer'!$C29 -> 0 | AT11: ='Catchment Demand- Sewer'!$C30 -> 0 | AU11: ='Catchment Demand- Sewer'!$C31 -> 0 | AV11: ='Catchment Demand- Sewer'!$C32 -> 0 | AW11: ='Catchment Demand- Sewer'!$C33 -> 0 | AX11: ='Catchment Demand- Sewer'!$C34 -> 0 | AY11: ='Catchment Demand- Sewer'!$C35 -> 0 | AZ11: ='Catchment Demand- Sewer'!$C36 -> 0 | BA11: ='Catchment Demand- Sewer'!$C37 -> 0 | BC11: =X11 -> Goondiwindi | BD11: =Y11 -> Texas | BE11: Inglewood | BF11: Yelarbon | BG11: Talwood | BH11: 0 | BI11: 0 | BJ11: 0 | BK11: 0 | BL11: 0 | BM11: 0 | BN11: 0 | BO11: 0 | BP11: 0 | BQ11: 0 | BR11: 0 | BS11: 0 | BT11: 0 | BU11: 0 | BV11: 0 | BW11: 0 | BX11: 0 | BY11: 0 | BZ11: 0 | CA11: 0 | CB11: 0 | CC11: 0 | CD11: 0 | CE11: 0 | CF11: 0 | CG11: TOTALS | CI11: =BC11 -> Goondiwindi | CJ11: =BD11 -> Texas | CK11: Inglewood | CL11: Yelarbon | CM11: Talwood | CN11: 0 | CO11: 0 | CP11: 0 | CQ11: 0 | CR11: 0 | CS11: 0 | CT11: 0 | CU11: 0 | CV11: 0 | CW11: 0 | CX11: 0 | CY11: 0 | CZ11: 0 | DA11: 0 | DB11: 0 | DC11: 0 | DD11: 0 | DE11: 0 | DF11: 0 | DG11: 0 | DH11: 0 | DI11: 0 | DJ11: 0 | DK11: 0 | DL11: 0 | DM11: Checksum 2
B12: Asset ID | C12: LGIP ID | D12: Asset Type (*) | E12: Asset Class | F12: Asset Name | G12: Description | H12: Unit Rate Type (*) | I12: Length/unit (*) | J12: Diameter (*) | K12: Depth (*) | L12: Unit Rate | M12: Baseline Valuation | N12: Site/Condition | O12: Multiplier | P12: Gross Value | Q12: Land Location/Type | R12: Size of land (ha) (*) | S12: Unit Cost | T12: Land Value | U12: Valuation Year | V12: Escalation | W12: Current Replaceement Costs
X13: 1 | Y13: =X13+1 -> 2 | Z13: =Y13+1 -> 3 | AA13: 4 | AB13: 5 | AC13: 6 | AD13: 7 | AE13: 8 | AF13: 9 | AG13: 10 | AH13: 11 | AI13: 12 | AJ13: 13 | AK13: 14 | AL13: 15 | AM13: 16 | AN13: 17 | AO13: 18 | AP13: 19 | AQ13: 20 | AR13: 21 | AS13: 22 | AT13: 23 | AU13: 24 | AV13: 25 | AW13: 26 | AX13: 27 | AY13: 28 | AZ13: 29 | BA13: 30
B14: Councils ID (from GIS, FAR, AMA etc.) | C14: ID from the LGIP drawings | E14: Pump Station, Gravity Main, Rising Main etc | M14: May be calculated from unit rates OR unique values can be direct entered | W14: CRC | X14: =IFERROR(VLOOKUP(X11,Sewcatch,5,FALSE),"") -> 5592 | Y14: =IFERROR(VLOOKUP(Y11,Sewcatch,5,FALSE),"") -> 699 | Z14: =IFERROR(VLOOKUP(Z11,Sewcatch,5,FALSE),"") -> 726 | AA14: =IFERROR(VLOOKUP(AA11,Sewcatch,5,FALSE),"") -> 238 | AB14: =IFERROR(VLOOKUP(AB11,Sewcatch,5,FALSE),"") -> 75 | AC14: =IFERROR(VLOOKUP(AC11,Sewcatch,6,FALSE),"") ->  | BC14: =X14 -> 5592 | BD14: =Y14 -> 699 | BE14: 726 | BF14: 238 | BG14: 75 | CI14: =SUM(CI15:CI400) -> 6402365.686 | CJ14: 970335.5654 | CK14: 2222915.546 | CL14: 843862.6186 | CM14: 75750.09746 | CN14: 0 | CO14: 0 | CP14: 0 | CQ14: 0 | CR14: 0 | CS14: 0 | CT14: 0 | CU14: 0 | CV14: 0 | CW14: 0 | CX14: 0 | CY14: 0 | CZ14: 0 | DA14: 0 | DB14: 0 | DC14: 0 | DD14: 0 | DE14: 0 | DF14: 0 | DG14: 0 | DH14: 0 | DI14: 0 | DJ14: 0 | DK14: 0 | DL14: 0 | DM14: 0
C15: Goondiwindi | E15: Sewer mains | L15: =IF(H15=SewerTYPE1,VLOOKUP(J15,SewerUnitrates1,2,FALSE),IF(H15=SEWERTYPE2,VLOOKUP((J15&"_"&K15),Sewerrates2,2,FALSE),0)) ->  | M15: 6402365.686 | O15: =IF(N15="",1,VLOOKUP(N15,Sewersitecond,2,FALSE)) -> 1 | P15: =IF(M15="","",M15*O15) -> 6402365.686 | S15: =IF(Q15="",'Unit Rates - Land'!landcst,IF($E$8="Landuse",VLOOKUP(Q15,LAndcost3,2,FALSE),IF($E$8="Location",VLOOKUP(Q15,Landcost2,2,FALSE),"Error"))) -> 0 | T15: =IF(S15="",0,S15*10000*R15) -> 0 | U15: 2016 | V15: =IFERROR(('General Input Sheet'!$G$38/(VLOOKUP(U15,'General Input Sheet'!$E$38:$G$44,3,FALSE))),1) -> 1 | W15: =IFERROR((P15+T15)*V15,0) -> 6402365.686 | X15: y | BC15: =IF(X15="y",BC$14,IF(AND(X15>0,X15<=1),X15*BC$14,"")) -> 5592 | BD15: =IF(Y15="y",BD$14,IF(AND(Y15>0,Y15<=1),Y15*BD$14,"")) ->  | CG15: =SUM(BC15:CF15) -> 5592 | CI15: =IF(BC15="","",(BC15/$CG15)*$W15) -> 6402365.686 | CY15: =IF(BS15="","",(BS15/$CG15)*$W15) ->  | DM15: =IF(SUM(CI15:DL15)=W15,"","ERROR") -> 
C16: Inglewood | E16: Sewer mains | M16: 2222915.546 | O16: 1 | P16: 2222915.546 | S16: =IF(Q16="",'Unit Rates - Land'!landcst,IF($E$8="Landuse",VLOOKUP(Q16,LAndcost3,2,FALSE),IF($E$8="Location",VLOOKUP(Q16,Landcost2,2,FALSE),"Error"))) -> 0 | T16: 0 | U16: 2016 | V16: =IFERROR(('General Input Sheet'!$G$38/(VLOOKUP(U16,'General Input Sheet'!$E$38:$G$44,3,FALSE))),1) -> 1 | W16: 2222915.546 | Z16: y | BE16: 726 | CG16: =SUM(BC16:CF16) -> 726 | CK16: 2222915.546 | DM16: =IF(SUM(CI16:DL16)=W16,"","ERROR") -> 
C17: Talwood | E17: Sewer mains | M17: 75750.09746 | O17: 1 | P17: 75750.09746 | S17: =IF(Q17="",'Unit Rates - Land'!landcst,IF($E$8="Landuse",VLOOKUP(Q17,LAndcost3,2,FALSE),IF($E$8="Location",VLOOKUP(Q17,Landcost2,2,FALSE),"Error"))) -> 0 | T17: 0 | U17: 2016 | V17: =IFERROR(('General Input Sheet'!$G$38/(VLOOKUP(U17,'General Input Sheet'!$E$38:$G$44,3,FALSE))),1) -> 1 | W17: 75750.09746 | AB17: y | BG17: 75 | CG17: =SUM(BC17:CF17) -> 75 | CM17: 75750.09746 | DM17: =IF(SUM(CI17:DL17)=W17,"","ERROR") -> 
C18: Texas | E18: Sewer mains | M18: 970335.5654 | O18: 1 | P18: 970335.5654 | S18: =IF(Q18="",'Unit Rates - Land'!landcst,IF($E$8="Landuse",VLOOKUP(Q18,LAndcost3,2,FALSE),IF($E$8="Location",VLOOKUP(Q18,Landcost2,2,FALSE),"Error"))) -> 0 | T18: 0 | U18: 2016 | V18: =IFERROR(('General Input Sheet'!$G$38/(VLOOKUP(U18,'General Input Sheet'!$E$38:$G$44,3,FALSE))),1) -> 1 | W18: 970335.5654 | Y18: y | BD18: 699 | CG18: 699 | CJ18: 970335.5654
C19: Yelarbon | E19: Sewer mains | M19: 843862.6186 | O19: 1 | P19: 843862.6186 | S19: =IF(Q19="",'Unit Rates - Land'!landcst,IF($E$8="Landuse",VLOOKUP(Q19,LAndcost3,2,FALSE),IF($E$8="Location",VLOOKUP(Q19,Landcost2,2,FALSE),"Error"))) -> 0 | T19: 0 | U19: 2016 | V19: =IFERROR(('General Input Sheet'!$G$38/(VLOOKUP(U19,'General Input Sheet'!$E$38:$G$44,3,FALSE))),1) -> 1 | W19: 843862.6186 | AA19: y | BF19: 238 | CG19: 238 | CL19: 843862.6186
O20: 1 | S20: =IF(Q20="",'Unit Rates - Land'!landcst,IF($E$8="Landuse",VLOOKUP(Q20,LAndcost3,2,FALSE),IF($E$8="Location",VLOOKUP(Q20,Landcost2,2,FALSE),"Error"))) -> 0 | T20: 0 | V20: =IFERROR(('General Input Sheet'!$G$38/(VLOOKUP(U20,'General Input Sheet'!$E$38:$G$44,3,FALSE))),1) -> 1 | W20: 0 | CG20: 0
O21: 1 | S21: =IF(Q21="",'Unit Rates - Land'!landcst,IF($E$8="Landuse",VLOOKUP(Q21,LAndcost3,2,FALSE),IF($E$8="Location",VLOOKUP(Q21,Landcost2,2,FALSE),"Error"))) -> 0 | T21: 0 | V21: =IFERROR(('General Input Sheet'!$G$38/(VLOOKUP(U21,'General Input Sheet'!$E$38:$G$44,3,FALSE))),1) -> 1 | W21: 0 | CG21: 0
O22: 1 | S22: =IF(Q22="",'Unit Rates - Land'!landcst,IF($E$8="Landuse",VLOOKUP(Q22,LAndcost3,2,FALSE),IF($E$8="Location",VLOOKUP(Q22,Landcost2,2,FALSE),"Error"))) -> 0 | T22: 0 | V22: =IFERROR(('General Input Sheet'!$G$38/(VLOOKUP(U22,'General Input Sheet'!$E$38:$G$44,3,FALSE))),1) -> 1 | W22: 0 | CA22: =IF(AV22="y",CA$14,IF(AND(AV22>0,AV22<=1),AV22*CA$14,"")) ->  | CG22: 0
O23: 1 | S23: =IF(Q23="",'Unit Rates - Land'!landcst,IF($E$8="Landuse",VLOOKUP(Q23,LAndcost3,2,FALSE),IF($E$8="Location",VLOOKUP(Q23,Landcost2,2,FALSE),"Error"))) -> 0 | T23: 0 | V23: =IFERROR(('General Input Sheet'!$G$38/(VLOOKUP(U23,'General Input Sheet'!$E$38:$G$44,3,FALSE))),1) -> 1 | W23: 0 | BS23: =IF(AN23="y",BS$14,IF(AND(AN23>0,AN23<=1),AN23*BS$14,"")) ->  | CG23: 0
O24: 1 | S24: =IF(Q24="",'Unit Rates - Land'!landcst,IF($E$8="Landuse",VLOOKUP(Q24,LAndcost3,2,FALSE),IF($E$8="Location",VLOOKUP(Q24,Landcost2,2,FALSE),"Error"))) -> 0 | T24: 0 | V24: =IFERROR(('General Input Sheet'!$G$38/(VLOOKUP(U24,'General Input Sheet'!$E$38:$G$44,3,FALSE))),1) -> 1 | W24: 0 | CG24: 0
O25: 1 | S25: =IF(Q25="",'Unit Rates - Land'!landcst,IF($E$8="Landuse",VLOOKUP(Q25,LAndcost3,2,FALSE),IF($E$8="Location",VLOOKUP(Q25,Landcost2,2,FALSE),"Error"))) -> 0 | T25: 0 | V25: =IFERROR(('General Input Sheet'!$G$38/(VLOOKUP(U25,'General Input Sheet'!$E$38:$G$44,3,FALSE))),1) -> 1 | W25: 0 | CG25: 0
O26: 1 | S26: =IF(Q26="",'Unit Rates - Land'!landcst,IF($E$8="Landuse",VLOOKUP(Q26,LAndcost3,2,FALSE),IF($E$8="Location",VLOOKUP(Q26,Landcost2,2,FALSE),"Error"))) -> 0 | T26: 0 | V26: =IFERROR(('General Input Sheet'!$G$38/(VLOOKUP(U26,'General Input Sheet'!$E$38:$G$44,3,FALSE))),1) -> 1 | W26: 0 | CG26: 0
O27: 1 | S27: =IF(Q27="",'Unit Rates - Land'!landcst,IF($E$8="Landuse",VLOOKUP(Q27,LAndcost3,2,FALSE),IF($E$8="Location",VLOOKUP(Q27,Landcost2,2,FALSE),"Error"))) -> 0 | T27: 0 | V27: =IFERROR(('General Input Sheet'!$G$38/(VLOOKUP(U27,'General Input Sheet'!$E$38:$G$44,3,FALSE))),1) -> 1 | W27: 0 | CG27: 0
O28: 1 | S28: =IF(Q28="",'Unit Rates - Land'!landcst,IF($E$8="Landuse",VLOOKUP(Q28,LAndcost3,2,FALSE),IF($E$8="Location",VLOOKUP(Q28,Landcost2,2,FALSE),"Error"))) -> 0 | T28: 0 | V28: =IFERROR(('General Input Sheet'!$G$38/(VLOOKUP(U28,'General Input Sheet'!$E$38:$G$44,3,FALSE))),1) -> 1 | W28: 0 | CG28: 0
O29: 1 | S29: =IF(Q29="",'Unit Rates - Land'!landcst,IF($E$8="Landuse",VLOOKUP(Q29,LAndcost3,2,FALSE),IF($E$8="Location",VLOOKUP(Q29,Landcost2,2,FALSE),"Error"))) -> 0 | T29: 0 | V29: =IFERROR(('General Input Sheet'!$G$38/(VLOOKUP(U29,'General Input Sheet'!$E$38:$G$44,3,FALSE))),1) -> 1 | W29: 0 | CG29: 0 | CX29: =IF(BR29="","",(BR29/$CG29)*$W29) -> 
O30: 1 | S30: =IF(Q30="",'Unit Rates - Land'!landcst,IF($E$8="Landuse",VLOOKUP(Q30,LAndcost3,2,FALSE),IF($E$8="Location",VLOOKUP(Q30,Landcost2,2,FALSE),"Error"))) -> 0 | T30: 0 | V30: =IFERROR(('General Input Sheet'!$G$38/(VLOOKUP(U30,'General Input Sheet'!$E$38:$G$44,3,FALSE))),1) -> 1 | W30: 0 | CG30: 0 | CI30: =IF(BC30="","",(BC30/$CG30)*$W30) -> 
O31: 1 | S31: =IF(Q31="",'Unit Rates - Land'!landcst,IF($E$8="Landuse",VLOOKUP(Q31,LAndcost3,2,FALSE),IF($E$8="Location",VLOOKUP(Q31,Landcost2,2,FALSE),"Error"))) -> 0 | T31: 0 | V31: =IFERROR(('General Input Sheet'!$G$38/(VLOOKUP(U31,'General Input Sheet'!$E$38:$G$44,3,FALSE))),1) -> 1 | W31: 0 | BC31: =IF(X31="y",BC$14,IF(AND(X31>0,X31<=1),X31*BC$14,"")) ->  | CG31: 0
O32: 1 | S32: =IF(Q32="",'Unit Rates - Land'!landcst,IF($E$8="Landuse",VLOOKUP(Q32,LAndcost3,2,FALSE),IF($E$8="Location",VLOOKUP(Q32,Landcost2,2,FALSE),"Error"))) -> 0 | T32: 0 | V32: =IFERROR(('General Input Sheet'!$G$38/(VLOOKUP(U32,'General Input Sheet'!$E$38:$G$44,3,FALSE))),1) -> 1 | W32: 0 | CG32: 0
O33: 1 | S33: =IF(Q33="",'Unit Rates - Land'!landcst,IF($E$8="Landuse",VLOOKUP(Q33,LAndcost3,2,FALSE),IF($E$8="Location",VLOOKUP(Q33,Landcost2,2,FALSE),"Error"))) -> 0 | T33: 0 | V33: =IFERROR(('General Input Sheet'!$G$38/(VLOOKUP(U33,'General Input Sheet'!$E$38:$G$44,3,FALSE))),1) -> 1 | W33: 0 | CG33: 0
O34: 1 | S34: =IF(Q34="",'Unit Rates - Land'!landcst,IF($E$8="Landuse",VLOOKUP(Q34,LAndcost3,2,FALSE),IF($E$8="Location",VLOOKUP(Q34,Landcost2,2,FALSE),"Error"))) -> 0 | T34: 0 | V34: =IFERROR(('General Input Sheet'!$G$38/(VLOOKUP(U34,'General Input Sheet'!$E$38:$G$44,3,FALSE))),1) -> 1 | W34: 0 | CG34: 0
O35: 1 | S35: =IF(Q35="",'Unit Rates - Land'!landcst,IF($E$8="Landuse",VLOOKUP(Q35,LAndcost3,2,FALSE),IF($E$8="Location",VLOOKUP(Q35,Landcost2,2,FALSE),"Error"))) -> 0 | T35: 0 | V35: =IFERROR(('General Input Sheet'!$G$38/(VLOOKUP(U35,'General Input Sheet'!$E$38:$G$44,3,FALSE))),1) -> 1 | W35: 0 | CG35: 0
O36: 1 | S36: =IF(Q36="",'Unit Rates - Land'!landcst,IF($E$8="Landuse",VLOOKUP(Q36,LAndcost3,2,FALSE),IF($E$8="Location",VLOOKUP(Q36,Landcost2,2,FALSE),"Error"))) -> 0 | T36: 0 | V36: =IFERROR(('General Input Sheet'!$G$38/(VLOOKUP(U36,'General Input Sheet'!$E$38:$G$44,3,FALSE))),1) -> 1 | W36: 0 | CG36: 0
O37: 1 | S37: =IF(Q37="",'Unit Rates - Land'!landcst,IF($E$8="Landuse",VLOOKUP(Q37,LAndcost3,2,FALSE),IF($E$8="Location",VLOOKUP(Q37,Landcost2,2,FALSE),"Error"))) -> 0 | T37: 0 | V37: =IFERROR(('General Input Sheet'!$G$38/(VLOOKUP(U37,'General Input Sheet'!$E$38:$G$44,3,FALSE))),1) -> 1 | W37: 0 | CG37: 0
O38: 1 | S38: =IF(Q38="",'Unit Rates - Land'!landcst,IF($E$8="Landuse",VLOOKUP(Q38,LAndcost3,2,FALSE),IF($E$8="Location",VLOOKUP(Q38,Landcost2,2,FALSE),"Error"))) -> 0 | T38: 0 | V38: =IFERROR(('General Input Sheet'!$G$38/(VLOOKUP(U38,'General Input Sheet'!$E$38:$G$44,3,FALSE))),1) -> 1 | W38: 0 | CG38: 0
O39: 1 | S39: =IF(Q39="",'Unit Rates - Land'!landcst,IF($E$8="Landuse",VLOOKUP(Q39,LAndcost3,2,FALSE),IF($E$8="Location",VLOOKUP(Q39,Landcost2,2,FALSE),"Error"))) -> 0 | T39: 0 | V39: =IFERROR(('General Input Sheet'!$G$38/(VLOOKUP(U39,'General Input Sheet'!$E$38:$G$44,3,FALSE))),1) -> 1 | W39: 0 | CG39: 0
O40: 1 | S40: =IF(Q40="",'Unit Rates - Land'!landcst,IF($E$8="Landuse",VLOOKUP(Q40,LAndcost3,2,FALSE),IF($E$8="Location",VLOOKUP(Q40,Landcost2,2,FALSE),"Error"))) -> 0 | T40: 0 | V40: =IFERROR(('General Input Sheet'!$G$38/(VLOOKUP(U40,'General Input Sheet'!$E$38:$G$44,3,FALSE))),1) -> 1 | W40: 0 | CG40: 0
O41: 1 | S41: =IF(Q41="",'Unit Rates - Land'!landcst,IF($E$8="Landuse",VLOOKUP(Q41,LAndcost3,2,FALSE),IF($E$8="Location",VLOOKUP(Q41,Landcost2,2,FALSE),"Error"))) -> 0 | T41: 0 | V41: =IFERROR(('General Input Sheet'!$G$38/(VLOOKUP(U41,'General Input Sheet'!$E$38:$G$44,3,FALSE))),1) -> 1 | W41: 0 | CG41: 0
O42: 1 | S42: =IF(Q42="",'Unit Rates - Land'!landcst,IF($E$8="Landuse",VLOOKUP(Q42,LAndcost3,2,FALSE),IF($E$8="Location",VLOOKUP(Q42,Landcost2,2,FALSE),"Error"))) -> 0 | T42: 0 | V42: =IFERROR(('General Input Sheet'!$G$38/(VLOOKUP(U42,'General Input Sheet'!$E$38:$G$44,3,FALSE))),1) -> 1 | W42: 0 | CG42: 0
O43: 1 | S43: =IF(Q43="",'Unit Rates - Land'!landcst,IF($E$8="Landuse",VLOOKUP(Q43,LAndcost3,2,FALSE),IF($E$8="Location",VLOOKUP(Q43,Landcost2,2,FALSE),"Error"))) -> 0 | T43: 0 | V43: =IFERROR(('General Input Sheet'!$G$38/(VLOOKUP(U43,'General Input Sheet'!$E$38:$G$44,3,FALSE))),1) -> 1 | W43: 0 | CG43: 0
O44: 1 | S44: =IF(Q44="",'Unit Rates - Land'!landcst,IF($E$8="Landuse",VLOOKUP(Q44,LAndcost3,2,FALSE),IF($E$8="Location",VLOOKUP(Q44,Landcost2,2,FALSE),"Error"))) -> 0 | T44: 0 | V44: =IFERROR(('General Input Sheet'!$G$38/(VLOOKUP(U44,'General Input Sheet'!$E$38:$G$44,3,FALSE))),1) -> 1 | W44: 0 | CG44: 0
O45: 1 | S45: =IF(Q45="",'Unit Rates - Land'!landcst,IF($E$8="Landuse",VLOOKUP(Q45,LAndcost3,2,FALSE),IF($E$8="Location",VLOOKUP(Q45,Landcost2,2,FALSE),"Error"))) -> 0 | T45: 0 | V45: =IFERROR(('General Input Sheet'!$G$38/(VLOOKUP(U45,'General Input Sheet'!$E$38:$G$44,3,FALSE))),1) -> 1 | W45: 0 | CG45: 0
O46: 1 | S46: =IF(Q46="",'Unit Rates - Land'!landcst,IF($E$8="Landuse",VLOOKUP(Q46,LAndcost3,2,FALSE),IF($E$8="Location",VLOOKUP(Q46,Landcost2,2,FALSE),"Error"))) -> 0 | T46: 0 | V46: =IFERROR(('General Input Sheet'!$G$38/(VLOOKUP(U46,'General Input Sheet'!$E$38:$G$44,3,FALSE))),1) -> 1 | W46: 0 | BR46: =IF(AM46="y",BR$14,IF(AND(AM46>0,AM46<=1),AM46*BR$14,"")) ->  | CG46: 0 | DL46: =IF(CF46="","",(CF46/$CG46)*$W46) -> 
O47: 1 | S47: =IF(Q47="",'Unit Rates - Land'!landcst,IF($E$8="Landuse",VLOOKUP(Q47,LAndcost3,2,FALSE),IF($E$8="Location",VLOOKUP(Q47,Landcost2,2,FALSE),"Error"))) -> 0 | T47: 0 | V47: =IFERROR(('General Input Sheet'!$G$38/(VLOOKUP(U47,'General Input Sheet'!$E$38:$G$44,3,FALSE))),1) -> 1 | W47: 0 | BC47: =IF(X47="y",BC$14,IF(AND(X47>0,X47<=1),X47*BC$14,"")) ->  | CG47: 0 | CI47: =IF(BC47="","",(BC47/$CG47)*$W47) ->  | CY47: =IF(BS47="","",(BS47/$CG47)*$W47) -> 
O48: 1 | S48: =IF(Q48="",'Unit Rates - Land'!landcst,IF($E$8="Landuse",VLOOKUP(Q48,LAndcost3,2,FALSE),IF($E$8="Location",VLOOKUP(Q48,Landcost2,2,FALSE),"Error"))) -> 0 | T48: 0 | V48: =IFERROR(('General Input Sheet'!$G$38/(VLOOKUP(U48,'General Input Sheet'!$E$38:$G$44,3,FALSE))),1) -> 1 | W48: 0 | CG48: 0
O49: 1 | S49: =IF(Q49="",'Unit Rates - Land'!landcst,IF($E$8="Landuse",VLOOKUP(Q49,LAndcost3,2,FALSE),IF($E$8="Location",VLOOKUP(Q49,Landcost2,2,FALSE),"Error"))) -> 0 | T49: 0 | V49: =IFERROR(('General Input Sheet'!$G$38/(VLOOKUP(U49,'General Input Sheet'!$E$38:$G$44,3,FALSE))),1) -> 1 | W49: 0 | CG49: 0
O50: 1 | S50: =IF(Q50="",'Unit Rates - Land'!landcst,IF($E$8="Landuse",VLOOKUP(Q50,LAndcost3,2,FALSE),IF($E$8="Location",VLOOKUP(Q50,Landcost2,2,FALSE),"Error"))) -> 0 | T50: 0 | V50: =IFERROR(('General Input Sheet'!$G$38/(VLOOKUP(U50,'General Input Sheet'!$E$38:$G$44,3,FALSE))),1) -> 1 | W50: 0 | CG50: 0
O51: 1 | S51: =IF(Q51="",'Unit Rates - Land'!landcst,IF($E$8="Landuse",VLOOKUP(Q51,LAndcost3,2,FALSE),IF($E$8="Location",VLOOKUP(Q51,Landcost2,2,FALSE),"Error"))) -> 0 | T51: 0 | V51: =IFERROR(('General Input Sheet'!$G$38/(VLOOKUP(U51,'General Input Sheet'!$E$38:$G$44,3,FALSE))),1) -> 1 | W51: 0 | CG51: 0
O52: 1 | S52: =IF(Q52="",'Unit Rates - Land'!landcst,IF($E$8="Landuse",VLOOKUP(Q52,LAndcost3,2,FALSE),IF($E$8="Location",VLOOKUP(Q52,Landcost2,2,FALSE),"Error"))) -> 0 | T52: 0 | V52: =IFERROR(('General Input Sheet'!$G$38/(VLOOKUP(U52,'General Input Sheet'!$E$38:$G$44,3,FALSE))),1) -> 1 | W52: 0 | CG52: 0
O53: 1 | S53: =IF(Q53="",'Unit Rates - Land'!landcst,IF($E$8="Landuse",VLOOKUP(Q53,LAndcost3,2,FALSE),IF($E$8="Location",VLOOKUP(Q53,Landcost2,2,FALSE),"Error"))) -> 0 | T53: 0 | V53: =IFERROR(('General Input Sheet'!$G$38/(VLOOKUP(U53,'General Input Sheet'!$E$38:$G$44,3,FALSE))),1) -> 1 | W53: 0 | CG53: 0
BZ54: =IF(AU54="y",BZ$14,IF(AND(AU54>0,AU54<=1),AU54*BZ$14,"")) ->  | CG54: 0
M55: =L55*I55 ->  | O55: 1 | S55: =IF(Q55="",'Unit Rates - Land'!landcst,IF($E$8="Landuse",VLOOKUP(Q55,LAndcost3,2,FALSE),IF($E$8="Location",VLOOKUP(Q55,Landcost2,2,FALSE),"Error"))) -> 0 | T55: 0 | V55: =IFERROR(('General Input Sheet'!$G$38/(VLOOKUP(U55,'General Input Sheet'!$E$38:$G$44,3,FALSE))),1) -> 1 | W55: 0 | X55: Y | BC55: 5592 | CG55: 5592 | CI55: 0
O56: 1 | S56: =IF(Q56="",'Unit Rates - Land'!landcst,IF($E$8="Landuse",VLOOKUP(Q56,LAndcost3,2,FALSE),IF($E$8="Location",VLOOKUP(Q56,Landcost2,2,FALSE),"Error"))) -> 0 | T56: 0 | V56: =IFERROR(('General Input Sheet'!$G$38/(VLOOKUP(U56,'General Input Sheet'!$E$38:$G$44,3,FALSE))),1) -> 1 | W56: 0 | X56: Y | BC56: 5592 | CG56: 5592 | CI56: 0
O57: 1 | S57: =IF(Q57="",'Unit Rates - Land'!landcst,IF($E$8="Landuse",VLOOKUP(Q57,LAndcost3,2,FALSE),IF($E$8="Location",VLOOKUP(Q57,Landcost2,2,FALSE),"Error"))) -> 0 | T57: 0 | V57: =IFERROR(('General Input Sheet'!$G$38/(VLOOKUP(U57,'General Input Sheet'!$E$38:$G$44,3,FALSE))),1) -> 1 | W57: 0 | X57: Y | BC57: 5592 | CG57: 5592 | CI57: 0
O58: 1 | S58: =IF(Q58="",'Unit Rates - Land'!landcst,IF($E$8="Landuse",VLOOKUP(Q58,LAndcost3,2,FALSE),IF($E$8="Location",VLOOKUP(Q58,Landcost2,2,FALSE),"Error"))) -> 0 | T58: 0 | V58: =IFERROR(('General Input Sheet'!$G$38/(VLOOKUP(U58,'General Input Sheet'!$E$38:$G$44,3,FALSE))),1) -> 1 | W58: 0 | X58: Y | BC58: 5592 | CG58: 5592 | CI58: 0
O59: 1 | S59: =IF(Q59="",'Unit Rates - Land'!landcst,IF($E$8="Landuse",VLOOKUP(Q59,LAndcost3,2,FALSE),IF($E$8="Location",VLOOKUP(Q59,Landcost2,2,FALSE),"Error"))) -> 0 | T59: 0 | V59: =IFERROR(('General Input Sheet'!$G$38/(VLOOKUP(U59,'General Input Sheet'!$E$38:$G$44,3,FALSE))),1) -> 1 | W59: 0 | X59: Y | BC59: 5592 | CG59: 5592 | CI59: 0
O60: 1 | S60: =IF(Q60="",'Unit Rates - Land'!landcst,IF($E$8="Landuse",VLOOKUP(Q60,LAndcost3,2,FALSE),IF($E$8="Location",VLOOKUP(Q60,Landcost2,2,FALSE),"Error"))) -> 0 | T60: 0 | V60: =IFERROR(('General Input Sheet'!$G$38/(VLOOKUP(U60,'General Input Sheet'!$E$38:$G$44,3,FALSE))),1) -> 1 | W60: 0 | X60: Y | BC60: 5592 | CG60: 5592 | CI60: 0
O61: 1 | S61: =IF(Q61="",'Unit Rates - Land'!landcst,IF($E$8="Landuse",VLOOKUP(Q61,LAndcost3,2,FALSE),IF($E$8="Location",VLOOKUP(Q61,Landcost2,2,FALSE),"Error"))) -> 0 | T61: 0 | V61: =IFERROR(('General Input Sheet'!$G$38/(VLOOKUP(U61,'General Input Sheet'!$E$38:$G$44,3,FALSE))),1) -> 1 | W61: 0 | X61: Y | BC61: 5592 | CG61: 5592 | CI61: 0
O62: 1 | S62: =IF(Q62="",'Unit Rates - Land'!landcst,IF($E$8="Landuse",VLOOKUP(Q62,LAndcost3,2,FALSE),IF($E$8="Location",VLOOKUP(Q62,Landcost2,2,FALSE),"Error"))) -> 0 | T62: 0 | V62: =IFERROR(('General Input Sheet'!$G$38/(VLOOKUP(U62,'General Input Sheet'!$E$38:$G$44,3,FALSE))),1) -> 1 | W62: 0 | X62: Y | BC62: 5592 | CG62: 5592 | CI62: 0 | CX62: =IF(BR62="","",(BR62/$CG62)*$W62) -> 
O63: 1 | S63: =IF(Q63="",'Unit Rates - Land'!landcst,IF($E$8="Landuse",VLOOKUP(Q63,LAndcost3,2,FALSE),IF($E$8="Location",VLOOKUP(Q63,Landcost2,2,FALSE),"Error"))) -> 0 | T63: 0 | V63: =IFERROR(('General Input Sheet'!$G$38/(VLOOKUP(U63,'General Input Sheet'!$E$38:$G$44,3,FALSE))),1) -> 1 | W63: 0 | X63: Y | BC63: 5592 | CG63: 5592 | CI63: =IF(BC63="","",(BC63/$CG63)*$W63) -> 0
O64: 1 | S64: =IF(Q64="",'Unit Rates - Land'!landcst,IF($E$8="Landuse",VLOOKUP(Q64,LAndcost3,2,FALSE),IF($E$8="Location",VLOOKUP(Q64,Landcost2,2,FALSE),"Error"))) -> 0 | T64: 0 | V64: =IFERROR(('General Input Sheet'!$G$38/(VLOOKUP(U64,'General Input Sheet'!$E$38:$G$44,3,FALSE))),1) -> 1 | W64: 0 | X64: Y | BC64: =IF(X64="y",BC$14,IF(AND(X64>0,X64<=1),X64*BC$14,"")) -> 5592 | CD64: =IF(AY64="y",CD$14,IF(AND(AY64>0,AY64<=1),AY64*CD$14,"")) ->  | CG64: 5592 | CI64: 0
O65: 1 | S65: =IF(Q65="",'Unit Rates - Land'!landcst,IF($E$8="Landuse",VLOOKUP(Q65,LAndcost3,2,FALSE),IF($E$8="Location",VLOOKUP(Q65,Landcost2,2,FALSE),"Error"))) -> 0 | T65: 0 | V65: =IFERROR(('General Input Sheet'!$G$38/(VLOOKUP(U65,'General Input Sheet'!$E$38:$G$44,3,FALSE))),1) -> 1 | W65: 0 | X65: Y | BC65: 5592 | CG65: 5592 | CI65: 0
O66: 1 | S66: =IF(Q66="",'Unit Rates - Land'!landcst,IF($E$8="Landuse",VLOOKUP(Q66,LAndcost3,2,FALSE),IF($E$8="Location",VLOOKUP(Q66,Landcost2,2,FALSE),"Error"))) -> 0 | T66: 0 | V66: =IFERROR(('General Input Sheet'!$G$38/(VLOOKUP(U66,'General Input Sheet'!$E$38:$G$44,3,FALSE))),1) -> 1 | W66: 0 | X66: Y | BC66: 5592 | CG66: 5592 | CI66: 0 | DG66: =IF(CA66="","",(CA66/$CG66)*$W66) -> 
O67: 1 | S67: =IF(Q67="",'Unit Rates - Land'!landcst,IF($E$8="Landuse",VLOOKUP(Q67,LAndcost3,2,FALSE),IF($E$8="Location",VLOOKUP(Q67,Landcost2,2,FALSE),"Error"))) -> 0 | T67: 0 | V67: =IFERROR(('General Input Sheet'!$G$38/(VLOOKUP(U67,'General Input Sheet'!$E$38:$G$44,3,FALSE))),1) -> 1 | W67: 0 | X67: Y | BC67: 5592 | CG67: 5592 | CI67: 0
O68: 1 | S68: =IF(Q68="",'Unit Rates - Land'!landcst,IF($E$8="Landuse",VLOOKUP(Q68,LAndcost3,2,FALSE),IF($E$8="Location",VLOOKUP(Q68,Landcost2,2,FALSE),"Error"))) -> 0 | T68: 0 | V68: =IFERROR(('General Input Sheet'!$G$38/(VLOOKUP(U68,'General Input Sheet'!$E$38:$G$44,3,FALSE))),1) -> 1 | W68: 0 | X68: Y | BC68: 5592 | CG68: 5592 | CI68: 0
O69: 1 | S69: =IF(Q69="",'Unit Rates - Land'!landcst,IF($E$8="Landuse",VLOOKUP(Q69,LAndcost3,2,FALSE),IF($E$8="Location",VLOOKUP(Q69,Landcost2,2,FALSE),"Error"))) -> 0 | T69: 0 | V69: =IFERROR(('General Input Sheet'!$G$38/(VLOOKUP(U69,'General Input Sheet'!$E$38:$G$44,3,FALSE))),1) -> 1 | W69: 0 | X69: Y | BC69: 5592 | CG69: 5592 | CI69: 0
O70: 1 | S70: =IF(Q70="",'Unit Rates - Land'!landcst,IF($E$8="Landuse",VLOOKUP(Q70,LAndcost3,2,FALSE),IF($E$8="Location",VLOOKUP(Q70,Landcost2,2,FALSE),"Error"))) -> 0 | T70: 0 | V70: =IFERROR(('General Input Sheet'!$G$38/(VLOOKUP(U70,'General Input Sheet'!$E$38:$G$44,3,FALSE))),1) -> 1 | W70: 0 | X70: Y | BC70: 5592 | CG70: 5592 | CI70: 0
O71: 1 | S71: =IF(Q71="",'Unit Rates - Land'!landcst,IF($E$8="Landuse",VLOOKUP(Q71,LAndcost3,2,FALSE),IF($E$8="Location",VLOOKUP(Q71,Landcost2,2,FALSE),"Error"))) -> 0 | T71: 0 | V71: =IFERROR(('General Input Sheet'!$G$38/(VLOOKUP(U71,'General Input Sheet'!$E$38:$G$44,3,FALSE))),1) -> 1 | W71: 0 | X71: Y | BC71: 5592 | CG71: 5592 | CI71: 0
O72: 1 | S72: =IF(Q72="",'Unit Rates - Land'!landcst,IF($E$8="Landuse",VLOOKUP(Q72,LAndcost3,2,FALSE),IF($E$8="Location",VLOOKUP(Q72,Landcost2,2,FALSE),"Error"))) -> 0 | T72: 0 | V72: =IFERROR(('General Input Sheet'!$G$38/(VLOOKUP(U72,'General Input Sheet'!$E$38:$G$44,3,FALSE))),1) -> 1 | W72: 0 | X72: Y | BC72: 5592 | CG72: 5592 | CI72: 0
O73: 1 | S73: =IF(Q73="",'Unit Rates - Land'!landcst,IF($E$8="Landuse",VLOOKUP(Q73,LAndcost3,2,FALSE),IF($E$8="Location",VLOOKUP(Q73,Landcost2,2,FALSE),"Error"))) -> 0 | T73: 0 | V73: =IFERROR(('General Input Sheet'!$G$38/(VLOOKUP(U73,'General Input Sheet'!$E$38:$G$44,3,FALSE))),1) -> 1 | W73: 0 | X73: Y | BC73: 5592 | CG73: 5592 | CI73: 0
O74: 1 | S74: =IF(Q74="",'Unit Rates - Land'!landcst,IF($E$8="Landuse",VLOOKUP(Q74,LAndcost3,2,FALSE),IF($E$8="Location",VLOOKUP(Q74,Landcost2,2,FALSE),"Error"))) -> 0 | T74: 0 | V74: =IFERROR(('General Input Sheet'!$G$38/(VLOOKUP(U74,'General Input Sheet'!$E$38:$G$44,3,FALSE))),1) -> 1 | W74: 0 | X74: Y | BC74: 5592 | CG74: 5592 | CI74: 0
O75: 1 | S75: =IF(Q75="",'Unit Rates - Land'!landcst,IF($E$8="Landuse",VLOOKUP(Q75,LAndcost3,2,FALSE),IF($E$8="Location",VLOOKUP(Q75,Landcost2,2,FALSE),"Error"))) -> 0 | T75: 0 | V75: =IFERROR(('General Input Sheet'!$G$38/(VLOOKUP(U75,'General Input Sheet'!$E$38:$G$44,3,FALSE))),1) -> 1 | W75: 0 | X75: Y | BC75: 5592 | CG75: 5592 | CI75: 0
O76: 1 | S76: =IF(Q76="",'Unit Rates - Land'!landcst,IF($E$8="Landuse",VLOOKUP(Q76,LAndcost3,2,FALSE),IF($E$8="Location",VLOOKUP(Q76,Landcost2,2,FALSE),"Error"))) -> 0 | T76: 0 | V76: =IFERROR(('General Input Sheet'!$G$38/(VLOOKUP(U76,'General Input Sheet'!$E$38:$G$44,3,FALSE))),1) -> 1 | W76: 0 | Y76: Y | BD76: 699 | CG76: 699 | CJ76: 0
O77: 1 | S77: =IF(Q77="",'Unit Rates - Land'!landcst,IF($E$8="Landuse",VLOOKUP(Q77,LAndcost3,2,FALSE),IF($E$8="Location",VLOOKUP(Q77,Landcost2,2,FALSE),"Error"))) -> 0 | T77: 0 | V77: =IFERROR(('General Input Sheet'!$G$38/(VLOOKUP(U77,'General Input Sheet'!$E$38:$G$44,3,FALSE))),1) -> 1 | W77: 0 | X77: Y | BC77: 5592 | CG77: 5592 | CI77: 0
L78: =IF(H78=SewerTYPE1,VLOOKUP(J78,SewerUnitrates1,2,FALSE),IF(H78=SEWERTYPE2,VLOOKUP((J78&"_"&K78),Sewerrates2,2,FALSE),0)) ->  | O78: =IF(N78="",1,VLOOKUP(N78,Sewersitecond,2,FALSE)) -> 1 | S78: =IF(Q78="",'Unit Rates - Land'!landcst,IF($E$8="Landuse",VLOOKUP(Q78,LAndcost3,2,FALSE),IF($E$8="Location",VLOOKUP(Q78,Landcost2,2,FALSE),"Error"))) -> 0 | T78: 0 | V78: =IFERROR(('General Input Sheet'!$G$38/(VLOOKUP(U78,'General Input Sheet'!$E$38:$G$44,3,FALSE))),1) -> 1 | W78: 0 | X78: Y | BC78: 5592 | CG78: 5592 | CI78: 0
O79: 1 | P79: =IF(M79="","",M79*O79) ->  | S79: =IF(Q79="",'Unit Rates - Land'!landcst,IF($E$8="Landuse",VLOOKUP(Q79,LAndcost3,2,FALSE),IF($E$8="Location",VLOOKUP(Q79,Landcost2,2,FALSE),"Error"))) -> 0 | T79: =IF(S79="",0,S79*10000*R79) -> 0 | V79: =IFERROR(('General Input Sheet'!$G$38/(VLOOKUP(U79,'General Input Sheet'!$E$38:$G$44,3,FALSE))),1) -> 1 | W79: =IFERROR((P79+T79)*V79,0) -> 0 | X79: Y | BC79: 5592 | CG79: 5592 | CI79: 0
O80: 1 | S80: =IF(Q80="",'Unit Rates - Land'!landcst,IF($E$8="Landuse",VLOOKUP(Q80,LAndcost3,2,FALSE),IF($E$8="Location",VLOOKUP(Q80,Landcost2,2,FALSE),"Error"))) -> 0 | T80: 0 | V80: =IFERROR(('General Input Sheet'!$G$38/(VLOOKUP(U80,'General Input Sheet'!$E$38:$G$44,3,FALSE))),1) -> 1 | W80: 0 | X80: Y | BC80: 5592 | CG80: 5592 | CI80: =IF(BC80="","",(BC80/$CG80)*$W80) -> 0
O81: 1 | S81: =IF(Q81="",'Unit Rates - Land'!landcst,IF($E$8="Landuse",VLOOKUP(Q81,LAndcost3,2,FALSE),IF($E$8="Location",VLOOKUP(Q81,Landcost2,2,FALSE),"Error"))) -> 0 | T81: 0 | V81: =IFERROR(('General Input Sheet'!$G$38/(VLOOKUP(U81,'General Input Sheet'!$E$38:$G$44,3,FALSE))),1) -> 1 | W81: 0 | X81: Y | BC81: =IF(X81="y",BC$14,IF(AND(X81>0,X81<=1),X81*BC$14,"")) -> 5592 | CG81: =SUM(BC81:CF81) -> 5592 | CI81: 0 | DM81: =IF(SUM(CI81:DL81)=W81,"","ERROR") -> 
O82: 1 | S82: =IF(Q82="",'Unit Rates - Land'!landcst,IF($E$8="Landuse",VLOOKUP(Q82,LAndcost3,2,FALSE),IF($E$8="Location",VLOOKUP(Q82,Landcost2,2,FALSE),"Error"))) -> 0 | T82: 0 | V82: =IFERROR(('General Input Sheet'!$G$38/(VLOOKUP(U82,'General Input Sheet'!$E$38:$G$44,3,FALSE))),1) -> 1 | W82: 0 | X82: Y | BC82: 5592 | CG82: 5592 | CI82: 0
M83: =L83*I83 ->  | O83: 1 | S83: =IF(Q83="",'Unit Rates - Land'!landcst,IF($E$8="Landuse",VLOOKUP(Q83,LAndcost3,2,FALSE),IF($E$8="Location",VLOOKUP(Q83,Landcost2,2,FALSE),"Error"))) -> 0 | T83: 0 | V83: =IFERROR(('General Input Sheet'!$G$38/(VLOOKUP(U83,'General Input Sheet'!$E$38:$G$44,3,FALSE))),1) -> 1 | W83: 0 | X83: Y | BC83: 5592 | CG83: 5592 | CI83: 0
O84: 1 | S84: =IF(Q84="",'Unit Rates - Land'!landcst,IF($E$8="Landuse",VLOOKUP(Q84,LAndcost3,2,FALSE),IF($E$8="Location",VLOOKUP(Q84,Landcost2,2,FALSE),"Error"))) -> 0 | T84: 0 | V84: =IFERROR(('General Input Sheet'!$G$38/(VLOOKUP(U84,'General Input Sheet'!$E$38:$G$44,3,FALSE))),1) -> 1 | W84: 0 | X84: Y | BC84: 5592 | CG84: 5592 | CI84: 0
O85: 1 | S85: =IF(Q85="",'Unit Rates - Land'!landcst,IF($E$8="Landuse",VLOOKUP(Q85,LAndcost3,2,FALSE),IF($E$8="Location",VLOOKUP(Q85,Landcost2,2,FALSE),"Error"))) -> 0 | T85: 0 | V85: =IFERROR(('General Input Sheet'!$G$38/(VLOOKUP(U85,'General Input Sheet'!$E$38:$G$44,3,FALSE))),1) -> 1 | W85: 0 | Y85: Y | BD85: 699 | BX85: =IF(AS85="y",BX$14,IF(AND(AS85>0,AS85<=1),AS85*BX$14,"")) ->  | CG85: 699 | CJ85: 0
O86: 1 | S86: =IF(Q86="",'Unit Rates - Land'!landcst,IF($E$8="Landuse",VLOOKUP(Q86,LAndcost3,2,FALSE),IF($E$8="Location",VLOOKUP(Q86,Landcost2,2,FALSE),"Error"))) -> 0 | T86: 0 | V86: =IFERROR(('General Input Sheet'!$G$38/(VLOOKUP(U86,'General Input Sheet'!$E$38:$G$44,3,FALSE))),1) -> 1 | W86: 0 | Y86: Y | BD86: 699 | BS86: =IF(AN86="y",BS$14,IF(AND(AN86>0,AN86<=1),AN86*BS$14,"")) ->  | CG86: 699 | CJ86: 0
O87: 1 | S87: =IF(Q87="",'Unit Rates - Land'!landcst,IF($E$8="Landuse",VLOOKUP(Q87,LAndcost3,2,FALSE),IF($E$8="Location",VLOOKUP(Q87,Landcost2,2,FALSE),"Error"))) -> 0 | T87: 0 | V87: =IFERROR(('General Input Sheet'!$G$38/(VLOOKUP(U87,'General Input Sheet'!$E$38:$G$44,3,FALSE))),1) -> 1 | W87: 0 | Y87: Y | BD87: 699 | CG87: 699 | CJ87: 0
O88: 1 | S88: =IF(Q88="",'Unit Rates - Land'!landcst,IF($E$8="Landuse",VLOOKUP(Q88,LAndcost3,2,FALSE),IF($E$8="Location",VLOOKUP(Q88,Landcost2,2,FALSE),"Error"))) -> 0 | T88: 0 | V88: =IFERROR(('General Input Sheet'!$G$38/(VLOOKUP(U88,'General Input Sheet'!$E$38:$G$44,3,FALSE))),1) -> 1 | W88: 0 | Y88: Y | BD88: 699 | CG88: 699 | CJ88: 0
O89: 1 | S89: =IF(Q89="",'Unit Rates - Land'!landcst,IF($E$8="Landuse",VLOOKUP(Q89,LAndcost3,2,FALSE),IF($E$8="Location",VLOOKUP(Q89,Landcost2,2,FALSE),"Error"))) -> 0 | T89: 0 | V89: =IFERROR(('General Input Sheet'!$G$38/(VLOOKUP(U89,'General Input Sheet'!$E$38:$G$44,3,FALSE))),1) -> 1 | W89: 0 | Y89: Y | BD89: 699 | CG89: 699 | CJ89: 0
O90: 1 | S90: =IF(Q90="",'Unit Rates - Land'!landcst,IF($E$8="Landuse",VLOOKUP(Q90,LAndcost3,2,FALSE),IF($E$8="Location",VLOOKUP(Q90,Landcost2,2,FALSE),"Error"))) -> 0 | T90: 0 | V90: =IFERROR(('General Input Sheet'!$G$38/(VLOOKUP(U90,'General Input Sheet'!$E$38:$G$44,3,FALSE))),1) -> 1 | W90: 0 | Y90: Y | BD90: 699 | CG90: 699 | CJ90: 0
O91: 1 | S91: =IF(Q91="",'Unit Rates - Land'!landcst,IF($E$8="Landuse",VLOOKUP(Q91,LAndcost3,2,FALSE),IF($E$8="Location",VLOOKUP(Q91,Landcost2,2,FALSE),"Error"))) -> 0 | T91: 0 | V91: =IFERROR(('General Input Sheet'!$G$38/(VLOOKUP(U91,'General Input Sheet'!$E$38:$G$44,3,FALSE))),1) -> 1 | W91: 0 | Y91: Y | BD91: 699 | CG91: 699 | CJ91: 0
O92: 1 | S92: =IF(Q92="",'Unit Rates - Land'!landcst,IF($E$8="Landuse",VLOOKUP(Q92,LAndcost3,2,FALSE),IF($E$8="Location",VLOOKUP(Q92,Landcost2,2,FALSE),"Error"))) -> 0 | T92: 0 | V92: =IFERROR(('General Input Sheet'!$G$38/(VLOOKUP(U92,'General Input Sheet'!$E$38:$G$44,3,FALSE))),1) -> 1 | W92: 0 | Y92: Y | BD92: 699 | CG92: 699 | CJ92: 0
O93: 1 | S93: =IF(Q93="",'Unit Rates - Land'!landcst,IF($E$8="Landuse",VLOOKUP(Q93,LAndcost3,2,FALSE),IF($E$8="Location",VLOOKUP(Q93,Landcost2,2,FALSE),"Error"))) -> 0 | T93: 0 | V93: =IFERROR(('General Input Sheet'!$G$38/(VLOOKUP(U93,'General Input Sheet'!$E$38:$G$44,3,FALSE))),1) -> 1 | W93: 0 | Y93: Y | BD93: 699 | CG93: 699 | CJ93: 0
O94: 1 | S94: =IF(Q94="",'Unit Rates - Land'!landcst,IF($E$8="Landuse",VLOOKUP(Q94,LAndcost3,2,FALSE),IF($E$8="Location",VLOOKUP(Q94,Landcost2,2,FALSE),"Error"))) -> 0 | T94: 0 | V94: =IFERROR(('General Input Sheet'!$G$38/(VLOOKUP(U94,'General Input Sheet'!$E$38:$G$44,3,FALSE))),1) -> 1 | W94: 0 | X94: Y | BC94: 5592 | CG94: 5592 | CI94: 0 | DE94: =IF(BY94="","",(BY94/$CG94)*$W94) -> 
O95: 1 | S95: =IF(Q95="",'Unit Rates - Land'!landcst,IF($E$8="Landuse",VLOOKUP(Q95,LAndcost3,2,FALSE),IF($E$8="Location",VLOOKUP(Q95,Landcost2,2,FALSE),"Error"))) -> 0 | T95: 0 | V95: =IFERROR(('General Input Sheet'!$G$38/(VLOOKUP(U95,'General Input Sheet'!$E$38:$G$44,3,FALSE))),1) -> 1 | W95: 0 | X95: Y | BC95: 5592 | CG95: 5592 | CI95: 0 | CY95: =IF(BS95="","",(BS95/$CG95)*$W95) -> 
O96: 1 | S96: =IF(Q96="",'Unit Rates - Land'!landcst,IF($E$8="Landuse",VLOOKUP(Q96,LAndcost3,2,FALSE),IF($E$8="Location",VLOOKUP(Q96,Landcost2,2,FALSE),"Error"))) -> 0 | T96: 0 | V96: =IFERROR(('General Input Sheet'!$G$38/(VLOOKUP(U96,'General Input Sheet'!$E$38:$G$44,3,FALSE))),1) -> 1 | W96: 0 | X96: Y | BC96: 5592 | CG96: 5592 | CI96: 0 | CW96: =IF(BQ96="","",(BQ96/$CG96)*$W96) -> 
O97: 1 | S97: =IF(Q97="",'Unit Rates - Land'!landcst,IF($E$8="Landuse",VLOOKUP(Q97,LAndcost3,2,FALSE),IF($E$8="Location",VLOOKUP(Q97,Landcost2,2,FALSE),"Error"))) -> 0 | T97: 0 | V97: =IFERROR(('General Input Sheet'!$G$38/(VLOOKUP(U97,'General Input Sheet'!$E$38:$G$44,3,FALSE))),1) -> 1 | W97: 0 | X97: Y | BC97: 5592 | BG97: =IF(AB97="y",BG$14,IF(AND(AB97>0,AB97<=1),AB97*BG$14,"")) ->  | CG97: 5592 | CI97: =IF(BC97="","",(BC97/$CG97)*$W97) -> 0
O98: 1 | S98: =IF(Q98="",'Unit Rates - Land'!landcst,IF($E$8="Landuse",VLOOKUP(Q98,LAndcost3,2,FALSE),IF($E$8="Location",VLOOKUP(Q98,Landcost2,2,FALSE),"Error"))) -> 0 | T98: 0 | V98: =IFERROR(('General Input Sheet'!$G$38/(VLOOKUP(U98,'General Input Sheet'!$E$38:$G$44,3,FALSE))),1) -> 1 | W98: 0 | X98: Y | BC98: =IF(X98="y",BC$14,IF(AND(X98>0,X98<=1),X98*BC$14,"")) -> 5592 | CG98: 5592 | CI98: 0
O99: 1 | S99: =IF(Q99="",'Unit Rates - Land'!landcst,IF($E$8="Landuse",VLOOKUP(Q99,LAndcost3,2,FALSE),IF($E$8="Location",VLOOKUP(Q99,Landcost2,2,FALSE),"Error"))) -> 0 | T99: 0 | V99: =IFERROR(('General Input Sheet'!$G$38/(VLOOKUP(U99,'General Input Sheet'!$E$38:$G$44,3,FALSE))),1) -> 1 | W99: 0 | X99: Y | BC99: 5592 | CG99: 5592 | CI99: 0
O100: 1 | S100: =IF(Q100="",'Unit Rates - Land'!landcst,IF($E$8="Landuse",VLOOKUP(Q100,LAndcost3,2,FALSE),IF($E$8="Location",VLOOKUP(Q100,Landcost2,2,FALSE),"Error"))) -> 0 | T100: 0 | V100: =IFERROR(('General Input Sheet'!$G$38/(VLOOKUP(U100,'General Input Sheet'!$E$38:$G$44,3,FALSE))),1) -> 1 | W100: 0 | X100: Y | BC100: 5592 | CG100: 5592 | CI100: 0
O101: 1 | S101: =IF(Q101="",'Unit Rates - Land'!landcst,IF($E$8="Landuse",VLOOKUP(Q101,LAndcost3,2,FALSE),IF($E$8="Location",VLOOKUP(Q101,Landcost2,2,FALSE),"Error"))) -> 0 | T101: 0 | V101: =IFERROR(('General Input Sheet'!$G$38/(VLOOKUP(U101,'General Input Sheet'!$E$38:$G$44,3,FALSE))),1) -> 1 | W101: 0 | X101: Y | BC101: 5592 | CG101: 5592 | CI101: 0
O102: 1 | S102: =IF(Q102="",'Unit Rates - Land'!landcst,IF($E$8="Landuse",VLOOKUP(Q102,LAndcost3,2,FALSE),IF($E$8="Location",VLOOKUP(Q102,Landcost2,2,FALSE),"Error"))) -> 0 | T102: 0 | V102: =IFERROR(('General Input Sheet'!$G$38/(VLOOKUP(U102,'General Input Sheet'!$E$38:$G$44,3,FALSE))),1) -> 1 | W102: 0 | X102: Y | BC102: 5592 | CG102: 5592 | CI102: 0
O103: 1 | S103: =IF(Q103="",'Unit Rates - Land'!landcst,IF($E$8="Landuse",VLOOKUP(Q103,LAndcost3,2,FALSE),IF($E$8="Location",VLOOKUP(Q103,Landcost2,2,FALSE),"Error"))) -> 0 | T103: 0 | V103: =IFERROR(('General Input Sheet'!$G$38/(VLOOKUP(U103,'General Input Sheet'!$E$38:$G$44,3,FALSE))),1) -> 1 | W103: 0 | X103: Y | BC103: 5592 | CG103: 5592 | CI103: 0
O104: 1 | S104: =IF(Q104="",'Unit Rates - Land'!landcst,IF($E$8="Landuse",VLOOKUP(Q104,LAndcost3,2,FALSE),IF($E$8="Location",VLOOKUP(Q104,Landcost2,2,FALSE),"Error"))) -> 0 | T104: 0 | V104: =IFERROR(('General Input Sheet'!$G$38/(VLOOKUP(U104,'General Input Sheet'!$E$38:$G$44,3,FALSE))),1) -> 1 | W104: 0 | Y104: Y | BD104: 699 | CG104: 699 | CJ104: 0
O105: 1 | S105: =IF(Q105="",'Unit Rates - Land'!landcst,IF($E$8="Landuse",VLOOKUP(Q105,LAndcost3,2,FALSE),IF($E$8="Location",VLOOKUP(Q105,Landcost2,2,FALSE),"Error"))) -> 0 | T105: 0 | V105: =IFERROR(('General Input Sheet'!$G$38/(VLOOKUP(U105,'General Input Sheet'!$E$38:$G$44,3,FALSE))),1) -> 1 | W105: 0 | Y105: Y | BD105: 699 | CG105: 699 | CJ105: 0
O106: 1 | S106: =IF(Q106="",'Unit Rates - Land'!landcst,IF($E$8="Landuse",VLOOKUP(Q106,LAndcost3,2,FALSE),IF($E$8="Location",VLOOKUP(Q106,Landcost2,2,FALSE),"Error"))) -> 0 | T106: 0 | V106: =IFERROR(('General Input Sheet'!$G$38/(VLOOKUP(U106,'General Input Sheet'!$E$38:$G$44,3,FALSE))),1) -> 1 | W106: 0 | Y106: Y | BD106: 699 | CG106: 699 | CJ106: 0
O107: 1 | S107: =IF(Q107="",'Unit Rates - Land'!landcst,IF($E$8="Landuse",VLOOKUP(Q107,LAndcost3,2,FALSE),IF($E$8="Location",VLOOKUP(Q107,Landcost2,2,FALSE),"Error"))) -> 0 | T107: 0 | V107: =IFERROR(('General Input Sheet'!$G$38/(VLOOKUP(U107,'General Input Sheet'!$E$38:$G$44,3,FALSE))),1) -> 1 | W107: 0 | Y107: Y | BD107: 699 | CG107: 699 | CJ107: 0
O108: 1 | S108: =IF(Q108="",'Unit Rates - Land'!landcst,IF($E$8="Landuse",VLOOKUP(Q108,LAndcost3,2,FALSE),IF($E$8="Location",VLOOKUP(Q108,Landcost2,2,FALSE),"Error"))) -> 0 | T108: 0 | V108: =IFERROR(('General Input Sheet'!$G$38/(VLOOKUP(U108,'General Input Sheet'!$E$38:$G$44,3,FALSE))),1) -> 1 | W108: 0 | Y108: Y | BD108: 699 | CG108: 699 | CJ108: 0
O109: 1 | S109: =IF(Q109="",'Unit Rates - Land'!landcst,IF($E$8="Landuse",VLOOKUP(Q109,LAndcost3,2,FALSE),IF($E$8="Location",VLOOKUP(Q109,Landcost2,2,FALSE),"Error"))) -> 0 | T109: 0 | V109: =IFERROR(('General Input Sheet'!$G$38/(VLOOKUP(U109,'General Input Sheet'!$E$38:$G$44,3,FALSE))),1) -> 1 | W109: 0 | Y109: Y | BD109: 699 | CG109: 699 | CJ109: 0
O110: 1 | S110: =IF(Q110="",'Unit Rates - Land'!landcst,IF($E$8="Landuse",VLOOKUP(Q110,LAndcost3,2,FALSE),IF($E$8="Location",VLOOKUP(Q110,Landcost2,2,FALSE),"Error"))) -> 0 | T110: 0 | V110: =IFERROR(('General Input Sheet'!$G$38/(VLOOKUP(U110,'General Input Sheet'!$E$38:$G$44,3,FALSE))),1) -> 1 | W110: 0 | Y110: Y | BD110: 699 | CG110: 699 | CJ110: 0
O111: 1 | S111: =IF(Q111="",'Unit Rates - Land'!landcst,IF($E$8="Landuse",VLOOKUP(Q111,LAndcost3,2,FALSE),IF($E$8="Location",VLOOKUP(Q111,Landcost2,2,FALSE),"Error"))) -> 0 | T111: 0 | V111: =IFERROR(('General Input Sheet'!$G$38/(VLOOKUP(U111,'General Input Sheet'!$E$38:$G$44,3,FALSE))),1) -> 1 | W111: 0 | Y111: Y | BD111: 699 | CG111: 699 | CJ111: 0
O112: 1 | S112: =IF(Q112="",'Unit Rates - Land'!landcst,IF($E$8="Landuse",VLOOKUP(Q112,LAndcost3,2,FALSE),IF($E$8="Location",VLOOKUP(Q112,Landcost2,2,FALSE),"Error"))) -> 0 | T112: 0 | V112: =IFERROR(('General Input Sheet'!$G$38/(VLOOKUP(U112,'General Input Sheet'!$E$38:$G$44,3,FALSE))),1) -> 1 | W112: 0 | Y112: Y | BD112: 699 | CG112: 699 | CJ112: 0
O113: 1 | S113: =IF(Q113="",'Unit Rates - Land'!landcst,IF($E$8="Landuse",VLOOKUP(Q113,LAndcost3,2,FALSE),IF($E$8="Location",VLOOKUP(Q113,Landcost2,2,FALSE),"Error"))) -> 0 | T113: 0 | V113: =IFERROR(('General Input Sheet'!$G$38/(VLOOKUP(U113,'General Input Sheet'!$E$38:$G$44,3,FALSE))),1) -> 1 | W113: 0 | Y113: Y | BD113: 699 | CG113: 699 | CJ113: 0
O114: 1 | S114: =IF(Q114="",'Unit Rates - Land'!landcst,IF($E$8="Landuse",VLOOKUP(Q114,LAndcost3,2,FALSE),IF($E$8="Location",VLOOKUP(Q114,Landcost2,2,FALSE),"Error"))) -> 0 | T114: 0 | V114: =IFERROR(('General Input Sheet'!$G$38/(VLOOKUP(U114,'General Input Sheet'!$E$38:$G$44,3,FALSE))),1) -> 1 | W114: 0 | Y114: Y | BD114: 699 | CG114: 699 | CJ114: 0
O115: 1 | S115: =IF(Q115="",'Unit Rates - Land'!landcst,IF($E$8="Landuse",VLOOKUP(Q115,LAndcost3,2,FALSE),IF($E$8="Location",VLOOKUP(Q115,Landcost2,2,FALSE),"Error"))) -> 0 | T115: 0 | V115: =IFERROR(('General Input Sheet'!$G$38/(VLOOKUP(U115,'General Input Sheet'!$E$38:$G$44,3,FALSE))),1) -> 1 | W115: 0 | Y115: Y | BD115: 699 | CG115: 699 | CJ115: 0 | CL115: =IF(BF115="","",(BF115/$CG115)*$W115) ->  | DL115: =IF(CF115="","",(CF115/$CG115)*$W115) -> 
O116: 1 | S116: =IF(Q116="",'Unit Rates - Land'!landcst,IF($E$8="Landuse",VLOOKUP(Q116,LAndcost3,2,FALSE),IF($E$8="Location",VLOOKUP(Q116,Landcost2,2,FALSE),"Error"))) -> 0 | T116: 0 | V116: =IFERROR(('General Input Sheet'!$G$38/(VLOOKUP(U116,'General Input Sheet'!$E$38:$G$44,3,FALSE))),1) -> 1 | W116: 0 | X116: Y | BC116: 5592 | CG116: 5592 | CI116: =IF(BC116="","",(BC116/$CG116)*$W116) -> 0
O117: 1 | S117: =IF(Q117="",'Unit Rates - Land'!landcst,IF($E$8="Landuse",VLOOKUP(Q117,LAndcost3,2,FALSE),IF($E$8="Location",VLOOKUP(Q117,Landcost2,2,FALSE),"Error"))) -> 0 | T117: 0 | V117: =IFERROR(('General Input Sheet'!$G$38/(VLOOKUP(U117,'General Input Sheet'!$E$38:$G$44,3,FALSE))),1) -> 1 | W117: 0 | X117: Y | BC117: 5592 | CG117: 5592 | CI117: 0
O118: 1 | S118: =IF(Q118="",'Unit Rates - Land'!landcst,IF($E$8="Landuse",VLOOKUP(Q118,LAndcost3,2,FALSE),IF($E$8="Location",VLOOKUP(Q118,Landcost2,2,FALSE),"Error"))) -> 0 | T118: 0 | V118: =IFERROR(('General Input Sheet'!$G$38/(VLOOKUP(U118,'General Input Sheet'!$E$38:$G$44,3,FALSE))),1) -> 1 | W118: 0 | X118: Y | BC118: 5592 | BJ118: =IF(AE118="y",BJ$14,IF(AND(AE118>0,AE118<=1),AE118*BJ$14,"")) ->  | CG118: 5592 | CI118: 0
O119: 1 | S119: =IF(Q119="",'Unit Rates - Land'!landcst,IF($E$8="Landuse",VLOOKUP(Q119,LAndcost3,2,FALSE),IF($E$8="Location",VLOOKUP(Q119,Landcost2,2,FALSE),"Error"))) -> 0 | T119: 0 | V119: =IFERROR(('General Input Sheet'!$G$38/(VLOOKUP(U119,'General Input Sheet'!$E$38:$G$44,3,FALSE))),1) -> 1 | W119: 0 | X119: Y | BC119: 5592 | CG119: 5592 | CI119: 0
O120: 1 | S120: =IF(Q120="",'Unit Rates - Land'!landcst,IF($E$8="Landuse",VLOOKUP(Q120,LAndcost3,2,FALSE),IF($E$8="Location",VLOOKUP(Q120,Landcost2,2,FALSE),"Error"))) -> 0 | T120: 0 | V120: =IFERROR(('General Input Sheet'!$G$38/(VLOOKUP(U120,'General Input Sheet'!$E$38:$G$44,3,FALSE))),1) -> 1 | W120: 0 | X120: Y | BC120: 5592 | CG120: 5592 | CI120: 0
O121: 1 | S121: =IF(Q121="",'Unit Rates - Land'!landcst,IF($E$8="Landuse",VLOOKUP(Q121,LAndcost3,2,FALSE),IF($E$8="Location",VLOOKUP(Q121,Landcost2,2,FALSE),"Error"))) -> 0 | T121: 0 | V121: =IFERROR(('General Input Sheet'!$G$38/(VLOOKUP(U121,'General Input Sheet'!$E$38:$G$44,3,FALSE))),1) -> 1 | W121: 0 | X121: Y | BC121: 5592 | CG121: 5592 | CI121: 0
O122: 1 | S122: =IF(Q122="",'Unit Rates - Land'!landcst,IF($E$8="Landuse",VLOOKUP(Q122,LAndcost3,2,FALSE),IF($E$8="Location",VLOOKUP(Q122,Landcost2,2,FALSE),"Error"))) -> 0 | T122: 0 | V122: =IFERROR(('General Input Sheet'!$G$38/(VLOOKUP(U122,'General Input Sheet'!$E$38:$G$44,3,FALSE))),1) -> 1 | W122: 0 | X122: Y | BC122: 5592 | CG122: 5592 | CI122: 0
O123: 1 | S123: =IF(Q123="",'Unit Rates - Land'!landcst,IF($E$8="Landuse",VLOOKUP(Q123,LAndcost3,2,FALSE),IF($E$8="Location",VLOOKUP(Q123,Landcost2,2,FALSE),"Error"))) -> 0 | T123: 0 | V123: =IFERROR(('General Input Sheet'!$G$38/(VLOOKUP(U123,'General Input Sheet'!$E$38:$G$44,3,FALSE))),1) -> 1 | W123: 0 | X123: Y | BC123: 5592 | CG123: 5592 | CI123: 0
O124: 1 | S124: =IF(Q124="",'Unit Rates - Land'!landcst,IF($E$8="Landuse",VLOOKUP(Q124,LAndcost3,2,FALSE),IF($E$8="Location",VLOOKUP(Q124,Landcost2,2,FALSE),"Error"))) -> 0 | T124: 0 | V124: =IFERROR(('General Input Sheet'!$G$38/(VLOOKUP(U124,'General Input Sheet'!$E$38:$G$44,3,FALSE))),1) -> 1 | W124: 0 | X124: Y | BC124: 5592 | CG124: 5592 | CI124: 0
O125: 1 | S125: =IF(Q125="",'Unit Rates - Land'!landcst,IF($E$8="Landuse",VLOOKUP(Q125,LAndcost3,2,FALSE),IF($E$8="Location",VLOOKUP(Q125,Landcost2,2,FALSE),"Error"))) -> 0 | T125: 0 | V125: =IFERROR(('General Input Sheet'!$G$38/(VLOOKUP(U125,'General Input Sheet'!$E$38:$G$44,3,FALSE))),1) -> 1 | W125: 0 | X125: Y | BC125: 5592 | CG125: 5592 | CI125: 0
O126: 1 | S126: =IF(Q126="",'Unit Rates - Land'!landcst,IF($E$8="Landuse",VLOOKUP(Q126,LAndcost3,2,FALSE),IF($E$8="Location",VLOOKUP(Q126,Landcost2,2,FALSE),"Error"))) -> 0 | T126: 0 | V126: =IFERROR(('General Input Sheet'!$G$38/(VLOOKUP(U126,'General Input Sheet'!$E$38:$G$44,3,FALSE))),1) -> 1 | W126: 0 | Y126: Y | BD126: 699 | CG126: 699 | CJ126: 0
O127: 1 | S127: =IF(Q127="",'Unit Rates - Land'!landcst,IF($E$8="Landuse",VLOOKUP(Q127,LAndcost3,2,FALSE),IF($E$8="Location",VLOOKUP(Q127,Landcost2,2,FALSE),"Error"))) -> 0 | T127: 0 | V127: =IFERROR(('General Input Sheet'!$G$38/(VLOOKUP(U127,'General Input Sheet'!$E$38:$G$44,3,FALSE))),1) -> 1 | W127: 0 | X127: Y | BC127: 5592 | CG127: 5592 | CI127: 0
O128: 1 | S128: =IF(Q128="",'Unit Rates - Land'!landcst,IF($E$8="Landuse",VLOOKUP(Q128,LAndcost3,2,FALSE),IF($E$8="Location",VLOOKUP(Q128,Landcost2,2,FALSE),"Error"))) -> 0 | T128: 0 | V128: =IFERROR(('General Input Sheet'!$G$38/(VLOOKUP(U128,'General Input Sheet'!$E$38:$G$44,3,FALSE))),1) -> 1 | W128: 0 | X128: Y | BC128: 5592 | CG128: 5592 | CI128: 0
O129: 1 | S129: =IF(Q129="",'Unit Rates - Land'!landcst,IF($E$8="Landuse",VLOOKUP(Q129,LAndcost3,2,FALSE),IF($E$8="Location",VLOOKUP(Q129,Landcost2,2,FALSE),"Error"))) -> 0 | T129: 0 | V129: =IFERROR(('General Input Sheet'!$G$38/(VLOOKUP(U129,'General Input Sheet'!$E$38:$G$44,3,FALSE))),1) -> 1 | W129: 0 | X129: Y | BC129: 5592 | CG129: 5592 | CI129: 0
O130: 1 | S130: =IF(Q130="",'Unit Rates - Land'!landcst,IF($E$8="Landuse",VLOOKUP(Q130,LAndcost3,2,FALSE),IF($E$8="Location",VLOOKUP(Q130,Landcost2,2,FALSE),"Error"))) -> 0 | T130: 0 | V130: =IFERROR(('General Input Sheet'!$G$38/(VLOOKUP(U130,'General Input Sheet'!$E$38:$G$44,3,FALSE))),1) -> 1 | W130: 0 | Y130: Y | BD130: 699 | CG130: 699 | CJ130: 0
O131: 1 | S131: =IF(Q131="",'Unit Rates - Land'!landcst,IF($E$8="Landuse",VLOOKUP(Q131,LAndcost3,2,FALSE),IF($E$8="Location",VLOOKUP(Q131,Landcost2,2,FALSE),"Error"))) -> 0 | T131: 0 | V131: =IFERROR(('General Input Sheet'!$G$38/(VLOOKUP(U131,'General Input Sheet'!$E$38:$G$44,3,FALSE))),1) -> 1 | W131: 0 | Y131: Y | BD131: 699 | CG131: 699 | CJ131: 0
O132: 1 | S132: =IF(Q132="",'Unit Rates - Land'!landcst,IF($E$8="Landuse",VLOOKUP(Q132,LAndcost3,2,FALSE),IF($E$8="Location",VLOOKUP(Q132,Landcost2,2,FALSE),"Error"))) -> 0 | T132: 0 | V132: =IFERROR(('General Input Sheet'!$G$38/(VLOOKUP(U132,'General Input Sheet'!$E$38:$G$44,3,FALSE))),1) -> 1 | W132: 0 | X132: Y | BC132: 5592 | CG132: 5592 | CI132: 0
O133: 1 | S133: =IF(Q133="",'Unit Rates - Land'!landcst,IF($E$8="Landuse",VLOOKUP(Q133,LAndcost3,2,FALSE),IF($E$8="Location",VLOOKUP(Q133,Landcost2,2,FALSE),"Error"))) -> 0 | T133: 0 | V133: =IFERROR(('General Input Sheet'!$G$38/(VLOOKUP(U133,'General Input Sheet'!$E$38:$G$44,3,FALSE))),1) -> 1 | W133: 0 | X133: Y | BC133: 5592 | CG133: 5592 | CI133: 0
O134: 1 | S134: =IF(Q134="",'Unit Rates - Land'!landcst,IF($E$8="Landuse",VLOOKUP(Q134,LAndcost3,2,FALSE),IF($E$8="Location",VLOOKUP(Q134,Landcost2,2,FALSE),"Error"))) -> 0 | T134: 0 | V134: =IFERROR(('General Input Sheet'!$G$38/(VLOOKUP(U134,'General Input Sheet'!$E$38:$G$44,3,FALSE))),1) -> 1 | W134: 0 | X134: Y | BC134: 5592 | CG134: 5592 | CI134: 0
O135: 1 | S135: =IF(Q135="",'Unit Rates - Land'!landcst,IF($E$8="Landuse",VLOOKUP(Q135,LAndcost3,2,FALSE),IF($E$8="Location",VLOOKUP(Q135,Landcost2,2,FALSE),"Error"))) -> 0 | T135: 0 | V135: =IFERROR(('General Input Sheet'!$G$38/(VLOOKUP(U135,'General Input Sheet'!$E$38:$G$44,3,FALSE))),1) -> 1 | W135: 0 | X135: Y | BC135: 5592 | CG135: 5592 | CI135: 0
O136: 1 | S136: =IF(Q136="",'Unit Rates - Land'!landcst,IF($E$8="Landuse",VLOOKUP(Q136,LAndcost3,2,FALSE),IF($E$8="Location",VLOOKUP(Q136,Landcost2,2,FALSE),"Error"))) -> 0 | T136: 0 | V136: =IFERROR(('General Input Sheet'!$G$38/(VLOOKUP(U136,'General Input Sheet'!$E$38:$G$44,3,FALSE))),1) -> 1 | W136: 0 | X136: Y | BC136: 5592 | CG136: 5592 | CI136: 0
O137: 1 | S137: =IF(Q137="",'Unit Rates - Land'!landcst,IF($E$8="Landuse",VLOOKUP(Q137,LAndcost3,2,FALSE),IF($E$8="Location",VLOOKUP(Q137,Landcost2,2,FALSE),"Error"))) -> 0 | T137: 0 | V137: =IFERROR(('General Input Sheet'!$G$38/(VLOOKUP(U137,'General Input Sheet'!$E$38:$G$44,3,FALSE))),1) -> 1 | W137: 0 | X137: Y | BC137: 5592 | CG137: 5592 | CI137: 0 | CY137: =IF(BS137="","",(BS137/$CG137)*$W137) -> 
O138: 1 | S138: =IF(Q138="",'Unit Rates - Land'!landcst,IF($E$8="Landuse",VLOOKUP(Q138,LAndcost3,2,FALSE),IF($E$8="Location",VLOOKUP(Q138,Landcost2,2,FALSE),"Error"))) -> 0 | T138: 0 | V138: =IFERROR(('General Input Sheet'!$G$38/(VLOOKUP(U138,'General Input Sheet'!$E$38:$G$44,3,FALSE))),1) -> 1 | W138: 0 | X138: Y | BC138: 5592 | CG138: 5592 | CI138: 0
O139: 1 | S139: =IF(Q139="",'Unit Rates - Land'!landcst,IF($E$8="Landuse",VLOOKUP(Q139,LAndcost3,2,FALSE),IF($E$8="Location",VLOOKUP(Q139,Landcost2,2,FALSE),"Error"))) -> 0 | T139: 0 | V139: =IFERROR(('General Input Sheet'!$G$38/(VLOOKUP(U139,'General Input Sheet'!$E$38:$G$44,3,FALSE))),1) -> 1 | W139: 0 | X139: Y | BC139: 5592 | CG139: 5592 | CI139: 0
O140: 1 | S140: =IF(Q140="",'Unit Rates - Land'!landcst,IF($E$8="Landuse",VLOOKUP(Q140,LAndcost3,2,FALSE),IF($E$8="Location",VLOOKUP(Q140,Landcost2,2,FALSE),"Error"))) -> 0 | T140: 0 | V140: =IFERROR(('General Input Sheet'!$G$38/(VLOOKUP(U140,'General Input Sheet'!$E$38:$G$44,3,FALSE))),1) -> 1 | W140: 0 | X140: Y | BC140: 5592 | CG140: 5592 | CI140: 0
O141: 1 | S141: =IF(Q141="",'Unit Rates - Land'!landcst,IF($E$8="Landuse",VLOOKUP(Q141,LAndcost3,2,FALSE),IF($E$8="Location",VLOOKUP(Q141,Landcost2,2,FALSE),"Error"))) -> 0 | T141: 0 | V141: =IFERROR(('General Input Sheet'!$G$38/(VLOOKUP(U141,'General Input Sheet'!$E$38:$G$44,3,FALSE))),1) -> 1 | W141: 0 | X141: Y | BC141: 5592 | CG141: 5592 | CI141: 0
L142: =IF(H142=SewerTYPE1,VLOOKUP(J142,SewerUnitrates1,2,FALSE),IF(H142=SEWERTYPE2,VLOOKUP((J142&"_"&K142),Sewerrates2,2,FALSE),0)) ->  | O142: =IF(N142="",1,VLOOKUP(N142,Sewersitecond,2,FALSE)) -> 1 | S142: =IF(Q142="",'Unit Rates - Land'!landcst,IF($E$8="Landuse",VLOOKUP(Q142,LAndcost3,2,FALSE),IF($E$8="Location",VLOOKUP(Q142,Landcost2,2,FALSE),"Error"))) -> 0 | T142: 0 | V142: =IFERROR(('General Input Sheet'!$G$38/(VLOOKUP(U142,'General Input Sheet'!$E$38:$G$44,3,FALSE))),1) -> 1 | W142: 0 | X142: Y | BC142: 5592 | CA142: =IF(AV142="y",CA$14,IF(AND(AV142>0,AV142<=1),AV142*CA$14,"")) ->  | CG142: 5592 | CI142: 0
O143: 1 | P143: =IF(M143="","",M143*O143) ->  | S143: =IF(Q143="",'Unit Rates - Land'!landcst,IF($E$8="Landuse",VLOOKUP(Q143,LAndcost3,2,FALSE),IF($E$8="Location",VLOOKUP(Q143,Landcost2,2,FALSE),"Error"))) -> 0 | T143: =IF(S143="",0,S143*10000*R143) -> 0 | V143: =IFERROR(('General Input Sheet'!$G$38/(VLOOKUP(U143,'General Input Sheet'!$E$38:$G$44,3,FALSE))),1) -> 1 | W143: =IFERROR((P143+T143)*V143,0) -> 0 | X143: Y | BC143: 5592 | BF143: =IF(AA143="y",BF$14,IF(AND(AA143>0,AA143<=1),AA143*BF$14,"")) ->  | BV143: =IF(AQ143="y",BV$14,IF(AND(AQ143>0,AQ143<=1),AQ143*BV$14,"")) ->  | CG143: 5592 | CI143: 0
O144: 1 | S144: =IF(Q144="",'Unit Rates - Land'!landcst,IF($E$8="Landuse",VLOOKUP(Q144,LAndcost3,2,FALSE),IF($E$8="Location",VLOOKUP(Q144,Landcost2,2,FALSE),"Error"))) -> 0 | T144: 0 | V144: =IFERROR(('General Input Sheet'!$G$38/(VLOOKUP(U144,'General Input Sheet'!$E$38:$G$44,3,FALSE))),1) -> 1 | W144: 0 | X144: Y | BC144: =IF(X144="y",BC$14,IF(AND(X144>0,X144<=1),X144*BC$14,"")) -> 5592 | CG144: 5592 | CI144: 0
O145: 1 | S145: =IF(Q145="",'Unit Rates - Land'!landcst,IF($E$8="Landuse",VLOOKUP(Q145,LAndcost3,2,FALSE),IF($E$8="Location",VLOOKUP(Q145,Landcost2,2,FALSE),"Error"))) -> 0 | T145: 0 | V145: =IFERROR(('General Input Sheet'!$G$38/(VLOOKUP(U145,'General Input Sheet'!$E$38:$G$44,3,FALSE))),1) -> 1 | W145: 0 | Y145: Y | BD145: 699 | CG145: =SUM(BC145:CF145) -> 699 | CJ145: 0 | DM145: =IF(SUM(CI145:DL145)=W145,"","ERROR") -> 
O146: 1 | S146: =IF(Q146="",'Unit Rates - Land'!landcst,IF($E$8="Landuse",VLOOKUP(Q146,LAndcost3,2,FALSE),IF($E$8="Location",VLOOKUP(Q146,Landcost2,2,FALSE),"Error"))) -> 0 | T146: 0 | V146: =IFERROR(('General Input Sheet'!$G$38/(VLOOKUP(U146,'General Input Sheet'!$E$38:$G$44,3,FALSE))),1) -> 1 | W146: 0 | Y146: Y | BD146: 699 | CG146: 699 | CJ146: 0
M147: =L147*I147 ->  | O147: 1 | S147: =IF(Q147="",'Unit Rates - Land'!landcst,IF($E$8="Landuse",VLOOKUP(Q147,LAndcost3,2,FALSE),IF($E$8="Location",VLOOKUP(Q147,Landcost2,2,FALSE),"Error"))) -> 0 | T147: 0 | V147: =IFERROR(('General Input Sheet'!$G$38/(VLOOKUP(U147,'General Input Sheet'!$E$38:$G$44,3,FALSE))),1) -> 1 | W147: 0 | Y147: Y | BD147: 699 | CG147: 699 | CJ147: 0
O148: 1 | S148: =IF(Q148="",'Unit Rates - Land'!landcst,IF($E$8="Landuse",VLOOKUP(Q148,LAndcost3,2,FALSE),IF($E$8="Location",VLOOKUP(Q148,Landcost2,2,FALSE),"Error"))) -> 0 | T148: 0 | V148: =IFERROR(('General Input Sheet'!$G$38/(VLOOKUP(U148,'General Input Sheet'!$E$38:$G$44,3,FALSE))),1) -> 1 | W148: 0 | Y148: Y | BD148: 699 | CG148: 699 | CJ148: 0
O149: 1 | S149: =IF(Q149="",'Unit Rates - Land'!landcst,IF($E$8="Landuse",VLOOKUP(Q149,LAndcost3,2,FALSE),IF($E$8="Location",VLOOKUP(Q149,Landcost2,2,FALSE),"Error"))) -> 0 | T149: 0 | V149: =IFERROR(('General Input Sheet'!$G$38/(VLOOKUP(U149,'General Input Sheet'!$E$38:$G$44,3,FALSE))),1) -> 1 | W149: 0 | Y149: Y | BD149: 699 | CG149: 699 | CJ149: 0 | CV149: =IF(BP149="","",(BP149/$CG149)*$W149) -> 
O150: 1 | S150: =IF(Q150="",'Unit Rates - Land'!landcst,IF($E$8="Landuse",VLOOKUP(Q150,LAndcost3,2,FALSE),IF($E$8="Location",VLOOKUP(Q150,Landcost2,2,FALSE),"Error"))) -> 0 | T150: 0 | V150: =IFERROR(('General Input Sheet'!$G$38/(VLOOKUP(U150,'General Input Sheet'!$E$38:$G$44,3,FALSE))),1) -> 1 | W150: 0 | X150: Y | BC150: 5592 | CG150: 5592 | CI150: =IF(BC150="","",(BC150/$CG150)*$W150) -> 0
O151: 1 | S151: =IF(Q151="",'Unit Rates - Land'!landcst,IF($E$8="Landuse",VLOOKUP(Q151,LAndcost3,2,FALSE),IF($E$8="Location",VLOOKUP(Q151,Landcost2,2,FALSE),"Error"))) -> 0 | T151: 0 | V151: =IFERROR(('General Input Sheet'!$G$38/(VLOOKUP(U151,'General Input Sheet'!$E$38:$G$44,3,FALSE))),1) -> 1 | W151: 0 | X151: Y | BC151: 5592 | CG151: 5592 | CI151: 0
O152: 1 | S152: =IF(Q152="",'Unit Rates - Land'!landcst,IF($E$8="Landuse",VLOOKUP(Q152,LAndcost3,2,FALSE),IF($E$8="Location",VLOOKUP(Q152,Landcost2,2,FALSE),"Error"))) -> 0 | T152: 0 | V152: =IFERROR(('General Input Sheet'!$G$38/(VLOOKUP(U152,'General Input Sheet'!$E$38:$G$44,3,FALSE))),1) -> 1 | W152: 0 | X152: Y | BC152: 5592 | CG152: 5592 | CI152: 0
O153: 1 | S153: =IF(Q153="",'Unit Rates - Land'!landcst,IF($E$8="Landuse",VLOOKUP(Q153,LAndcost3,2,FALSE),IF($E$8="Location",VLOOKUP(Q153,Landcost2,2,FALSE),"Error"))) -> 0 | T153: 0 | V153: =IFERROR(('General Input Sheet'!$G$38/(VLOOKUP(U153,'General Input Sheet'!$E$38:$G$44,3,FALSE))),1) -> 1 | W153: 0 | X153: Y | BC153: 5592 | CG153: 5592 | CI153: 0
O154: 1 | S154: =IF(Q154="",'Unit Rates - Land'!landcst,IF($E$8="Landuse",VLOOKUP(Q154,LAndcost3,2,FALSE),IF($E$8="Location",VLOOKUP(Q154,Landcost2,2,FALSE),"Error"))) -> 0 | T154: 0 | V154: =IFERROR(('General Input Sheet'!$G$38/(VLOOKUP(U154,'General Input Sheet'!$E$38:$G$44,3,FALSE))),1) -> 1 | W154: 0 | X154: Y | BC154: 5592 | CG154: 5592 | CI154: 0
O155: 1 | S155: =IF(Q155="",'Unit Rates - Land'!landcst,IF($E$8="Landuse",VLOOKUP(Q155,LAndcost3,2,FALSE),IF($E$8="Location",VLOOKUP(Q155,Landcost2,2,FALSE),"Error"))) -> 0 | T155: 0 | V155: =IFERROR(('General Input Sheet'!$G$38/(VLOOKUP(U155,'General Input Sheet'!$E$38:$G$44,3,FALSE))),1) -> 1 | W155: 0 | X155: Y | BC155: 5592 | CG155: 5592 | CI155: 0
O156: 1 | S156: =IF(Q156="",'Unit Rates - Land'!landcst,IF($E$8="Landuse",VLOOKUP(Q156,LAndcost3,2,FALSE),IF($E$8="Location",VLOOKUP(Q156,Landcost2,2,FALSE),"Error"))) -> 0 | T156: 0 | V156: =IFERROR(('General Input Sheet'!$G$38/(VLOOKUP(U156,'General Input Sheet'!$E$38:$G$44,3,FALSE))),1) -> 1 | W156: 0 | X156: Y | BC156: 5592 | CG156: 5592 | CI156: 0 | DG156: =IF(CA156="","",(CA156/$CG156)*$W156) -> 
O157: 1 | S157: =IF(Q157="",'Unit Rates - Land'!landcst,IF($E$8="Landuse",VLOOKUP(Q157,LAndcost3,2,FALSE),IF($E$8="Location",VLOOKUP(Q157,Landcost2,2,FALSE),"Error"))) -> 0 | T157: 0 | V157: =IFERROR(('General Input Sheet'!$G$38/(VLOOKUP(U157,'General Input Sheet'!$E$38:$G$44,3,FALSE))),1) -> 1 | W157: 0 | X157: Y | BC157: 5592 | CG157: 5592 | CI157: 0
O158: 1 | S158: =IF(Q158="",'Unit Rates - Land'!landcst,IF($E$8="Landuse",VLOOKUP(Q158,LAndcost3,2,FALSE),IF($E$8="Location",VLOOKUP(Q158,Landcost2,2,FALSE),"Error"))) -> 0 | T158: 0 | V158: =IFERROR(('General Input Sheet'!$G$38/(VLOOKUP(U158,'General Input Sheet'!$E$38:$G$44,3,FALSE))),1) -> 1 | W158: 0 | X158: Y | BC158: 5592 | BU158: =IF(AP158="y",BU$14,IF(AND(AP158>0,AP158<=1),AP158*BU$14,"")) ->  | CG158: 5592 | CI158: 0
O159: 1 | S159: =IF(Q159="",'Unit Rates - Land'!landcst,IF($E$8="Landuse",VLOOKUP(Q159,LAndcost3,2,FALSE),IF($E$8="Location",VLOOKUP(Q159,Landcost2,2,FALSE),"Error"))) -> 0 | T159: 0 | V159: =IFERROR(('General Input Sheet'!$G$38/(VLOOKUP(U159,'General Input Sheet'!$E$38:$G$44,3,FALSE))),1) -> 1 | W159: 0 | X159: Y | BC159: 5592 | BS159: =IF(AN159="y",BS$14,IF(AND(AN159>0,AN159<=1),AN159*BS$14,"")) ->  | CG159: 5592 | CI159: 0
O160: 1 | S160: =IF(Q160="",'Unit Rates - Land'!landcst,IF($E$8="Landuse",VLOOKUP(Q160,LAndcost3,2,FALSE),IF($E$8="Location",VLOOKUP(Q160,Landcost2,2,FALSE),"Error"))) -> 0 | T160: 0 | V160: =IFERROR(('General Input Sheet'!$G$38/(VLOOKUP(U160,'General Input Sheet'!$E$38:$G$44,3,FALSE))),1) -> 1 | W160: 0 | X160: Y | BC160: 5592 | CG160: 5592 | CI160: 0
O161: 1 | S161: =IF(Q161="",'Unit Rates - Land'!landcst,IF($E$8="Landuse",VLOOKUP(Q161,LAndcost3,2,FALSE),IF($E$8="Location",VLOOKUP(Q161,Landcost2,2,FALSE),"Error"))) -> 0 | T161: 0 | V161: =IFERROR(('General Input Sheet'!$G$38/(VLOOKUP(U161,'General Input Sheet'!$E$38:$G$44,3,FALSE))),1) -> 1 | W161: 0 | Z161: Y | BE161: 726 | CG161: 726 | CK161: 0
O162: 1 | S162: =IF(Q162="",'Unit Rates - Land'!landcst,IF($E$8="Landuse",VLOOKUP(Q162,LAndcost3,2,FALSE),IF($E$8="Location",VLOOKUP(Q162,Landcost2,2,FALSE),"Error"))) -> 0 | T162: 0 | V162: =IFERROR(('General Input Sheet'!$G$38/(VLOOKUP(U162,'General Input Sheet'!$E$38:$G$44,3,FALSE))),1) -> 1 | W162: 0 | Z162: Y | BE162: 726 | CG162: 726 | CK162: 0
O163: 1 | S163: =IF(Q163="",'Unit Rates - Land'!landcst,IF($E$8="Landuse",VLOOKUP(Q163,LAndcost3,2,FALSE),IF($E$8="Location",VLOOKUP(Q163,Landcost2,2,FALSE),"Error"))) -> 0 | T163: 0 | V163: =IFERROR(('General Input Sheet'!$G$38/(VLOOKUP(U163,'General Input Sheet'!$E$38:$G$44,3,FALSE))),1) -> 1 | W163: 0 | Z163: Y | BE163: 726 | CG163: 726 | CK163: 0
O164: 1 | S164: =IF(Q164="",'Unit Rates - Land'!landcst,IF($E$8="Landuse",VLOOKUP(Q164,LAndcost3,2,FALSE),IF($E$8="Location",VLOOKUP(Q164,Landcost2,2,FALSE),"Error"))) -> 0 | T164: 0 | V164: =IFERROR(('General Input Sheet'!$G$38/(VLOOKUP(U164,'General Input Sheet'!$E$38:$G$44,3,FALSE))),1) -> 1 | W164: 0 | Y164: Y | BD164: 699 | CG164: 699 | CJ164: 0
O165: 1 | S165: =IF(Q165="",'Unit Rates - Land'!landcst,IF($E$8="Landuse",VLOOKUP(Q165,LAndcost3,2,FALSE),IF($E$8="Location",VLOOKUP(Q165,Landcost2,2,FALSE),"Error"))) -> 0 | T165: 0 | V165: =IFERROR(('General Input Sheet'!$G$38/(VLOOKUP(U165,'General Input Sheet'!$E$38:$G$44,3,FALSE))),1) -> 1 | W165: 0 | Z165: Y | BE165: 726 | CG165: 726 | CK165: 0
O166: 1 | S166: =IF(Q166="",'Unit Rates - Land'!landcst,IF($E$8="Landuse",VLOOKUP(Q166,LAndcost3,2,FALSE),IF($E$8="Location",VLOOKUP(Q166,Landcost2,2,FALSE),"Error"))) -> 0 | T166: 0 | V166: =IFERROR(('General Input Sheet'!$G$38/(VLOOKUP(U166,'General Input Sheet'!$E$38:$G$44,3,FALSE))),1) -> 1 | W166: 0 | Z166: Y | BE166: 726 | CG166: 726 | CK166: 0
O167: 1 | S167: =IF(Q167="",'Unit Rates - Land'!landcst,IF($E$8="Landuse",VLOOKUP(Q167,LAndcost3,2,FALSE),IF($E$8="Location",VLOOKUP(Q167,Landcost2,2,FALSE),"Error"))) -> 0 | T167: 0 | V167: =IFERROR(('General Input Sheet'!$G$38/(VLOOKUP(U167,'General Input Sheet'!$E$38:$G$44,3,FALSE))),1) -> 1 | W167: 0 | Z167: Y | BE167: 726 | CG167: 726 | CK167: 0
O168: 1 | S168: =IF(Q168="",'Unit Rates - Land'!landcst,IF($E$8="Landuse",VLOOKUP(Q168,LAndcost3,2,FALSE),IF($E$8="Location",VLOOKUP(Q168,Landcost2,2,FALSE),"Error"))) -> 0 | T168: 0 | V168: =IFERROR(('General Input Sheet'!$G$38/(VLOOKUP(U168,'General Input Sheet'!$E$38:$G$44,3,FALSE))),1) -> 1 | W168: 0 | Z168: Y | BE168: 726 | CG168: 726 | CK168: 0
O169: 1 | S169: =IF(Q169="",'Unit Rates - Land'!landcst,IF($E$8="Landuse",VLOOKUP(Q169,LAndcost3,2,FALSE),IF($E$8="Location",VLOOKUP(Q169,Landcost2,2,FALSE),"Error"))) -> 0 | T169: 0 | V169: =IFERROR(('General Input Sheet'!$G$38/(VLOOKUP(U169,'General Input Sheet'!$E$38:$G$44,3,FALSE))),1) -> 1 | W169: 0 | Z169: Y | BE169: 726 | CG169: 726 | CK169: 0 | CQ169: =IF(BK169="","",(BK169/$CG169)*$W169) -> 
O170: 1 | S170: =IF(Q170="",'Unit Rates - Land'!landcst,IF($E$8="Landuse",VLOOKUP(Q170,LAndcost3,2,FALSE),IF($E$8="Location",VLOOKUP(Q170,Landcost2,2,FALSE),"Error"))) -> 0 | T170: 0 | V170: =IFERROR(('General Input Sheet'!$G$38/(VLOOKUP(U170,'General Input Sheet'!$E$38:$G$44,3,FALSE))),1) -> 1 | W170: 0 | Z170: Y | BE170: 726 | CG170: 726 | CI170: =IF(BC170="","",(BC170/$CG170)*$W170) ->  | CK170: 0
O171: 1 | S171: =IF(Q171="",'Unit Rates - Land'!landcst,IF($E$8="Landuse",VLOOKUP(Q171,LAndcost3,2,FALSE),IF($E$8="Location",VLOOKUP(Q171,Landcost2,2,FALSE),"Error"))) -> 0 | T171: 0 | V171: =IFERROR(('General Input Sheet'!$G$38/(VLOOKUP(U171,'General Input Sheet'!$E$38:$G$44,3,FALSE))),1) -> 1 | W171: 0 | Y171: Y | BD171: 699 | CG171: 699 | CJ171: 0
O172: 1 | S172: =IF(Q172="",'Unit Rates - Land'!landcst,IF($E$8="Landuse",VLOOKUP(Q172,LAndcost3,2,FALSE),IF($E$8="Location",VLOOKUP(Q172,Landcost2,2,FALSE),"Error"))) -> 0 | T172: 0 | V172: =IFERROR(('General Input Sheet'!$G$38/(VLOOKUP(U172,'General Input Sheet'!$E$38:$G$44,3,FALSE))),1) -> 1 | W172: 0 | X172: Y | BC172: 5592 | BE172: =IF(Z172="y",BE$14,IF(AND(Z172>0,Z172<=1),Z172*BE$14,"")) ->  | CG172: 5592 | CI172: 0
O173: 1 | S173: =IF(Q173="",'Unit Rates - Land'!landcst,IF($E$8="Landuse",VLOOKUP(Q173,LAndcost3,2,FALSE),IF($E$8="Location",VLOOKUP(Q173,Landcost2,2,FALSE),"Error"))) -> 0 | T173: 0 | V173: =IFERROR(('General Input Sheet'!$G$38/(VLOOKUP(U173,'General Input Sheet'!$E$38:$G$44,3,FALSE))),1) -> 1 | W173: 0 | X173: Y | BC173: =IF(X173="y",BC$14,IF(AND(X173>0,X173<=1),X173*BC$14,"")) -> 5592 | CG173: 5592 | CI173: 0
O174: 1 | S174: =IF(Q174="",'Unit Rates - Land'!landcst,IF($E$8="Landuse",VLOOKUP(Q174,LAndcost3,2,FALSE),IF($E$8="Location",VLOOKUP(Q174,Landcost2,2,FALSE),"Error"))) -> 0 | T174: 0 | V174: =IFERROR(('General Input Sheet'!$G$38/(VLOOKUP(U174,'General Input Sheet'!$E$38:$G$44,3,FALSE))),1) -> 1 | W174: 0 | X174: Y | BC174: 5592 | CG174: 5592 | CI174: 0
O175: 1 | S175: =IF(Q175="",'Unit Rates - Land'!landcst,IF($E$8="Landuse",VLOOKUP(Q175,LAndcost3,2,FALSE),IF($E$8="Location",VLOOKUP(Q175,Landcost2,2,FALSE),"Error"))) -> 0 | T175: 0 | V175: =IFERROR(('General Input Sheet'!$G$38/(VLOOKUP(U175,'General Input Sheet'!$E$38:$G$44,3,FALSE))),1) -> 1 | W175: 0 | X175: Y | BC175: 5592 | CG175: 5592 | CI175: 0
O176: 1 | S176: =IF(Q176="",'Unit Rates - Land'!landcst,IF($E$8="Landuse",VLOOKUP(Q176,LAndcost3,2,FALSE),IF($E$8="Location",VLOOKUP(Q176,Landcost2,2,FALSE),"Error"))) -> 0 | T176: 0 | V176: =IFERROR(('General Input Sheet'!$G$38/(VLOOKUP(U176,'General Input Sheet'!$E$38:$G$44,3,FALSE))),1) -> 1 | W176: 0 | X176: Y | BC176: 5592 | CG176: 5592 | CI176: 0
O177: 1 | S177: =IF(Q177="",'Unit Rates - Land'!landcst,IF($E$8="Landuse",VLOOKUP(Q177,LAndcost3,2,FALSE),IF($E$8="Location",VLOOKUP(Q177,Landcost2,2,FALSE),"Error"))) -> 0 | T177: 0 | V177: =IFERROR(('General Input Sheet'!$G$38/(VLOOKUP(U177,'General Input Sheet'!$E$38:$G$44,3,FALSE))),1) -> 1 | W177: 0 | X177: Y | BC177: 5592 | CG177: 5592 | CI177: 0
O178: 1 | S178: =IF(Q178="",'Unit Rates - Land'!landcst,IF($E$8="Landuse",VLOOKUP(Q178,LAndcost3,2,FALSE),IF($E$8="Location",VLOOKUP(Q178,Landcost2,2,FALSE),"Error"))) -> 0 | T178: 0 | V178: =IFERROR(('General Input Sheet'!$G$38/(VLOOKUP(U178,'General Input Sheet'!$E$38:$G$44,3,FALSE))),1) -> 1 | W178: 0 | X178: Y | BC178: 5592 | CG178: 5592 | CI178: 0
O179: 1 | S179: =IF(Q179="",'Unit Rates - Land'!landcst,IF($E$8="Landuse",VLOOKUP(Q179,LAndcost3,2,FALSE),IF($E$8="Location",VLOOKUP(Q179,Landcost2,2,FALSE),"Error"))) -> 0 | T179: 0 | V179: =IFERROR(('General Input Sheet'!$G$38/(VLOOKUP(U179,'General Input Sheet'!$E$38:$G$44,3,FALSE))),1) -> 1 | W179: 0 | X179: Y | BC179: 5592 | CG179: 5592 | CI179: 0
O180: 1 | S180: =IF(Q180="",'Unit Rates - Land'!landcst,IF($E$8="Landuse",VLOOKUP(Q180,LAndcost3,2,FALSE),IF($E$8="Location",VLOOKUP(Q180,Landcost2,2,FALSE),"Error"))) -> 0 | T180: 0 | V180: =IFERROR(('General Input Sheet'!$G$38/(VLOOKUP(U180,'General Input Sheet'!$E$38:$G$44,3,FALSE))),1) -> 1 | W180: 0 | X180: Y | BC180: 5592 | CG180: 5592 | CI180: 0
O181: 1 | S181: =IF(Q181="",'Unit Rates - Land'!landcst,IF($E$8="Landuse",VLOOKUP(Q181,LAndcost3,2,FALSE),IF($E$8="Location",VLOOKUP(Q181,Landcost2,2,FALSE),"Error"))) -> 0 | T181: 0 | V181: =IFERROR(('General Input Sheet'!$G$38/(VLOOKUP(U181,'General Input Sheet'!$E$38:$G$44,3,FALSE))),1) -> 1 | W181: 0 | X181: Y | BC181: 5592 | CG181: 5592 | CI181: 0
O182: 1 | S182: =IF(Q182="",'Unit Rates - Land'!landcst,IF($E$8="Landuse",VLOOKUP(Q182,LAndcost3,2,FALSE),IF($E$8="Location",VLOOKUP(Q182,Landcost2,2,FALSE),"Error"))) -> 0 | T182: 0 | V182: =IFERROR(('General Input Sheet'!$G$38/(VLOOKUP(U182,'General Input Sheet'!$E$38:$G$44,3,FALSE))),1) -> 1 | W182: 0 | X182: Y | BC182: 5592 | CG182: 5592 | CI182: 0
O183: 1 | S183: =IF(Q183="",'Unit Rates - Land'!landcst,IF($E$8="Landuse",VLOOKUP(Q183,LAndcost3,2,FALSE),IF($E$8="Location",VLOOKUP(Q183,Landcost2,2,FALSE),"Error"))) -> 0 | T183: 0 | V183: =IFERROR(('General Input Sheet'!$G$38/(VLOOKUP(U183,'General Input Sheet'!$E$38:$G$44,3,FALSE))),1) -> 1 | W183: 0 | X183: Y | BC183: 5592 | CG183: 5592 | CI183: 0
O184: 1 | S184: =IF(Q184="",'Unit Rates - Land'!landcst,IF($E$8="Landuse",VLOOKUP(Q184,LAndcost3,2,FALSE),IF($E$8="Location",VLOOKUP(Q184,Landcost2,2,FALSE),"Error"))) -> 0 | T184: 0 | V184: =IFERROR(('General Input Sheet'!$G$38/(VLOOKUP(U184,'General Input Sheet'!$E$38:$G$44,3,FALSE))),1) -> 1 | W184: 0 | X184: Y | BC184: 5592 | CD184: =IF(AY184="y",CD$14,IF(AND(AY184>0,AY184<=1),AY184*CD$14,"")) ->  | CG184: 5592 | CI184: 0
O185: 1 | S185: =IF(Q185="",'Unit Rates - Land'!landcst,IF($E$8="Landuse",VLOOKUP(Q185,LAndcost3,2,FALSE),IF($E$8="Location",VLOOKUP(Q185,Landcost2,2,FALSE),"Error"))) -> 0 | T185: 0 | V185: =IFERROR(('General Input Sheet'!$G$38/(VLOOKUP(U185,'General Input Sheet'!$E$38:$G$44,3,FALSE))),1) -> 1 | W185: 0 | X185: Y | BC185: 5592 | CG185: 5592 | CI185: 0
O186: 1 | S186: =IF(Q186="",'Unit Rates - Land'!landcst,IF($E$8="Landuse",VLOOKUP(Q186,LAndcost3,2,FALSE),IF($E$8="Location",VLOOKUP(Q186,Landcost2,2,FALSE),"Error"))) -> 0 | T186: 0 | V186: =IFERROR(('General Input Sheet'!$G$38/(VLOOKUP(U186,'General Input Sheet'!$E$38:$G$44,3,FALSE))),1) -> 1 | W186: 0 | X186: Y | BC186: 5592 | CG186: 5592 | CI186: 0
O187: 1 | S187: =IF(Q187="",'Unit Rates - Land'!landcst,IF($E$8="Landuse",VLOOKUP(Q187,LAndcost3,2,FALSE),IF($E$8="Location",VLOOKUP(Q187,Landcost2,2,FALSE),"Error"))) -> 0 | T187: 0 | V187: =IFERROR(('General Input Sheet'!$G$38/(VLOOKUP(U187,'General Input Sheet'!$E$38:$G$44,3,FALSE))),1) -> 1 | W187: 0 | X187: Y | BC187: 5592 | CG187: 5592 | CI187: 0
O188: 1 | S188: =IF(Q188="",'Unit Rates - Land'!landcst,IF($E$8="Landuse",VLOOKUP(Q188,LAndcost3,2,FALSE),IF($E$8="Location",VLOOKUP(Q188,Landcost2,2,FALSE),"Error"))) -> 0 | T188: 0 | V188: =IFERROR(('General Input Sheet'!$G$38/(VLOOKUP(U188,'General Input Sheet'!$E$38:$G$44,3,FALSE))),1) -> 1 | W188: 0 | X188: Y | BC188: 5592 | CG188: 5592 | CI188: 0
O189: 1 | S189: =IF(Q189="",'Unit Rates - Land'!landcst,IF($E$8="Landuse",VLOOKUP(Q189,LAndcost3,2,FALSE),IF($E$8="Location",VLOOKUP(Q189,Landcost2,2,FALSE),"Error"))) -> 0 | T189: 0 | V189: =IFERROR(('General Input Sheet'!$G$38/(VLOOKUP(U189,'General Input Sheet'!$E$38:$G$44,3,FALSE))),1) -> 1 | W189: 0 | X189: Y | BC189: 5592 | CG189: 5592 | CI189: 0
O190: 1 | S190: =IF(Q190="",'Unit Rates - Land'!landcst,IF($E$8="Landuse",VLOOKUP(Q190,LAndcost3,2,FALSE),IF($E$8="Location",VLOOKUP(Q190,Landcost2,2,FALSE),"Error"))) -> 0 | T190: 0 | V190: =IFERROR(('General Input Sheet'!$G$38/(VLOOKUP(U190,'General Input Sheet'!$E$38:$G$44,3,FALSE))),1) -> 1 | W190: 0 | X190: Y | BC190: 5592 | BH190: =IF(AC190="y",BH$14,IF(AND(AC190>0,AC190<=1),AC190*BH$14,"")) ->  | CA190: =IF(AV190="y",CA$14,IF(AND(AV190>0,AV190<=1),AV190*CA$14,"")) ->  | CG190: 5592 | CI190: 0
O191: 1 | S191: =IF(Q191="",'Unit Rates - Land'!landcst,IF($E$8="Landuse",VLOOKUP(Q191,LAndcost3,2,FALSE),IF($E$8="Location",VLOOKUP(Q191,Landcost2,2,FALSE),"Error"))) -> 0 | T191: 0 | V191: =IFERROR(('General Input Sheet'!$G$38/(VLOOKUP(U191,'General Input Sheet'!$E$38:$G$44,3,FALSE))),1) -> 1 | W191: 0 | X191: Y | BC191: 5592 | CG191: 5592 | CI191: 0 | CS191: =IF(BM191="","",(BM191/$CG191)*$W191) -> 
O192: 1 | S192: =IF(Q192="",'Unit Rates - Land'!landcst,IF($E$8="Landuse",VLOOKUP(Q192,LAndcost3,2,FALSE),IF($E$8="Location",VLOOKUP(Q192,Landcost2,2,FALSE),"Error"))) -> 0 | T192: 0 | V192: =IFERROR(('General Input Sheet'!$G$38/(VLOOKUP(U192,'General Input Sheet'!$E$38:$G$44,3,FALSE))),1) -> 1 | W192: 0 | X192: Y | BC192: 5592 | CG192: 5592 | CI192: 0
O193: 1 | S193: =IF(Q193="",'Unit Rates - Land'!landcst,IF($E$8="Landuse",VLOOKUP(Q193,LAndcost3,2,FALSE),IF($E$8="Location",VLOOKUP(Q193,Landcost2,2,FALSE),"Error"))) -> 0 | T193: 0 | V193: =IFERROR(('General Input Sheet'!$G$38/(VLOOKUP(U193,'General Input Sheet'!$E$38:$G$44,3,FALSE))),1) -> 1 | W193: 0 | X193: Y | BC193: 5592 | CG193: 5592 | CI193: 0
O194: 1 | S194: =IF(Q194="",'Unit Rates - Land'!landcst,IF($E$8="Landuse",VLOOKUP(Q194,LAndcost3,2,FALSE),IF($E$8="Location",VLOOKUP(Q194,Landcost2,2,FALSE),"Error"))) -> 0 | T194: 0 | V194: =IFERROR(('General Input Sheet'!$G$38/(VLOOKUP(U194,'General Input Sheet'!$E$38:$G$44,3,FALSE))),1) -> 1 | W194: 0 | X194: Y | BC194: 5592 | CG194: 5592 | CI194: 0
O195: 1 | S195: =IF(Q195="",'Unit Rates - Land'!landcst,IF($E$8="Landuse",VLOOKUP(Q195,LAndcost3,2,FALSE),IF($E$8="Location",VLOOKUP(Q195,Landcost2,2,FALSE),"Error"))) -> 0 | T195: 0 | V195: =IFERROR(('General Input Sheet'!$G$38/(VLOOKUP(U195,'General Input Sheet'!$E$38:$G$44,3,FALSE))),1) -> 1 | W195: 0 | X195: Y | BC195: 5592 | CG195: 5592 | CI195: 0
O196: 1 | S196: =IF(Q196="",'Unit Rates - Land'!landcst,IF($E$8="Landuse",VLOOKUP(Q196,LAndcost3,2,FALSE),IF($E$8="Location",VLOOKUP(Q196,Landcost2,2,FALSE),"Error"))) -> 0 | T196: 0 | V196: =IFERROR(('General Input Sheet'!$G$38/(VLOOKUP(U196,'General Input Sheet'!$E$38:$G$44,3,FALSE))),1) -> 1 | W196: 0 | X196: Y | BC196: 5592 | CG196: 5592 | CI196: 0
O197: 1 | S197: =IF(Q197="",'Unit Rates - Land'!landcst,IF($E$8="Landuse",VLOOKUP(Q197,LAndcost3,2,FALSE),IF($E$8="Location",VLOOKUP(Q197,Landcost2,2,FALSE),"Error"))) -> 0 | T197: 0 | V197: =IFERROR(('General Input Sheet'!$G$38/(VLOOKUP(U197,'General Input Sheet'!$E$38:$G$44,3,FALSE))),1) -> 1 | W197: 0 | X197: Y | BC197: 5592 | CG197: 5592 | CI197: 0
O198: 1 | S198: =IF(Q198="",'Unit Rates - Land'!landcst,IF($E$8="Landuse",VLOOKUP(Q198,LAndcost3,2,FALSE),IF($E$8="Location",VLOOKUP(Q198,Landcost2,2,FALSE),"Error"))) -> 0 | T198: 0 | V198: =IFERROR(('General Input Sheet'!$G$38/(VLOOKUP(U198,'General Input Sheet'!$E$38:$G$44,3,FALSE))),1) -> 1 | W198: 0 | Z198: Y | BE198: 726 | CG198: 726 | CK198: 0
O199: 1 | S199: =IF(Q199="",'Unit Rates - Land'!landcst,IF($E$8="Landuse",VLOOKUP(Q199,LAndcost3,2,FALSE),IF($E$8="Location",VLOOKUP(Q199,Landcost2,2,FALSE),"Error"))) -> 0 | T199: 0 | V199: =IFERROR(('General Input Sheet'!$G$38/(VLOOKUP(U199,'General Input Sheet'!$E$38:$G$44,3,FALSE))),1) -> 1 | W199: 0 | X199: Y | BC199: 5592 | CG199: 5592 | CI199: 0 | CR199: =IF(BL199="","",(BL199/$CG199)*$W199) -> 
O200: 1 | S200: =IF(Q200="",'Unit Rates - Land'!landcst,IF($E$8="Landuse",VLOOKUP(Q200,LAndcost3,2,FALSE),IF($E$8="Location",VLOOKUP(Q200,Landcost2,2,FALSE),"Error"))) -> 0 | T200: 0 | V200: =IFERROR(('General Input Sheet'!$G$38/(VLOOKUP(U200,'General Input Sheet'!$E$38:$G$44,3,FALSE))),1) -> 1 | W200: 0 | X200: Y | BC200: 5592 | CG200: 5592 | CI200: =IF(BC200="","",(BC200/$CG200)*$W200) -> 0
O201: 1 | S201: =IF(Q201="",'Unit Rates - Land'!landcst,IF($E$8="Landuse",VLOOKUP(Q201,LAndcost3,2,FALSE),IF($E$8="Location",VLOOKUP(Q201,Landcost2,2,FALSE),"Error"))) -> 0 | T201: 0 | V201: =IFERROR(('General Input Sheet'!$G$38/(VLOOKUP(U201,'General Input Sheet'!$E$38:$G$44,3,FALSE))),1) -> 1 | W201: 0 | X201: Y | BC201: 5592 | CG201: 5592 | CI201: 0
O202: 1 | S202: =IF(Q202="",'Unit Rates - Land'!landcst,IF($E$8="Landuse",VLOOKUP(Q202,LAndcost3,2,FALSE),IF($E$8="Location",VLOOKUP(Q202,Landcost2,2,FALSE),"Error"))) -> 0 | T202: 0 | V202: =IFERROR(('General Input Sheet'!$G$38/(VLOOKUP(U202,'General Input Sheet'!$E$38:$G$44,3,FALSE))),1) -> 1 | W202: 0 | X202: Y | BC202: 5592 | CG202: 5592 | CI202: 0 | DI202: =IF(CC202="","",(CC202/$CG202)*$W202) -> 
O203: 1 | S203: =IF(Q203="",'Unit Rates - Land'!landcst,IF($E$8="Landuse",VLOOKUP(Q203,LAndcost3,2,FALSE),IF($E$8="Location",VLOOKUP(Q203,Landcost2,2,FALSE),"Error"))) -> 0 | T203: 0 | V203: =IFERROR(('General Input Sheet'!$G$38/(VLOOKUP(U203,'General Input Sheet'!$E$38:$G$44,3,FALSE))),1) -> 1 | W203: 0 | X203: Y | BC203: 5592 | CG203: 5592 | CI203: 0
O204: 1 | S204: =IF(Q204="",'Unit Rates - Land'!landcst,IF($E$8="Landuse",VLOOKUP(Q204,LAndcost3,2,FALSE),IF($E$8="Location",VLOOKUP(Q204,Landcost2,2,FALSE),"Error"))) -> 0 | T204: 0 | V204: =IFERROR(('General Input Sheet'!$G$38/(VLOOKUP(U204,'General Input Sheet'!$E$38:$G$44,3,FALSE))),1) -> 1 | W204: 0 | X204: Y | BC204: 5592 | CG204: 5592 | CI204: 0
... 223 more rows

Sheet Exist Trunk Assets - Transport
B2: ='Navigation Pane'!C2 -> Goondiwindi Regional Council
B3: Transport
A4: Return to "Existing Trunk Assets"
B5: EXISTING TRUNK ASSETS
B8: Land Valuation Type | D8: Location
H10: Asset Data | V10: Catchment Asset Allocation | BO10: Asset Usage | CU10: Cost Allocation
B11: Basic Asset Data | G11: Asset Attributes | J11: Basic Asset Valuation | O11: Land Attributes | S11: Refined Asset Value | V11: ='Catchment Demand Road Transport'!$C8 -> Goondiwindi | W11: ='Catchment Demand Road Transport'!$C9 -> Texas | X11: ='Catchment Demand Road Transport'!$C10 -> Inglewood | Y11: ='Catchment Demand Road Transport'!$C11 -> Yelarbon | Z11: ='Catchment Demand Road Transport'!$C12 -> Talwood | AA11: ='Catchment Demand Road Transport'!$C13 -> Inside PIA total | AB11: ='Catchment Demand Road Transport'!$C14 -> Outside PIA total | AC11: ='Catchment Demand Road Transport'!$C15 -> Total region total | AD11: ='Catchment Demand Road Transport'!$C16 -> 0 | AE11: ='Catchment Demand Road Transport'!$C17 -> 0 | AF11: ='Catchment Demand Road Transport'!$C18 -> 0 | AG11: ='Catchment Demand Road Transport'!$C19 -> 0 | AH11: ='Catchment Demand Road Transport'!$C20 -> 0 | AI11: ='Catchment Demand Road Transport'!$C21 -> 0 | AJ11: ='Catchment Demand Road Transport'!$C22 -> 0 | AK11: ='Catchment Demand Road Transport'!$C23 -> 0 | AL11: ='Catchment Demand Road Transport'!$C24 -> 0 | AM11: ='Catchment Demand Road Transport'!$C25 -> 0 | AN11: ='Catchment Demand Road Transport'!$C26 -> 0 | AO11: ='Catchment Demand Road Transport'!$C27 -> 0 | AP11: ='Catchment Demand Road Transport'!$C28 -> 0 | AQ11: ='Catchment Demand Road Transport'!$C29 -> 0 | AR11: ='Catchment Demand Road Transport'!$C30 -> 0 | AS11: ='Catchment Demand Road Transport'!$C31 -> 0 | AT11: ='Catchment Demand Road Transport'!$C32 -> 0 | AU11: ='Catchment Demand Road Transport'!$C33 -> 0 | AV11: ='Catchment Demand Road Transport'!$C34 -> 0 | AW11: ='Catchment Demand Road Transport'!$C35 -> 0 | AX11: ='Catchment Demand Road Transport'!$C36 -> 0 | AY11: ='Catchment Demand Road Transport'!$C37 -> 0 | BA11: =V11 -> Goondiwindi | BB11: =W11 -> Texas | BC11: Inglewood | BD11: Yelarbon | BE11: Talwood | BF11: Inside PIA total | BG11: Outside PIA total | BH11: Total region total | BI11: 0 | BJ11: 0 | BK11: 0 | BL11: 0 | BM11: 0 | BN11: 0 | BO11: 0 | BP11: 0 | BQ11: 0 | BR11: 0 | BS11: 0 | BT11: 0 | BU11: 0 | BV11: 0 | BW11: 0 | BX11: 0 | BY11: 0 | BZ11: 0 | CA11: 0 | CB11: 0 | CC11: 0 | CD11: 0 | CE11: TOTALS | CG11: =V11 -> Goondiwindi | CH11: =W11 -> Texas | CI11: Inglewood | CJ11: Yelarbon | CK11: Talwood | CL11: Inside PIA total | CM11: Outside PIA total | CN11: Total region total | CO11: 0 | CP11: 0 | CQ11: 0 | CR11: 0 | CS11: 0 | CT11: 0 | CU11: 0 | CV11: 0 | CW11: 0 | CX11: 0 | CY11: 0 | CZ11: 0 | DA11: 0 | DB11: 0 | DC11: 0 | DD11: 0 | DE11: 0 | DF11: 0 | DG11: 0 | DH11: 0 | DI11: 0 | DJ11: 0 | DK11: Checksum 2
B12: Asset ID | C12: LGIP ID | D12: Asset Class | E12: Asset Name | F12: Description | G12: Unit Rate Type (*) | H12: Length/unit (*) | I12: Hiercahy/name | J12: Unit Rate | K12: Baseline Valuation | L12: Site/Condition | M12: Multiplier | N12: Gross Value | O12: Land Location/Type | P12: Size of land (ha) (*) | Q12: Unit Cost | R12: Land Value | S12: Valuation Year | T12: Escalation | U12: Current Replacement Cost
V13: 1 | W13: =V13+1 -> 2 | X13: =W13+1 -> 3 | Y13: 4 | Z13: 5 | AA13: 6 | AB13: 7 | AC13: 8 | AD13: 9 | AE13: 10 | AF13: 11 | AG13: 12 | AH13: 13 | AI13: 14 | AJ13: 15 | AK13: 16 | AL13: 17 | AM13: 18 | AN13: 19 | AO13: 20 | AP13: 21 | AQ13: 22 | AR13: 23 | AS13: 24 | AT13: 25 | AU13: 26 | AV13: 27 | AW13: 28 | AX13: 29 | AY13: 30
B14: Councils ID (from GIS, FAR, AMA etc.) | C14: ID from the LGIP drawings | D14: Arterial, Subarterial, Collector | K14: May be calculated from unit rates OR unique values can be direct entered | U14: CRC | V14: =IFERROR(VLOOKUP(V11,Roadcatch,5,FALSE),"") -> 35499.17 | W14: =IFERROR(VLOOKUP(W11,Roadcatch,5,FALSE),"") -> 5346.7 | X14: =IFERROR(VLOOKUP(X11,Roadcatch,5,FALSE),"") -> 5278.02 | Y14: =IFERROR(VLOOKUP(Y11,Roadcatch,5,FALSE),"") -> 1787.45 | Z14: =IFERROR(VLOOKUP(Z11,Roadcatch,5,FALSE),"") -> 528 | AA14: =IFERROR(VLOOKUP(AA11,Roadcatch,6,FALSE),"") -> 0 | AB14: 0 | AC14: 0 | BA14: =V14 -> 35499.17 | BB14: =W14 -> 5346.7 | BC14: 5278.02 | BD14: 1787.45 | BE14: 528 | BF14: 0 | BG14: 0 | BH14: 0 | CG14: =SUM(CG15:CG38) -> 3862416.73 | CH14: 0 | CI14: 619499.73 | CJ14: 0 | CK14: 647923.47 | CL14: 0 | CM14: 0 | CN14: 0 | CO14: 0 | CP14: 0 | CQ14: 0 | CR14: 0 | CS14: 0 | CT14: 0 | CU14: 0 | CV14: 0 | CW14: 0 | CX14: 0 | CY14: 0 | CZ14: 0 | DA14: 0 | DB14: 0 | DC14: 0 | DD14: 0 | DE14: 0 | DF14: 0 | DG14: 0 | DH14: 0 | DI14: 0 | DJ14: 0 | DK14: 0
E15: ALBERT ST (GDI) | F15: 312695.22 | J15: =IF(G15=RoadTYPE1,VLOOKUP(I15,Roadunitrates1,2,FALSE),IF(G15=ROADTYPE2,VLOOKUP(I15,Roadunitrates2,2,FALSE),0)) -> 0 | K15: 312695.22 | M15: =IF(L15="",1,VLOOKUP(L15,Roadsitecond,2,FALSE)) -> 1 | N15: =IF(K15="","",K15*M15) -> 312695.22 | Q15: =IF(O15="",'Unit Rates - Land'!landcst,IF($D$8="Landuse",VLOOKUP(O15,LAndcost3,2,FALSE),IF($D$8="Location",VLOOKUP(O15,Landcost2,2,FALSE),"Error"))) -> 0 | R15: =IF(Q15="",0,Q15*10000*P15) -> 0 | S15: 2016 | T15: =IFERROR(('General Input Sheet'!$G$38/(VLOOKUP(S15,'General Input Sheet'!$E$38:$G$44,3,FALSE))),1) -> 1 | U15: =IFERROR((N15+R15)*T15,0) -> 312695.22 | V15: y | BA15: =IF(V15="y",BA$14,IF(AND(V15>0,V15<=1),V15*BA$14,"")) -> 35499.17 | BF15: =IF(AA15="y",BF$14,IF(AND(AA15>0,AA15<=1),AA15*BF$14,"")) ->  | BO15: =IF(AJ15="y",BO$14,IF(AND(AJ15>0,AJ15<=1),AJ15*BO$14,"")) ->  | BU15: =IF(AP15="y",BU$14,IF(AND(AP15>0,AP15<=1),AP15*BU$14,"")) ->  | CD15: =IF(AY15="y",CD$14,IF(AND(AY15>0,AY15<=1),AY15*CD$14,"")) ->  | CE15: =SUM(BA15:CD15) -> 35499.17 | CG15: =IF(BA15="","",(BA15/$CE15)*$U15) -> 312695.22 | CJ15: =IF(BD15="","",(BD15/$CE15)*$U15) ->  | CV15: =IF(BP15="","",(BP15/$CE15)*$U15) ->  | DA15: =IF(BU15="","",(BU15/$CE15)*$U15) ->  | DG15: =IF(CA15="","",(CA15/$CE15)*$U15) ->  | DK15: =IF(SUM(CG15:DJ15)=U15,"","ERROR") -> 
E16: BRENNANS RD | F16: 771377.36 | J16: 0 | K16: 771377.36 | M16: 1 | N16: 771377.36 | Q16: =IF(O16="",'Unit Rates - Land'!landcst,IF($D$8="Landuse",VLOOKUP(O16,LAndcost3,2,FALSE),IF($D$8="Location",VLOOKUP(O16,Landcost2,2,FALSE),"Error"))) -> 0 | R16: 0 | S16: 2016 | T16: =IFERROR(('General Input Sheet'!$G$38/(VLOOKUP(S16,'General Input Sheet'!$E$38:$G$44,3,FALSE))),1) -> 1 | U16: 771377.36 | CE16: 0 | DK16: ERROR
E17: BROOK ST (ING) | F17: 619499.73 | J17: 0 | K17: 619499.73 | M17: 1 | N17: 619499.73 | Q17: =IF(O17="",'Unit Rates - Land'!landcst,IF($D$8="Landuse",VLOOKUP(O17,LAndcost3,2,FALSE),IF($D$8="Location",VLOOKUP(O17,Landcost2,2,FALSE),"Error"))) -> 0 | R17: 0 | S17: 2016 | T17: =IFERROR(('General Input Sheet'!$G$38/(VLOOKUP(S17,'General Input Sheet'!$E$38:$G$44,3,FALSE))),1) -> 1 | U17: 619499.73 | X17: y | BC17: 5278.02 | CE17: 5278.02 | CI17: 619499.73
E18: CALLANDOON ST (GDI) | F18: 1836610.1 | J18: 0 | K18: 1836610.1 | M18: 1 | N18: 1836610.1 | Q18: =IF(O18="",'Unit Rates - Land'!landcst,IF($D$8="Landuse",VLOOKUP(O18,LAndcost3,2,FALSE),IF($D$8="Location",VLOOKUP(O18,Landcost2,2,FALSE),"Error"))) -> 0 | R18: 0 | S18: 2016 | T18: =IFERROR(('General Input Sheet'!$G$38/(VLOOKUP(S18,'General Input Sheet'!$E$38:$G$44,3,FALSE))),1) -> 1 | U18: 1836610.1 | V18: y | BA18: 35499.17 | BD18: =IF(Y18="y",BD$14,IF(AND(Y18>0,Y18<=1),Y18*BD$14,"")) ->  | CE18: 35499.17 | CG18: 1836610.1
E19: FRIDESWIDE ST | F19: 1414528.43 | J19: 0 | K19: 1414528.43 | M19: 1 | N19: 1414528.43 | Q19: =IF(O19="",'Unit Rates - Land'!landcst,IF($D$8="Landuse",VLOOKUP(O19,LAndcost3,2,FALSE),IF($D$8="Location",VLOOKUP(O19,Landcost2,2,FALSE),"Error"))) -> 0 | R19: 0 | S19: 2016 | T19: =IFERROR(('General Input Sheet'!$G$38/(VLOOKUP(S19,'General Input Sheet'!$E$38:$G$44,3,FALSE))),1) -> 1 | U19: 1414528.43 | BA19: =IF(V19="y",BA$14,IF(AND(V19>0,V19<=1),V19*BA$14,"")) ->  | CE19: 0 | DK19: ERROR
E20: HERBERT ST (GDI) | F20: 296527.23 | J20: 0 | K20: 296527.23 | M20: 1 | N20: 296527.23 | Q20: =IF(O20="",'Unit Rates - Land'!landcst,IF($D$8="Landuse",VLOOKUP(O20,LAndcost3,2,FALSE),IF($D$8="Location",VLOOKUP(O20,Landcost2,2,FALSE),"Error"))) -> 0 | R20: 0 | S20: 2016 | T20: =IFERROR(('General Input Sheet'!$G$38/(VLOOKUP(S20,'General Input Sheet'!$E$38:$G$44,3,FALSE))),1) -> 1 | U20: 296527.23 | V20: y | BA20: 35499.17 | CE20: 35499.17 | CG20: 296527.23
E21: LAGOON ST (GDI) | F21: 1224829.48 | J21: 0 | K21: 1224829.48 | M21: 1 | N21: 1224829.48 | Q21: =IF(O21="",'Unit Rates - Land'!landcst,IF($D$8="Landuse",VLOOKUP(O21,LAndcost3,2,FALSE),IF($D$8="Location",VLOOKUP(O21,Landcost2,2,FALSE),"Error"))) -> 0 | R21: 0 | S21: 2016 | T21: =IFERROR(('General Input Sheet'!$G$38/(VLOOKUP(S21,'General Input Sheet'!$E$38:$G$44,3,FALSE))),1) -> 1 | U21: 1224829.48 | V21: y | BA21: 35499.17 | CE21: 35499.17 | CG21: 1224829.48
E22: LAMBERTH RD | F22: 1044842.25 | J22: 0 | K22: 1044842.25 | M22: 1 | N22: 1044842.25 | Q22: =IF(O22="",'Unit Rates - Land'!landcst,IF($D$8="Landuse",VLOOKUP(O22,LAndcost3,2,FALSE),IF($D$8="Location",VLOOKUP(O22,Landcost2,2,FALSE),"Error"))) -> 0 | R22: 0 | S22: 2016 | T22: =IFERROR(('General Input Sheet'!$G$38/(VLOOKUP(S22,'General Input Sheet'!$E$38:$G$44,3,FALSE))),1) -> 1 | U22: 1044842.25 | CE22: 0 | DK22: ERROR
E23: MAIN ST (TLW) | F23: 647923.47 | J23: 0 | K23: 647923.47 | M23: 1 | N23: 647923.47 | Q23: =IF(O23="",'Unit Rates - Land'!landcst,IF($D$8="Landuse",VLOOKUP(O23,LAndcost3,2,FALSE),IF($D$8="Location",VLOOKUP(O23,Landcost2,2,FALSE),"Error"))) -> 0 | R23: 0 | S23: 2016 | T23: =IFERROR(('General Input Sheet'!$G$38/(VLOOKUP(S23,'General Input Sheet'!$E$38:$G$44,3,FALSE))),1) -> 1 | U23: 647923.47 | Z23: y | BE23: 528 | CE23: 528 | CK23: 647923.47 | CM23: =IF(BG23="","",(BG23/$CE23)*$U23) -> 
E24: MARSHALL ST | F24: 2891963.32 | J24: 0 | K24: 2891963.32 | M24: 1 | N24: 2891963.32 | Q24: =IF(O24="",'Unit Rates - Land'!landcst,IF($D$8="Landuse",VLOOKUP(O24,LAndcost3,2,FALSE),IF($D$8="Location",VLOOKUP(O24,Landcost2,2,FALSE),"Error"))) -> 0 | R24: 0 | S24: 2016 | T24: =IFERROR(('General Input Sheet'!$G$38/(VLOOKUP(S24,'General Input Sheet'!$E$38:$G$44,3,FALSE))),1) -> 1 | U24: 2891963.32 | CE24: 0 | DK24: ERROR
E25: MCLEAN ST | F25: 4311493.71 | J25: 0 | K25: 4311493.71 | M25: 1 | N25: 4311493.71 | Q25: =IF(O25="",'Unit Rates - Land'!landcst,IF($D$8="Landuse",VLOOKUP(O25,LAndcost3,2,FALSE),IF($D$8="Location",VLOOKUP(O25,Landcost2,2,FALSE),"Error"))) -> 0 | R25: 0 | S25: 2016 | T25: =IFERROR(('General Input Sheet'!$G$38/(VLOOKUP(S25,'General Input Sheet'!$E$38:$G$44,3,FALSE))),1) -> 1 | U25: 4311493.71 | CE25: 0 | DF25: =IF(BZ25="","",(BZ25/$CE25)*$U25) ->  | DK25: ERROR
E26: OLD CUNNINGHAM HWY | F26: 1776898.2 | J26: 0 | K26: 1776898.2 | M26: 1 | N26: 1776898.2 | Q26: =IF(O26="",'Unit Rates - Land'!landcst,IF($D$8="Landuse",VLOOKUP(O26,LAndcost3,2,FALSE),IF($D$8="Location",VLOOKUP(O26,Landcost2,2,FALSE),"Error"))) -> 0 | R26: 0 | S26: 2016 | T26: =IFERROR(('General Input Sheet'!$G$38/(VLOOKUP(S26,'General Input Sheet'!$E$38:$G$44,3,FALSE))),1) -> 1 | U26: 1776898.2 | CE26: 0 | DK26: ERROR
E27: PARK RD | F27: 116884.53 | J27: 0 | K27: 116884.53 | M27: 1 | N27: 116884.53 | Q27: =IF(O27="",'Unit Rates - Land'!landcst,IF($D$8="Landuse",VLOOKUP(O27,LAndcost3,2,FALSE),IF($D$8="Location",VLOOKUP(O27,Landcost2,2,FALSE),"Error"))) -> 0 | R27: 0 | S27: 2016 | T27: =IFERROR(('General Input Sheet'!$G$38/(VLOOKUP(S27,'General Input Sheet'!$E$38:$G$44,3,FALSE))),1) -> 1 | U27: 116884.53 | BX27: =IF(AS27="y",BX$14,IF(AND(AS27>0,AS27<=1),AS27*BX$14,"")) ->  | CE27: 0 | DK27: ERROR
E28: PFINGST ST (GDI) | F28: 191754.7 | J28: 0 | K28: 191754.7 | M28: 1 | N28: 191754.7 | Q28: =IF(O28="",'Unit Rates - Land'!landcst,IF($D$8="Landuse",VLOOKUP(O28,LAndcost3,2,FALSE),IF($D$8="Location",VLOOKUP(O28,Landcost2,2,FALSE),"Error"))) -> 0 | R28: 0 | S28: 2016 | T28: =IFERROR(('General Input Sheet'!$G$38/(VLOOKUP(S28,'General Input Sheet'!$E$38:$G$44,3,FALSE))),1) -> 1 | U28: 191754.7 | V28: y | BA28: 35499.17 | BV28: =IF(AQ28="y",BV$14,IF(AND(AQ28>0,AQ28<=1),AQ28*BV$14,"")) ->  | CE28: 35499.17 | CG28: 191754.7
E29: POLO RD | F29: 1451729.57 | J29: 0 | K29: 1451729.57 | M29: 1 | N29: 1451729.57 | Q29: =IF(O29="",'Unit Rates - Land'!landcst,IF($D$8="Landuse",VLOOKUP(O29,LAndcost3,2,FALSE),IF($D$8="Location",VLOOKUP(O29,Landcost2,2,FALSE),"Error"))) -> 0 | R29: 0 | S29: 2016 | T29: =IFERROR(('General Input Sheet'!$G$38/(VLOOKUP(S29,'General Input Sheet'!$E$38:$G$44,3,FALSE))),1) -> 1 | U29: 1451729.57 | CE29: 0 | DK29: ERROR
E30: RIDDLE ST | F30: 142724.94 | J30: 0 | K30: 142724.94 | M30: 1 | N30: 142724.94 | Q30: =IF(O30="",'Unit Rates - Land'!landcst,IF($D$8="Landuse",VLOOKUP(O30,LAndcost3,2,FALSE),IF($D$8="Location",VLOOKUP(O30,Landcost2,2,FALSE),"Error"))) -> 0 | R30: 0 | S30: 2016 | T30: =IFERROR(('General Input Sheet'!$G$38/(VLOOKUP(S30,'General Input Sheet'!$E$38:$G$44,3,FALSE))),1) -> 1 | U30: 142724.94 | CE30: 0 | DK30: ERROR
E31: RUSSELL ST | F31: 1739033.07 | J31: 0 | K31: 1739033.07 | M31: 1 | N31: 1739033.07 | Q31: =IF(O31="",'Unit Rates - Land'!landcst,IF($D$8="Landuse",VLOOKUP(O31,LAndcost3,2,FALSE),IF($D$8="Location",VLOOKUP(O31,Landcost2,2,FALSE),"Error"))) -> 0 | R31: 0 | S31: 2016 | T31: =IFERROR(('General Input Sheet'!$G$38/(VLOOKUP(S31,'General Input Sheet'!$E$38:$G$44,3,FALSE))),1) -> 1 | U31: 1739033.07 | BT31: =IF(AO31="y",BT$14,IF(AND(AO31>0,AO31<=1),AO31*BT$14,"")) ->  | CE31: 0 | DK31: ERROR
E32: SANDHURST ST | F32: 1761110.02 | J32: 0 | K32: 1761110.02 | M32: 1 | N32: 1761110.02 | Q32: =IF(O32="",'Unit Rates - Land'!landcst,IF($D$8="Landuse",VLOOKUP(O32,LAndcost3,2,FALSE),IF($D$8="Location",VLOOKUP(O32,Landcost2,2,FALSE),"Error"))) -> 0 | R32: 0 | S32: 2016 | T32: =IFERROR(('General Input Sheet'!$G$38/(VLOOKUP(S32,'General Input Sheet'!$E$38:$G$44,3,FALSE))),1) -> 1 | U32: 1761110.02 | CE32: 0 | DK32: ERROR
E33: TALWOOD BOONANGA RD | F33: 59270.18 | J33: 0 | K33: 59270.18 | M33: 1 | N33: 59270.18 | Q33: =IF(O33="",'Unit Rates - Land'!landcst,IF($D$8="Landuse",VLOOKUP(O33,LAndcost3,2,FALSE),IF($D$8="Location",VLOOKUP(O33,Landcost2,2,FALSE),"Error"))) -> 0 | R33: 0 | S33: 2016 | T33: =IFERROR(('General Input Sheet'!$G$38/(VLOOKUP(S33,'General Input Sheet'!$E$38:$G$44,3,FALSE))),1) -> 1 | U33: 59270.18 | CE33: 0 | DK33: ERROR
E34: TALWOOD MUNGINDI RD | F34: 31801.83 | J34: 0 | K34: 31801.83 | M34: 1 | N34: 31801.83 | Q34: =IF(O34="",'Unit Rates - Land'!landcst,IF($D$8="Landuse",VLOOKUP(O34,LAndcost3,2,FALSE),IF($D$8="Location",VLOOKUP(O34,Landcost2,2,FALSE),"Error"))) -> 0 | R34: 0 | S34: 2016 | T34: =IFERROR(('General Input Sheet'!$G$38/(VLOOKUP(S34,'General Input Sheet'!$E$38:$G$44,3,FALSE))),1) -> 1 | U34: 31801.83 | CE34: 0 | DK34: ERROR
E35: WARDEN ST | F35: 591277.8 | J35: 0 | K35: 591277.8 | M35: 1 | N35: 591277.8 | Q35: =IF(O35="",'Unit Rates - Land'!landcst,IF($D$8="Landuse",VLOOKUP(O35,LAndcost3,2,FALSE),IF($D$8="Location",VLOOKUP(O35,Landcost2,2,FALSE),"Error"))) -> 0 | R35: 0 | S35: 2016 | T35: =IFERROR(('General Input Sheet'!$G$38/(VLOOKUP(S35,'General Input Sheet'!$E$38:$G$44,3,FALSE))),1) -> 1 | U35: 591277.8 | CE35: 0 | DK35: ERROR
E36: WINTON ST | F36: 1073461.45 | J36: =IF(G36=RoadTYPE1,VLOOKUP(I36,Roadunitrates1,2,FALSE),IF(G36=ROADTYPE2,VLOOKUP(I36,Roadunitrates2,2,FALSE),0)) -> 0 | K36: 1073461.45 | M36: =IF(L36="",1,VLOOKUP(L36,Roadsitecond,2,FALSE)) -> 1 | N36: 1073461.45 | Q36: =IF(O36="",'Unit Rates - Land'!landcst,IF($D$8="Landuse",VLOOKUP(O36,LAndcost3,2,FALSE),IF($D$8="Location",VLOOKUP(O36,Landcost2,2,FALSE),"Error"))) -> 0 | R36: 0 | S36: 2016 | T36: =IFERROR(('General Input Sheet'!$G$38/(VLOOKUP(S36,'General Input Sheet'!$E$38:$G$44,3,FALSE))),1) -> 1 | U36: 1073461.45 | CE36: 0 | DK36: ERROR
J37: 0 | K37: =IF(J37="","",(J37*H37)) -> 0 | M37: 1 | N37: =IF(K37="","",K37*M37) -> 0 | Q37: =IF(O37="",'Unit Rates - Land'!landcst,IF($D$8="Landuse",VLOOKUP(O37,LAndcost3,2,FALSE),IF($D$8="Location",VLOOKUP(O37,Landcost2,2,FALSE),"Error"))) -> 0 | R37: =IF(Q37="",0,Q37*10000*P37) -> 0 | T37: =IFERROR(('General Input Sheet'!$G$38/(VLOOKUP(S37,'General Input Sheet'!$E$38:$G$44,3,FALSE))),1) -> 1 | U37: =IFERROR((N37+R37)*T37,0) -> 0 | CE37: 0
J38: 0 | K38: 0 | M38: 1 | N38: 0 | Q38: =IF(O38="",'Unit Rates - Land'!landcst,IF($D$8="Landuse",VLOOKUP(O38,LAndcost3,2,FALSE),IF($D$8="Location",VLOOKUP(O38,Landcost2,2,FALSE),"Error"))) -> 0 | R38: 0 | T38: =IFERROR(('General Input Sheet'!$G$38/(VLOOKUP(S38,'General Input Sheet'!$E$38:$G$44,3,FALSE))),1) -> 1 | U38: 0 | CE38: 0
B47: Location
B48: =IF($D$8="Location",'Unit Rates - Land'!$B18,IF($D$8="Landuse",'Unit Rates - Land'!$G18,"""Error")) -> 0
B49: =IF($D$8="Location",'Unit Rates - Land'!$B19,IF($D$8="Landuse",'Unit Rates - Land'!$G19,"""Error")) -> 0
B50: =IF($D$8="Location",'Unit Rates - Land'!$B20,IF($D$8="Landuse",'Unit Rates - Land'!$G20,"""Error")) -> 0
B51: =IF($D$8="Location",'Unit Rates - Land'!$B21,IF($D$8="Landuse",'Unit Rates - Land'!$G21,"""Error")) -> 0
B52: =IF($D$8="Location",'Unit Rates - Land'!$B22,IF($D$8="Landuse",'Unit Rates - Land'!$G22,"""Error")) -> 0
B53: =IF($D$8="Location",'Unit Rates - Land'!$B23,IF($D$8="Landuse",'Unit Rates - Land'!$G23,"""Error")) -> 0
B54: =IF($D$8="Location",'Unit Rates - Land'!$B24,IF($D$8="Landuse",'Unit Rates - Land'!$G24,"""Error")) -> 0
B55: =IF($D$8="Location",'Unit Rates - Land'!$B25,IF($D$8="Landuse",'Unit Rates - Land'!$G25,"""Error")) -> 0
B56: =IF($D$8="Location",'Unit Rates - Land'!$B26,IF($D$8="Landuse",'Unit Rates - Land'!$G26,"""Error")) -> 0
B57: =IF($D$8="Location",'Unit Rates - Land'!$B27,IF($D$8="Landuse",'Unit Rates - Land'!$G27,"""Error")) -> 0
B58: =IF($D$8="Location",'Unit Rates - Land'!$B28,IF($D$8="Landuse",'Unit Rates - Land'!$G28,"""Error")) -> 0
B59: =IF($D$8="Location",'Unit Rates - Land'!$B29,IF($D$8="Landuse",'Unit Rates - Land'!$G29,"""Error")) -> 0
B60: =IF($D$8="Location",'Unit Rates - Land'!$B30,IF($D$8="Landuse",'Unit Rates - Land'!$G30,"""Error")) -> 0
B61: =IF($D$8="Location",'Unit Rates - Land'!$B31,IF($D$8="Landuse",'Unit Rates - Land'!$G31,"""Error")) -> 0
B62: =IF($D$8="Location",'Unit Rates - Land'!$B32,IF($D$8="Landuse",'Unit Rates - Land'!$G32,"""Error")) -> 0
B63: =IF($D$8="Location",'Unit Rates - Land'!$B33,IF($D$8="Landuse",'Unit Rates - Land'!$G33,"""Error")) -> 0
B64: =IF($D$8="Location",'Unit Rates - Land'!$B34,IF($D$8="Landuse",'Unit Rates - Land'!$G34,"""Error")) -> 0
B65: =IF($D$8="Location",'Unit Rates - Land'!$B35,IF($D$8="Landuse",'Unit Rates - Land'!$G35,"""Error")) -> 0
B66: =IF($D$8="Location",'Unit Rates - Land'!$B36,IF($D$8="Landuse",'Unit Rates - Land'!$G36,"""Error")) -> 0
B67: =IF($D$8="Location",'Unit Rates - Land'!$B37,IF($D$8="Landuse",'Unit Rates - Land'!$G37,"""Error")) -> 0
B68: =IF($D$8="Location",'Unit Rates - Land'!$B38,IF($D$8="Landuse",'Unit Rates - Land'!$G38,"""Error")) -> 0
B69: =IF($D$8="Location",'Unit Rates - Land'!$B39,IF($D$8="Landuse",'Unit Rates - Land'!$G39,"""Error")) -> 0
B70: =IF($D$8="Location",'Unit Rates - Land'!$B40,IF($D$8="Landuse",'Unit Rates - Land'!$G40,"""Error")) -> 0
B71: =IF($D$8="Location",'Unit Rates - Land'!$B41,IF($D$8="Landuse",'Unit Rates - Land'!$G41,"""Error")) -> 0
B72: =IF($D$8="Location",'Unit Rates - Land'!$B42,IF($D$8="Landuse",'Unit Rates - Land'!$G42,"""Error")) -> 0
B73: =IF($D$8="Location",'Unit Rates - Land'!$B43,IF($D$8="Landuse",'Unit Rates - Land'!$G43,"""Error")) -> 0

Sheet Exist Trunk Assets - Parks
B2: ='Navigation Pane'!C2 -> Goondiwindi Regional Council
B3: Parks and Land for Community Facilities
A4: Return to "Existing Trunk Assets"
B5: EXISTING TRUNK ASSETS
B8: Land Valuation Type | D8: Location
H10: Asset Data | U10: Catchment Asset Allocation | BN10: Asset Usage | CT10: Cost Allocation
B11: Basic Asset Data | G11: Asset Attributes | I11: Basic Asset Valuation | N11: Land Attributes | R11: Refined Asset Value | U11: ='Catchment Demand - Parks & Comm'!$C8 -> Local recreation - Goondiwindi | V11: ='Catchment Demand - Parks & Comm'!$C9 -> Local recreation - balance of region | W11: ='Catchment Demand - Parks & Comm'!$C10 -> Region-wide | X11: ='Catchment Demand - Parks & Comm'!$C11 -> 0 | Y11: ='Catchment Demand - Parks & Comm'!$C12 -> 0 | Z11: ='Catchment Demand - Parks & Comm'!$C13 -> 0 | AA11: ='Catchment Demand - Parks & Comm'!$C14 -> 0 | AB11: ='Catchment Demand - Parks & Comm'!$C15 -> 0 | AC11: ='Catchment Demand - Parks & Comm'!$C16 -> 0 | AD11: ='Catchment Demand - Parks & Comm'!$C17 -> 0 | AE11: ='Catchment Demand - Parks & Comm'!$C18 -> 0 | AF11: ='Catchment Demand - Parks & Comm'!$C19 -> 0 | AG11: ='Catchment Demand - Parks & Comm'!$C20 -> 0 | AH11: ='Catchment Demand - Parks & Comm'!$C21 -> 0 | AI11: ='Catchment Demand - Parks & Comm'!$C22 -> 0 | AJ11: ='Catchment Demand - Parks & Comm'!$C23 -> 0 | AK11: ='Catchment Demand - Parks & Comm'!$C24 -> 0 | AL11: ='Catchment Demand - Parks & Comm'!$C25 -> 0 | AM11: ='Catchment Demand - Parks & Comm'!$C26 -> 0 | AN11: ='Catchment Demand - Parks & Comm'!$C27 -> 0 | AO11: ='Catchment Demand - Parks & Comm'!$C28 -> 0 | AP11: ='Catchment Demand - Parks & Comm'!$C29 -> 0 | AQ11: ='Catchment Demand - Parks & Comm'!$C30 -> 0 | AR11: ='Catchment Demand - Parks & Comm'!$C31 -> 0 | AS11: ='Catchment Demand - Parks & Comm'!$C32 -> 0 | AT11: ='Catchment Demand - Parks & Comm'!$C33 -> 0 | AU11: ='Catchment Demand - Parks & Comm'!$C34 -> 0 | AV11: ='Catchment Demand - Parks & Comm'!$C35 -> 0 | AW11: ='Catchment Demand - Parks & Comm'!$C36 -> 0 | AX11: ='Catchment Demand - Parks & Comm'!$C37 -> 0 | AZ11: =U11 -> Local recreation - Goondiwindi | BA11: =V11 -> Local recreation - balance of region | BB11: Region-wide | BC11: 0 | BD11: 0 | BE11: 0 | BF11: 0 | BG11: 0 | BH11: 0 | BI11: 0 | BJ11: 0 | BK11: 0 | BL11: 0 | BM11: 0 | BN11: 0 | BO11: 0 | BP11: 0 | BQ11: 0 | BR11: 0 | BS11: 0 | BT11: 0 | BU11: 0 | BV11: 0 | BW11: 0 | BX11: 0 | BY11: 0 | BZ11: 0 | CA11: 0 | CB11: 0 | CC11: 0 | CD11: TOTALS | CF11: =U11 -> Local recreation - Goondiwindi | CG11: =V11 -> Local recreation - balance of region | CH11: Region-wide | CI11: 0 | CJ11: 0 | CK11: 0 | CL11: 0 | CM11: 0 | CN11: 0 | CO11: 0 | CP11: 0 | CQ11: 0 | CR11: 0 | CS11: 0 | CT11: 0 | CU11: 0 | CV11: 0 | CW11: 0 | CX11: 0 | CY11: 0 | CZ11: 0 | DA11: 0 | DB11: 0 | DC11: 0 | DD11: 0 | DE11: 0 | DF11: 0 | DG11: 0 | DH11: 0 | DI11: 0 | DJ11: Checksum 2
B12: Asset ID | C12: LGIP ID | D12: Asset Class | E12: Address | F12: Description | G12: Unit Rate Type (*) | H12: Unit (*) | I12: Unit Rate | J12: Baseline Valuation | K12: Site/Condition | L12: Multiplier | M12: Gross Value | N12: Land Location/Type | O12: Size of land (ha) (*) | P12: Unit Cost | Q12: Land Value | R12: Valuation Year | S12: Escalation | T12: Current Repalcement Cost
U13: 1 | V13: =U13+1 -> 2 | W13: =V13+1 -> 3 | X13: 4 | Y13: 5 | Z13: 6 | AA13: 7 | AB13: 8 | AC13: 9 | AD13: 10 | AE13: 11 | AF13: 12 | AG13: 13 | AH13: 14 | AI13: 15 | AJ13: 16 | AK13: 17 | AL13: 18 | AM13: 19 | AN13: 20 | AO13: 21 | AP13: 22 | AQ13: 23 | AR13: 24 | AS13: 25 | AT13: 26 | AU13: 27 | AV13: 28 | AW13: 29 | AX13: 30
B14: Councils ID (from GIS, FAR, AMA etc.) | C14: ID from the LGIP drawings | D14: Local/District Park | J14: May be calculated from unit rates OR unique values can be direct entered | T14: CRC | U14: =IFERROR(VLOOKUP(U11,Parkscatch,5,FALSE),"") -> 5592 | V14: =IFERROR(VLOOKUP(V11,Parkscatch,5,FALSE),"") -> 5548 | W14: =IFERROR(VLOOKUP(W11,Parkscatch,5,FALSE),"") -> 11140 | X14: =IFERROR(VLOOKUP(X11,Parkscatch,6,FALSE),"") ->  | AZ14: =U14 -> 5592 | BA14: =V14 -> 5548 | BB14: 11140 | CF14: =SUM(CF15:CF253) -> 717088.06 | CG14: 814745.35 | CH14: 12044333.21 | CI14: 0 | CJ14: 0 | CK14: 0 | CL14: 0 | CM14: 0 | CN14: 0 | CO14: 0 | CP14: 0 | CQ14: 0 | CR14: 0 | CS14: 0 | CT14: 0 | CU14: 0 | CV14: 0 | CW14: 0 | CX14: 0 | CY14: 0 | CZ14: 0 | DA14: 0 | DB14: 0 | DC14: 0 | DD14: 0 | DE14: 0 | DF14: 0 | DG14: 0 | DH14: 0 | DI14: 0 | DJ14: 0
D15: Local recreation | E15: Goondiwindi | I15: =IFERROR(VLOOKUP($G15,Parksunitrate1,2,FALSE),0) -> 0 | J15: 632088.06 | L15: =IF(K15="",1,VLOOKUP(K15,PArksitecond,2,FALSE)) -> 1 | M15: =IF(J15="","",J15*L15) -> 632088.06 | Q15: 85000 | R15: 2016 | S15: =IFERROR(('General Input Sheet'!$G$38/(VLOOKUP(R15,'General Input Sheet'!$E$38:$G$44,3,FALSE))),1) -> 1 | T15: =IFERROR((Q15+M15)*S15,0) -> 717088.06 | U15: y | AZ15: =IF(U15="y",AZ$14,IF(AND(U15>0,U15<=1),U15*AZ$14,"")) -> 5592 | BP15: =IF(AK15="y",BP$14,IF(AND(AK15>0,AK15<=1),AK15*BP$14,"")) ->  | BR15: =IF(AM15="y",BR$14,IF(AND(AM15>0,AM15<=1),AM15*BR$14,"")) ->  | BS15: =IF(AN15="y",BS$14,IF(AND(AN15>0,AN15<=1),AN15*BS$14,"")) ->  | BX15: =IF(AS15="y",BX$14,IF(AND(AS15>0,AS15<=1),AS15*BX$14,"")) ->  | CD15: =SUM(AZ15:CC15) -> 5592 | CF15: =IF(AZ15="","",(AZ15/$CD15)*$T15) -> 717088.06 | CS15: =IF(BM15="","",(BM15/$CD15)*$T15) ->  | DD15: =IF(BX15="","",(BX15/$CD15)*$T15) ->  | DI15: =IF(CC15="","",(CC15/$CD15)*$T15) ->  | DJ15: =IF(SUM(CF15:DI15)=T15,"","ERROR") -> 
D16: Local recreation | E16: Rest of region | I16: 0 | J16: 594745.35 | L16: 1 | M16: 594745.35 | Q16: 220000 | R16: 2016 | S16: =IFERROR(('General Input Sheet'!$G$38/(VLOOKUP(R16,'General Input Sheet'!$E$38:$G$44,3,FALSE))),1) -> 1 | T16: 814745.35 | V16: y | BA16: 5548 | CD16: 5548 | CG16: 814745.35
D17: District recreation | E17: Region wide | I17: 0 | J17: 450277.03 | L17: 1 | M17: 450277.03 | Q17: 0 | R17: 2016 | S17: =IFERROR(('General Input Sheet'!$G$38/(VLOOKUP(R17,'General Input Sheet'!$E$38:$G$44,3,FALSE))),1) -> 1 | T17: 450277.03 | W17: y | BB17: 11140 | CD17: 11140 | CH17: 450277.03
D18: Regional recreation | E18: Region wide | I18: 0 | J18: 4183194.32 | L18: 1 | M18: 4183194.32 | Q18: 0 | R18: 2016 | S18: =IFERROR(('General Input Sheet'!$G$38/(VLOOKUP(R18,'General Input Sheet'!$E$38:$G$44,3,FALSE))),1) -> 1 | T18: 4183194.32 | W18: y | BB18: 11140 | CD18: 11140 | CH18: 4183194.32
D19: District sport | E19: Region wide | I19: 0 | J19: 1513253.75 | L19: 1 | M19: 1513253.75 | Q19: 0 | R19: 2016 | S19: =IFERROR(('General Input Sheet'!$G$38/(VLOOKUP(R19,'General Input Sheet'!$E$38:$G$44,3,FALSE))),1) -> 1 | T19: 1513253.75 | W19: y | BB19: 11140 | CD19: 11140 | CH19: 1513253.75
D20: Regional sport | E20: Region wide | I20: 0 | J20: 4657608.11 | L20: 1 | M20: 4657608.11 | Q20: 300000 | R20: 2016 | S20: =IFERROR(('General Input Sheet'!$G$38/(VLOOKUP(R20,'General Input Sheet'!$E$38:$G$44,3,FALSE))),1) -> 1 | T20: 4957608.11 | W20: y | BB20: 11140 | CD20: 11140 | CH20: 4957608.11
D21: Land for community facilities | I21: 0 | J21: =I21*H21 -> 0 | L21: 1 | M21: 0 | Q21: 940000 | R21: 2016 | S21: =IFERROR(('General Input Sheet'!$G$38/(VLOOKUP(R21,'General Input Sheet'!$E$38:$G$44,3,FALSE))),1) -> 1 | T21: 940000 | W21: y | BB21: 11140 | CD21: 11140 | CH21: 940000
I22: 0 | J22: 0 | L22: 1 | M22: 0 | Q22: =IF(P22="",0,P22*10000*O22) -> 0 | R22: 2016 | S22: =IFERROR(('General Input Sheet'!$G$38/(VLOOKUP(R22,'General Input Sheet'!$E$38:$G$44,3,FALSE))),1) -> 1 | T22: 0 | CD22: 0 | CN22: =IF(BH22="","",(BH22/$CD22)*$T22) -> 
I23: 0 | J23: 0 | L23: 1 | M23: 0 | Q23: 0 | R23: 2016 | S23: =IFERROR(('General Input Sheet'!$G$38/(VLOOKUP(R23,'General Input Sheet'!$E$38:$G$44,3,FALSE))),1) -> 1 | T23: 0 | CD23: 0 | CF23: =IF(AZ23="","",(AZ23/$CD23)*$T23) -> 
I24: 0 | J24: 0 | L24: 1 | M24: 0 | Q24: 0 | R24: 2016 | S24: =IFERROR(('General Input Sheet'!$G$38/(VLOOKUP(R24,'General Input Sheet'!$E$38:$G$44,3,FALSE))),1) -> 1 | T24: 0 | CD24: 0
I25: 0 | J25: 0 | L25: 1 | M25: 0 | Q25: 0 | S25: =IFERROR(('General Input Sheet'!$G$38/(VLOOKUP(R25,'General Input Sheet'!$E$38:$G$44,3,FALSE))),1) -> 1 | T25: 0 | BB25: =IF(W25="y",BB$14,IF(AND(W25>0,W25<=1),W25*BB$14,"")) ->  | CD25: 0
I26: 0 | J26: 0 | L26: 1 | M26: 0 | Q26: 0 | S26: =IFERROR(('General Input Sheet'!$G$38/(VLOOKUP(R26,'General Input Sheet'!$E$38:$G$44,3,FALSE))),1) -> 1 | T26: 0 | AZ26: =IF(U26="y",AZ$14,IF(AND(U26>0,U26<=1),U26*AZ$14,"")) ->  | CD26: 0
I27: 0 | J27: 0 | L27: 1 | M27: 0 | Q27: 0 | S27: =IFERROR(('General Input Sheet'!$G$38/(VLOOKUP(R27,'General Input Sheet'!$E$38:$G$44,3,FALSE))),1) -> 1 | T27: 0 | CD27: 0
I28: 0 | J28: 0 | L28: 1 | M28: 0 | Q28: 0 | S28: =IFERROR(('General Input Sheet'!$G$38/(VLOOKUP(R28,'General Input Sheet'!$E$38:$G$44,3,FALSE))),1) -> 1 | T28: 0 | CD28: 0
I29: 0 | J29: 0 | L29: 1 | M29: 0 | Q29: 0 | S29: =IFERROR(('General Input Sheet'!$G$38/(VLOOKUP(R29,'General Input Sheet'!$E$38:$G$44,3,FALSE))),1) -> 1 | T29: 0 | CD29: 0
I30: 0 | J30: 0 | L30: 1 | M30: 0 | Q30: 0 | S30: =IFERROR(('General Input Sheet'!$G$38/(VLOOKUP(R30,'General Input Sheet'!$E$38:$G$44,3,FALSE))),1) -> 1 | T30: 0 | CD30: 0
I31: 0 | J31: 0 | L31: 1 | M31: 0 | Q31: 0 | S31: =IFERROR(('General Input Sheet'!$G$38/(VLOOKUP(R31,'General Input Sheet'!$E$38:$G$44,3,FALSE))),1) -> 1 | T31: 0 | CD31: 0
I32: 0 | J32: 0 | L32: 1 | M32: 0 | Q32: 0 | S32: =IFERROR(('General Input Sheet'!$G$38/(VLOOKUP(R32,'General Input Sheet'!$E$38:$G$44,3,FALSE))),1) -> 1 | T32: 0 | CD32: 0
I33: 0 | J33: 0 | L33: 1 | M33: 0 | Q33: 0 | S33: =IFERROR(('General Input Sheet'!$G$38/(VLOOKUP(R33,'General Input Sheet'!$E$38:$G$44,3,FALSE))),1) -> 1 | T33: 0 | CD33: 0
I34: 0 | J34: 0 | L34: 1 | M34: 0 | Q34: 0 | S34: =IFERROR(('General Input Sheet'!$G$38/(VLOOKUP(R34,'General Input Sheet'!$E$38:$G$44,3,FALSE))),1) -> 1 | T34: 0 | CD34: 0
I35: 0 | J35: 0 | L35: 1 | M35: 0 | Q35: 0 | S35: =IFERROR(('General Input Sheet'!$G$38/(VLOOKUP(R35,'General Input Sheet'!$E$38:$G$44,3,FALSE))),1) -> 1 | T35: 0 | CD35: 0
I36: 0 | J36: 0 | L36: 1 | M36: 0 | Q36: 0 | S36: =IFERROR(('General Input Sheet'!$G$38/(VLOOKUP(R36,'General Input Sheet'!$E$38:$G$44,3,FALSE))),1) -> 1 | T36: 0 | CD36: 0
I37: 0 | J37: 0 | L37: 1 | M37: 0 | Q37: 0 | S37: =IFERROR(('General Input Sheet'!$G$38/(VLOOKUP(R37,'General Input Sheet'!$E$38:$G$44,3,FALSE))),1) -> 1 | T37: 0 | CA37: =IF(AV37="y",CA$14,IF(AND(AV37>0,AV37<=1),AV37*CA$14,"")) ->  | CD37: 0
I38: 0 | J38: 0 | L38: 1 | M38: 0 | Q38: 0 | S38: =IFERROR(('General Input Sheet'!$G$38/(VLOOKUP(R38,'General Input Sheet'!$E$38:$G$44,3,FALSE))),1) -> 1 | T38: 0 | CD38: 0
I39: 0 | J39: 0 | L39: 1 | M39: 0 | Q39: 0 | S39: =IFERROR(('General Input Sheet'!$G$38/(VLOOKUP(R39,'General Input Sheet'!$E$38:$G$44,3,FALSE))),1) -> 1 | T39: 0 | CD39: 0
I40: 0 | J40: 0 | L40: 1 | M40: 0 | Q40: 0 | S40: =IFERROR(('General Input Sheet'!$G$38/(VLOOKUP(R40,'General Input Sheet'!$E$38:$G$44,3,FALSE))),1) -> 1 | T40: 0 | CD40: 0
I41: 0 | J41: 0 | L41: 1 | M41: 0 | Q41: 0 | S41: =IFERROR(('General Input Sheet'!$G$38/(VLOOKUP(R41,'General Input Sheet'!$E$38:$G$44,3,FALSE))),1) -> 1 | T41: 0 | CD41: 0
I42: 0 | J42: 0 | L42: 1 | M42: 0 | Q42: 0 | S42: =IFERROR(('General Input Sheet'!$G$38/(VLOOKUP(R42,'General Input Sheet'!$E$38:$G$44,3,FALSE))),1) -> 1 | T42: 0 | CD42: 0
I43: 0 | J43: 0 | L43: 1 | M43: 0 | Q43: 0 | S43: =IFERROR(('General Input Sheet'!$G$38/(VLOOKUP(R43,'General Input Sheet'!$E$38:$G$44,3,FALSE))),1) -> 1 | T43: 0 | BE43: =IF(Z43="y",BE$14,IF(AND(Z43>0,Z43<=1),Z43*BE$14,"")) ->  | BX43: =IF(AS43="y",BX$14,IF(AND(AS43>0,AS43<=1),AS43*BX$14,"")) ->  | CD43: 0
I44: 0 | J44: 0 | L44: 1 | M44: 0 | Q44: 0 | S44: =IFERROR(('General Input Sheet'!$G$38/(VLOOKUP(R44,'General Input Sheet'!$E$38:$G$44,3,FALSE))),1) -> 1 | T44: 0 | CD44: 0 | CP44: =IF(BJ44="","",(BJ44/$CD44)*$T44) -> 
I45: 0 | J45: 0 | L45: 1 | M45: 0 | Q45: 0 | S45: =IFERROR(('General Input Sheet'!$G$38/(VLOOKUP(R45,'General Input Sheet'!$E$38:$G$44,3,FALSE))),1) -> 1 | T45: 0 | CD45: 0
I46: 0 | J46: 0 | L46: 1 | M46: 0 | Q46: 0 | S46: =IFERROR(('General Input Sheet'!$G$38/(VLOOKUP(R46,'General Input Sheet'!$E$38:$G$44,3,FALSE))),1) -> 1 | T46: 0 | CD46: 0
I47: 0 | J47: 0 | L47: 1 | M47: 0 | Q47: 0 | S47: =IFERROR(('General Input Sheet'!$G$38/(VLOOKUP(R47,'General Input Sheet'!$E$38:$G$44,3,FALSE))),1) -> 1 | T47: 0 | CD47: 0
I48: 0 | J48: 0 | L48: 1 | M48: 0 | Q48: 0 | S48: =IFERROR(('General Input Sheet'!$G$38/(VLOOKUP(R48,'General Input Sheet'!$E$38:$G$44,3,FALSE))),1) -> 1 | T48: 0 | CD48: 0
I49: 0 | J49: 0 | L49: 1 | M49: 0 | Q49: 0 | S49: =IFERROR(('General Input Sheet'!$G$38/(VLOOKUP(R49,'General Input Sheet'!$E$38:$G$44,3,FALSE))),1) -> 1 | T49: 0 | CD49: 0
I50: 0 | J50: 0 | L50: 1 | M50: 0 | Q50: 0 | S50: =IFERROR(('General Input Sheet'!$G$38/(VLOOKUP(R50,'General Input Sheet'!$E$38:$G$44,3,FALSE))),1) -> 1 | T50: 0 | CD50: 0
I51: 0 | J51: 0 | L51: 1 | M51: 0 | Q51: 0 | S51: =IFERROR(('General Input Sheet'!$G$38/(VLOOKUP(R51,'General Input Sheet'!$E$38:$G$44,3,FALSE))),1) -> 1 | T51: 0 | CD51: 0
I52: 0 | J52: 0 | L52: 1 | M52: 0 | Q52: 0 | S52: =IFERROR(('General Input Sheet'!$G$38/(VLOOKUP(R52,'General Input Sheet'!$E$38:$G$44,3,FALSE))),1) -> 1 | T52: 0 | CD52: 0 | CO52: =IF(BI52="","",(BI52/$CD52)*$T52) -> 
I53: 0 | J53: 0 | L53: 1 | M53: 0 | Q53: 0 | S53: =IFERROR(('General Input Sheet'!$G$38/(VLOOKUP(R53,'General Input Sheet'!$E$38:$G$44,3,FALSE))),1) -> 1 | T53: 0 | CD53: 0 | CF53: =IF(AZ53="","",(AZ53/$CD53)*$T53) -> 
I54: 0 | J54: 0 | L54: 1 | M54: 0 | Q54: 0 | S54: =IFERROR(('General Input Sheet'!$G$38/(VLOOKUP(R54,'General Input Sheet'!$E$38:$G$44,3,FALSE))),1) -> 1 | T54: 0 | CD54: 0
I55: 0 | J55: 0 | L55: 1 | M55: 0 | Q55: 0 | S55: =IFERROR(('General Input Sheet'!$G$38/(VLOOKUP(R55,'General Input Sheet'!$E$38:$G$44,3,FALSE))),1) -> 1 | T55: 0 | CD55: 0 | DF55: =IF(BZ55="","",(BZ55/$CD55)*$T55) -> 
I56: 0 | J56: 0 | L56: 1 | M56: 0 | Q56: 0 | S56: =IFERROR(('General Input Sheet'!$G$38/(VLOOKUP(R56,'General Input Sheet'!$E$38:$G$44,3,FALSE))),1) -> 1 | T56: 0 | CD56: 0
I57: 0 | J57: 0 | L57: 1 | M57: 0 | Q57: 0 | S57: =IFERROR(('General Input Sheet'!$G$38/(VLOOKUP(R57,'General Input Sheet'!$E$38:$G$44,3,FALSE))),1) -> 1 | T57: 0 | CD57: 0
I58: 0 | J58: 0 | L58: 1 | M58: 0 | Q58: 0 | S58: =IFERROR(('General Input Sheet'!$G$38/(VLOOKUP(R58,'General Input Sheet'!$E$38:$G$44,3,FALSE))),1) -> 1 | T58: 0 | CD58: 0
I59: =IFERROR(VLOOKUP($G59,Parksunitrate1,2,FALSE),0) -> 0 | J59: =I59*H59 -> 0 | L59: =IF(K59="",1,VLOOKUP(K59,PArksitecond,2,FALSE)) -> 1 | M59: 0 | Q59: 0 | S59: =IFERROR(('General Input Sheet'!$G$38/(VLOOKUP(R59,'General Input Sheet'!$E$38:$G$44,3,FALSE))),1) -> 1 | T59: 0 | CD59: 0
I60: 0 | J60: 0 | L60: 1 | M60: =IF(J60="","",J60*L60) -> 0 | Q60: =IF(P60="",0,P60*10000*O60) -> 0 | S60: =IFERROR(('General Input Sheet'!$G$38/(VLOOKUP(R60,'General Input Sheet'!$E$38:$G$44,3,FALSE))),1) -> 1 | T60: =IFERROR((Q60+M60)*S60,0) -> 0 | CD60: 0
I61: 0 | J61: 0 | L61: 1 | M61: 0 | Q61: 0 | S61: =IFERROR(('General Input Sheet'!$G$38/(VLOOKUP(R61,'General Input Sheet'!$E$38:$G$44,3,FALSE))),1) -> 1 | T61: 0 | CD61: 0 | CW61: =IF(BQ61="","",(BQ61/$CD61)*$T61) -> 
I62: 0 | J62: 0 | L62: 1 | M62: 0 | Q62: 0 | S62: =IFERROR(('General Input Sheet'!$G$38/(VLOOKUP(R62,'General Input Sheet'!$E$38:$G$44,3,FALSE))),1) -> 1 | T62: 0 | CD62: =SUM(AZ62:CC62) -> 0 | DJ62: =IF(SUM(CF62:DI62)=T62,"","ERROR") -> 
I63: 0 | J63: 0 | L63: 1 | M63: 0 | Q63: 0 | S63: =IFERROR(('General Input Sheet'!$G$38/(VLOOKUP(R63,'General Input Sheet'!$E$38:$G$44,3,FALSE))),1) -> 1 | T63: 0 | CD63: 0
I64: 0 | J64: 0 | L64: 1 | M64: 0 | Q64: 0 | S64: =IFERROR(('General Input Sheet'!$G$38/(VLOOKUP(R64,'General Input Sheet'!$E$38:$G$44,3,FALSE))),1) -> 1 | T64: 0 | CD64: 0
I65: 0 | J65: 0 | L65: 1 | M65: 0 | Q65: 0 | S65: =IFERROR(('General Input Sheet'!$G$38/(VLOOKUP(R65,'General Input Sheet'!$E$38:$G$44,3,FALSE))),1) -> 1 | T65: 0 | CD65: 0
I66: 0 | J66: 0 | L66: 1 | M66: 0 | Q66: 0 | S66: =IFERROR(('General Input Sheet'!$G$38/(VLOOKUP(R66,'General Input Sheet'!$E$38:$G$44,3,FALSE))),1) -> 1 | T66: 0 | BG66: =IF(AB66="y",BG$14,IF(AND(AB66>0,AB66<=1),AB66*BG$14,"")) ->  | CD66: 0
I67: 0 | J67: 0 | L67: 1 | M67: 0 | Q67: 0 | S67: =IFERROR(('General Input Sheet'!$G$38/(VLOOKUP(R67,'General Input Sheet'!$E$38:$G$44,3,FALSE))),1) -> 1 | T67: 0 | CD67: 0
I68: 0 | J68: 0 | L68: 1 | M68: 0 | Q68: 0 | S68: =IFERROR(('General Input Sheet'!$G$38/(VLOOKUP(R68,'General Input Sheet'!$E$38:$G$44,3,FALSE))),1) -> 1 | T68: 0 | CD68: 0
I69: 0 | J69: 0 | L69: 1 | M69: 0 | Q69: 0 | S69: =IFERROR(('General Input Sheet'!$G$38/(VLOOKUP(R69,'General Input Sheet'!$E$38:$G$44,3,FALSE))),1) -> 1 | T69: 0 | CD69: 0
I70: 0 | J70: 0 | L70: 1 | M70: 0 | Q70: 0 | S70: =IFERROR(('General Input Sheet'!$G$38/(VLOOKUP(R70,'General Input Sheet'!$E$38:$G$44,3,FALSE))),1) -> 1 | T70: 0 | CD70: 0
I71: 0 | J71: 0 | L71: 1 | M71: 0 | Q71: 0 | S71: =IFERROR(('General Input Sheet'!$G$38/(VLOOKUP(R71,'General Input Sheet'!$E$38:$G$44,3,FALSE))),1) -> 1 | T71: 0 | CD71: 0
I72: 0 | J72: 0 | L72: 1 | M72: 0 | Q72: 0 | S72: =IFERROR(('General Input Sheet'!$G$38/(VLOOKUP(R72,'General Input Sheet'!$E$38:$G$44,3,FALSE))),1) -> 1 | T72: 0 | CD72: 0
I73: 0 | J73: 0 | L73: 1 | M73: 0 | Q73: 0 | S73: =IFERROR(('General Input Sheet'!$G$38/(VLOOKUP(R73,'General Input Sheet'!$E$38:$G$44,3,FALSE))),1) -> 1 | T73: 0 | CD73: 0
I74: 0 | J74: 0 | L74: 1 | M74: 0 | Q74: 0 | S74: =IFERROR(('General Input Sheet'!$G$38/(VLOOKUP(R74,'General Input Sheet'!$E$38:$G$44,3,FALSE))),1) -> 1 | T74: 0 | CD74: 0
I75: 0 | J75: 0 | L75: 1 | M75: 0 | Q75: 0 | S75: =IFERROR(('General Input Sheet'!$G$38/(VLOOKUP(R75,'General Input Sheet'!$E$38:$G$44,3,FALSE))),1) -> 1 | T75: 0 | CD75: 0
I76: 0 | J76: 0 | L76: 1 | M76: 0 | Q76: 0 | S76: =IFERROR(('General Input Sheet'!$G$38/(VLOOKUP(R76,'General Input Sheet'!$E$38:$G$44,3,FALSE))),1) -> 1 | T76: 0 | BW76: =IF(AR76="y",BW$14,IF(AND(AR76>0,AR76<=1),AR76*BW$14,"")) ->  | CD76: 0
I77: 0 | J77: 0 | L77: 1 | M77: 0 | Q77: 0 | S77: =IFERROR(('General Input Sheet'!$G$38/(VLOOKUP(R77,'General Input Sheet'!$E$38:$G$44,3,FALSE))),1) -> 1 | T77: 0 | CD77: 0
I78: 0 | J78: 0 | L78: 1 | M78: 0 | Q78: 0 | S78: =IFERROR(('General Input Sheet'!$G$38/(VLOOKUP(R78,'General Input Sheet'!$E$38:$G$44,3,FALSE))),1) -> 1 | T78: 0 | CD78: 0
I79: 0 | J79: 0 | L79: 1 | M79: 0 | Q79: 0 | S79: =IFERROR(('General Input Sheet'!$G$38/(VLOOKUP(R79,'General Input Sheet'!$E$38:$G$44,3,FALSE))),1) -> 1 | T79: 0 | CD79: 0
I80: 0 | J80: 0 | L80: 1 | M80: 0 | Q80: 0 | S80: =IFERROR(('General Input Sheet'!$G$38/(VLOOKUP(R80,'General Input Sheet'!$E$38:$G$44,3,FALSE))),1) -> 1 | T80: 0 | CD80: 0
I81: 0 | J81: 0 | L81: 1 | M81: 0 | Q81: 0 | S81: =IFERROR(('General Input Sheet'!$G$38/(VLOOKUP(R81,'General Input Sheet'!$E$38:$G$44,3,FALSE))),1) -> 1 | T81: 0 | BF81: =IF(AA81="y",BF$14,IF(AND(AA81>0,AA81<=1),AA81*BF$14,"")) ->  | CD81: 0 | CI81: =IF(BC81="","",(BC81/$CD81)*$T81) -> 
I82: 0 | J82: 0 | L82: 1 | M82: 0 | Q82: 0 | S82: =IFERROR(('General Input Sheet'!$G$38/(VLOOKUP(R82,'General Input Sheet'!$E$38:$G$44,3,FALSE))),1) -> 1 | T82: 0 | AZ82: =IF(U82="y",AZ$14,IF(AND(U82>0,U82<=1),U82*AZ$14,"")) ->  | CD82: 0 | CF82: =IF(AZ82="","",(AZ82/$CD82)*$T82) -> 
I83: 0 | J83: 0 | L83: 1 | M83: 0 | Q83: 0 | S83: =IFERROR(('General Input Sheet'!$G$38/(VLOOKUP(R83,'General Input Sheet'!$E$38:$G$44,3,FALSE))),1) -> 1 | T83: 0 | CD83: 0
I84: 0 | J84: 0 | L84: 1 | M84: 0 | Q84: 0 | S84: =IFERROR(('General Input Sheet'!$G$38/(VLOOKUP(R84,'General Input Sheet'!$E$38:$G$44,3,FALSE))),1) -> 1 | T84: 0 | CD84: 0
I85: 0 | J85: 0 | L85: 1 | M85: 0 | Q85: 0 | S85: =IFERROR(('General Input Sheet'!$G$38/(VLOOKUP(R85,'General Input Sheet'!$E$38:$G$44,3,FALSE))),1) -> 1 | T85: 0 | CD85: 0
I86: 0 | J86: 0 | L86: 1 | M86: 0 | Q86: 0 | S86: =IFERROR(('General Input Sheet'!$G$38/(VLOOKUP(R86,'General Input Sheet'!$E$38:$G$44,3,FALSE))),1) -> 1 | T86: 0 | BL86: =IF(AG86="y",BL$14,IF(AND(AG86>0,AG86<=1),AG86*BL$14,"")) ->  | CD86: 0
I87: 0 | J87: 0 | L87: 1 | M87: 0 | Q87: 0 | S87: =IFERROR(('General Input Sheet'!$G$38/(VLOOKUP(R87,'General Input Sheet'!$E$38:$G$44,3,FALSE))),1) -> 1 | T87: 0 | CD87: 0
I88: 0 | J88: 0 | L88: 1 | M88: 0 | Q88: 0 | S88: =IFERROR(('General Input Sheet'!$G$38/(VLOOKUP(R88,'General Input Sheet'!$E$38:$G$44,3,FALSE))),1) -> 1 | T88: 0 | CD88: 0
I89: 0 | J89: 0 | L89: 1 | M89: 0 | Q89: 0 | S89: =IFERROR(('General Input Sheet'!$G$38/(VLOOKUP(R89,'General Input Sheet'!$E$38:$G$44,3,FALSE))),1) -> 1 | T89: 0 | CD89: 0 | CZ89: =IF(BT89="","",(BT89/$CD89)*$T89) -> 
I90: 0 | J90: 0 | L90: 1 | M90: 0 | Q90: 0 | S90: =IFERROR(('General Input Sheet'!$G$38/(VLOOKUP(R90,'General Input Sheet'!$E$38:$G$44,3,FALSE))),1) -> 1 | T90: 0 | CD90: 0
I91: 0 | J91: 0 | L91: 1 | M91: 0 | Q91: 0 | S91: =IFERROR(('General Input Sheet'!$G$38/(VLOOKUP(R91,'General Input Sheet'!$E$38:$G$44,3,FALSE))),1) -> 1 | T91: 0 | CD91: 0 | CY91: =IF(BS91="","",(BS91/$CD91)*$T91) -> 
I92: 0 | J92: 0 | L92: 1 | M92: 0 | Q92: 0 | S92: =IFERROR(('General Input Sheet'!$G$38/(VLOOKUP(R92,'General Input Sheet'!$E$38:$G$44,3,FALSE))),1) -> 1 | T92: 0 | CD92: 0
I93: 0 | J93: 0 | L93: 1 | M93: 0 | Q93: 0 | S93: =IFERROR(('General Input Sheet'!$G$38/(VLOOKUP(R93,'General Input Sheet'!$E$38:$G$44,3,FALSE))),1) -> 1 | T93: 0 | CD93: 0
I94: 0 | J94: 0 | L94: 1 | M94: 0 | Q94: 0 | S94: =IFERROR(('General Input Sheet'!$G$38/(VLOOKUP(R94,'General Input Sheet'!$E$38:$G$44,3,FALSE))),1) -> 1 | T94: 0 | CD94: 0
I95: 0 | J95: 0 | L95: 1 | M95: 0 | Q95: 0 | S95: =IFERROR(('General Input Sheet'!$G$38/(VLOOKUP(R95,'General Input Sheet'!$E$38:$G$44,3,FALSE))),1) -> 1 | T95: 0 | CD95: 0
I96: 0 | J96: 0 | L96: 1 | M96: 0 | Q96: 0 | S96: =IFERROR(('General Input Sheet'!$G$38/(VLOOKUP(R96,'General Input Sheet'!$E$38:$G$44,3,FALSE))),1) -> 1 | T96: 0 | CD96: 0
I97: 0 | J97: 0 | L97: 1 | M97: 0 | Q97: 0 | S97: =IFERROR(('General Input Sheet'!$G$38/(VLOOKUP(R97,'General Input Sheet'!$E$38:$G$44,3,FALSE))),1) -> 1 | T97: 0 | CD97: 0
I98: 0 | J98: 0 | L98: 1 | M98: 0 | Q98: 0 | S98: =IFERROR(('General Input Sheet'!$G$38/(VLOOKUP(R98,'General Input Sheet'!$E$38:$G$44,3,FALSE))),1) -> 1 | T98: 0 | CD98: 0
I99: 0 | J99: 0 | L99: 1 | M99: 0 | Q99: 0 | S99: =IFERROR(('General Input Sheet'!$G$38/(VLOOKUP(R99,'General Input Sheet'!$E$38:$G$44,3,FALSE))),1) -> 1 | T99: 0 | CD99: 0
I100: 0 | J100: 0 | L100: 1 | M100: 0 | Q100: 0 | S100: =IFERROR(('General Input Sheet'!$G$38/(VLOOKUP(R100,'General Input Sheet'!$E$38:$G$44,3,FALSE))),1) -> 1 | T100: 0 | CD100: 0
I101: 0 | J101: 0 | L101: 1 | M101: 0 | Q101: 0 | S101: =IFERROR(('General Input Sheet'!$G$38/(VLOOKUP(R101,'General Input Sheet'!$E$38:$G$44,3,FALSE))),1) -> 1 | T101: 0 | CD101: 0
I102: 0 | J102: 0 | L102: 1 | M102: 0 | Q102: 0 | S102: =IFERROR(('General Input Sheet'!$G$38/(VLOOKUP(R102,'General Input Sheet'!$E$38:$G$44,3,FALSE))),1) -> 1 | T102: 0 | CD102: 0
I103: 0 | J103: 0 | L103: 1 | M103: 0 | Q103: 0 | S103: =IFERROR(('General Input Sheet'!$G$38/(VLOOKUP(R103,'General Input Sheet'!$E$38:$G$44,3,FALSE))),1) -> 1 | T103: 0 | CD103: 0 | CV103: =IF(BP103="","",(BP103/$CD103)*$T103) -> 
I104: 0 | J104: 0 | L104: 1 | M104: 0 | Q104: 0 | S104: =IFERROR(('General Input Sheet'!$G$38/(VLOOKUP(R104,'General Input Sheet'!$E$38:$G$44,3,FALSE))),1) -> 1 | T104: 0 | CD104: 0
I105: 0 | J105: 0 | L105: 1 | M105: 0 | Q105: 0 | S105: =IFERROR(('General Input Sheet'!$G$38/(VLOOKUP(R105,'General Input Sheet'!$E$38:$G$44,3,FALSE))),1) -> 1 | T105: 0 | CD105: 0
I106: 0 | J106: 0 | L106: 1 | M106: 0 | Q106: 0 | S106: =IFERROR(('General Input Sheet'!$G$38/(VLOOKUP(R106,'General Input Sheet'!$E$38:$G$44,3,FALSE))),1) -> 1 | T106: 0 | CD106: 0
I107: 0 | J107: 0 | L107: 1 | M107: 0 | Q107: 0 | S107: =IFERROR(('General Input Sheet'!$G$38/(VLOOKUP(R107,'General Input Sheet'!$E$38:$G$44,3,FALSE))),1) -> 1 | T107: 0 | CD107: 0
I108: 0 | J108: 0 | L108: 1 | M108: 0 | Q108: 0 | S108: =IFERROR(('General Input Sheet'!$G$38/(VLOOKUP(R108,'General Input Sheet'!$E$38:$G$44,3,FALSE))),1) -> 1 | T108: 0 | CD108: 0
I109: 0 | J109: 0 | L109: 1 | M109: 0 | Q109: 0 | S109: =IFERROR(('General Input Sheet'!$G$38/(VLOOKUP(R109,'General Input Sheet'!$E$38:$G$44,3,FALSE))),1) -> 1 | T109: 0 | BN109: =IF(AI109="y",BN$14,IF(AND(AI109>0,AI109<=1),AI109*BN$14,"")) ->  | CD109: 0
I110: 0 | J110: 0 | L110: 1 | M110: 0 | Q110: 0 | S110: =IFERROR(('General Input Sheet'!$G$38/(VLOOKUP(R110,'General Input Sheet'!$E$38:$G$44,3,FALSE))),1) -> 1 | T110: 0 | CD110: 0
I111: 0 | J111: 0 | L111: 1 | M111: 0 | Q111: 0 | S111: =IFERROR(('General Input Sheet'!$G$38/(VLOOKUP(R111,'General Input Sheet'!$E$38:$G$44,3,FALSE))),1) -> 1 | T111: 0 | CD111: 0
I112: 0 | J112: 0 | L112: 1 | M112: 0 | Q112: 0 | S112: =IFERROR(('General Input Sheet'!$G$38/(VLOOKUP(R112,'General Input Sheet'!$E$38:$G$44,3,FALSE))),1) -> 1 | T112: 0 | CD112: 0
I113: 0 | J113: 0 | L113: 1 | M113: 0 | Q113: 0 | S113: =IFERROR(('General Input Sheet'!$G$38/(VLOOKUP(R113,'General Input Sheet'!$E$38:$G$44,3,FALSE))),1) -> 1 | T113: 0 | CD113: 0
I114: 0 | J114: 0 | L114: 1 | M114: 0 | Q114: 0 | S114: =IFERROR(('General Input Sheet'!$G$38/(VLOOKUP(R114,'General Input Sheet'!$E$38:$G$44,3,FALSE))),1) -> 1 | T114: 0 | CD114: 0
I115: 0 | J115: 0 | L115: 1 | M115: 0 | Q115: 0 | S115: =IFERROR(('General Input Sheet'!$G$38/(VLOOKUP(R115,'General Input Sheet'!$E$38:$G$44,3,FALSE))),1) -> 1 | T115: 0 | CD115: 0 | CS115: =IF(BM115="","",(BM115/$CD115)*$T115) -> 
I116: 0 | J116: 0 | L116: 1 | M116: 0 | Q116: 0 | S116: =IFERROR(('General Input Sheet'!$G$38/(VLOOKUP(R116,'General Input Sheet'!$E$38:$G$44,3,FALSE))),1) -> 1 | T116: 0 | CD116: 0 | CF116: =IF(AZ116="","",(AZ116/$CD116)*$T116) -> 
I117: 0 | J117: 0 | L117: 1 | M117: 0 | Q117: 0 | S117: =IFERROR(('General Input Sheet'!$G$38/(VLOOKUP(R117,'General Input Sheet'!$E$38:$G$44,3,FALSE))),1) -> 1 | T117: 0 | CD117: 0
I118: 0 | J118: 0 | L118: 1 | M118: 0 | Q118: 0 | S118: =IFERROR(('General Input Sheet'!$G$38/(VLOOKUP(R118,'General Input Sheet'!$E$38:$G$44,3,FALSE))),1) -> 1 | T118: 0 | CD118: 0 | DI118: =IF(CC118="","",(CC118/$CD118)*$T118) -> 
I119: 0 | J119: 0 | L119: 1 | M119: 0 | Q119: 0 | S119: =IFERROR(('General Input Sheet'!$G$38/(VLOOKUP(R119,'General Input Sheet'!$E$38:$G$44,3,FALSE))),1) -> 1 | T119: 0 | CD119: 0
I120: 0 | J120: 0 | L120: 1 | M120: 0 | Q120: 0 | S120: =IFERROR(('General Input Sheet'!$G$38/(VLOOKUP(R120,'General Input Sheet'!$E$38:$G$44,3,FALSE))),1) -> 1 | T120: 0 | CD120: 0
I121: 0 | J121: 0 | L121: 1 | M121: 0 | Q121: 0 | S121: =IFERROR(('General Input Sheet'!$G$38/(VLOOKUP(R121,'General Input Sheet'!$E$38:$G$44,3,FALSE))),1) -> 1 | T121: 0 | CD121: 0
I122: 0 | J122: 0 | L122: 1 | M122: 0 | Q122: 0 | S122: =IFERROR(('General Input Sheet'!$G$38/(VLOOKUP(R122,'General Input Sheet'!$E$38:$G$44,3,FALSE))),1) -> 1 | T122: 0 | CD122: 0
I123: =IFERROR(VLOOKUP($G123,Parksunitrate1,2,FALSE),0) -> 0 | J123: =I123*H123 -> 0 | L123: =IF(K123="",1,VLOOKUP(K123,PArksitecond,2,FALSE)) -> 1 | M123: 0 | Q123: 0 | S123: =IFERROR(('General Input Sheet'!$G$38/(VLOOKUP(R123,'General Input Sheet'!$E$38:$G$44,3,FALSE))),1) -> 1 | T123: 0 | BM123: =IF(AH123="y",BM$14,IF(AND(AH123>0,AH123<=1),AH123*BM$14,"")) ->  | CD123: 0
I124: 0 | J124: 0 | L124: 1 | M124: =IF(J124="","",J124*L124) -> 0 | Q124: =IF(P124="",0,P124*10000*O124) -> 0 | S124: =IFERROR(('General Input Sheet'!$G$38/(VLOOKUP(R124,'General Input Sheet'!$E$38:$G$44,3,FALSE))),1) -> 1 | T124: =IFERROR((Q124+M124)*S124,0) -> 0 | BC124: =IF(X124="y",BC$14,IF(AND(X124>0,X124<=1),X124*BC$14,"")) ->  | CD124: 0
I125: 0 | J125: 0 | L125: 1 | M125: 0 | Q125: 0 | S125: =IFERROR(('General Input Sheet'!$G$38/(VLOOKUP(R125,'General Input Sheet'!$E$38:$G$44,3,FALSE))),1) -> 1 | T125: 0 | AZ125: =IF(U125="y",AZ$14,IF(AND(U125>0,U125<=1),U125*AZ$14,"")) ->  | CD125: 0
I126: 0 | J126: 0 | L126: 1 | M126: 0 | Q126: 0 | S126: =IFERROR(('General Input Sheet'!$G$38/(VLOOKUP(R126,'General Input Sheet'!$E$38:$G$44,3,FALSE))),1) -> 1 | T126: 0 | CD126: =SUM(AZ126:CC126) -> 0 | DJ126: =IF(SUM(CF126:DI126)=T126,"","ERROR") -> 
I127: 0 | J127: 0 | L127: 1 | M127: 0 | Q127: 0 | S127: =IFERROR(('General Input Sheet'!$G$38/(VLOOKUP(R127,'General Input Sheet'!$E$38:$G$44,3,FALSE))),1) -> 1 | T127: 0 | CD127: 0 | DC127: =IF(BW127="","",(BW127/$CD127)*$T127) -> 
I128: 0 | J128: 0 | L128: 1 | M128: 0 | Q128: 0 | S128: =IFERROR(('General Input Sheet'!$G$38/(VLOOKUP(R128,'General Input Sheet'!$E$38:$G$44,3,FALSE))),1) -> 1 | T128: 0 | CD128: 0
I129: 0 | J129: 0 | L129: 1 | M129: 0 | Q129: 0 | S129: =IFERROR(('General Input Sheet'!$G$38/(VLOOKUP(R129,'General Input Sheet'!$E$38:$G$44,3,FALSE))),1) -> 1 | T129: 0 | CD129: 0
I130: 0 | J130: 0 | L130: 1 | M130: 0 | Q130: 0 | S130: =IFERROR(('General Input Sheet'!$G$38/(VLOOKUP(R130,'General Input Sheet'!$E$38:$G$44,3,FALSE))),1) -> 1 | T130: 0 | CD130: 0
I131: 0 | J131: 0 | L131: 1 | M131: 0 | Q131: 0 | S131: =IFERROR(('General Input Sheet'!$G$38/(VLOOKUP(R131,'General Input Sheet'!$E$38:$G$44,3,FALSE))),1) -> 1 | T131: 0 | CD131: 0
I132: 0 | J132: 0 | L132: 1 | M132: 0 | Q132: 0 | S132: =IFERROR(('General Input Sheet'!$G$38/(VLOOKUP(R132,'General Input Sheet'!$E$38:$G$44,3,FALSE))),1) -> 1 | T132: 0 | CD132: 0
I133: 0 | J133: 0 | L133: 1 | M133: 0 | Q133: 0 | S133: =IFERROR(('General Input Sheet'!$G$38/(VLOOKUP(R133,'General Input Sheet'!$E$38:$G$44,3,FALSE))),1) -> 1 | T133: 0 | CD133: 0
I134: 0 | J134: 0 | L134: 1 | M134: 0 | Q134: 0 | S134: =IFERROR(('General Input Sheet'!$G$38/(VLOOKUP(R134,'General Input Sheet'!$E$38:$G$44,3,FALSE))),1) -> 1 | T134: 0 | CD134: 0
I135: 0 | J135: 0 | L135: 1 | M135: 0 | Q135: 0 | S135: =IFERROR(('General Input Sheet'!$G$38/(VLOOKUP(R135,'General Input Sheet'!$E$38:$G$44,3,FALSE))),1) -> 1 | T135: 0 | CD135: 0 | CN135: =IF(BH135="","",(BH135/$CD135)*$T135) -> 
I136: 0 | J136: 0 | L136: 1 | M136: 0 | Q136: 0 | S136: =IFERROR(('General Input Sheet'!$G$38/(VLOOKUP(R136,'General Input Sheet'!$E$38:$G$44,3,FALSE))),1) -> 1 | T136: 0 | CD136: 0 | CF136: =IF(AZ136="","",(AZ136/$CD136)*$T136) -> 
I137: 0 | J137: 0 | L137: 1 | M137: 0 | Q137: 0 | S137: =IFERROR(('General Input Sheet'!$G$38/(VLOOKUP(R137,'General Input Sheet'!$E$38:$G$44,3,FALSE))),1) -> 1 | T137: 0 | BQ137: =IF(AL137="y",BQ$14,IF(AND(AL137>0,AL137<=1),AL137*BQ$14,"")) ->  | CD137: 0
I138: 0 | J138: 0 | L138: 1 | M138: 0 | Q138: 0 | S138: =IFERROR(('General Input Sheet'!$G$38/(VLOOKUP(R138,'General Input Sheet'!$E$38:$G$44,3,FALSE))),1) -> 1 | T138: 0 | CD138: 0
I139: 0 | J139: 0 | L139: 1 | M139: 0 | Q139: 0 | S139: =IFERROR(('General Input Sheet'!$G$38/(VLOOKUP(R139,'General Input Sheet'!$E$38:$G$44,3,FALSE))),1) -> 1 | T139: 0 | CD139: 0
I140: 0 | J140: 0 | L140: 1 | M140: 0 | Q140: 0 | S140: =IFERROR(('General Input Sheet'!$G$38/(VLOOKUP(R140,'General Input Sheet'!$E$38:$G$44,3,FALSE))),1) -> 1 | T140: 0 | CD140: 0
I141: 0 | J141: 0 | L141: 1 | M141: 0 | Q141: 0 | S141: =IFERROR(('General Input Sheet'!$G$38/(VLOOKUP(R141,'General Input Sheet'!$E$38:$G$44,3,FALSE))),1) -> 1 | T141: 0 | CD141: 0
I142: 0 | J142: 0 | L142: 1 | M142: 0 | Q142: 0 | S142: =IFERROR(('General Input Sheet'!$G$38/(VLOOKUP(R142,'General Input Sheet'!$E$38:$G$44,3,FALSE))),1) -> 1 | T142: 0 | CD142: 0
I143: 0 | J143: 0 | L143: 1 | M143: 0 | Q143: 0 | S143: =IFERROR(('General Input Sheet'!$G$38/(VLOOKUP(R143,'General Input Sheet'!$E$38:$G$44,3,FALSE))),1) -> 1 | T143: 0 | CD143: 0
I144: 0 | J144: 0 | L144: 1 | M144: 0 | Q144: 0 | S144: =IFERROR(('General Input Sheet'!$G$38/(VLOOKUP(R144,'General Input Sheet'!$E$38:$G$44,3,FALSE))),1) -> 1 | T144: 0 | CD144: 0
I145: 0 | J145: 0 | L145: 1 | M145: 0 | Q145: 0 | S145: =IFERROR(('General Input Sheet'!$G$38/(VLOOKUP(R145,'General Input Sheet'!$E$38:$G$44,3,FALSE))),1) -> 1 | T145: 0 | CD145: 0
I146: 0 | J146: 0 | L146: 1 | M146: 0 | Q146: 0 | S146: =IFERROR(('General Input Sheet'!$G$38/(VLOOKUP(R146,'General Input Sheet'!$E$38:$G$44,3,FALSE))),1) -> 1 | T146: 0 | CD146: 0
I147: 0 | J147: 0 | L147: 1 | M147: 0 | Q147: 0 | S147: =IFERROR(('General Input Sheet'!$G$38/(VLOOKUP(R147,'General Input Sheet'!$E$38:$G$44,3,FALSE))),1) -> 1 | T147: 0 | CD147: 0
I148: 0 | J148: 0 | L148: 1 | M148: 0 | Q148: 0 | S148: =IFERROR(('General Input Sheet'!$G$38/(VLOOKUP(R148,'General Input Sheet'!$E$38:$G$44,3,FALSE))),1) -> 1 | T148: 0 | CD148: 0
I149: 0 | J149: 0 | L149: 1 | M149: 0 | Q149: 0 | S149: =IFERROR(('General Input Sheet'!$G$38/(VLOOKUP(R149,'General Input Sheet'!$E$38:$G$44,3,FALSE))),1) -> 1 | T149: 0 | BH149: =IF(AC149="y",BH$14,IF(AND(AC149>0,AC149<=1),AC149*BH$14,"")) ->  | CD149: 0
I150: 0 | J150: 0 | L150: 1 | M150: 0 | Q150: 0 | S150: =IFERROR(('General Input Sheet'!$G$38/(VLOOKUP(R150,'General Input Sheet'!$E$38:$G$44,3,FALSE))),1) -> 1 | T150: 0 | CD150: 0
I151: 0 | J151: 0 | L151: 1 | M151: 0 | Q151: 0 | S151: =IFERROR(('General Input Sheet'!$G$38/(VLOOKUP(R151,'General Input Sheet'!$E$38:$G$44,3,FALSE))),1) -> 1 | T151: 0 | CD151: 0
I152: 0 | J152: 0 | L152: 1 | M152: 0 | Q152: 0 | S152: =IFERROR(('General Input Sheet'!$G$38/(VLOOKUP(R152,'General Input Sheet'!$E$38:$G$44,3,FALSE))),1) -> 1 | T152: 0 | CD152: 0
I153: 0 | J153: 0 | L153: 1 | M153: 0 | Q153: 0 | S153: =IFERROR(('General Input Sheet'!$G$38/(VLOOKUP(R153,'General Input Sheet'!$E$38:$G$44,3,FALSE))),1) -> 1 | T153: 0 | CD153: 0
I154: 0 | J154: 0 | L154: 1 | M154: 0 | Q154: 0 | S154: =IFERROR(('General Input Sheet'!$G$38/(VLOOKUP(R154,'General Input Sheet'!$E$38:$G$44,3,FALSE))),1) -> 1 | T154: 0 | CD154: 0
I155: 0 | J155: 0 | L155: 1 | M155: 0 | Q155: 0 | S155: =IFERROR(('General Input Sheet'!$G$38/(VLOOKUP(R155,'General Input Sheet'!$E$38:$G$44,3,FALSE))),1) -> 1 | T155: 0 | CD155: 0
I156: 0 | J156: 0 | L156: 1 | M156: 0 | Q156: 0 | S156: =IFERROR(('General Input Sheet'!$G$38/(VLOOKUP(R156,'General Input Sheet'!$E$38:$G$44,3,FALSE))),1) -> 1 | T156: 0 | CD156: 0
I157: 0 | J157: 0 | L157: 1 | M157: 0 | Q157: 0 | S157: =IFERROR(('General Input Sheet'!$G$38/(VLOOKUP(R157,'General Input Sheet'!$E$38:$G$44,3,FALSE))),1) -> 1 | T157: 0 | BZ157: =IF(AU157="y",BZ$14,IF(AND(AU157>0,AU157<=1),AU157*BZ$14,"")) ->  | CD157: 0
I158: 0 | J158: 0 | L158: 1 | M158: 0 | Q158: 0 | S158: =IFERROR(('General Input Sheet'!$G$38/(VLOOKUP(R158,'General Input Sheet'!$E$38:$G$44,3,FALSE))),1) -> 1 | T158: 0 | CD158: 0
I159: 0 | J159: 0 | L159: 1 | M159: 0 | Q159: 0 | S159: =IFERROR(('General Input Sheet'!$G$38/(VLOOKUP(R159,'General Input Sheet'!$E$38:$G$44,3,FALSE))),1) -> 1 | T159: 0 | CD159: 0
I160: 0 | J160: 0 | L160: 1 | M160: 0 | Q160: 0 | S160: =IFERROR(('General Input Sheet'!$G$38/(VLOOKUP(R160,'General Input Sheet'!$E$38:$G$44,3,FALSE))),1) -> 1 | T160: 0 | CD160: 0
I161: 0 | J161: 0 | L161: 1 | M161: 0 | Q161: 0 | S161: =IFERROR(('General Input Sheet'!$G$38/(VLOOKUP(R161,'General Input Sheet'!$E$38:$G$44,3,FALSE))),1) -> 1 | T161: 0 | CD161: 0
I162: 0 | J162: 0 | L162: 1 | M162: 0 | Q162: 0 | S162: =IFERROR(('General Input Sheet'!$G$38/(VLOOKUP(R162,'General Input Sheet'!$E$38:$G$44,3,FALSE))),1) -> 1 | T162: 0 | CD162: 0
I163: 0 | J163: 0 | L163: 1 | M163: 0 | Q163: 0 | S163: =IFERROR(('General Input Sheet'!$G$38/(VLOOKUP(R163,'General Input Sheet'!$E$38:$G$44,3,FALSE))),1) -> 1 | T163: 0 | CD163: 0
I164: 0 | J164: 0 | L164: 1 | M164: 0 | Q164: 0 | S164: =IFERROR(('General Input Sheet'!$G$38/(VLOOKUP(R164,'General Input Sheet'!$E$38:$G$44,3,FALSE))),1) -> 1 | T164: 0 | CD164: 0
I165: 0 | J165: 0 | L165: 1 | M165: 0 | Q165: 0 | S165: =IFERROR(('General Input Sheet'!$G$38/(VLOOKUP(R165,'General Input Sheet'!$E$38:$G$44,3,FALSE))),1) -> 1 | T165: 0 | CD165: 0
I166: 0 | J166: 0 | L166: 1 | M166: 0 | Q166: 0 | S166: =IFERROR(('General Input Sheet'!$G$38/(VLOOKUP(R166,'General Input Sheet'!$E$38:$G$44,3,FALSE))),1) -> 1 | T166: 0 | CD166: 0
I167: 0 | J167: 0 | L167: 1 | M167: 0 | Q167: 0 | S167: =IFERROR(('General Input Sheet'!$G$38/(VLOOKUP(R167,'General Input Sheet'!$E$38:$G$44,3,FALSE))),1) -> 1 | T167: 0 | CD167: 0 | CM167: =IF(BG167="","",(BG167/$CD167)*$T167) -> 
I168: 0 | J168: 0 | L168: 1 | M168: 0 | Q168: 0 | S168: =IFERROR(('General Input Sheet'!$G$38/(VLOOKUP(R168,'General Input Sheet'!$E$38:$G$44,3,FALSE))),1) -> 1 | T168: 0 | CD168: 0 | CF168: =IF(AZ168="","",(AZ168/$CD168)*$T168) -> 
I169: 0 | J169: 0 | L169: 1 | M169: 0 | Q169: 0 | S169: =IFERROR(('General Input Sheet'!$G$38/(VLOOKUP(R169,'General Input Sheet'!$E$38:$G$44,3,FALSE))),1) -> 1 | T169: 0 | CD169: 0 | DF169: =IF(BZ169="","",(BZ169/$CD169)*$T169) -> 
I170: 0 | J170: 0 | L170: 1 | M170: 0 | Q170: 0 | S170: =IFERROR(('General Input Sheet'!$G$38/(VLOOKUP(R170,'General Input Sheet'!$E$38:$G$44,3,FALSE))),1) -> 1 | T170: 0 | BQ170: =IF(AL170="y",BQ$14,IF(AND(AL170>0,AL170<=1),AL170*BQ$14,"")) ->  | CD170: 0
I171: 0 | J171: 0 | L171: 1 | M171: 0 | Q171: 0 | S171: =IFERROR(('General Input Sheet'!$G$38/(VLOOKUP(R171,'General Input Sheet'!$E$38:$G$44,3,FALSE))),1) -> 1 | T171: 0 | CD171: 0
I172: 0 | J172: 0 | L172: 1 | M172: 0 | Q172: 0 | S172: =IFERROR(('General Input Sheet'!$G$38/(VLOOKUP(R172,'General Input Sheet'!$E$38:$G$44,3,FALSE))),1) -> 1 | T172: 0 | BD172: =IF(Y172="y",BD$14,IF(AND(Y172>0,Y172<=1),Y172*BD$14,"")) ->  | CD172: 0
I173: 0 | J173: 0 | L173: 1 | M173: 0 | Q173: 0 | S173: =IFERROR(('General Input Sheet'!$G$38/(VLOOKUP(R173,'General Input Sheet'!$E$38:$G$44,3,FALSE))),1) -> 1 | T173: 0 | AZ173: =IF(U173="y",AZ$14,IF(AND(U173>0,U173<=1),U173*AZ$14,"")) ->  | CD173: 0
I174: 0 | J174: 0 | L174: 1 | M174: 0 | Q174: 0 | S174: =IFERROR(('General Input Sheet'!$G$38/(VLOOKUP(R174,'General Input Sheet'!$E$38:$G$44,3,FALSE))),1) -> 1 | T174: 0 | CD174: 0
I175: 0 | J175: 0 | L175: 1 | M175: 0 | Q175: 0 | S175: =IFERROR(('General Input Sheet'!$G$38/(VLOOKUP(R175,'General Input Sheet'!$E$38:$G$44,3,FALSE))),1) -> 1 | T175: 0 | CD175: 0 | CW175: =IF(BQ175="","",(BQ175/$CD175)*$T175) -> 
I176: 0 | J176: 0 | L176: 1 | M176: 0 | Q176: 0 | S176: =IFERROR(('General Input Sheet'!$G$38/(VLOOKUP(R176,'General Input Sheet'!$E$38:$G$44,3,FALSE))),1) -> 1 | T176: 0 | CD176: 0
I177: 0 | J177: 0 | L177: 1 | M177: 0 | Q177: 0 | S177: =IFERROR(('General Input Sheet'!$G$38/(VLOOKUP(R177,'General Input Sheet'!$E$38:$G$44,3,FALSE))),1) -> 1 | T177: 0 | CD177: 0
I178: 0 | J178: 0 | L178: 1 | M178: 0 | Q178: 0 | S178: =IFERROR(('General Input Sheet'!$G$38/(VLOOKUP(R178,'General Input Sheet'!$E$38:$G$44,3,FALSE))),1) -> 1 | T178: 0 | CD178: 0
I179: 0 | J179: 0 | L179: 1 | M179: 0 | Q179: 0 | S179: =IFERROR(('General Input Sheet'!$G$38/(VLOOKUP(R179,'General Input Sheet'!$E$38:$G$44,3,FALSE))),1) -> 1 | T179: 0 | CD179: 0
I180: 0 | J180: 0 | L180: 1 | M180: 0 | Q180: 0 | S180: =IFERROR(('General Input Sheet'!$G$38/(VLOOKUP(R180,'General Input Sheet'!$E$38:$G$44,3,FALSE))),1) -> 1 | T180: 0 | CD180: 0
I181: 0 | J181: 0 | L181: 1 | M181: 0 | Q181: 0 | S181: =IFERROR(('General Input Sheet'!$G$38/(VLOOKUP(R181,'General Input Sheet'!$E$38:$G$44,3,FALSE))),1) -> 1 | T181: 0 | CD181: 0 | CS181: =IF(BM181="","",(BM181/$CD181)*$T181) -> 
I182: 0 | J182: 0 | L182: 1 | M182: 0 | Q182: 0 | S182: =IFERROR(('General Input Sheet'!$G$38/(VLOOKUP(R182,'General Input Sheet'!$E$38:$G$44,3,FALSE))),1) -> 1 | T182: 0 | CD182: 0
I183: 0 | J183: 0 | L183: 1 | M183: 0 | Q183: 0 | S183: =IFERROR(('General Input Sheet'!$G$38/(VLOOKUP(R183,'General Input Sheet'!$E$38:$G$44,3,FALSE))),1) -> 1 | T183: 0 | CD183: 0
I184: 0 | J184: 0 | L184: 1 | M184: 0 | Q184: 0 | S184: =IFERROR(('General Input Sheet'!$G$38/(VLOOKUP(R184,'General Input Sheet'!$E$38:$G$44,3,FALSE))),1) -> 1 | T184: 0 | CD184: 0
I185: 0 | J185: 0 | L185: 1 | M185: 0 | Q185: 0 | S185: =IFERROR(('General Input Sheet'!$G$38/(VLOOKUP(R185,'General Input Sheet'!$E$38:$G$44,3,FALSE))),1) -> 1 | T185: 0 | CD185: 0
I186: 0 | J186: 0 | L186: 1 | M186: 0 | Q186: 0 | S186: =IFERROR(('General Input Sheet'!$G$38/(VLOOKUP(R186,'General Input Sheet'!$E$38:$G$44,3,FALSE))),1) -> 1 | T186: 0 | CD186: 0
I187: =IFERROR(VLOOKUP($G187,Parksunitrate1,2,FALSE),0) -> 0 | J187: =I187*H187 -> 0 | L187: =IF(K187="",1,VLOOKUP(K187,PArksitecond,2,FALSE)) -> 1 | M187: 0 | Q187: 0 | S187: =IFERROR(('General Input Sheet'!$G$38/(VLOOKUP(R187,'General Input Sheet'!$E$38:$G$44,3,FALSE))),1) -> 1 | T187: 0 | BI187: =IF(AD187="y",BI$14,IF(AND(AD187>0,AD187<=1),AD187*BI$14,"")) ->  | CD187: 0
I188: 0 | J188: 0 | L188: 1 | M188: =IF(J188="","",J188*L188) -> 0 | Q188: =IF(P188="",0,P188*10000*O188) -> 0 | S188: =IFERROR(('General Input Sheet'!$G$38/(VLOOKUP(R188,'General Input Sheet'!$E$38:$G$44,3,FALSE))),1) -> 1 | T188: =IFERROR((Q188+M188)*S188,0) -> 0 | CD188: 0
I189: 0 | J189: 0 | L189: 1 | M189: 0 | Q189: 0 | S189: =IFERROR(('General Input Sheet'!$G$38/(VLOOKUP(R189,'General Input Sheet'!$E$38:$G$44,3,FALSE))),1) -> 1 | T189: 0 | CD189: 0
I190: 0 | J190: 0 | L190: 1 | M190: 0 | Q190: 0 | S190: =IFERROR(('General Input Sheet'!$G$38/(VLOOKUP(R190,'General Input Sheet'!$E$38:$G$44,3,FALSE))),1) -> 1 | T190: 0 | CD190: =SUM(AZ190:CC190) -> 0 | DJ190: =IF(SUM(CF190:DI190)=T190,"","ERROR") -> 
I191: 0 | J191: 0 | L191: 1 | M191: 0 | Q191: 0 | S191: =IFERROR(('General Input Sheet'!$G$38/(VLOOKUP(R191,'General Input Sheet'!$E$38:$G$44,3,FALSE))),1) -> 1 | T191: 0 | CD191: 0
I192: 0 | J192: 0 | L192: 1 | M192: 0 | Q192: 0 | S192: =IFERROR(('General Input Sheet'!$G$38/(VLOOKUP(R192,'General Input Sheet'!$E$38:$G$44,3,FALSE))),1) -> 1 | T192: 0 | CD192: 0
I193: 0 | J193: 0 | L193: 1 | M193: 0 | Q193: 0 | S193: =IFERROR(('General Input Sheet'!$G$38/(VLOOKUP(R193,'General Input Sheet'!$E$38:$G$44,3,FALSE))),1) -> 1 | T193: 0 | CD193: 0
I194: 0 | J194: 0 | L194: 1 | M194: 0 | Q194: 0 | S194: =IFERROR(('General Input Sheet'!$G$38/(VLOOKUP(R194,'General Input Sheet'!$E$38:$G$44,3,FALSE))),1) -> 1 | T194: 0 | CD194: 0
I195: 0 | J195: 0 | L195: 1 | M195: 0 | Q195: 0 | S195: =IFERROR(('General Input Sheet'!$G$38/(VLOOKUP(R195,'General Input Sheet'!$E$38:$G$44,3,FALSE))),1) -> 1 | T195: 0 | CD195: 0
I196: 0 | J196: 0 | L196: 1 | M196: 0 | Q196: 0 | S196: =IFERROR(('General Input Sheet'!$G$38/(VLOOKUP(R196,'General Input Sheet'!$E$38:$G$44,3,FALSE))),1) -> 1 | T196: 0 | CD196: 0
I197: 0 | J197: 0 | L197: 1 | M197: 0 | Q197: 0 | S197: =IFERROR(('General Input Sheet'!$G$38/(VLOOKUP(R197,'General Input Sheet'!$E$38:$G$44,3,FALSE))),1) -> 1 | T197: 0 | CD197: 0
I198: 0 | J198: 0 | L198: 1 | M198: 0 | Q198: 0 | S198: =IFERROR(('General Input Sheet'!$G$38/(VLOOKUP(R198,'General Input Sheet'!$E$38:$G$44,3,FALSE))),1) -> 1 | T198: 0 | BT198: =IF(AO198="y",BT$14,IF(AND(AO198>0,AO198<=1),AO198*BT$14,"")) ->  | CD198: 0
I199: 0 | J199: 0 | L199: 1 | M199: 0 | Q199: 0 | S199: =IFERROR(('General Input Sheet'!$G$38/(VLOOKUP(R199,'General Input Sheet'!$E$38:$G$44,3,FALSE))),1) -> 1 | T199: 0 | CD199: 0
I200: 0 | J200: 0 | L200: 1 | M200: 0 | Q200: 0 | S200: =IFERROR(('General Input Sheet'!$G$38/(VLOOKUP(R200,'General Input Sheet'!$E$38:$G$44,3,FALSE))),1) -> 1 | T200: 0 | CD200: 0
I201: 0 | J201: 0 | L201: 1 | M201: 0 | Q201: 0 | S201: =IFERROR(('General Input Sheet'!$G$38/(VLOOKUP(R201,'General Input Sheet'!$E$38:$G$44,3,FALSE))),1) -> 1 | T201: 0 | CD201: 0
I202: 0 | J202: 0 | L202: 1 | M202: 0 | Q202: 0 | S202: =IFERROR(('General Input Sheet'!$G$38/(VLOOKUP(R202,'General Input Sheet'!$E$38:$G$44,3,FALSE))),1) -> 1 | T202: 0 | CD202: 0
I203: 0 | J203: 0 | L203: 1 | M203: 0 | Q203: 0 | S203: =IFERROR(('General Input Sheet'!$G$38/(VLOOKUP(R203,'General Input Sheet'!$E$38:$G$44,3,FALSE))),1) -> 1 | T203: 0 | CD203: 0 | CZ203: =IF(BT203="","",(BT203/$CD203)*$T203) -> 
I204: 0 | J204: 0 | L204: 1 | M204: 0 | Q204: 0 | S204: =IFERROR(('General Input Sheet'!$G$38/(VLOOKUP(R204,'General Input Sheet'!$E$38:$G$44,3,FALSE))),1) -> 1 | T204: 0 | CD204: 0 | CI204: =IF(BC204="","",(BC204/$CD204)*$T204) -> 
... 76 more rows

Sheet Exist Trunk Asset - Stormwater
B2: ='Navigation Pane'!C2 -> Goondiwindi Regional Council
B3: Stormwater
A4: Return to "Existing Trunk Assets"
B5: EXISTING TRUNK ASSETS
B8: Land Valuation Type | D8: Location
H10: Asset Data | V10: Catchment Asset Allocation | BO10: Asset Usage | CU10: Cost Allocation
B11: Basic Asset Data | G11: Asset Attributes | J11: Basic Asset Valuation | O11: Land Attributes | S11: Refined Asset Value | V11: ='Catchment Demand - Stormwater'!$C8 -> Goondiwindi | W11: ='Catchment Demand - Stormwater'!$C9 -> Texas | X11: ='Catchment Demand - Stormwater'!$C10 -> Inglewood | Y11: ='Catchment Demand - Stormwater'!$C11 -> Yelarbon | Z11: ='Catchment Demand - Stormwater'!$C12 -> Talwood | AA11: ='Catchment Demand - Stormwater'!$C13 -> 0 | AB11: ='Catchment Demand - Stormwater'!$C14 -> 0 | AC11: ='Catchment Demand - Stormwater'!$C15 -> 0 | AD11: ='Catchment Demand - Stormwater'!$C16 -> 0 | AE11: ='Catchment Demand - Stormwater'!$C17 -> 0 | AF11: ='Catchment Demand - Stormwater'!$C18 -> 0 | AG11: ='Catchment Demand - Stormwater'!$C19 -> 0 | AH11: ='Catchment Demand - Stormwater'!$C20 -> 0 | AI11: ='Catchment Demand - Stormwater'!$C21 -> 0 | AJ11: ='Catchment Demand - Stormwater'!$C22 -> 0 | AK11: ='Catchment Demand - Stormwater'!$C23 -> 0 | AL11: ='Catchment Demand - Stormwater'!$C24 -> 0 | AM11: ='Catchment Demand - Stormwater'!$C25 -> 0 | AN11: ='Catchment Demand - Stormwater'!$C26 -> 0 | AO11: ='Catchment Demand - Stormwater'!$C27 -> 0 | AP11: ='Catchment Demand - Stormwater'!$C28 -> 0 | AQ11: ='Catchment Demand - Stormwater'!$C29 -> 0 | AR11: ='Catchment Demand - Stormwater'!$C30 -> 0 | AS11: ='Catchment Demand - Stormwater'!$C31 -> 0 | AT11: ='Catchment Demand - Stormwater'!$C32 -> 0 | AU11: ='Catchment Demand - Stormwater'!$C33 -> 0 | AV11: ='Catchment Demand - Stormwater'!$C34 -> 0 | AW11: ='Catchment Demand - Stormwater'!$C35 -> 0 | AX11: ='Catchment Demand - Stormwater'!$C36 -> 0 | AY11: ='Catchment Demand - Stormwater'!$C37 -> 0 | BA11: =V11 -> Goondiwindi | BB11: =W11 -> Texas | BC11: Inglewood | BD11: Yelarbon | BE11: Talwood | BF11: 0 | BG11: 0 | BH11: 0 | BI11: 0 | BJ11: 0 | BK11: 0 | BL11: 0 | BM11: 0 | BN11: 0 | BO11: 0 | BP11: 0 | BQ11: 0 | BR11: 0 | BS11: 0 | BT11: 0 | BU11: 0 | BV11: 0 | BW11: 0 | BX11: 0 | BY11: 0 | BZ11: 0 | CA11: 0 | CB11: 0 | CC11: 0 | CD11: 0 | CE11: TOTALS | CG11: =V11 -> Goondiwindi | CH11: =W11 -> Texas | CI11: Inglewood | CJ11: Yelarbon | CK11: Talwood | CL11: 0 | CM11: 0 | CN11: 0 | CO11: 0 | CP11: 0 | CQ11: 0 | CR11: 0 | CS11: 0 | CT11: 0 | CU11: 0 | CV11: 0 | CW11: 0 | CX11: 0 | CY11: 0 | CZ11: 0 | DA11: 0 | DB11: 0 | DC11: 0 | DD11: 0 | DE11: 0 | DF11: 0 | DG11: 0 | DH11: 0 | DI11: 0 | DJ11: 0 | DK11: Checksum 2
B12: Asset ID | C12: LGIP ID | D12: Asset Class | E12: Asset Name | F12: Description | G12: Unit Rate Type (*) | H12: Length/unit (*) | I12: asset type/name | J12: Unit Rate | K12: Baseline Valuation | L12: Site/Condition | M12: Multiplier | N12: Gross Value | O12: Land Location/Type | P12: Size of land (ha) (*) | Q12: Unit Cost | R12: Land Value | S12: Valuation Year | T12: Escalation | U12: Present Day Value
V13: 1 | W13: =V13+1 -> 2 | X13: =W13+1 -> 3 | Y13: 4 | Z13: 5 | AA13: 6 | AB13: 7 | AC13: 8 | AD13: 9 | AE13: 10 | AF13: 11 | AG13: 12 | AH13: 13 | AI13: 14 | AJ13: 15 | AK13: 16 | AL13: 17 | AM13: 18 | AN13: 19 | AO13: 20 | AP13: 21 | AQ13: 22 | AR13: 23 | AS13: 24 | AT13: 25 | AU13: 26 | AV13: 27 | AW13: 28 | AX13: 29 | AY13: 30
B14: Councils ID (from GIS, FAR, AMA etc.) | C14: ID from the LGIP drawings | D14: Chanel, Detention Basin, GPT. SQUID etc | K14: May be calculated from unit rates OR unique values can be direct entered | U14: Adjusted Current Day Value | V14: =IFERROR(VLOOKUP(V11,stormcatch,5,FALSE),"") -> 258.8018953 | W14: =IFERROR(VLOOKUP(W11,stormcatch,5,FALSE),"") -> 58.57186474 | X14: =IFERROR(VLOOKUP(X11,stormcatch,5,FALSE),"") -> 45.81792872 | Y14: =IFERROR(VLOOKUP(Y11,stormcatch,5,FALSE),"") -> 25.72066618 | Z14: =IFERROR(VLOOKUP(Z11,stormcatch,5,FALSE),"") -> 9.529141667 | AA14: =IFERROR(VLOOKUP(AA11,stormcatch,6,FALSE),"") ->  | BA14: =V14 -> 258.8018953 | BB14: =W14 -> 58.57186474 | BC14: 45.81792872 | BD14: 25.72066618 | BE14: 9.529141667 | CG14: =SUM(CG15:CG401) -> 5114396.55 | CH14: 66859.63 | CI14: 393308.69 | CJ14: 0 | CK14: 0 | CL14: 0 | CM14: 0 | CN14: 0 | CO14: 0 | CP14: 0 | CQ14: 0 | CR14: 0 | CS14: 0 | CT14: 0 | CU14: 0 | CV14: 0 | CW14: 0 | CX14: 0 | CY14: 0 | CZ14: 0 | DA14: 0 | DB14: 0 | DC14: 0 | DD14: 0 | DE14: 0 | DF14: 0 | DG14: 0 | DH14: 0 | DI14: 0 | DJ14: 0 | DK14: 0
D15: Stormwater pipes | F15: Goondiwindi | J15: =IF(G15=SWTYPE1,VLOOKUP(I15,SWUnitrates1,2,FALSE),IF(G15=SWTYPE2,VLOOKUP(I15,SWUnitrates2,2,FALSE),0)) -> 0 | K15: 5114396.55 | M15: =IF(L15="",1,VLOOKUP(L15,SWsitecond,2,FALSE)) -> 1 | N15: =IF(K15="","",K15*M15) -> 5114396.55 | Q15: =IF(O15="",'Unit Rates - Land'!landcst,IF($D$8="Landuse",VLOOKUP(O15,LAndcost3,2,FALSE),IF($D$8="Location",VLOOKUP(O15,Landcost2,2,FALSE),"Error"))) -> 0 | R15: =IF(Q15="",0,Q15*10000*P15) -> 0 | S15: 2016 | T15: =IFERROR(('General Input Sheet'!$G$38/(VLOOKUP(S15,'General Input Sheet'!$E$38:$G$44,3,FALSE))),1) -> 1 | U15: =IFERROR(T15*(R15+N15),0) -> 5114396.55 | V15: y | BA15: =IF(V15="y",BA$14,IF(AND(V15>0,V15<=1),V15*BA$14,"")) -> 258.8018953 | BB15: =IF(W15="y",BB$14,IF(AND(W15>0,W15<=1),W15*BB$14,"")) ->  | CE15: =SUM(BA15:CD15) -> 258.8018953 | CG15: =IF(BA15="","",(BA15/$CE15)*$U15) -> 5114396.55 | CW15: =IF(BQ15="","",(BQ15/$CE15)*$U15) ->  | DK15: =IF(SUM(CG15:DJ15)=U15,"","ERROR") -> 
D16: Stormwater pipes | F16: Inglewood | J16: 0 | K16: 393308.69 | M16: 1 | N16: =IF(K16="","",K16*M16) -> 393308.69 | Q16: =IF(O16="",'Unit Rates - Land'!landcst,IF($D$8="Landuse",VLOOKUP(O16,LAndcost3,2,FALSE),IF($D$8="Location",VLOOKUP(O16,Landcost2,2,FALSE),"Error"))) -> 0 | R16: =IF(Q16="",0,Q16*10000*P16) -> 0 | S16: 2016 | T16: =IFERROR(('General Input Sheet'!$G$38/(VLOOKUP(S16,'General Input Sheet'!$E$38:$G$44,3,FALSE))),1) -> 1 | U16: =IFERROR(T16*(R16+N16),0) -> 393308.69 | X16: y | BA16: =IF(V16="y",BA$14,IF(AND(V16>0,V16<=1),V16*BA$14,"")) ->  | BC16: 45.81792872 | CE16: =SUM(BA16:CD16) -> 45.81792872 | CI16: 393308.69 | DK16: =IF(SUM(CG16:DJ16)=U16,"","ERROR") -> 
D17: Stormwater pipes | F17: Texas | J17: 0 | K17: 66859.63 | M17: 1 | N17: 66859.63 | Q17: =IF(O17="",'Unit Rates - Land'!landcst,IF($D$8="Landuse",VLOOKUP(O17,LAndcost3,2,FALSE),IF($D$8="Location",VLOOKUP(O17,Landcost2,2,FALSE),"Error"))) -> 0 | R17: =IF(Q17="",0,Q17*10000*P17) -> 0 | S17: 2016 | T17: =IFERROR(('General Input Sheet'!$G$38/(VLOOKUP(S17,'General Input Sheet'!$E$38:$G$44,3,FALSE))),1) -> 1 | U17: 66859.63 | W17: y | BB17: 58.57186474 | CE17: =SUM(BA17:CD17) -> 58.57186474 | CH17: 66859.63 | DK17: =IF(SUM(CG17:DJ17)=U17,"","ERROR") -> 
J18: 0 | K18: =IFERROR(J18*H18,0) -> 0 | M18: 1 | N18: 0 | Q18: =IF(O18="",'Unit Rates - Land'!landcst,IF($D$8="Landuse",VLOOKUP(O18,LAndcost3,2,FALSE),IF($D$8="Location",VLOOKUP(O18,Landcost2,2,FALSE),"Error"))) -> 0 | R18: 0 | T18: =IFERROR(('General Input Sheet'!$G$38/(VLOOKUP(S18,'General Input Sheet'!$E$38:$G$44,3,FALSE))),1) -> 1 | U18: 0 | CE18: =SUM(BA18:CD18) -> 0 | DK18: =IF(SUM(CG18:DJ18)=U18,"","ERROR") -> 
J19: 0 | K19: 0 | M19: 1 | N19: 0 | Q19: =IF(O19="",'Unit Rates - Land'!landcst,IF($D$8="Landuse",VLOOKUP(O19,LAndcost3,2,FALSE),IF($D$8="Location",VLOOKUP(O19,Landcost2,2,FALSE),"Error"))) -> 0 | R19: 0 | T19: =IFERROR(('General Input Sheet'!$G$38/(VLOOKUP(S19,'General Input Sheet'!$E$38:$G$44,3,FALSE))),1) -> 1 | U19: 0 | CE19: 0
J20: 0 | K20: 0 | M20: 1 | N20: 0 | Q20: =IF(O20="",'Unit Rates - Land'!landcst,IF($D$8="Landuse",VLOOKUP(O20,LAndcost3,2,FALSE),IF($D$8="Location",VLOOKUP(O20,Landcost2,2,FALSE),"Error"))) -> 0 | R20: 0 | T20: =IFERROR(('General Input Sheet'!$G$38/(VLOOKUP(S20,'General Input Sheet'!$E$38:$G$44,3,FALSE))),1) -> 1 | U20: 0 | CE20: 0
J21: 0 | K21: 0 | M21: 1 | N21: 0 | Q21: =IF(O21="",'Unit Rates - Land'!landcst,IF($D$8="Landuse",VLOOKUP(O21,LAndcost3,2,FALSE),IF($D$8="Location",VLOOKUP(O21,Landcost2,2,FALSE),"Error"))) -> 0 | R21: 0 | T21: =IFERROR(('General Input Sheet'!$G$38/(VLOOKUP(S21,'General Input Sheet'!$E$38:$G$44,3,FALSE))),1) -> 1 | U21: 0 | CE21: 0
J22: 0 | K22: 0 | M22: 1 | N22: 0 | Q22: =IF(O22="",'Unit Rates - Land'!landcst,IF($D$8="Landuse",VLOOKUP(O22,LAndcost3,2,FALSE),IF($D$8="Location",VLOOKUP(O22,Landcost2,2,FALSE),"Error"))) -> 0 | R22: 0 | T22: =IFERROR(('General Input Sheet'!$G$38/(VLOOKUP(S22,'General Input Sheet'!$E$38:$G$44,3,FALSE))),1) -> 1 | U22: 0 | CE22: 0
J23: 0 | K23: 0 | M23: 1 | N23: 0 | Q23: =IF(O23="",'Unit Rates - Land'!landcst,IF($D$8="Landuse",VLOOKUP(O23,LAndcost3,2,FALSE),IF($D$8="Location",VLOOKUP(O23,Landcost2,2,FALSE),"Error"))) -> 0 | R23: 0 | T23: =IFERROR(('General Input Sheet'!$G$38/(VLOOKUP(S23,'General Input Sheet'!$E$38:$G$44,3,FALSE))),1) -> 1 | U23: 0 | BY23: =IF(AT23="y",BY$14,IF(AND(AT23>0,AT23<=1),AT23*BY$14,"")) ->  | CE23: 0
J24: 0 | K24: 0 | M24: 1 | N24: 0 | Q24: =IF(O24="",'Unit Rates - Land'!landcst,IF($D$8="Landuse",VLOOKUP(O24,LAndcost3,2,FALSE),IF($D$8="Location",VLOOKUP(O24,Landcost2,2,FALSE),"Error"))) -> 0 | R24: 0 | T24: =IFERROR(('General Input Sheet'!$G$38/(VLOOKUP(S24,'General Input Sheet'!$E$38:$G$44,3,FALSE))),1) -> 1 | U24: 0 | BQ24: =IF(AL24="y",BQ$14,IF(AND(AL24>0,AL24<=1),AL24*BQ$14,"")) ->  | CE24: 0
J25: 0 | K25: 0 | M25: 1 | N25: 0 | Q25: =IF(O25="",'Unit Rates - Land'!landcst,IF($D$8="Landuse",VLOOKUP(O25,LAndcost3,2,FALSE),IF($D$8="Location",VLOOKUP(O25,Landcost2,2,FALSE),"Error"))) -> 0 | R25: 0 | T25: =IFERROR(('General Input Sheet'!$G$38/(VLOOKUP(S25,'General Input Sheet'!$E$38:$G$44,3,FALSE))),1) -> 1 | U25: 0 | CE25: 0
J26: 0 | K26: 0 | M26: 1 | N26: 0 | Q26: =IF(O26="",'Unit Rates - Land'!landcst,IF($D$8="Landuse",VLOOKUP(O26,LAndcost3,2,FALSE),IF($D$8="Location",VLOOKUP(O26,Landcost2,2,FALSE),"Error"))) -> 0 | R26: 0 | T26: =IFERROR(('General Input Sheet'!$G$38/(VLOOKUP(S26,'General Input Sheet'!$E$38:$G$44,3,FALSE))),1) -> 1 | U26: 0 | CE26: 0
J27: 0 | K27: 0 | M27: 1 | N27: 0 | Q27: =IF(O27="",'Unit Rates - Land'!landcst,IF($D$8="Landuse",VLOOKUP(O27,LAndcost3,2,FALSE),IF($D$8="Location",VLOOKUP(O27,Landcost2,2,FALSE),"Error"))) -> 0 | R27: 0 | T27: =IFERROR(('General Input Sheet'!$G$38/(VLOOKUP(S27,'General Input Sheet'!$E$38:$G$44,3,FALSE))),1) -> 1 | U27: 0 | CE27: 0
J28: 0 | K28: 0 | M28: 1 | N28: 0 | Q28: =IF(O28="",'Unit Rates - Land'!landcst,IF($D$8="Landuse",VLOOKUP(O28,LAndcost3,2,FALSE),IF($D$8="Location",VLOOKUP(O28,Landcost2,2,FALSE),"Error"))) -> 0 | R28: 0 | T28: =IFERROR(('General Input Sheet'!$G$38/(VLOOKUP(S28,'General Input Sheet'!$E$38:$G$44,3,FALSE))),1) -> 1 | U28: 0 | CE28: 0
J29: 0 | K29: 0 | M29: 1 | N29: 0 | Q29: =IF(O29="",'Unit Rates - Land'!landcst,IF($D$8="Landuse",VLOOKUP(O29,LAndcost3,2,FALSE),IF($D$8="Location",VLOOKUP(O29,Landcost2,2,FALSE),"Error"))) -> 0 | R29: 0 | T29: =IFERROR(('General Input Sheet'!$G$38/(VLOOKUP(S29,'General Input Sheet'!$E$38:$G$44,3,FALSE))),1) -> 1 | U29: 0 | CE29: 0
J30: 0 | K30: 0 | M30: 1 | N30: 0 | Q30: =IF(O30="",'Unit Rates - Land'!landcst,IF($D$8="Landuse",VLOOKUP(O30,LAndcost3,2,FALSE),IF($D$8="Location",VLOOKUP(O30,Landcost2,2,FALSE),"Error"))) -> 0 | R30: 0 | T30: =IFERROR(('General Input Sheet'!$G$38/(VLOOKUP(S30,'General Input Sheet'!$E$38:$G$44,3,FALSE))),1) -> 1 | U30: 0 | CE30: 0 | CV30: =IF(BP30="","",(BP30/$CE30)*$U30) -> 
J31: 0 | K31: 0 | M31: 1 | N31: 0 | Q31: =IF(O31="",'Unit Rates - Land'!landcst,IF($D$8="Landuse",VLOOKUP(O31,LAndcost3,2,FALSE),IF($D$8="Location",VLOOKUP(O31,Landcost2,2,FALSE),"Error"))) -> 0 | R31: 0 | T31: =IFERROR(('General Input Sheet'!$G$38/(VLOOKUP(S31,'General Input Sheet'!$E$38:$G$44,3,FALSE))),1) -> 1 | U31: 0 | CE31: 0 | CG31: =IF(BA31="","",(BA31/$CE31)*$U31) -> 
J32: 0 | K32: 0 | M32: 1 | N32: 0 | Q32: =IF(O32="",'Unit Rates - Land'!landcst,IF($D$8="Landuse",VLOOKUP(O32,LAndcost3,2,FALSE),IF($D$8="Location",VLOOKUP(O32,Landcost2,2,FALSE),"Error"))) -> 0 | R32: 0 | T32: =IFERROR(('General Input Sheet'!$G$38/(VLOOKUP(S32,'General Input Sheet'!$E$38:$G$44,3,FALSE))),1) -> 1 | U32: 0 | BA32: =IF(V32="y",BA$14,IF(AND(V32>0,V32<=1),V32*BA$14,"")) ->  | CE32: 0
J33: 0 | K33: 0 | M33: 1 | N33: 0 | Q33: =IF(O33="",'Unit Rates - Land'!landcst,IF($D$8="Landuse",VLOOKUP(O33,LAndcost3,2,FALSE),IF($D$8="Location",VLOOKUP(O33,Landcost2,2,FALSE),"Error"))) -> 0 | R33: 0 | T33: =IFERROR(('General Input Sheet'!$G$38/(VLOOKUP(S33,'General Input Sheet'!$E$38:$G$44,3,FALSE))),1) -> 1 | U33: 0 | CE33: 0
J34: 0 | K34: 0 | M34: 1 | N34: 0 | Q34: =IF(O34="",'Unit Rates - Land'!landcst,IF($D$8="Landuse",VLOOKUP(O34,LAndcost3,2,FALSE),IF($D$8="Location",VLOOKUP(O34,Landcost2,2,FALSE),"Error"))) -> 0 | R34: 0 | T34: =IFERROR(('General Input Sheet'!$G$38/(VLOOKUP(S34,'General Input Sheet'!$E$38:$G$44,3,FALSE))),1) -> 1 | U34: 0 | CE34: 0
J35: 0 | K35: 0 | M35: 1 | N35: 0 | Q35: =IF(O35="",'Unit Rates - Land'!landcst,IF($D$8="Landuse",VLOOKUP(O35,LAndcost3,2,FALSE),IF($D$8="Location",VLOOKUP(O35,Landcost2,2,FALSE),"Error"))) -> 0 | R35: 0 | T35: =IFERROR(('General Input Sheet'!$G$38/(VLOOKUP(S35,'General Input Sheet'!$E$38:$G$44,3,FALSE))),1) -> 1 | U35: 0 | CE35: 0
J36: 0 | K36: 0 | M36: 1 | N36: 0 | Q36: =IF(O36="",'Unit Rates - Land'!landcst,IF($D$8="Landuse",VLOOKUP(O36,LAndcost3,2,FALSE),IF($D$8="Location",VLOOKUP(O36,Landcost2,2,FALSE),"Error"))) -> 0 | R36: 0 | T36: =IFERROR(('General Input Sheet'!$G$38/(VLOOKUP(S36,'General Input Sheet'!$E$38:$G$44,3,FALSE))),1) -> 1 | U36: 0 | CE36: 0
J37: 0 | K37: 0 | M37: 1 | N37: 0 | Q37: =IF(O37="",'Unit Rates - Land'!landcst,IF($D$8="Landuse",VLOOKUP(O37,LAndcost3,2,FALSE),IF($D$8="Location",VLOOKUP(O37,Landcost2,2,FALSE),"Error"))) -> 0 | R37: 0 | T37: =IFERROR(('General Input Sheet'!$G$38/(VLOOKUP(S37,'General Input Sheet'!$E$38:$G$44,3,FALSE))),1) -> 1 | U37: 0 | CE37: 0
J38: 0 | K38: 0 | M38: 1 | N38: 0 | Q38: =IF(O38="",'Unit Rates - Land'!landcst,IF($D$8="Landuse",VLOOKUP(O38,LAndcost3,2,FALSE),IF($D$8="Location",VLOOKUP(O38,Landcost2,2,FALSE),"Error"))) -> 0 | R38: 0 | T38: =IFERROR(('General Input Sheet'!$G$38/(VLOOKUP(S38,'General Input Sheet'!$E$38:$G$44,3,FALSE))),1) -> 1 | U38: 0 | CE38: 0
J39: 0 | K39: 0 | M39: 1 | N39: 0 | Q39: =IF(O39="",'Unit Rates - Land'!landcst,IF($D$8="Landuse",VLOOKUP(O39,LAndcost3,2,FALSE),IF($D$8="Location",VLOOKUP(O39,Landcost2,2,FALSE),"Error"))) -> 0 | R39: 0 | T39: =IFERROR(('General Input Sheet'!$G$38/(VLOOKUP(S39,'General Input Sheet'!$E$38:$G$44,3,FALSE))),1) -> 1 | U39: 0 | CE39: 0
J40: 0 | K40: 0 | M40: 1 | N40: 0 | Q40: =IF(O40="",'Unit Rates - Land'!landcst,IF($D$8="Landuse",VLOOKUP(O40,LAndcost3,2,FALSE),IF($D$8="Location",VLOOKUP(O40,Landcost2,2,FALSE),"Error"))) -> 0 | R40: 0 | T40: =IFERROR(('General Input Sheet'!$G$38/(VLOOKUP(S40,'General Input Sheet'!$E$38:$G$44,3,FALSE))),1) -> 1 | U40: 0 | CE40: 0
J41: 0 | K41: 0 | M41: 1 | N41: 0 | Q41: =IF(O41="",'Unit Rates - Land'!landcst,IF($D$8="Landuse",VLOOKUP(O41,LAndcost3,2,FALSE),IF($D$8="Location",VLOOKUP(O41,Landcost2,2,FALSE),"Error"))) -> 0 | R41: 0 | T41: =IFERROR(('General Input Sheet'!$G$38/(VLOOKUP(S41,'General Input Sheet'!$E$38:$G$44,3,FALSE))),1) -> 1 | U41: 0 | CE41: 0
J42: 0 | K42: 0 | M42: 1 | N42: 0 | Q42: =IF(O42="",'Unit Rates - Land'!landcst,IF($D$8="Landuse",VLOOKUP(O42,LAndcost3,2,FALSE),IF($D$8="Location",VLOOKUP(O42,Landcost2,2,FALSE),"Error"))) -> 0 | R42: 0 | T42: =IFERROR(('General Input Sheet'!$G$38/(VLOOKUP(S42,'General Input Sheet'!$E$38:$G$44,3,FALSE))),1) -> 1 | U42: 0 | CE42: 0
J43: 0 | K43: 0 | M43: 1 | N43: 0 | Q43: =IF(O43="",'Unit Rates - Land'!landcst,IF($D$8="Landuse",VLOOKUP(O43,LAndcost3,2,FALSE),IF($D$8="Location",VLOOKUP(O43,Landcost2,2,FALSE),"Error"))) -> 0 | R43: 0 | T43: =IFERROR(('General Input Sheet'!$G$38/(VLOOKUP(S43,'General Input Sheet'!$E$38:$G$44,3,FALSE))),1) -> 1 | U43: 0 | CE43: 0
J44: 0 | K44: 0 | M44: 1 | N44: 0 | Q44: =IF(O44="",'Unit Rates - Land'!landcst,IF($D$8="Landuse",VLOOKUP(O44,LAndcost3,2,FALSE),IF($D$8="Location",VLOOKUP(O44,Landcost2,2,FALSE),"Error"))) -> 0 | R44: 0 | T44: =IFERROR(('General Input Sheet'!$G$38/(VLOOKUP(S44,'General Input Sheet'!$E$38:$G$44,3,FALSE))),1) -> 1 | U44: 0 | CE44: 0
J45: 0 | K45: 0 | M45: 1 | N45: 0 | Q45: =IF(O45="",'Unit Rates - Land'!landcst,IF($D$8="Landuse",VLOOKUP(O45,LAndcost3,2,FALSE),IF($D$8="Location",VLOOKUP(O45,Landcost2,2,FALSE),"Error"))) -> 0 | R45: 0 | T45: =IFERROR(('General Input Sheet'!$G$38/(VLOOKUP(S45,'General Input Sheet'!$E$38:$G$44,3,FALSE))),1) -> 1 | U45: 0 | CE45: 0
J46: 0 | K46: 0 | M46: 1 | N46: 0 | Q46: =IF(O46="",'Unit Rates - Land'!landcst,IF($D$8="Landuse",VLOOKUP(O46,LAndcost3,2,FALSE),IF($D$8="Location",VLOOKUP(O46,Landcost2,2,FALSE),"Error"))) -> 0 | R46: 0 | T46: =IFERROR(('General Input Sheet'!$G$38/(VLOOKUP(S46,'General Input Sheet'!$E$38:$G$44,3,FALSE))),1) -> 1 | U46: 0 | CE46: 0
J47: 0 | K47: 0 | M47: 1 | N47: 0 | Q47: =IF(O47="",'Unit Rates - Land'!landcst,IF($D$8="Landuse",VLOOKUP(O47,LAndcost3,2,FALSE),IF($D$8="Location",VLOOKUP(O47,Landcost2,2,FALSE),"Error"))) -> 0 | R47: 0 | T47: =IFERROR(('General Input Sheet'!$G$38/(VLOOKUP(S47,'General Input Sheet'!$E$38:$G$44,3,FALSE))),1) -> 1 | U47: 0 | BP47: =IF(AK47="y",BP$14,IF(AND(AK47>0,AK47<=1),AK47*BP$14,"")) ->  | CE47: 0 | DJ47: =IF(CD47="","",(CD47/$CE47)*$U47) -> 
J48: 0 | K48: 0 | M48: 1 | N48: 0 | Q48: =IF(O48="",'Unit Rates - Land'!landcst,IF($D$8="Landuse",VLOOKUP(O48,LAndcost3,2,FALSE),IF($D$8="Location",VLOOKUP(O48,Landcost2,2,FALSE),"Error"))) -> 0 | R48: 0 | T48: =IFERROR(('General Input Sheet'!$G$38/(VLOOKUP(S48,'General Input Sheet'!$E$38:$G$44,3,FALSE))),1) -> 1 | U48: 0 | BA48: =IF(V48="y",BA$14,IF(AND(V48>0,V48<=1),V48*BA$14,"")) ->  | CE48: 0 | CG48: =IF(BA48="","",(BA48/$CE48)*$U48) ->  | CW48: =IF(BQ48="","",(BQ48/$CE48)*$U48) -> 
J49: 0 | K49: 0 | M49: 1 | N49: 0 | Q49: =IF(O49="",'Unit Rates - Land'!landcst,IF($D$8="Landuse",VLOOKUP(O49,LAndcost3,2,FALSE),IF($D$8="Location",VLOOKUP(O49,Landcost2,2,FALSE),"Error"))) -> 0 | R49: 0 | T49: =IFERROR(('General Input Sheet'!$G$38/(VLOOKUP(S49,'General Input Sheet'!$E$38:$G$44,3,FALSE))),1) -> 1 | U49: 0 | CE49: 0
J50: 0 | K50: 0 | M50: 1 | N50: 0 | Q50: =IF(O50="",'Unit Rates - Land'!landcst,IF($D$8="Landuse",VLOOKUP(O50,LAndcost3,2,FALSE),IF($D$8="Location",VLOOKUP(O50,Landcost2,2,FALSE),"Error"))) -> 0 | R50: 0 | T50: =IFERROR(('General Input Sheet'!$G$38/(VLOOKUP(S50,'General Input Sheet'!$E$38:$G$44,3,FALSE))),1) -> 1 | U50: 0 | CE50: 0
J51: 0 | K51: 0 | M51: 1 | N51: 0 | Q51: =IF(O51="",'Unit Rates - Land'!landcst,IF($D$8="Landuse",VLOOKUP(O51,LAndcost3,2,FALSE),IF($D$8="Location",VLOOKUP(O51,Landcost2,2,FALSE),"Error"))) -> 0 | R51: 0 | T51: =IFERROR(('General Input Sheet'!$G$38/(VLOOKUP(S51,'General Input Sheet'!$E$38:$G$44,3,FALSE))),1) -> 1 | U51: 0 | CE51: 0
J52: 0 | K52: 0 | M52: 1 | N52: 0 | Q52: =IF(O52="",'Unit Rates - Land'!landcst,IF($D$8="Landuse",VLOOKUP(O52,LAndcost3,2,FALSE),IF($D$8="Location",VLOOKUP(O52,Landcost2,2,FALSE),"Error"))) -> 0 | R52: 0 | T52: =IFERROR(('General Input Sheet'!$G$38/(VLOOKUP(S52,'General Input Sheet'!$E$38:$G$44,3,FALSE))),1) -> 1 | U52: 0 | CE52: 0
J53: 0 | K53: 0 | M53: 1 | N53: 0 | Q53: =IF(O53="",'Unit Rates - Land'!landcst,IF($D$8="Landuse",VLOOKUP(O53,LAndcost3,2,FALSE),IF($D$8="Location",VLOOKUP(O53,Landcost2,2,FALSE),"Error"))) -> 0 | R53: 0 | T53: =IFERROR(('General Input Sheet'!$G$38/(VLOOKUP(S53,'General Input Sheet'!$E$38:$G$44,3,FALSE))),1) -> 1 | U53: 0 | CE53: 0
J54: 0 | K54: 0 | M54: 1 | N54: 0 | Q54: =IF(O54="",'Unit Rates - Land'!landcst,IF($D$8="Landuse",VLOOKUP(O54,LAndcost3,2,FALSE),IF($D$8="Location",VLOOKUP(O54,Landcost2,2,FALSE),"Error"))) -> 0 | R54: 0 | T54: =IFERROR(('General Input Sheet'!$G$38/(VLOOKUP(S54,'General Input Sheet'!$E$38:$G$44,3,FALSE))),1) -> 1 | U54: 0 | CE54: 0
J55: 0 | K55: 0 | M55: 1 | N55: 0 | Q55: =IF(O55="",'Unit Rates - Land'!landcst,IF($D$8="Landuse",VLOOKUP(O55,LAndcost3,2,FALSE),IF($D$8="Location",VLOOKUP(O55,Landcost2,2,FALSE),"Error"))) -> 0 | R55: 0 | T55: =IFERROR(('General Input Sheet'!$G$38/(VLOOKUP(S55,'General Input Sheet'!$E$38:$G$44,3,FALSE))),1) -> 1 | U55: 0 | BX55: =IF(AS55="y",BX$14,IF(AND(AS55>0,AS55<=1),AS55*BX$14,"")) ->  | CE55: 0
J56: 0 | K56: 0 | M56: 1 | N56: 0 | Q56: =IF(O56="",'Unit Rates - Land'!landcst,IF($D$8="Landuse",VLOOKUP(O56,LAndcost3,2,FALSE),IF($D$8="Location",VLOOKUP(O56,Landcost2,2,FALSE),"Error"))) -> 0 | R56: 0 | T56: =IFERROR(('General Input Sheet'!$G$38/(VLOOKUP(S56,'General Input Sheet'!$E$38:$G$44,3,FALSE))),1) -> 1 | U56: 0 | CE56: 0
J57: 0 | K57: 0 | M57: 1 | N57: 0 | Q57: =IF(O57="",'Unit Rates - Land'!landcst,IF($D$8="Landuse",VLOOKUP(O57,LAndcost3,2,FALSE),IF($D$8="Location",VLOOKUP(O57,Landcost2,2,FALSE),"Error"))) -> 0 | R57: 0 | T57: =IFERROR(('General Input Sheet'!$G$38/(VLOOKUP(S57,'General Input Sheet'!$E$38:$G$44,3,FALSE))),1) -> 1 | U57: 0 | CE57: 0
J58: 0 | K58: 0 | M58: 1 | N58: 0 | Q58: =IF(O58="",'Unit Rates - Land'!landcst,IF($D$8="Landuse",VLOOKUP(O58,LAndcost3,2,FALSE),IF($D$8="Location",VLOOKUP(O58,Landcost2,2,FALSE),"Error"))) -> 0 | R58: 0 | T58: =IFERROR(('General Input Sheet'!$G$38/(VLOOKUP(S58,'General Input Sheet'!$E$38:$G$44,3,FALSE))),1) -> 1 | U58: 0 | CE58: 0
J59: 0 | K59: 0 | M59: 1 | N59: 0 | Q59: =IF(O59="",'Unit Rates - Land'!landcst,IF($D$8="Landuse",VLOOKUP(O59,LAndcost3,2,FALSE),IF($D$8="Location",VLOOKUP(O59,Landcost2,2,FALSE),"Error"))) -> 0 | R59: 0 | T59: =IFERROR(('General Input Sheet'!$G$38/(VLOOKUP(S59,'General Input Sheet'!$E$38:$G$44,3,FALSE))),1) -> 1 | U59: 0 | CE59: 0
J60: 0 | K60: 0 | M60: 1 | N60: 0 | Q60: =IF(O60="",'Unit Rates - Land'!landcst,IF($D$8="Landuse",VLOOKUP(O60,LAndcost3,2,FALSE),IF($D$8="Location",VLOOKUP(O60,Landcost2,2,FALSE),"Error"))) -> 0 | R60: 0 | T60: =IFERROR(('General Input Sheet'!$G$38/(VLOOKUP(S60,'General Input Sheet'!$E$38:$G$44,3,FALSE))),1) -> 1 | U60: 0 | CE60: 0
J61: 0 | K61: 0 | M61: 1 | N61: 0 | Q61: =IF(O61="",'Unit Rates - Land'!landcst,IF($D$8="Landuse",VLOOKUP(O61,LAndcost3,2,FALSE),IF($D$8="Location",VLOOKUP(O61,Landcost2,2,FALSE),"Error"))) -> 0 | R61: 0 | T61: =IFERROR(('General Input Sheet'!$G$38/(VLOOKUP(S61,'General Input Sheet'!$E$38:$G$44,3,FALSE))),1) -> 1 | U61: 0 | CE61: 0
J62: 0 | K62: 0 | M62: 1 | N62: 0 | Q62: =IF(O62="",'Unit Rates - Land'!landcst,IF($D$8="Landuse",VLOOKUP(O62,LAndcost3,2,FALSE),IF($D$8="Location",VLOOKUP(O62,Landcost2,2,FALSE),"Error"))) -> 0 | R62: 0 | T62: =IFERROR(('General Input Sheet'!$G$38/(VLOOKUP(S62,'General Input Sheet'!$E$38:$G$44,3,FALSE))),1) -> 1 | U62: 0 | CE62: 0
J63: 0 | K63: 0 | M63: 1 | N63: 0 | Q63: =IF(O63="",'Unit Rates - Land'!landcst,IF($D$8="Landuse",VLOOKUP(O63,LAndcost3,2,FALSE),IF($D$8="Location",VLOOKUP(O63,Landcost2,2,FALSE),"Error"))) -> 0 | R63: 0 | T63: =IFERROR(('General Input Sheet'!$G$38/(VLOOKUP(S63,'General Input Sheet'!$E$38:$G$44,3,FALSE))),1) -> 1 | U63: 0 | CE63: 0 | CV63: =IF(BP63="","",(BP63/$CE63)*$U63) -> 
J64: 0 | K64: 0 | M64: 1 | N64: 0 | Q64: =IF(O64="",'Unit Rates - Land'!landcst,IF($D$8="Landuse",VLOOKUP(O64,LAndcost3,2,FALSE),IF($D$8="Location",VLOOKUP(O64,Landcost2,2,FALSE),"Error"))) -> 0 | R64: 0 | T64: =IFERROR(('General Input Sheet'!$G$38/(VLOOKUP(S64,'General Input Sheet'!$E$38:$G$44,3,FALSE))),1) -> 1 | U64: 0 | CE64: 0 | CG64: =IF(BA64="","",(BA64/$CE64)*$U64) -> 
J65: 0 | K65: 0 | M65: 1 | N65: 0 | Q65: =IF(O65="",'Unit Rates - Land'!landcst,IF($D$8="Landuse",VLOOKUP(O65,LAndcost3,2,FALSE),IF($D$8="Location",VLOOKUP(O65,Landcost2,2,FALSE),"Error"))) -> 0 | R65: 0 | T65: =IFERROR(('General Input Sheet'!$G$38/(VLOOKUP(S65,'General Input Sheet'!$E$38:$G$44,3,FALSE))),1) -> 1 | U65: 0 | BA65: =IF(V65="y",BA$14,IF(AND(V65>0,V65<=1),V65*BA$14,"")) ->  | CB65: =IF(AW65="y",CB$14,IF(AND(AW65>0,AW65<=1),AW65*CB$14,"")) ->  | CE65: 0
J66: 0 | K66: 0 | M66: 1 | N66: 0 | Q66: =IF(O66="",'Unit Rates - Land'!landcst,IF($D$8="Landuse",VLOOKUP(O66,LAndcost3,2,FALSE),IF($D$8="Location",VLOOKUP(O66,Landcost2,2,FALSE),"Error"))) -> 0 | R66: 0 | T66: =IFERROR(('General Input Sheet'!$G$38/(VLOOKUP(S66,'General Input Sheet'!$E$38:$G$44,3,FALSE))),1) -> 1 | U66: 0 | CE66: 0
J67: 0 | K67: 0 | M67: 1 | N67: 0 | Q67: =IF(O67="",'Unit Rates - Land'!landcst,IF($D$8="Landuse",VLOOKUP(O67,LAndcost3,2,FALSE),IF($D$8="Location",VLOOKUP(O67,Landcost2,2,FALSE),"Error"))) -> 0 | R67: 0 | T67: =IFERROR(('General Input Sheet'!$G$38/(VLOOKUP(S67,'General Input Sheet'!$E$38:$G$44,3,FALSE))),1) -> 1 | U67: 0 | CE67: 0 | DE67: =IF(BY67="","",(BY67/$CE67)*$U67) -> 
J68: 0 | K68: 0 | M68: 1 | N68: 0 | Q68: =IF(O68="",'Unit Rates - Land'!landcst,IF($D$8="Landuse",VLOOKUP(O68,LAndcost3,2,FALSE),IF($D$8="Location",VLOOKUP(O68,Landcost2,2,FALSE),"Error"))) -> 0 | R68: 0 | T68: =IFERROR(('General Input Sheet'!$G$38/(VLOOKUP(S68,'General Input Sheet'!$E$38:$G$44,3,FALSE))),1) -> 1 | U68: 0 | CE68: 0
J69: 0 | K69: 0 | M69: 1 | N69: 0 | Q69: =IF(O69="",'Unit Rates - Land'!landcst,IF($D$8="Landuse",VLOOKUP(O69,LAndcost3,2,FALSE),IF($D$8="Location",VLOOKUP(O69,Landcost2,2,FALSE),"Error"))) -> 0 | R69: 0 | T69: =IFERROR(('General Input Sheet'!$G$38/(VLOOKUP(S69,'General Input Sheet'!$E$38:$G$44,3,FALSE))),1) -> 1 | U69: 0 | CE69: 0
J70: 0 | K70: 0 | M70: 1 | N70: 0 | Q70: =IF(O70="",'Unit Rates - Land'!landcst,IF($D$8="Landuse",VLOOKUP(O70,LAndcost3,2,FALSE),IF($D$8="Location",VLOOKUP(O70,Landcost2,2,FALSE),"Error"))) -> 0 | R70: 0 | T70: =IFERROR(('General Input Sheet'!$G$38/(VLOOKUP(S70,'General Input Sheet'!$E$38:$G$44,3,FALSE))),1) -> 1 | U70: 0 | CE70: 0
J71: 0 | K71: 0 | M71: 1 | N71: 0 | Q71: =IF(O71="",'Unit Rates - Land'!landcst,IF($D$8="Landuse",VLOOKUP(O71,LAndcost3,2,FALSE),IF($D$8="Location",VLOOKUP(O71,Landcost2,2,FALSE),"Error"))) -> 0 | R71: 0 | T71: =IFERROR(('General Input Sheet'!$G$38/(VLOOKUP(S71,'General Input Sheet'!$E$38:$G$44,3,FALSE))),1) -> 1 | U71: 0 | CE71: 0
J72: 0 | K72: 0 | M72: 1 | N72: 0 | Q72: =IF(O72="",'Unit Rates - Land'!landcst,IF($D$8="Landuse",VLOOKUP(O72,LAndcost3,2,FALSE),IF($D$8="Location",VLOOKUP(O72,Landcost2,2,FALSE),"Error"))) -> 0 | R72: 0 | T72: =IFERROR(('General Input Sheet'!$G$38/(VLOOKUP(S72,'General Input Sheet'!$E$38:$G$44,3,FALSE))),1) -> 1 | U72: 0 | CE72: 0
J73: 0 | K73: 0 | M73: 1 | N73: 0 | Q73: =IF(O73="",'Unit Rates - Land'!landcst,IF($D$8="Landuse",VLOOKUP(O73,LAndcost3,2,FALSE),IF($D$8="Location",VLOOKUP(O73,Landcost2,2,FALSE),"Error"))) -> 0 | R73: 0 | T73: =IFERROR(('General Input Sheet'!$G$38/(VLOOKUP(S73,'General Input Sheet'!$E$38:$G$44,3,FALSE))),1) -> 1 | U73: 0 | CE73: 0
J74: 0 | K74: 0 | M74: 1 | N74: 0 | Q74: =IF(O74="",'Unit Rates - Land'!landcst,IF($D$8="Landuse",VLOOKUP(O74,LAndcost3,2,FALSE),IF($D$8="Location",VLOOKUP(O74,Landcost2,2,FALSE),"Error"))) -> 0 | R74: 0 | T74: =IFERROR(('General Input Sheet'!$G$38/(VLOOKUP(S74,'General Input Sheet'!$E$38:$G$44,3,FALSE))),1) -> 1 | U74: 0 | CE74: 0
J75: 0 | K75: 0 | M75: 1 | N75: 0 | Q75: =IF(O75="",'Unit Rates - Land'!landcst,IF($D$8="Landuse",VLOOKUP(O75,LAndcost3,2,FALSE),IF($D$8="Location",VLOOKUP(O75,Landcost2,2,FALSE),"Error"))) -> 0 | R75: 0 | T75: =IFERROR(('General Input Sheet'!$G$38/(VLOOKUP(S75,'General Input Sheet'!$E$38:$G$44,3,FALSE))),1) -> 1 | U75: 0 | CE75: 0
J76: 0 | K76: 0 | M76: 1 | N76: 0 | Q76: =IF(O76="",'Unit Rates - Land'!landcst,IF($D$8="Landuse",VLOOKUP(O76,LAndcost3,2,FALSE),IF($D$8="Location",VLOOKUP(O76,Landcost2,2,FALSE),"Error"))) -> 0 | R76: 0 | T76: =IFERROR(('General Input Sheet'!$G$38/(VLOOKUP(S76,'General Input Sheet'!$E$38:$G$44,3,FALSE))),1) -> 1 | U76: 0 | CE76: 0
J77: 0 | K77: 0 | M77: 1 | N77: 0 | Q77: =IF(O77="",'Unit Rates - Land'!landcst,IF($D$8="Landuse",VLOOKUP(O77,LAndcost3,2,FALSE),IF($D$8="Location",VLOOKUP(O77,Landcost2,2,FALSE),"Error"))) -> 0 | R77: 0 | T77: =IFERROR(('General Input Sheet'!$G$38/(VLOOKUP(S77,'General Input Sheet'!$E$38:$G$44,3,FALSE))),1) -> 1 | U77: 0 | CE77: 0
J78: 0 | K78: 0 | M78: 1 | N78: 0 | Q78: =IF(O78="",'Unit Rates - Land'!landcst,IF($D$8="Landuse",VLOOKUP(O78,LAndcost3,2,FALSE),IF($D$8="Location",VLOOKUP(O78,Landcost2,2,FALSE),"Error"))) -> 0 | R78: 0 | T78: =IFERROR(('General Input Sheet'!$G$38/(VLOOKUP(S78,'General Input Sheet'!$E$38:$G$44,3,FALSE))),1) -> 1 | U78: 0 | CE78: 0
J79: =IF(G79=SWTYPE1,VLOOKUP(I79,SWUnitrates1,2,FALSE),IF(G79=SWTYPE2,VLOOKUP(I79,SWUnitrates2,2,FALSE),0)) -> 0 | K79: =IFERROR(J79*H79,0) -> 0 | M79: =IF(L79="",1,VLOOKUP(L79,SWsitecond,2,FALSE)) -> 1 | N79: 0 | Q79: =IF(O79="",'Unit Rates - Land'!landcst,IF($D$8="Landuse",VLOOKUP(O79,LAndcost3,2,FALSE),IF($D$8="Location",VLOOKUP(O79,Landcost2,2,FALSE),"Error"))) -> 0 | R79: 0 | T79: =IFERROR(('General Input Sheet'!$G$38/(VLOOKUP(S79,'General Input Sheet'!$E$38:$G$44,3,FALSE))),1) -> 1 | U79: 0 | CE79: 0
J80: 0 | K80: 0 | M80: 1 | N80: =IF(K80="","",K80*M80) -> 0 | Q80: =IF(O80="",'Unit Rates - Land'!landcst,IF($D$8="Landuse",VLOOKUP(O80,LAndcost3,2,FALSE),IF($D$8="Location",VLOOKUP(O80,Landcost2,2,FALSE),"Error"))) -> 0 | R80: 0 | T80: =IFERROR(('General Input Sheet'!$G$38/(VLOOKUP(S80,'General Input Sheet'!$E$38:$G$44,3,FALSE))),1) -> 1 | U80: =IFERROR(T80*(R80+N80),0) -> 0 | CE80: 0
J81: 0 | K81: 0 | M81: 1 | N81: 0 | Q81: =IF(O81="",'Unit Rates - Land'!landcst,IF($D$8="Landuse",VLOOKUP(O81,LAndcost3,2,FALSE),IF($D$8="Location",VLOOKUP(O81,Landcost2,2,FALSE),"Error"))) -> 0 | R81: =IF(Q81="",0,Q81*10000*P81) -> 0 | T81: =IFERROR(('General Input Sheet'!$G$38/(VLOOKUP(S81,'General Input Sheet'!$E$38:$G$44,3,FALSE))),1) -> 1 | U81: 0 | CE81: 0 | CG81: =IF(BA81="","",(BA81/$CE81)*$U81) -> 
J82: 0 | K82: 0 | M82: 1 | N82: 0 | Q82: =IF(O82="",'Unit Rates - Land'!landcst,IF($D$8="Landuse",VLOOKUP(O82,LAndcost3,2,FALSE),IF($D$8="Location",VLOOKUP(O82,Landcost2,2,FALSE),"Error"))) -> 0 | R82: 0 | T82: =IFERROR(('General Input Sheet'!$G$38/(VLOOKUP(S82,'General Input Sheet'!$E$38:$G$44,3,FALSE))),1) -> 1 | U82: 0 | BA82: =IF(V82="y",BA$14,IF(AND(V82>0,V82<=1),V82*BA$14,"")) ->  | CE82: =SUM(BA82:CD82) -> 0 | DK82: =IF(SUM(CG82:DJ82)=U82,"","ERROR") -> 
J83: 0 | K83: 0 | M83: 1 | N83: 0 | Q83: =IF(O83="",'Unit Rates - Land'!landcst,IF($D$8="Landuse",VLOOKUP(O83,LAndcost3,2,FALSE),IF($D$8="Location",VLOOKUP(O83,Landcost2,2,FALSE),"Error"))) -> 0 | R83: 0 | T83: =IFERROR(('General Input Sheet'!$G$38/(VLOOKUP(S83,'General Input Sheet'!$E$38:$G$44,3,FALSE))),1) -> 1 | U83: 0 | CE83: 0
J84: 0 | K84: 0 | M84: 1 | N84: 0 | Q84: =IF(O84="",'Unit Rates - Land'!landcst,IF($D$8="Landuse",VLOOKUP(O84,LAndcost3,2,FALSE),IF($D$8="Location",VLOOKUP(O84,Landcost2,2,FALSE),"Error"))) -> 0 | R84: 0 | T84: =IFERROR(('General Input Sheet'!$G$38/(VLOOKUP(S84,'General Input Sheet'!$E$38:$G$44,3,FALSE))),1) -> 1 | U84: 0 | CE84: 0
J85: 0 | K85: 0 | M85: 1 | N85: 0 | Q85: =IF(O85="",'Unit Rates - Land'!landcst,IF($D$8="Landuse",VLOOKUP(O85,LAndcost3,2,FALSE),IF($D$8="Location",VLOOKUP(O85,Landcost2,2,FALSE),"Error"))) -> 0 | R85: 0 | T85: =IFERROR(('General Input Sheet'!$G$38/(VLOOKUP(S85,'General Input Sheet'!$E$38:$G$44,3,FALSE))),1) -> 1 | U85: 0 | CE85: 0
J86: 0 | K86: 0 | M86: 1 | N86: 0 | Q86: =IF(O86="",'Unit Rates - Land'!landcst,IF($D$8="Landuse",VLOOKUP(O86,LAndcost3,2,FALSE),IF($D$8="Location",VLOOKUP(O86,Landcost2,2,FALSE),"Error"))) -> 0 | R86: 0 | T86: =IFERROR(('General Input Sheet'!$G$38/(VLOOKUP(S86,'General Input Sheet'!$E$38:$G$44,3,FALSE))),1) -> 1 | U86: 0 | BV86: =IF(AQ86="y",BV$14,IF(AND(AQ86>0,AQ86<=1),AQ86*BV$14,"")) ->  | CE86: 0
J87: 0 | K87: 0 | M87: 1 | N87: 0 | Q87: =IF(O87="",'Unit Rates - Land'!landcst,IF($D$8="Landuse",VLOOKUP(O87,LAndcost3,2,FALSE),IF($D$8="Location",VLOOKUP(O87,Landcost2,2,FALSE),"Error"))) -> 0 | R87: 0 | T87: =IFERROR(('General Input Sheet'!$G$38/(VLOOKUP(S87,'General Input Sheet'!$E$38:$G$44,3,FALSE))),1) -> 1 | U87: 0 | BQ87: =IF(AL87="y",BQ$14,IF(AND(AL87>0,AL87<=1),AL87*BQ$14,"")) ->  | CE87: 0
J88: 0 | K88: 0 | M88: 1 | N88: 0 | Q88: =IF(O88="",'Unit Rates - Land'!landcst,IF($D$8="Landuse",VLOOKUP(O88,LAndcost3,2,FALSE),IF($D$8="Location",VLOOKUP(O88,Landcost2,2,FALSE),"Error"))) -> 0 | R88: 0 | T88: =IFERROR(('General Input Sheet'!$G$38/(VLOOKUP(S88,'General Input Sheet'!$E$38:$G$44,3,FALSE))),1) -> 1 | U88: 0 | CE88: 0
J89: 0 | K89: 0 | M89: 1 | N89: 0 | Q89: =IF(O89="",'Unit Rates - Land'!landcst,IF($D$8="Landuse",VLOOKUP(O89,LAndcost3,2,FALSE),IF($D$8="Location",VLOOKUP(O89,Landcost2,2,FALSE),"Error"))) -> 0 | R89: 0 | T89: =IFERROR(('General Input Sheet'!$G$38/(VLOOKUP(S89,'General Input Sheet'!$E$38:$G$44,3,FALSE))),1) -> 1 | U89: 0 | CE89: 0
J90: 0 | K90: 0 | M90: 1 | N90: 0 | Q90: =IF(O90="",'Unit Rates - Land'!landcst,IF($D$8="Landuse",VLOOKUP(O90,LAndcost3,2,FALSE),IF($D$8="Location",VLOOKUP(O90,Landcost2,2,FALSE),"Error"))) -> 0 | R90: 0 | T90: =IFERROR(('General Input Sheet'!$G$38/(VLOOKUP(S90,'General Input Sheet'!$E$38:$G$44,3,FALSE))),1) -> 1 | U90: 0 | CE90: 0
J91: 0 | K91: 0 | M91: 1 | N91: 0 | Q91: =IF(O91="",'Unit Rates - Land'!landcst,IF($D$8="Landuse",VLOOKUP(O91,LAndcost3,2,FALSE),IF($D$8="Location",VLOOKUP(O91,Landcost2,2,FALSE),"Error"))) -> 0 | R91: 0 | T91: =IFERROR(('General Input Sheet'!$G$38/(VLOOKUP(S91,'General Input Sheet'!$E$38:$G$44,3,FALSE))),1) -> 1 | U91: 0 | CE91: 0
J92: 0 | K92: 0 | M92: 1 | N92: 0 | Q92: =IF(O92="",'Unit Rates - Land'!landcst,IF($D$8="Landuse",VLOOKUP(O92,LAndcost3,2,FALSE),IF($D$8="Location",VLOOKUP(O92,Landcost2,2,FALSE),"Error"))) -> 0 | R92: 0 | T92: =IFERROR(('General Input Sheet'!$G$38/(VLOOKUP(S92,'General Input Sheet'!$E$38:$G$44,3,FALSE))),1) -> 1 | U92: 0 | CE92: 0
J93: 0 | K93: 0 | M93: 1 | N93: 0 | Q93: =IF(O93="",'Unit Rates - Land'!landcst,IF($D$8="Landuse",VLOOKUP(O93,LAndcost3,2,FALSE),IF($D$8="Location",VLOOKUP(O93,Landcost2,2,FALSE),"Error"))) -> 0 | R93: 0 | T93: =IFERROR(('General Input Sheet'!$G$38/(VLOOKUP(S93,'General Input Sheet'!$E$38:$G$44,3,FALSE))),1) -> 1 | U93: 0 | CE93: 0
J94: 0 | K94: 0 | M94: 1 | N94: 0 | Q94: =IF(O94="",'Unit Rates - Land'!landcst,IF($D$8="Landuse",VLOOKUP(O94,LAndcost3,2,FALSE),IF($D$8="Location",VLOOKUP(O94,Landcost2,2,FALSE),"Error"))) -> 0 | R94: 0 | T94: =IFERROR(('General Input Sheet'!$G$38/(VLOOKUP(S94,'General Input Sheet'!$E$38:$G$44,3,FALSE))),1) -> 1 | U94: 0 | CE94: 0
J95: 0 | K95: 0 | M95: 1 | N95: 0 | Q95: =IF(O95="",'Unit Rates - Land'!landcst,IF($D$8="Landuse",VLOOKUP(O95,LAndcost3,2,FALSE),IF($D$8="Location",VLOOKUP(O95,Landcost2,2,FALSE),"Error"))) -> 0 | R95: 0 | T95: =IFERROR(('General Input Sheet'!$G$38/(VLOOKUP(S95,'General Input Sheet'!$E$38:$G$44,3,FALSE))),1) -> 1 | U95: 0 | CE95: 0 | DC95: =IF(BW95="","",(BW95/$CE95)*$U95) -> 
J96: 0 | K96: 0 | M96: 1 | N96: 0 | Q96: =IF(O96="",'Unit Rates - Land'!landcst,IF($D$8="Landuse",VLOOKUP(O96,LAndcost3,2,FALSE),IF($D$8="Location",VLOOKUP(O96,Landcost2,2,FALSE),"Error"))) -> 0 | R96: 0 | T96: =IFERROR(('General Input Sheet'!$G$38/(VLOOKUP(S96,'General Input Sheet'!$E$38:$G$44,3,FALSE))),1) -> 1 | U96: 0 | CE96: 0 | CW96: =IF(BQ96="","",(BQ96/$CE96)*$U96) -> 
J97: 0 | K97: 0 | M97: 1 | N97: 0 | Q97: =IF(O97="",'Unit Rates - Land'!landcst,IF($D$8="Landuse",VLOOKUP(O97,LAndcost3,2,FALSE),IF($D$8="Location",VLOOKUP(O97,Landcost2,2,FALSE),"Error"))) -> 0 | R97: 0 | T97: =IFERROR(('General Input Sheet'!$G$38/(VLOOKUP(S97,'General Input Sheet'!$E$38:$G$44,3,FALSE))),1) -> 1 | U97: 0 | CE97: 0 | CU97: =IF(BO97="","",(BO97/$CE97)*$U97) -> 
J98: 0 | K98: 0 | M98: 1 | N98: 0 | Q98: =IF(O98="",'Unit Rates - Land'!landcst,IF($D$8="Landuse",VLOOKUP(O98,LAndcost3,2,FALSE),IF($D$8="Location",VLOOKUP(O98,Landcost2,2,FALSE),"Error"))) -> 0 | R98: 0 | T98: =IFERROR(('General Input Sheet'!$G$38/(VLOOKUP(S98,'General Input Sheet'!$E$38:$G$44,3,FALSE))),1) -> 1 | U98: 0 | BE98: =IF(Z98="y",BE$14,IF(AND(Z98>0,Z98<=1),Z98*BE$14,"")) ->  | CE98: 0 | CG98: =IF(BA98="","",(BA98/$CE98)*$U98) -> 
J99: 0 | K99: 0 | M99: 1 | N99: 0 | Q99: =IF(O99="",'Unit Rates - Land'!landcst,IF($D$8="Landuse",VLOOKUP(O99,LAndcost3,2,FALSE),IF($D$8="Location",VLOOKUP(O99,Landcost2,2,FALSE),"Error"))) -> 0 | R99: 0 | T99: =IFERROR(('General Input Sheet'!$G$38/(VLOOKUP(S99,'General Input Sheet'!$E$38:$G$44,3,FALSE))),1) -> 1 | U99: 0 | BA99: =IF(V99="y",BA$14,IF(AND(V99>0,V99<=1),V99*BA$14,"")) ->  | CE99: 0
J100: 0 | K100: 0 | M100: 1 | N100: 0 | Q100: =IF(O100="",'Unit Rates - Land'!landcst,IF($D$8="Landuse",VLOOKUP(O100,LAndcost3,2,FALSE),IF($D$8="Location",VLOOKUP(O100,Landcost2,2,FALSE),"Error"))) -> 0 | R100: 0 | T100: =IFERROR(('General Input Sheet'!$G$38/(VLOOKUP(S100,'General Input Sheet'!$E$38:$G$44,3,FALSE))),1) -> 1 | U100: 0 | CE100: 0
J101: 0 | K101: 0 | M101: 1 | N101: 0 | Q101: =IF(O101="",'Unit Rates - Land'!landcst,IF($D$8="Landuse",VLOOKUP(O101,LAndcost3,2,FALSE),IF($D$8="Location",VLOOKUP(O101,Landcost2,2,FALSE),"Error"))) -> 0 | R101: 0 | T101: =IFERROR(('General Input Sheet'!$G$38/(VLOOKUP(S101,'General Input Sheet'!$E$38:$G$44,3,FALSE))),1) -> 1 | U101: 0 | CE101: 0
J102: 0 | K102: 0 | M102: 1 | N102: 0 | Q102: =IF(O102="",'Unit Rates - Land'!landcst,IF($D$8="Landuse",VLOOKUP(O102,LAndcost3,2,FALSE),IF($D$8="Location",VLOOKUP(O102,Landcost2,2,FALSE),"Error"))) -> 0 | R102: 0 | T102: =IFERROR(('General Input Sheet'!$G$38/(VLOOKUP(S102,'General Input Sheet'!$E$38:$G$44,3,FALSE))),1) -> 1 | U102: 0 | CE102: 0
J103: 0 | K103: 0 | M103: 1 | N103: 0 | Q103: =IF(O103="",'Unit Rates - Land'!landcst,IF($D$8="Landuse",VLOOKUP(O103,LAndcost3,2,FALSE),IF($D$8="Location",VLOOKUP(O103,Landcost2,2,FALSE),"Error"))) -> 0 | R103: 0 | T103: =IFERROR(('General Input Sheet'!$G$38/(VLOOKUP(S103,'General Input Sheet'!$E$38:$G$44,3,FALSE))),1) -> 1 | U103: 0 | CE103: 0
J104: 0 | K104: 0 | M104: 1 | N104: 0 | Q104: =IF(O104="",'Unit Rates - Land'!landcst,IF($D$8="Landuse",VLOOKUP(O104,LAndcost3,2,FALSE),IF($D$8="Location",VLOOKUP(O104,Landcost2,2,FALSE),"Error"))) -> 0 | R104: 0 | T104: =IFERROR(('General Input Sheet'!$G$38/(VLOOKUP(S104,'General Input Sheet'!$E$38:$G$44,3,FALSE))),1) -> 1 | U104: 0 | CE104: 0
J105: 0 | K105: 0 | M105: 1 | N105: 0 | Q105: =IF(O105="",'Unit Rates - Land'!landcst,IF($D$8="Landuse",VLOOKUP(O105,LAndcost3,2,FALSE),IF($D$8="Location",VLOOKUP(O105,Landcost2,2,FALSE),"Error"))) -> 0 | R105: 0 | T105: =IFERROR(('General Input Sheet'!$G$38/(VLOOKUP(S105,'General Input Sheet'!$E$38:$G$44,3,FALSE))),1) -> 1 | U105: 0 | CE105: 0
J106: 0 | K106: 0 | M106: 1 | N106: 0 | Q106: =IF(O106="",'Unit Rates - Land'!landcst,IF($D$8="Landuse",VLOOKUP(O106,LAndcost3,2,FALSE),IF($D$8="Location",VLOOKUP(O106,Landcost2,2,FALSE),"Error"))) -> 0 | R106: 0 | T106: =IFERROR(('General Input Sheet'!$G$38/(VLOOKUP(S106,'General Input Sheet'!$E$38:$G$44,3,FALSE))),1) -> 1 | U106: 0 | CE106: 0
J107: 0 | K107: 0 | M107: 1 | N107: 0 | Q107: =IF(O107="",'Unit Rates - Land'!landcst,IF($D$8="Landuse",VLOOKUP(O107,LAndcost3,2,FALSE),IF($D$8="Location",VLOOKUP(O107,Landcost2,2,FALSE),"Error"))) -> 0 | R107: 0 | T107: =IFERROR(('General Input Sheet'!$G$38/(VLOOKUP(S107,'General Input Sheet'!$E$38:$G$44,3,FALSE))),1) -> 1 | U107: 0 | CE107: 0
J108: 0 | K108: 0 | M108: 1 | N108: 0 | Q108: =IF(O108="",'Unit Rates - Land'!landcst,IF($D$8="Landuse",VLOOKUP(O108,LAndcost3,2,FALSE),IF($D$8="Location",VLOOKUP(O108,Landcost2,2,FALSE),"Error"))) -> 0 | R108: 0 | T108: =IFERROR(('General Input Sheet'!$G$38/(VLOOKUP(S108,'General Input Sheet'!$E$38:$G$44,3,FALSE))),1) -> 1 | U108: 0 | CE108: 0
J109: 0 | K109: 0 | M109: 1 | N109: 0 | Q109: =IF(O109="",'Unit Rates - Land'!landcst,IF($D$8="Landuse",VLOOKUP(O109,LAndcost3,2,FALSE),IF($D$8="Location",VLOOKUP(O109,Landcost2,2,FALSE),"Error"))) -> 0 | R109: 0 | T109: =IFERROR(('General Input Sheet'!$G$38/(VLOOKUP(S109,'General Input Sheet'!$E$38:$G$44,3,FALSE))),1) -> 1 | U109: 0 | CE109: 0
J110: 0 | K110: 0 | M110: 1 | N110: 0 | Q110: =IF(O110="",'Unit Rates - Land'!landcst,IF($D$8="Landuse",VLOOKUP(O110,LAndcost3,2,FALSE),IF($D$8="Location",VLOOKUP(O110,Landcost2,2,FALSE),"Error"))) -> 0 | R110: 0 | T110: =IFERROR(('General Input Sheet'!$G$38/(VLOOKUP(S110,'General Input Sheet'!$E$38:$G$44,3,FALSE))),1) -> 1 | U110: 0 | CE110: 0
J111: 0 | K111: 0 | M111: 1 | N111: 0 | Q111: =IF(O111="",'Unit Rates - Land'!landcst,IF($D$8="Landuse",VLOOKUP(O111,LAndcost3,2,FALSE),IF($D$8="Location",VLOOKUP(O111,Landcost2,2,FALSE),"Error"))) -> 0 | R111: 0 | T111: =IFERROR(('General Input Sheet'!$G$38/(VLOOKUP(S111,'General Input Sheet'!$E$38:$G$44,3,FALSE))),1) -> 1 | U111: 0 | CE111: 0
J112: 0 | K112: 0 | M112: 1 | N112: 0 | Q112: =IF(O112="",'Unit Rates - Land'!landcst,IF($D$8="Landuse",VLOOKUP(O112,LAndcost3,2,FALSE),IF($D$8="Location",VLOOKUP(O112,Landcost2,2,FALSE),"Error"))) -> 0 | R112: 0 | T112: =IFERROR(('General Input Sheet'!$G$38/(VLOOKUP(S112,'General Input Sheet'!$E$38:$G$44,3,FALSE))),1) -> 1 | U112: 0 | CE112: 0
J113: 0 | K113: 0 | M113: 1 | N113: 0 | Q113: =IF(O113="",'Unit Rates - Land'!landcst,IF($D$8="Landuse",VLOOKUP(O113,LAndcost3,2,FALSE),IF($D$8="Location",VLOOKUP(O113,Landcost2,2,FALSE),"Error"))) -> 0 | R113: 0 | T113: =IFERROR(('General Input Sheet'!$G$38/(VLOOKUP(S113,'General Input Sheet'!$E$38:$G$44,3,FALSE))),1) -> 1 | U113: 0 | CE113: 0
J114: 0 | K114: 0 | M114: 1 | N114: 0 | Q114: =IF(O114="",'Unit Rates - Land'!landcst,IF($D$8="Landuse",VLOOKUP(O114,LAndcost3,2,FALSE),IF($D$8="Location",VLOOKUP(O114,Landcost2,2,FALSE),"Error"))) -> 0 | R114: 0 | T114: =IFERROR(('General Input Sheet'!$G$38/(VLOOKUP(S114,'General Input Sheet'!$E$38:$G$44,3,FALSE))),1) -> 1 | U114: 0 | CE114: 0
J115: 0 | K115: 0 | M115: 1 | N115: 0 | Q115: =IF(O115="",'Unit Rates - Land'!landcst,IF($D$8="Landuse",VLOOKUP(O115,LAndcost3,2,FALSE),IF($D$8="Location",VLOOKUP(O115,Landcost2,2,FALSE),"Error"))) -> 0 | R115: 0 | T115: =IFERROR(('General Input Sheet'!$G$38/(VLOOKUP(S115,'General Input Sheet'!$E$38:$G$44,3,FALSE))),1) -> 1 | U115: 0 | CE115: 0
J116: 0 | K116: 0 | M116: 1 | N116: 0 | Q116: =IF(O116="",'Unit Rates - Land'!landcst,IF($D$8="Landuse",VLOOKUP(O116,LAndcost3,2,FALSE),IF($D$8="Location",VLOOKUP(O116,Landcost2,2,FALSE),"Error"))) -> 0 | R116: 0 | T116: =IFERROR(('General Input Sheet'!$G$38/(VLOOKUP(S116,'General Input Sheet'!$E$38:$G$44,3,FALSE))),1) -> 1 | U116: 0 | CE116: 0 | CJ116: =IF(BD116="","",(BD116/$CE116)*$U116) ->  | DJ116: =IF(CD116="","",(CD116/$CE116)*$U116) -> 
J117: 0 | K117: 0 | M117: 1 | N117: 0 | Q117: =IF(O117="",'Unit Rates - Land'!landcst,IF($D$8="Landuse",VLOOKUP(O117,LAndcost3,2,FALSE),IF($D$8="Location",VLOOKUP(O117,Landcost2,2,FALSE),"Error"))) -> 0 | R117: 0 | T117: =IFERROR(('General Input Sheet'!$G$38/(VLOOKUP(S117,'General Input Sheet'!$E$38:$G$44,3,FALSE))),1) -> 1 | U117: 0 | CE117: 0 | CG117: =IF(BA117="","",(BA117/$CE117)*$U117) -> 
J118: 0 | K118: 0 | M118: 1 | N118: 0 | Q118: =IF(O118="",'Unit Rates - Land'!landcst,IF($D$8="Landuse",VLOOKUP(O118,LAndcost3,2,FALSE),IF($D$8="Location",VLOOKUP(O118,Landcost2,2,FALSE),"Error"))) -> 0 | R118: 0 | T118: =IFERROR(('General Input Sheet'!$G$38/(VLOOKUP(S118,'General Input Sheet'!$E$38:$G$44,3,FALSE))),1) -> 1 | U118: 0 | CE118: 0
J119: 0 | K119: 0 | M119: 1 | N119: 0 | Q119: =IF(O119="",'Unit Rates - Land'!landcst,IF($D$8="Landuse",VLOOKUP(O119,LAndcost3,2,FALSE),IF($D$8="Location",VLOOKUP(O119,Landcost2,2,FALSE),"Error"))) -> 0 | R119: 0 | T119: =IFERROR(('General Input Sheet'!$G$38/(VLOOKUP(S119,'General Input Sheet'!$E$38:$G$44,3,FALSE))),1) -> 1 | U119: 0 | BH119: =IF(AC119="y",BH$14,IF(AND(AC119>0,AC119<=1),AC119*BH$14,"")) ->  | CE119: 0
J120: 0 | K120: 0 | M120: 1 | N120: 0 | Q120: =IF(O120="",'Unit Rates - Land'!landcst,IF($D$8="Landuse",VLOOKUP(O120,LAndcost3,2,FALSE),IF($D$8="Location",VLOOKUP(O120,Landcost2,2,FALSE),"Error"))) -> 0 | R120: 0 | T120: =IFERROR(('General Input Sheet'!$G$38/(VLOOKUP(S120,'General Input Sheet'!$E$38:$G$44,3,FALSE))),1) -> 1 | U120: 0 | CE120: 0
J121: 0 | K121: 0 | M121: 1 | N121: 0 | Q121: =IF(O121="",'Unit Rates - Land'!landcst,IF($D$8="Landuse",VLOOKUP(O121,LAndcost3,2,FALSE),IF($D$8="Location",VLOOKUP(O121,Landcost2,2,FALSE),"Error"))) -> 0 | R121: 0 | T121: =IFERROR(('General Input Sheet'!$G$38/(VLOOKUP(S121,'General Input Sheet'!$E$38:$G$44,3,FALSE))),1) -> 1 | U121: 0 | CE121: 0
J122: 0 | K122: 0 | M122: 1 | N122: 0 | Q122: =IF(O122="",'Unit Rates - Land'!landcst,IF($D$8="Landuse",VLOOKUP(O122,LAndcost3,2,FALSE),IF($D$8="Location",VLOOKUP(O122,Landcost2,2,FALSE),"Error"))) -> 0 | R122: 0 | T122: =IFERROR(('General Input Sheet'!$G$38/(VLOOKUP(S122,'General Input Sheet'!$E$38:$G$44,3,FALSE))),1) -> 1 | U122: 0 | CE122: 0
J123: 0 | K123: 0 | M123: 1 | N123: 0 | Q123: =IF(O123="",'Unit Rates - Land'!landcst,IF($D$8="Landuse",VLOOKUP(O123,LAndcost3,2,FALSE),IF($D$8="Location",VLOOKUP(O123,Landcost2,2,FALSE),"Error"))) -> 0 | R123: 0 | T123: =IFERROR(('General Input Sheet'!$G$38/(VLOOKUP(S123,'General Input Sheet'!$E$38:$G$44,3,FALSE))),1) -> 1 | U123: 0 | CE123: 0
J124: 0 | K124: 0 | M124: 1 | N124: 0 | Q124: =IF(O124="",'Unit Rates - Land'!landcst,IF($D$8="Landuse",VLOOKUP(O124,LAndcost3,2,FALSE),IF($D$8="Location",VLOOKUP(O124,Landcost2,2,FALSE),"Error"))) -> 0 | R124: 0 | T124: =IFERROR(('General Input Sheet'!$G$38/(VLOOKUP(S124,'General Input Sheet'!$E$38:$G$44,3,FALSE))),1) -> 1 | U124: 0 | CE124: 0
J125: 0 | K125: 0 | M125: 1 | N125: 0 | Q125: =IF(O125="",'Unit Rates - Land'!landcst,IF($D$8="Landuse",VLOOKUP(O125,LAndcost3,2,FALSE),IF($D$8="Location",VLOOKUP(O125,Landcost2,2,FALSE),"Error"))) -> 0 | R125: 0 | T125: =IFERROR(('General Input Sheet'!$G$38/(VLOOKUP(S125,'General Input Sheet'!$E$38:$G$44,3,FALSE))),1) -> 1 | U125: 0 | CE125: 0
J126: 0 | K126: 0 | M126: 1 | N126: 0 | Q126: =IF(O126="",'Unit Rates - Land'!landcst,IF($D$8="Landuse",VLOOKUP(O126,LAndcost3,2,FALSE),IF($D$8="Location",VLOOKUP(O126,Landcost2,2,FALSE),"Error"))) -> 0 | R126: 0 | T126: =IFERROR(('General Input Sheet'!$G$38/(VLOOKUP(S126,'General Input Sheet'!$E$38:$G$44,3,FALSE))),1) -> 1 | U126: 0 | CE126: 0
J127: 0 | K127: 0 | M127: 1 | N127: 0 | Q127: =IF(O127="",'Unit Rates - Land'!landcst,IF($D$8="Landuse",VLOOKUP(O127,LAndcost3,2,FALSE),IF($D$8="Location",VLOOKUP(O127,Landcost2,2,FALSE),"Error"))) -> 0 | R127: 0 | T127: =IFERROR(('General Input Sheet'!$G$38/(VLOOKUP(S127,'General Input Sheet'!$E$38:$G$44,3,FALSE))),1) -> 1 | U127: 0 | CE127: 0
J128: 0 | K128: 0 | M128: 1 | N128: 0 | Q128: =IF(O128="",'Unit Rates - Land'!landcst,IF($D$8="Landuse",VLOOKUP(O128,LAndcost3,2,FALSE),IF($D$8="Location",VLOOKUP(O128,Landcost2,2,FALSE),"Error"))) -> 0 | R128: 0 | T128: =IFERROR(('General Input Sheet'!$G$38/(VLOOKUP(S128,'General Input Sheet'!$E$38:$G$44,3,FALSE))),1) -> 1 | U128: 0 | CE128: 0
J129: 0 | K129: 0 | M129: 1 | N129: 0 | Q129: =IF(O129="",'Unit Rates - Land'!landcst,IF($D$8="Landuse",VLOOKUP(O129,LAndcost3,2,FALSE),IF($D$8="Location",VLOOKUP(O129,Landcost2,2,FALSE),"Error"))) -> 0 | R129: 0 | T129: =IFERROR(('General Input Sheet'!$G$38/(VLOOKUP(S129,'General Input Sheet'!$E$38:$G$44,3,FALSE))),1) -> 1 | U129: 0 | CE129: 0
J130: 0 | K130: 0 | M130: 1 | N130: 0 | Q130: =IF(O130="",'Unit Rates - Land'!landcst,IF($D$8="Landuse",VLOOKUP(O130,LAndcost3,2,FALSE),IF($D$8="Location",VLOOKUP(O130,Landcost2,2,FALSE),"Error"))) -> 0 | R130: 0 | T130: =IFERROR(('General Input Sheet'!$G$38/(VLOOKUP(S130,'General Input Sheet'!$E$38:$G$44,3,FALSE))),1) -> 1 | U130: 0 | CE130: 0
J131: 0 | K131: 0 | M131: 1 | N131: 0 | Q131: =IF(O131="",'Unit Rates - Land'!landcst,IF($D$8="Landuse",VLOOKUP(O131,LAndcost3,2,FALSE),IF($D$8="Location",VLOOKUP(O131,Landcost2,2,FALSE),"Error"))) -> 0 | R131: 0 | T131: =IFERROR(('General Input Sheet'!$G$38/(VLOOKUP(S131,'General Input Sheet'!$E$38:$G$44,3,FALSE))),1) -> 1 | U131: 0 | CE131: 0
J132: 0 | K132: 0 | M132: 1 | N132: 0 | Q132: =IF(O132="",'Unit Rates - Land'!landcst,IF($D$8="Landuse",VLOOKUP(O132,LAndcost3,2,FALSE),IF($D$8="Location",VLOOKUP(O132,Landcost2,2,FALSE),"Error"))) -> 0 | R132: 0 | T132: =IFERROR(('General Input Sheet'!$G$38/(VLOOKUP(S132,'General Input Sheet'!$E$38:$G$44,3,FALSE))),1) -> 1 | U132: 0 | CE132: 0
J133: 0 | K133: 0 | M133: 1 | N133: 0 | Q133: =IF(O133="",'Unit Rates - Land'!landcst,IF($D$8="Landuse",VLOOKUP(O133,LAndcost3,2,FALSE),IF($D$8="Location",VLOOKUP(O133,Landcost2,2,FALSE),"Error"))) -> 0 | R133: 0 | T133: =IFERROR(('General Input Sheet'!$G$38/(VLOOKUP(S133,'General Input Sheet'!$E$38:$G$44,3,FALSE))),1) -> 1 | U133: 0 | CE133: 0
J134: 0 | K134: 0 | M134: 1 | N134: 0 | Q134: =IF(O134="",'Unit Rates - Land'!landcst,IF($D$8="Landuse",VLOOKUP(O134,LAndcost3,2,FALSE),IF($D$8="Location",VLOOKUP(O134,Landcost2,2,FALSE),"Error"))) -> 0 | R134: 0 | T134: =IFERROR(('General Input Sheet'!$G$38/(VLOOKUP(S134,'General Input Sheet'!$E$38:$G$44,3,FALSE))),1) -> 1 | U134: 0 | CE134: 0
J135: 0 | K135: 0 | M135: 1 | N135: 0 | Q135: =IF(O135="",'Unit Rates - Land'!landcst,IF($D$8="Landuse",VLOOKUP(O135,LAndcost3,2,FALSE),IF($D$8="Location",VLOOKUP(O135,Landcost2,2,FALSE),"Error"))) -> 0 | R135: 0 | T135: =IFERROR(('General Input Sheet'!$G$38/(VLOOKUP(S135,'General Input Sheet'!$E$38:$G$44,3,FALSE))),1) -> 1 | U135: 0 | CE135: 0
J136: 0 | K136: 0 | M136: 1 | N136: 0 | Q136: =IF(O136="",'Unit Rates - Land'!landcst,IF($D$8="Landuse",VLOOKUP(O136,LAndcost3,2,FALSE),IF($D$8="Location",VLOOKUP(O136,Landcost2,2,FALSE),"Error"))) -> 0 | R136: 0 | T136: =IFERROR(('General Input Sheet'!$G$38/(VLOOKUP(S136,'General Input Sheet'!$E$38:$G$44,3,FALSE))),1) -> 1 | U136: 0 | CE136: 0
J137: 0 | K137: 0 | M137: 1 | N137: 0 | Q137: =IF(O137="",'Unit Rates - Land'!landcst,IF($D$8="Landuse",VLOOKUP(O137,LAndcost3,2,FALSE),IF($D$8="Location",VLOOKUP(O137,Landcost2,2,FALSE),"Error"))) -> 0 | R137: 0 | T137: =IFERROR(('General Input Sheet'!$G$38/(VLOOKUP(S137,'General Input Sheet'!$E$38:$G$44,3,FALSE))),1) -> 1 | U137: 0 | CE137: 0
J138: 0 | K138: 0 | M138: 1 | N138: 0 | Q138: =IF(O138="",'Unit Rates - Land'!landcst,IF($D$8="Landuse",VLOOKUP(O138,LAndcost3,2,FALSE),IF($D$8="Location",VLOOKUP(O138,Landcost2,2,FALSE),"Error"))) -> 0 | R138: 0 | T138: =IFERROR(('General Input Sheet'!$G$38/(VLOOKUP(S138,'General Input Sheet'!$E$38:$G$44,3,FALSE))),1) -> 1 | U138: 0 | CE138: 0 | CW138: =IF(BQ138="","",(BQ138/$CE138)*$U138) -> 
J139: 0 | K139: 0 | M139: 1 | N139: 0 | Q139: =IF(O139="",'Unit Rates - Land'!landcst,IF($D$8="Landuse",VLOOKUP(O139,LAndcost3,2,FALSE),IF($D$8="Location",VLOOKUP(O139,Landcost2,2,FALSE),"Error"))) -> 0 | R139: 0 | T139: =IFERROR(('General Input Sheet'!$G$38/(VLOOKUP(S139,'General Input Sheet'!$E$38:$G$44,3,FALSE))),1) -> 1 | U139: 0 | CE139: 0
J140: 0 | K140: 0 | M140: 1 | N140: 0 | Q140: =IF(O140="",'Unit Rates - Land'!landcst,IF($D$8="Landuse",VLOOKUP(O140,LAndcost3,2,FALSE),IF($D$8="Location",VLOOKUP(O140,Landcost2,2,FALSE),"Error"))) -> 0 | R140: 0 | T140: =IFERROR(('General Input Sheet'!$G$38/(VLOOKUP(S140,'General Input Sheet'!$E$38:$G$44,3,FALSE))),1) -> 1 | U140: 0 | CE140: 0
J141: 0 | K141: 0 | M141: 1 | N141: 0 | Q141: =IF(O141="",'Unit Rates - Land'!landcst,IF($D$8="Landuse",VLOOKUP(O141,LAndcost3,2,FALSE),IF($D$8="Location",VLOOKUP(O141,Landcost2,2,FALSE),"Error"))) -> 0 | R141: 0 | T141: =IFERROR(('General Input Sheet'!$G$38/(VLOOKUP(S141,'General Input Sheet'!$E$38:$G$44,3,FALSE))),1) -> 1 | U141: 0 | CE141: 0
J142: 0 | K142: 0 | M142: 1 | N142: 0 | Q142: =IF(O142="",'Unit Rates - Land'!landcst,IF($D$8="Landuse",VLOOKUP(O142,LAndcost3,2,FALSE),IF($D$8="Location",VLOOKUP(O142,Landcost2,2,FALSE),"Error"))) -> 0 | R142: 0 | T142: =IFERROR(('General Input Sheet'!$G$38/(VLOOKUP(S142,'General Input Sheet'!$E$38:$G$44,3,FALSE))),1) -> 1 | U142: 0 | CE142: 0
J143: =IF(G143=SWTYPE1,VLOOKUP(I143,SWUnitrates1,2,FALSE),IF(G143=SWTYPE2,VLOOKUP(I143,SWUnitrates2,2,FALSE),0)) -> 0 | K143: =IFERROR(J143*H143,0) -> 0 | M143: =IF(L143="",1,VLOOKUP(L143,SWsitecond,2,FALSE)) -> 1 | N143: 0 | Q143: =IF(O143="",'Unit Rates - Land'!landcst,IF($D$8="Landuse",VLOOKUP(O143,LAndcost3,2,FALSE),IF($D$8="Location",VLOOKUP(O143,Landcost2,2,FALSE),"Error"))) -> 0 | R143: 0 | T143: =IFERROR(('General Input Sheet'!$G$38/(VLOOKUP(S143,'General Input Sheet'!$E$38:$G$44,3,FALSE))),1) -> 1 | U143: 0 | BY143: =IF(AT143="y",BY$14,IF(AND(AT143>0,AT143<=1),AT143*BY$14,"")) ->  | CE143: 0
J144: 0 | K144: 0 | M144: 1 | N144: =IF(K144="","",K144*M144) -> 0 | Q144: =IF(O144="",'Unit Rates - Land'!landcst,IF($D$8="Landuse",VLOOKUP(O144,LAndcost3,2,FALSE),IF($D$8="Location",VLOOKUP(O144,Landcost2,2,FALSE),"Error"))) -> 0 | R144: 0 | T144: =IFERROR(('General Input Sheet'!$G$38/(VLOOKUP(S144,'General Input Sheet'!$E$38:$G$44,3,FALSE))),1) -> 1 | U144: =IFERROR(T144*(R144+N144),0) -> 0 | BD144: =IF(Y144="y",BD$14,IF(AND(Y144>0,Y144<=1),Y144*BD$14,"")) ->  | BT144: =IF(AO144="y",BT$14,IF(AND(AO144>0,AO144<=1),AO144*BT$14,"")) ->  | CE144: 0
J145: 0 | K145: 0 | M145: 1 | N145: 0 | Q145: =IF(O145="",'Unit Rates - Land'!landcst,IF($D$8="Landuse",VLOOKUP(O145,LAndcost3,2,FALSE),IF($D$8="Location",VLOOKUP(O145,Landcost2,2,FALSE),"Error"))) -> 0 | R145: =IF(Q145="",0,Q145*10000*P145) -> 0 | T145: =IFERROR(('General Input Sheet'!$G$38/(VLOOKUP(S145,'General Input Sheet'!$E$38:$G$44,3,FALSE))),1) -> 1 | U145: 0 | BA145: =IF(V145="y",BA$14,IF(AND(V145>0,V145<=1),V145*BA$14,"")) ->  | CE145: 0
J146: 0 | K146: 0 | M146: 1 | N146: 0 | Q146: =IF(O146="",'Unit Rates - Land'!landcst,IF($D$8="Landuse",VLOOKUP(O146,LAndcost3,2,FALSE),IF($D$8="Location",VLOOKUP(O146,Landcost2,2,FALSE),"Error"))) -> 0 | R146: 0 | T146: =IFERROR(('General Input Sheet'!$G$38/(VLOOKUP(S146,'General Input Sheet'!$E$38:$G$44,3,FALSE))),1) -> 1 | U146: 0 | CE146: =SUM(BA146:CD146) -> 0 | DK146: =IF(SUM(CG146:DJ146)=U146,"","ERROR") -> 
J147: 0 | K147: 0 | M147: 1 | N147: 0 | Q147: =IF(O147="",'Unit Rates - Land'!landcst,IF($D$8="Landuse",VLOOKUP(O147,LAndcost3,2,FALSE),IF($D$8="Location",VLOOKUP(O147,Landcost2,2,FALSE),"Error"))) -> 0 | R147: 0 | T147: =IFERROR(('General Input Sheet'!$G$38/(VLOOKUP(S147,'General Input Sheet'!$E$38:$G$44,3,FALSE))),1) -> 1 | U147: 0 | CE147: 0
J148: 0 | K148: 0 | M148: 1 | N148: 0 | Q148: =IF(O148="",'Unit Rates - Land'!landcst,IF($D$8="Landuse",VLOOKUP(O148,LAndcost3,2,FALSE),IF($D$8="Location",VLOOKUP(O148,Landcost2,2,FALSE),"Error"))) -> 0 | R148: 0 | T148: =IFERROR(('General Input Sheet'!$G$38/(VLOOKUP(S148,'General Input Sheet'!$E$38:$G$44,3,FALSE))),1) -> 1 | U148: 0 | CE148: 0
J149: 0 | K149: 0 | M149: 1 | N149: 0 | Q149: =IF(O149="",'Unit Rates - Land'!landcst,IF($D$8="Landuse",VLOOKUP(O149,LAndcost3,2,FALSE),IF($D$8="Location",VLOOKUP(O149,Landcost2,2,FALSE),"Error"))) -> 0 | R149: 0 | T149: =IFERROR(('General Input Sheet'!$G$38/(VLOOKUP(S149,'General Input Sheet'!$E$38:$G$44,3,FALSE))),1) -> 1 | U149: 0 | CE149: 0
J150: 0 | K150: 0 | M150: 1 | N150: 0 | Q150: =IF(O150="",'Unit Rates - Land'!landcst,IF($D$8="Landuse",VLOOKUP(O150,LAndcost3,2,FALSE),IF($D$8="Location",VLOOKUP(O150,Landcost2,2,FALSE),"Error"))) -> 0 | R150: 0 | T150: =IFERROR(('General Input Sheet'!$G$38/(VLOOKUP(S150,'General Input Sheet'!$E$38:$G$44,3,FALSE))),1) -> 1 | U150: 0 | CE150: 0 | CT150: =IF(BN150="","",(BN150/$CE150)*$U150) -> 
J151: 0 | K151: 0 | M151: 1 | N151: 0 | Q151: =IF(O151="",'Unit Rates - Land'!landcst,IF($D$8="Landuse",VLOOKUP(O151,LAndcost3,2,FALSE),IF($D$8="Location",VLOOKUP(O151,Landcost2,2,FALSE),"Error"))) -> 0 | R151: 0 | T151: =IFERROR(('General Input Sheet'!$G$38/(VLOOKUP(S151,'General Input Sheet'!$E$38:$G$44,3,FALSE))),1) -> 1 | U151: 0 | CE151: 0 | CG151: =IF(BA151="","",(BA151/$CE151)*$U151) -> 
J152: 0 | K152: 0 | M152: 1 | N152: 0 | Q152: =IF(O152="",'Unit Rates - Land'!landcst,IF($D$8="Landuse",VLOOKUP(O152,LAndcost3,2,FALSE),IF($D$8="Location",VLOOKUP(O152,Landcost2,2,FALSE),"Error"))) -> 0 | R152: 0 | T152: =IFERROR(('General Input Sheet'!$G$38/(VLOOKUP(S152,'General Input Sheet'!$E$38:$G$44,3,FALSE))),1) -> 1 | U152: 0 | CE152: 0
J153: 0 | K153: 0 | M153: 1 | N153: 0 | Q153: =IF(O153="",'Unit Rates - Land'!landcst,IF($D$8="Landuse",VLOOKUP(O153,LAndcost3,2,FALSE),IF($D$8="Location",VLOOKUP(O153,Landcost2,2,FALSE),"Error"))) -> 0 | R153: 0 | T153: =IFERROR(('General Input Sheet'!$G$38/(VLOOKUP(S153,'General Input Sheet'!$E$38:$G$44,3,FALSE))),1) -> 1 | U153: 0 | CE153: 0
J154: 0 | K154: 0 | M154: 1 | N154: 0 | Q154: =IF(O154="",'Unit Rates - Land'!landcst,IF($D$8="Landuse",VLOOKUP(O154,LAndcost3,2,FALSE),IF($D$8="Location",VLOOKUP(O154,Landcost2,2,FALSE),"Error"))) -> 0 | R154: 0 | T154: =IFERROR(('General Input Sheet'!$G$38/(VLOOKUP(S154,'General Input Sheet'!$E$38:$G$44,3,FALSE))),1) -> 1 | U154: 0 | CE154: 0
J155: 0 | K155: 0 | M155: 1 | N155: 0 | Q155: =IF(O155="",'Unit Rates - Land'!landcst,IF($D$8="Landuse",VLOOKUP(O155,LAndcost3,2,FALSE),IF($D$8="Location",VLOOKUP(O155,Landcost2,2,FALSE),"Error"))) -> 0 | R155: 0 | T155: =IFERROR(('General Input Sheet'!$G$38/(VLOOKUP(S155,'General Input Sheet'!$E$38:$G$44,3,FALSE))),1) -> 1 | U155: 0 | CE155: 0
J156: 0 | K156: 0 | M156: 1 | N156: 0 | Q156: =IF(O156="",'Unit Rates - Land'!landcst,IF($D$8="Landuse",VLOOKUP(O156,LAndcost3,2,FALSE),IF($D$8="Location",VLOOKUP(O156,Landcost2,2,FALSE),"Error"))) -> 0 | R156: 0 | T156: =IFERROR(('General Input Sheet'!$G$38/(VLOOKUP(S156,'General Input Sheet'!$E$38:$G$44,3,FALSE))),1) -> 1 | U156: 0 | CE156: 0
J157: 0 | K157: 0 | M157: 1 | N157: 0 | Q157: =IF(O157="",'Unit Rates - Land'!landcst,IF($D$8="Landuse",VLOOKUP(O157,LAndcost3,2,FALSE),IF($D$8="Location",VLOOKUP(O157,Landcost2,2,FALSE),"Error"))) -> 0 | R157: 0 | T157: =IFERROR(('General Input Sheet'!$G$38/(VLOOKUP(S157,'General Input Sheet'!$E$38:$G$44,3,FALSE))),1) -> 1 | U157: 0 | CE157: 0 | DE157: =IF(BY157="","",(BY157/$CE157)*$U157) -> 
J158: 0 | K158: 0 | M158: 1 | N158: 0 | Q158: =IF(O158="",'Unit Rates - Land'!landcst,IF($D$8="Landuse",VLOOKUP(O158,LAndcost3,2,FALSE),IF($D$8="Location",VLOOKUP(O158,Landcost2,2,FALSE),"Error"))) -> 0 | R158: 0 | T158: =IFERROR(('General Input Sheet'!$G$38/(VLOOKUP(S158,'General Input Sheet'!$E$38:$G$44,3,FALSE))),1) -> 1 | U158: 0 | CE158: 0
J159: 0 | K159: 0 | M159: 1 | N159: 0 | Q159: =IF(O159="",'Unit Rates - Land'!landcst,IF($D$8="Landuse",VLOOKUP(O159,LAndcost3,2,FALSE),IF($D$8="Location",VLOOKUP(O159,Landcost2,2,FALSE),"Error"))) -> 0 | R159: 0 | T159: =IFERROR(('General Input Sheet'!$G$38/(VLOOKUP(S159,'General Input Sheet'!$E$38:$G$44,3,FALSE))),1) -> 1 | U159: 0 | BS159: =IF(AN159="y",BS$14,IF(AND(AN159>0,AN159<=1),AN159*BS$14,"")) ->  | CE159: 0
J160: 0 | K160: 0 | M160: 1 | N160: 0 | Q160: =IF(O160="",'Unit Rates - Land'!landcst,IF($D$8="Landuse",VLOOKUP(O160,LAndcost3,2,FALSE),IF($D$8="Location",VLOOKUP(O160,Landcost2,2,FALSE),"Error"))) -> 0 | R160: 0 | T160: =IFERROR(('General Input Sheet'!$G$38/(VLOOKUP(S160,'General Input Sheet'!$E$38:$G$44,3,FALSE))),1) -> 1 | U160: 0 | BQ160: =IF(AL160="y",BQ$14,IF(AND(AL160>0,AL160<=1),AL160*BQ$14,"")) ->  | CE160: 0
J161: 0 | K161: 0 | M161: 1 | N161: 0 | Q161: =IF(O161="",'Unit Rates - Land'!landcst,IF($D$8="Landuse",VLOOKUP(O161,LAndcost3,2,FALSE),IF($D$8="Location",VLOOKUP(O161,Landcost2,2,FALSE),"Error"))) -> 0 | R161: 0 | T161: =IFERROR(('General Input Sheet'!$G$38/(VLOOKUP(S161,'General Input Sheet'!$E$38:$G$44,3,FALSE))),1) -> 1 | U161: 0 | CE161: 0
J162: 0 | K162: 0 | M162: 1 | N162: 0 | Q162: =IF(O162="",'Unit Rates - Land'!landcst,IF($D$8="Landuse",VLOOKUP(O162,LAndcost3,2,FALSE),IF($D$8="Location",VLOOKUP(O162,Landcost2,2,FALSE),"Error"))) -> 0 | R162: 0 | T162: =IFERROR(('General Input Sheet'!$G$38/(VLOOKUP(S162,'General Input Sheet'!$E$38:$G$44,3,FALSE))),1) -> 1 | U162: 0 | CE162: 0
J163: 0 | K163: 0 | M163: 1 | N163: 0 | Q163: =IF(O163="",'Unit Rates - Land'!landcst,IF($D$8="Landuse",VLOOKUP(O163,LAndcost3,2,FALSE),IF($D$8="Location",VLOOKUP(O163,Landcost2,2,FALSE),"Error"))) -> 0 | R163: 0 | T163: =IFERROR(('General Input Sheet'!$G$38/(VLOOKUP(S163,'General Input Sheet'!$E$38:$G$44,3,FALSE))),1) -> 1 | U163: 0 | CE163: 0
J164: 0 | K164: 0 | M164: 1 | N164: 0 | Q164: =IF(O164="",'Unit Rates - Land'!landcst,IF($D$8="Landuse",VLOOKUP(O164,LAndcost3,2,FALSE),IF($D$8="Location",VLOOKUP(O164,Landcost2,2,FALSE),"Error"))) -> 0 | R164: 0 | T164: =IFERROR(('General Input Sheet'!$G$38/(VLOOKUP(S164,'General Input Sheet'!$E$38:$G$44,3,FALSE))),1) -> 1 | U164: 0 | CE164: 0
J165: 0 | K165: 0 | M165: 1 | N165: 0 | Q165: =IF(O165="",'Unit Rates - Land'!landcst,IF($D$8="Landuse",VLOOKUP(O165,LAndcost3,2,FALSE),IF($D$8="Location",VLOOKUP(O165,Landcost2,2,FALSE),"Error"))) -> 0 | R165: 0 | T165: =IFERROR(('General Input Sheet'!$G$38/(VLOOKUP(S165,'General Input Sheet'!$E$38:$G$44,3,FALSE))),1) -> 1 | U165: 0 | CE165: 0
J166: 0 | K166: 0 | M166: 1 | N166: 0 | Q166: =IF(O166="",'Unit Rates - Land'!landcst,IF($D$8="Landuse",VLOOKUP(O166,LAndcost3,2,FALSE),IF($D$8="Location",VLOOKUP(O166,Landcost2,2,FALSE),"Error"))) -> 0 | R166: 0 | T166: =IFERROR(('General Input Sheet'!$G$38/(VLOOKUP(S166,'General Input Sheet'!$E$38:$G$44,3,FALSE))),1) -> 1 | U166: 0 | CE166: 0
J167: 0 | K167: 0 | M167: 1 | N167: 0 | Q167: =IF(O167="",'Unit Rates - Land'!landcst,IF($D$8="Landuse",VLOOKUP(O167,LAndcost3,2,FALSE),IF($D$8="Location",VLOOKUP(O167,Landcost2,2,FALSE),"Error"))) -> 0 | R167: 0 | T167: =IFERROR(('General Input Sheet'!$G$38/(VLOOKUP(S167,'General Input Sheet'!$E$38:$G$44,3,FALSE))),1) -> 1 | U167: 0 | CE167: 0
J168: 0 | K168: 0 | M168: 1 | N168: 0 | Q168: =IF(O168="",'Unit Rates - Land'!landcst,IF($D$8="Landuse",VLOOKUP(O168,LAndcost3,2,FALSE),IF($D$8="Location",VLOOKUP(O168,Landcost2,2,FALSE),"Error"))) -> 0 | R168: 0 | T168: =IFERROR(('General Input Sheet'!$G$38/(VLOOKUP(S168,'General Input Sheet'!$E$38:$G$44,3,FALSE))),1) -> 1 | U168: 0 | CE168: 0
J169: 0 | K169: 0 | M169: 1 | N169: 0 | Q169: =IF(O169="",'Unit Rates - Land'!landcst,IF($D$8="Landuse",VLOOKUP(O169,LAndcost3,2,FALSE),IF($D$8="Location",VLOOKUP(O169,Landcost2,2,FALSE),"Error"))) -> 0 | R169: 0 | T169: =IFERROR(('General Input Sheet'!$G$38/(VLOOKUP(S169,'General Input Sheet'!$E$38:$G$44,3,FALSE))),1) -> 1 | U169: 0 | CE169: 0
J170: 0 | K170: 0 | M170: 1 | N170: 0 | Q170: =IF(O170="",'Unit Rates - Land'!landcst,IF($D$8="Landuse",VLOOKUP(O170,LAndcost3,2,FALSE),IF($D$8="Location",VLOOKUP(O170,Landcost2,2,FALSE),"Error"))) -> 0 | R170: 0 | T170: =IFERROR(('General Input Sheet'!$G$38/(VLOOKUP(S170,'General Input Sheet'!$E$38:$G$44,3,FALSE))),1) -> 1 | U170: 0 | CE170: 0 | CO170: =IF(BI170="","",(BI170/$CE170)*$U170) -> 
J171: 0 | K171: 0 | M171: 1 | N171: 0 | Q171: =IF(O171="",'Unit Rates - Land'!landcst,IF($D$8="Landuse",VLOOKUP(O171,LAndcost3,2,FALSE),IF($D$8="Location",VLOOKUP(O171,Landcost2,2,FALSE),"Error"))) -> 0 | R171: 0 | T171: =IFERROR(('General Input Sheet'!$G$38/(VLOOKUP(S171,'General Input Sheet'!$E$38:$G$44,3,FALSE))),1) -> 1 | U171: 0 | CE171: 0 | CG171: =IF(BA171="","",(BA171/$CE171)*$U171) -> 
J172: 0 | K172: 0 | M172: 1 | N172: 0 | Q172: =IF(O172="",'Unit Rates - Land'!landcst,IF($D$8="Landuse",VLOOKUP(O172,LAndcost3,2,FALSE),IF($D$8="Location",VLOOKUP(O172,Landcost2,2,FALSE),"Error"))) -> 0 | R172: 0 | T172: =IFERROR(('General Input Sheet'!$G$38/(VLOOKUP(S172,'General Input Sheet'!$E$38:$G$44,3,FALSE))),1) -> 1 | U172: 0 | CE172: 0
J173: 0 | K173: 0 | M173: 1 | N173: 0 | Q173: =IF(O173="",'Unit Rates - Land'!landcst,IF($D$8="Landuse",VLOOKUP(O173,LAndcost3,2,FALSE),IF($D$8="Location",VLOOKUP(O173,Landcost2,2,FALSE),"Error"))) -> 0 | R173: 0 | T173: =IFERROR(('General Input Sheet'!$G$38/(VLOOKUP(S173,'General Input Sheet'!$E$38:$G$44,3,FALSE))),1) -> 1 | U173: 0 | BC173: =IF(X173="y",BC$14,IF(AND(X173>0,X173<=1),X173*BC$14,"")) ->  | CE173: 0
J174: 0 | K174: 0 | M174: 1 | N174: 0 | Q174: =IF(O174="",'Unit Rates - Land'!landcst,IF($D$8="Landuse",VLOOKUP(O174,LAndcost3,2,FALSE),IF($D$8="Location",VLOOKUP(O174,Landcost2,2,FALSE),"Error"))) -> 0 | R174: 0 | T174: =IFERROR(('General Input Sheet'!$G$38/(VLOOKUP(S174,'General Input Sheet'!$E$38:$G$44,3,FALSE))),1) -> 1 | U174: 0 | BA174: =IF(V174="y",BA$14,IF(AND(V174>0,V174<=1),V174*BA$14,"")) ->  | CE174: 0
J175: 0 | K175: 0 | M175: 1 | N175: 0 | Q175: =IF(O175="",'Unit Rates - Land'!landcst,IF($D$8="Landuse",VLOOKUP(O175,LAndcost3,2,FALSE),IF($D$8="Location",VLOOKUP(O175,Landcost2,2,FALSE),"Error"))) -> 0 | R175: 0 | T175: =IFERROR(('General Input Sheet'!$G$38/(VLOOKUP(S175,'General Input Sheet'!$E$38:$G$44,3,FALSE))),1) -> 1 | U175: 0 | CE175: 0
J176: 0 | K176: 0 | M176: 1 | N176: 0 | Q176: =IF(O176="",'Unit Rates - Land'!landcst,IF($D$8="Landuse",VLOOKUP(O176,LAndcost3,2,FALSE),IF($D$8="Location",VLOOKUP(O176,Landcost2,2,FALSE),"Error"))) -> 0 | R176: 0 | T176: =IFERROR(('General Input Sheet'!$G$38/(VLOOKUP(S176,'General Input Sheet'!$E$38:$G$44,3,FALSE))),1) -> 1 | U176: 0 | CE176: 0
J177: 0 | K177: 0 | M177: 1 | N177: 0 | Q177: =IF(O177="",'Unit Rates - Land'!landcst,IF($D$8="Landuse",VLOOKUP(O177,LAndcost3,2,FALSE),IF($D$8="Location",VLOOKUP(O177,Landcost2,2,FALSE),"Error"))) -> 0 | R177: 0 | T177: =IFERROR(('General Input Sheet'!$G$38/(VLOOKUP(S177,'General Input Sheet'!$E$38:$G$44,3,FALSE))),1) -> 1 | U177: 0 | CE177: 0
J178: 0 | K178: 0 | M178: 1 | N178: 0 | Q178: =IF(O178="",'Unit Rates - Land'!landcst,IF($D$8="Landuse",VLOOKUP(O178,LAndcost3,2,FALSE),IF($D$8="Location",VLOOKUP(O178,Landcost2,2,FALSE),"Error"))) -> 0 | R178: 0 | T178: =IFERROR(('General Input Sheet'!$G$38/(VLOOKUP(S178,'General Input Sheet'!$E$38:$G$44,3,FALSE))),1) -> 1 | U178: 0 | CE178: 0
J179: 0 | K179: 0 | M179: 1 | N179: 0 | Q179: =IF(O179="",'Unit Rates - Land'!landcst,IF($D$8="Landuse",VLOOKUP(O179,LAndcost3,2,FALSE),IF($D$8="Location",VLOOKUP(O179,Landcost2,2,FALSE),"Error"))) -> 0 | R179: 0 | T179: =IFERROR(('General Input Sheet'!$G$38/(VLOOKUP(S179,'General Input Sheet'!$E$38:$G$44,3,FALSE))),1) -> 1 | U179: 0 | CE179: 0
J180: 0 | K180: 0 | M180: 1 | N180: 0 | Q180: =IF(O180="",'Unit Rates - Land'!landcst,IF($D$8="Landuse",VLOOKUP(O180,LAndcost3,2,FALSE),IF($D$8="Location",VLOOKUP(O180,Landcost2,2,FALSE),"Error"))) -> 0 | R180: 0 | T180: =IFERROR(('General Input Sheet'!$G$38/(VLOOKUP(S180,'General Input Sheet'!$E$38:$G$44,3,FALSE))),1) -> 1 | U180: 0 | CE180: 0
J181: 0 | K181: 0 | M181: 1 | N181: 0 | Q181: =IF(O181="",'Unit Rates - Land'!landcst,IF($D$8="Landuse",VLOOKUP(O181,LAndcost3,2,FALSE),IF($D$8="Location",VLOOKUP(O181,Landcost2,2,FALSE),"Error"))) -> 0 | R181: 0 | T181: =IFERROR(('General Input Sheet'!$G$38/(VLOOKUP(S181,'General Input Sheet'!$E$38:$G$44,3,FALSE))),1) -> 1 | U181: 0 | CE181: 0
J182: 0 | K182: 0 | M182: 1 | N182: 0 | Q182: =IF(O182="",'Unit Rates - Land'!landcst,IF($D$8="Landuse",VLOOKUP(O182,LAndcost3,2,FALSE),IF($D$8="Location",VLOOKUP(O182,Landcost2,2,FALSE),"Error"))) -> 0 | R182: 0 | T182: =IFERROR(('General Input Sheet'!$G$38/(VLOOKUP(S182,'General Input Sheet'!$E$38:$G$44,3,FALSE))),1) -> 1 | U182: 0 | CE182: 0
J183: 0 | K183: 0 | M183: 1 | N183: 0 | Q183: =IF(O183="",'Unit Rates - Land'!landcst,IF($D$8="Landuse",VLOOKUP(O183,LAndcost3,2,FALSE),IF($D$8="Location",VLOOKUP(O183,Landcost2,2,FALSE),"Error"))) -> 0 | R183: 0 | T183: =IFERROR(('General Input Sheet'!$G$38/(VLOOKUP(S183,'General Input Sheet'!$E$38:$G$44,3,FALSE))),1) -> 1 | U183: 0 | CE183: 0
J184: 0 | K184: 0 | M184: 1 | N184: 0 | Q184: =IF(O184="",'Unit Rates - Land'!landcst,IF($D$8="Landuse",VLOOKUP(O184,LAndcost3,2,FALSE),IF($D$8="Location",VLOOKUP(O184,Landcost2,2,FALSE),"Error"))) -> 0 | R184: 0 | T184: =IFERROR(('General Input Sheet'!$G$38/(VLOOKUP(S184,'General Input Sheet'!$E$38:$G$44,3,FALSE))),1) -> 1 | U184: 0 | CE184: 0
J185: 0 | K185: 0 | M185: 1 | N185: 0 | Q185: =IF(O185="",'Unit Rates - Land'!landcst,IF($D$8="Landuse",VLOOKUP(O185,LAndcost3,2,FALSE),IF($D$8="Location",VLOOKUP(O185,Landcost2,2,FALSE),"Error"))) -> 0 | R185: 0 | T185: =IFERROR(('General Input Sheet'!$G$38/(VLOOKUP(S185,'General Input Sheet'!$E$38:$G$44,3,FALSE))),1) -> 1 | U185: 0 | CB185: =IF(AW185="y",CB$14,IF(AND(AW185>0,AW185<=1),AW185*CB$14,"")) ->  | CE185: 0
J186: 0 | K186: 0 | M186: 1 | N186: 0 | Q186: =IF(O186="",'Unit Rates - Land'!landcst,IF($D$8="Landuse",VLOOKUP(O186,LAndcost3,2,FALSE),IF($D$8="Location",VLOOKUP(O186,Landcost2,2,FALSE),"Error"))) -> 0 | R186: 0 | T186: =IFERROR(('General Input Sheet'!$G$38/(VLOOKUP(S186,'General Input Sheet'!$E$38:$G$44,3,FALSE))),1) -> 1 | U186: 0 | CE186: 0
J187: 0 | K187: 0 | M187: 1 | N187: 0 | Q187: =IF(O187="",'Unit Rates - Land'!landcst,IF($D$8="Landuse",VLOOKUP(O187,LAndcost3,2,FALSE),IF($D$8="Location",VLOOKUP(O187,Landcost2,2,FALSE),"Error"))) -> 0 | R187: 0 | T187: =IFERROR(('General Input Sheet'!$G$38/(VLOOKUP(S187,'General Input Sheet'!$E$38:$G$44,3,FALSE))),1) -> 1 | U187: 0 | CE187: 0
J188: 0 | K188: 0 | M188: 1 | N188: 0 | Q188: =IF(O188="",'Unit Rates - Land'!landcst,IF($D$8="Landuse",VLOOKUP(O188,LAndcost3,2,FALSE),IF($D$8="Location",VLOOKUP(O188,Landcost2,2,FALSE),"Error"))) -> 0 | R188: 0 | T188: =IFERROR(('General Input Sheet'!$G$38/(VLOOKUP(S188,'General Input Sheet'!$E$38:$G$44,3,FALSE))),1) -> 1 | U188: 0 | CE188: 0
J189: 0 | K189: 0 | M189: 1 | N189: 0 | Q189: =IF(O189="",'Unit Rates - Land'!landcst,IF($D$8="Landuse",VLOOKUP(O189,LAndcost3,2,FALSE),IF($D$8="Location",VLOOKUP(O189,Landcost2,2,FALSE),"Error"))) -> 0 | R189: 0 | T189: =IFERROR(('General Input Sheet'!$G$38/(VLOOKUP(S189,'General Input Sheet'!$E$38:$G$44,3,FALSE))),1) -> 1 | U189: 0 | CE189: 0
J190: 0 | K190: 0 | M190: 1 | N190: 0 | Q190: =IF(O190="",'Unit Rates - Land'!landcst,IF($D$8="Landuse",VLOOKUP(O190,LAndcost3,2,FALSE),IF($D$8="Location",VLOOKUP(O190,Landcost2,2,FALSE),"Error"))) -> 0 | R190: 0 | T190: =IFERROR(('General Input Sheet'!$G$38/(VLOOKUP(S190,'General Input Sheet'!$E$38:$G$44,3,FALSE))),1) -> 1 | U190: 0 | CE190: 0
J191: 0 | K191: 0 | M191: 1 | N191: 0 | Q191: =IF(O191="",'Unit Rates - Land'!landcst,IF($D$8="Landuse",VLOOKUP(O191,LAndcost3,2,FALSE),IF($D$8="Location",VLOOKUP(O191,Landcost2,2,FALSE),"Error"))) -> 0 | R191: 0 | T191: =IFERROR(('General Input Sheet'!$G$38/(VLOOKUP(S191,'General Input Sheet'!$E$38:$G$44,3,FALSE))),1) -> 1 | U191: 0 | BF191: =IF(AA191="y",BF$14,IF(AND(AA191>0,AA191<=1),AA191*BF$14,"")) ->  | BY191: =IF(AT191="y",BY$14,IF(AND(AT191>0,AT191<=1),AT191*BY$14,"")) ->  | CE191: 0
J192: 0 | K192: 0 | M192: 1 | N192: 0 | Q192: =IF(O192="",'Unit Rates - Land'!landcst,IF($D$8="Landuse",VLOOKUP(O192,LAndcost3,2,FALSE),IF($D$8="Location",VLOOKUP(O192,Landcost2,2,FALSE),"Error"))) -> 0 | R192: 0 | T192: =IFERROR(('General Input Sheet'!$G$38/(VLOOKUP(S192,'General Input Sheet'!$E$38:$G$44,3,FALSE))),1) -> 1 | U192: 0 | CE192: 0 | CQ192: =IF(BK192="","",(BK192/$CE192)*$U192) -> 
J193: 0 | K193: 0 | M193: 1 | N193: 0 | Q193: =IF(O193="",'Unit Rates - Land'!landcst,IF($D$8="Landuse",VLOOKUP(O193,LAndcost3,2,FALSE),IF($D$8="Location",VLOOKUP(O193,Landcost2,2,FALSE),"Error"))) -> 0 | R193: 0 | T193: =IFERROR(('General Input Sheet'!$G$38/(VLOOKUP(S193,'General Input Sheet'!$E$38:$G$44,3,FALSE))),1) -> 1 | U193: 0 | CE193: 0
J194: 0 | K194: 0 | M194: 1 | N194: 0 | Q194: =IF(O194="",'Unit Rates - Land'!landcst,IF($D$8="Landuse",VLOOKUP(O194,LAndcost3,2,FALSE),IF($D$8="Location",VLOOKUP(O194,Landcost2,2,FALSE),"Error"))) -> 0 | R194: 0 | T194: =IFERROR(('General Input Sheet'!$G$38/(VLOOKUP(S194,'General Input Sheet'!$E$38:$G$44,3,FALSE))),1) -> 1 | U194: 0 | CE194: 0
J195: 0 | K195: 0 | M195: 1 | N195: 0 | Q195: =IF(O195="",'Unit Rates - Land'!landcst,IF($D$8="Landuse",VLOOKUP(O195,LAndcost3,2,FALSE),IF($D$8="Location",VLOOKUP(O195,Landcost2,2,FALSE),"Error"))) -> 0 | R195: 0 | T195: =IFERROR(('General Input Sheet'!$G$38/(VLOOKUP(S195,'General Input Sheet'!$E$38:$G$44,3,FALSE))),1) -> 1 | U195: 0 | CE195: 0
J196: 0 | K196: 0 | M196: 1 | N196: 0 | Q196: =IF(O196="",'Unit Rates - Land'!landcst,IF($D$8="Landuse",VLOOKUP(O196,LAndcost3,2,FALSE),IF($D$8="Location",VLOOKUP(O196,Landcost2,2,FALSE),"Error"))) -> 0 | R196: 0 | T196: =IFERROR(('General Input Sheet'!$G$38/(VLOOKUP(S196,'General Input Sheet'!$E$38:$G$44,3,FALSE))),1) -> 1 | U196: 0 | CE196: 0
J197: 0 | K197: 0 | M197: 1 | N197: 0 | Q197: =IF(O197="",'Unit Rates - Land'!landcst,IF($D$8="Landuse",VLOOKUP(O197,LAndcost3,2,FALSE),IF($D$8="Location",VLOOKUP(O197,Landcost2,2,FALSE),"Error"))) -> 0 | R197: 0 | T197: =IFERROR(('General Input Sheet'!$G$38/(VLOOKUP(S197,'General Input Sheet'!$E$38:$G$44,3,FALSE))),1) -> 1 | U197: 0 | CE197: 0
J198: 0 | K198: 0 | M198: 1 | N198: 0 | Q198: =IF(O198="",'Unit Rates - Land'!landcst,IF($D$8="Landuse",VLOOKUP(O198,LAndcost3,2,FALSE),IF($D$8="Location",VLOOKUP(O198,Landcost2,2,FALSE),"Error"))) -> 0 | R198: 0 | T198: =IFERROR(('General Input Sheet'!$G$38/(VLOOKUP(S198,'General Input Sheet'!$E$38:$G$44,3,FALSE))),1) -> 1 | U198: 0 | CE198: 0
J199: 0 | K199: 0 | M199: 1 | N199: 0 | Q199: =IF(O199="",'Unit Rates - Land'!landcst,IF($D$8="Landuse",VLOOKUP(O199,LAndcost3,2,FALSE),IF($D$8="Location",VLOOKUP(O199,Landcost2,2,FALSE),"Error"))) -> 0 | R199: 0 | T199: =IFERROR(('General Input Sheet'!$G$38/(VLOOKUP(S199,'General Input Sheet'!$E$38:$G$44,3,FALSE))),1) -> 1 | U199: 0 | CE199: 0
J200: 0 | K200: 0 | M200: 1 | N200: 0 | Q200: =IF(O200="",'Unit Rates - Land'!landcst,IF($D$8="Landuse",VLOOKUP(O200,LAndcost3,2,FALSE),IF($D$8="Location",VLOOKUP(O200,Landcost2,2,FALSE),"Error"))) -> 0 | R200: 0 | T200: =IFERROR(('General Input Sheet'!$G$38/(VLOOKUP(S200,'General Input Sheet'!$E$38:$G$44,3,FALSE))),1) -> 1 | U200: 0 | CE200: 0 | CP200: =IF(BJ200="","",(BJ200/$CE200)*$U200) -> 
J201: 0 | K201: 0 | M201: 1 | N201: 0 | Q201: =IF(O201="",'Unit Rates - Land'!landcst,IF($D$8="Landuse",VLOOKUP(O201,LAndcost3,2,FALSE),IF($D$8="Location",VLOOKUP(O201,Landcost2,2,FALSE),"Error"))) -> 0 | R201: 0 | T201: =IFERROR(('General Input Sheet'!$G$38/(VLOOKUP(S201,'General Input Sheet'!$E$38:$G$44,3,FALSE))),1) -> 1 | U201: 0 | CE201: 0 | CG201: =IF(BA201="","",(BA201/$CE201)*$U201) -> 
J202: 0 | K202: 0 | M202: 1 | N202: 0 | Q202: =IF(O202="",'Unit Rates - Land'!landcst,IF($D$8="Landuse",VLOOKUP(O202,LAndcost3,2,FALSE),IF($D$8="Location",VLOOKUP(O202,Landcost2,2,FALSE),"Error"))) -> 0 | R202: 0 | T202: =IFERROR(('General Input Sheet'!$G$38/(VLOOKUP(S202,'General Input Sheet'!$E$38:$G$44,3,FALSE))),1) -> 1 | U202: 0 | CE202: 0
J203: 0 | K203: 0 | M203: 1 | N203: 0 | Q203: =IF(O203="",'Unit Rates - Land'!landcst,IF($D$8="Landuse",VLOOKUP(O203,LAndcost3,2,FALSE),IF($D$8="Location",VLOOKUP(O203,Landcost2,2,FALSE),"Error"))) -> 0 | R203: 0 | T203: =IFERROR(('General Input Sheet'!$G$38/(VLOOKUP(S203,'General Input Sheet'!$E$38:$G$44,3,FALSE))),1) -> 1 | U203: 0 | CE203: 0 | DG203: =IF(CA203="","",(CA203/$CE203)*$U203) -> 
J204: 0 | K204: 0 | M204: 1 | N204: 0 | Q204: =IF(O204="",'Unit Rates - Land'!landcst,IF($D$8="Landuse",VLOOKUP(O204,LAndcost3,2,FALSE),IF($D$8="Location",VLOOKUP(O204,Landcost2,2,FALSE),"Error"))) -> 0 | R204: 0 | T204: =IFERROR(('General Input Sheet'!$G$38/(VLOOKUP(S204,'General Input Sheet'!$E$38:$G$44,3,FALSE))),1) -> 1 | U204: 0 | CE204: 0
... 224 more rows

Sheet Future Trunk Assets
B2: ='Navigation Pane'!C2 -> Goondiwindi Regional Council
B4: Future Trunk Assets
B6: Water Supply | D6: Transportation
B8: Sewerage | D8: Parks & Community Facilities
B10: Stormwater

Sheet Future Trunk Assets - Water
B2: ='Navigation Pane'!C2 -> Goondiwindi Regional Council
B3: Water Supply
A4: Return to "Future Trunk Assets"
B5: Future Trunk Assets
B7: Data Refernces | E7: Insert references to relevant data sources which support the scope, values and timing entered in the Spreadsheet below
B10: Land Valuation Type | E10: Location
I12: Asset Data | AD12: Catchment Asset Allocation | BW12: Asset Usage | DC12: Cost Allocation
B13: Basic Asset Data | H13: Asset Attributes | K13: Land Attributes | O13: Basic Asset Valuation | X13: Refined Asset Value | AD13: ='Catchment Demand - Water Supply'!$C8 -> Goondiwindi | AE13: ='Catchment Demand - Water Supply'!$C9 -> Texas | AF13: ='Catchment Demand - Water Supply'!$C10 -> Inglewood | AG13: ='Catchment Demand - Water Supply'!$C11 -> Yelarbon | AH13: ='Catchment Demand - Water Supply'!$C12 -> Talwood | AI13: ='Catchment Demand - Water Supply'!$C13 -> Toobeah | AJ13: ='Catchment Demand - Water Supply'!$C14 -> Bungunya | AK13: ='Catchment Demand - Water Supply'!$C15 -> 0 | AL13: ='Catchment Demand - Water Supply'!$C16 -> 0 | AM13: ='Catchment Demand - Water Supply'!$C17 -> 0 | AN13: ='Catchment Demand - Water Supply'!$C18 -> 0 | AO13: ='Catchment Demand - Water Supply'!$C19 -> 0 | AP13: ='Catchment Demand - Water Supply'!$C20 -> 0 | AQ13: ='Catchment Demand - Water Supply'!$C21 -> 0 | AR13: ='Catchment Demand - Water Supply'!$C22 -> 0 | AS13: ='Catchment Demand - Water Supply'!$C23 -> 0 | AT13: ='Catchment Demand - Water Supply'!$C24 -> 0 | AU13: ='Catchment Demand - Water Supply'!$C25 -> 0 | AV13: ='Catchment Demand - Water Supply'!$C26 -> 0 | AW13: ='Catchment Demand - Water Supply'!$C27 -> 0 | AX13: ='Catchment Demand - Water Supply'!$C28 -> 0 | AY13: ='Catchment Demand - Water Supply'!$C29 -> 0 | AZ13: ='Catchment Demand - Water Supply'!$C30 -> 0 | BA13: ='Catchment Demand - Water Supply'!$C31 -> 0 | BB13: ='Catchment Demand - Water Supply'!$C32 -> 0 | BC13: ='Catchment Demand - Water Supply'!$C33 -> 0 | BD13: ='Catchment Demand - Water Supply'!$C34 -> 0 | BE13: ='Catchment Demand - Water Supply'!$C35 -> 0 | BF13: ='Catchment Demand - Water Supply'!$C36 -> 0 | BG13: ='Catchment Demand - Water Supply'!$C37 -> 0 | BI13: ='Catchment Demand - Water Supply'!$C8 -> Goondiwindi | BJ13: ='Catchment Demand - Water Supply'!$C9 -> Texas | BK13: ='Catchment Demand - Water Supply'!$C10 -> Inglewood | BL13: ='Catchment Demand - Water Supply'!$C11 -> Yelarbon | BM13: ='Catchment Demand - Water Supply'!$C12 -> Talwood | BN13: ='Catchment Demand - Water Supply'!$C13 -> Toobeah | BO13: ='Catchment Demand - Water Supply'!$C14 -> Bungunya | BP13: ='Catchment Demand - Water Supply'!$C15 -> 0 | BQ13: ='Catchment Demand - Water Supply'!$C16 -> 0 | BR13: ='Catchment Demand - Water Supply'!$C17 -> 0 | BS13: ='Catchment Demand - Water Supply'!$C18 -> 0 | BT13: ='Catchment Demand - Water Supply'!$C19 -> 0 | BU13: ='Catchment Demand - Water Supply'!$C20 -> 0 | BV13: ='Catchment Demand - Water Supply'!$C21 -> 0 | BW13: ='Catchment Demand - Water Supply'!$C22 -> 0 | BX13: ='Catchment Demand - Water Supply'!$C23 -> 0 | BY13: ='Catchment Demand - Water Supply'!$C24 -> 0 | BZ13: ='Catchment Demand - Water Supply'!$C25 -> 0 | CA13: ='Catchment Demand - Water Supply'!$C26 -> 0 | CB13: ='Catchment Demand - Water Supply'!$C27 -> 0 | CC13: ='Catchment Demand - Water Supply'!$C28 -> 0 | CD13: ='Catchment Demand - Water Supply'!$C29 -> 0 | CE13: ='Catchment Demand - Water Supply'!$C30 -> 0 | CF13: ='Catchment Demand - Water Supply'!$C31 -> 0 | CG13: ='Catchment Demand - Water Supply'!$C32 -> 0 | CH13: ='Catchment Demand - Water Supply'!$C33 -> 0 | CI13: ='Catchment Demand - Water Supply'!$C34 -> 0 | CJ13: ='Catchment Demand - Water Supply'!$C35 -> 0 | CK13: ='Catchment Demand - Water Supply'!$C36 -> 0 | CL13: ='Catchment Demand - Water Supply'!$C37 -> 0 | CM13: TOTALS | CO13: ='Catchment Demand - Water Supply'!$C8 -> Goondiwindi | CP13: ='Catchment Demand - Water Supply'!$C9 -> Texas | CQ13: ='Catchment Demand - Water Supply'!$C10 -> Inglewood | CR13: ='Catchment Demand - Water Supply'!$C11 -> Yelarbon | CS13: ='Catchment Demand - Water Supply'!$C12 -> Talwood | CT13: ='Catchment Demand - Water Supply'!$C13 -> Toobeah | CU13: ='Catchment Demand - Water Supply'!$C14 -> Bungunya | CV13: ='Catchment Demand - Water Supply'!$C15 -> 0 | CW13: ='Catchment Demand - Water Supply'!$C16 -> 0 | CX13: ='Catchment Demand - Water Supply'!$C17 -> 0 | CY13: ='Catchment Demand - Water Supply'!$C18 -> 0 | CZ13: ='Catchment Demand - Water Supply'!$C19 -> 0 | DA13: ='Catchment Demand - Water Supply'!$C20 -> 0 | DB13: ='Catchment Demand - Water Supply'!$C21 -> 0 | DC13: ='Catchment Demand - Water Supply'!$C22 -> 0 | DD13: ='Catchment Demand - Water Supply'!$C23 -> 0 | DE13: ='Catchment Demand - Water Supply'!$C24 -> 0 | DF13: ='Catchment Demand - Water Supply'!$C25 -> 0 | DG13: ='Catchment Demand - Water Supply'!$C26 -> 0 | DH13: ='Catchment Demand - Water Supply'!$C27 -> 0 | DI13: ='Catchment Demand - Water Supply'!$C28 -> 0 | DJ13: ='Catchment Demand - Water Supply'!$C29 -> 0 | DK13: ='Catchment Demand - Water Supply'!$C30 -> 0 | DL13: ='Catchment Demand - Water Supply'!$C31 -> 0 | DM13: ='Catchment Demand - Water Supply'!$C32 -> 0 | DN13: ='Catchment Demand - Water Supply'!$C33 -> 0 | DO13: ='Catchment Demand - Water Supply'!$C34 -> 0 | DP13: ='Catchment Demand - Water Supply'!$C35 -> 0 | DQ13: ='Catchment Demand - Water Supply'!$C36 -> 0 | DR13: ='Catchment Demand - Water Supply'!$C37 -> 0 | DS13: Checksum 2
B14: Asset ID | C14: LGIP ID | D14: Asset Type (*) | E14: Asset Class | F14: Asset Name | G14: Description | H14: Unit Rate Type (*) | I14: Length/unit (*) | J14: Diameter (*) | K14: Land Location/Type | L14: Size of land (ha) (*) | M14: Unit Cost | N14: Land Value | O14: Unit Rate | P14: Baseline Valuation | Q14: Valuation Year | R14: Base Est Escalation | S14: Site/Condition | T14: Multiplier | U14: Contingency Cost | V14: Project Owners Cost | W14: Gross Value | X14: Year provided (*) | Y14: Escalation | Z14: Discounting | AA14: % Renewal | AB14: Gross Cost (escalated) | AC14: Present Day Value
AD15: 1 | AE15: =AD15+1 -> 2 | AF15: =AE15+1 -> 3 | AG15: 4 | AH15: 5 | AI15: 6 | AJ15: 7 | AK15: 8 | AL15: 9 | AM15: 10 | AN15: 11 | AO15: 12 | AP15: 13 | AQ15: 14 | AR15: 15 | AS15: 16 | AT15: 17 | AU15: 18 | AV15: 19 | AW15: 20 | AX15: 21 | AY15: 22 | AZ15: 23 | BA15: 24 | BB15: 25 | BC15: 26 | BD15: 27 | BE15: 28 | BF15: 29 | BG15: 30
B16: Councils ID (from GIS, FAR, AMA etc.) | C16: ID from the LGIP drawings | E16: Reservoir, Trunk Main, etc. | P16: May be calculated from unit rates OR unique values can be direct entered | AA16: % of cost which is renewal related | AB16: Gross cost (used for CF forecasts) | AC16: Adjusted Current Day Value | AD16: =IFERROR(VLOOKUP(AD13,watercatch,5,FALSE),"") -> 5592 | AE16: 699 | AF16: 726 | AG16: 238 | AH16: 75 | AI16: 220 | AJ16: 195 | AK16: =IFERROR(VLOOKUP(AK13,watercatch,6,FALSE),"") ->  | BI16: =AD16 -> 5592 | BJ16: =AE16 -> 699 | BK16: 726 | BL16: 238 | BM16: 75 | BN16: 220 | BO16: 195 | BP16: =VLOOKUP(BP13,'Catchment Demand - Water Supply'!$C$8:$H$37,6,FALSE) ->  | BQ16: =VLOOKUP(BQ13,'Catchment Demand - Water Supply'!$C$8:$H$37,6,FALSE) ->  | BR16: =VLOOKUP(BR13,'Catchment Demand - Water Supply'!$C$8:$H$37,6,FALSE) ->  | BS16: =VLOOKUP(BS13,'Catchment Demand - Water Supply'!$C$8:$H$37,6,FALSE) ->  | BT16: =VLOOKUP(BT13,'Catchment Demand - Water Supply'!$C$8:$H$37,6,FALSE) ->  | BU16: =VLOOKUP(BU13,'Catchment Demand - Water Supply'!$C$8:$H$37,6,FALSE) ->  | BV16: =VLOOKUP(BV13,'Catchment Demand - Water Supply'!$C$8:$H$37,6,FALSE) ->  | BW16: =VLOOKUP(BW13,'Catchment Demand - Water Supply'!$C$8:$H$37,6,FALSE) ->  | BX16: =VLOOKUP(BX13,'Catchment Demand - Water Supply'!$C$8:$H$37,6,FALSE) ->  | BY16: =VLOOKUP(BY13,'Catchment Demand - Water Supply'!$C$8:$H$37,6,FALSE) ->  | BZ16: =VLOOKUP(BZ13,'Catchment Demand - Water Supply'!$C$8:$H$37,6,FALSE) ->  | CA16: =VLOOKUP(CA13,'Catchment Demand - Water Supply'!$C$8:$H$37,6,FALSE) ->  | CB16: =VLOOKUP(CB13,'Catchment Demand - Water Supply'!$C$8:$H$37,6,FALSE) ->  | CC16: =VLOOKUP(CC13,'Catchment Demand - Water Supply'!$C$8:$H$37,6,FALSE) ->  | CD16: =VLOOKUP(CD13,'Catchment Demand - Water Supply'!$C$8:$H$37,6,FALSE) ->  | CE16: =VLOOKUP(CE13,'Catchment Demand - Water Supply'!$C$8:$H$37,6,FALSE) ->  | CF16: =VLOOKUP(CF13,'Catchment Demand - Water Supply'!$C$8:$H$37,6,FALSE) ->  | CG16: =VLOOKUP(CG13,'Catchment Demand - Water Supply'!$C$8:$H$37,6,FALSE) ->  | CH16: =VLOOKUP(CH13,'Catchment Demand - Water Supply'!$C$8:$H$37,6,FALSE) ->  | CI16: =VLOOKUP(CI13,'Catchment Demand - Water Supply'!$C$8:$H$37,6,FALSE) ->  | CJ16: =VLOOKUP(CJ13,'Catchment Demand - Water Supply'!$C$8:$H$37,6,FALSE) ->  | CK16: =VLOOKUP(CK13,'Catchment Demand - Water Supply'!$C$8:$H$37,6,FALSE) ->  | CL16: =VLOOKUP(CL13,'Catchment Demand - Water Supply'!$C$8:$H$37,6,FALSE) ->  | CO16: =SUM(CO17:CO324) -> 19558571.66 | CP16: 1533322.054 | CQ16: 1044381.553 | CR16: 1851394.143 | CS16: 344911.0286 | CT16: 278926.7968 | CU16: 389554.4514 | CV16: 0 | CW16: 0 | CX16: 0 | CY16: 0 | CZ16: 0 | DA16: 0 | DB16: 0 | DC16: 0 | DD16: 0 | DE16: 0 | DF16: 0 | DG16: 0 | DH16: 0 | DI16: 0 | DJ16: 0 | DK16: 0 | DL16: 0 | DM16: 0 | DN16: 0 | DO16: 0 | DP16: 0 | DQ16: 0 | DR16: 0 | DS16: 0
C17: W01 | F17: New reservoir | M17: =IF(K17="",'Unit Rates - Land'!landcst,IF($E$10="Landuse",VLOOKUP(K17,LAndcost3,2,FALSE),IF($E$10="Location",VLOOKUP(K17,Landcost2,2,FALSE),"Error"))) -> 0 | N17: =IF(M17="",0,M17*10000*L17) -> 0 | O17: =IF(H17=TYPE1,VLOOKUP(J17,WaterUnitrates1,2,FALSE),IF(H17=TYPE2,VLOOKUP(J17,Unitrates2,2,FALSE),0)) -> 0 | P17: 200000 | Q17: 2017 | R17: =IFERROR(('General Input Sheet'!$G$38/(VLOOKUP(Q17,Histindex,3,FALSE))),1) -> 1 | T17: =IF(S17="",1,VLOOKUP(S17,'Unit Rates - Water'!$H$12:$I$23,2,FALSE)) -> 1 | U17: =IF(X17="","",IF(X17<=YEAR+5,0.075,IF(AND(X17>YEAR+5,X17<=YEAR+10),0.15,IF(AND(X17>YEAR+10,X17<=YEAR+20),0.2,IF(X17>YEAR+20,0.25,""))))) -> 0.15 | W17: =IFERROR(IF(P17="","",P17*T17*(1+U17)*(1+V17)*R17),"") -> 230000 | X17: 2022 | Y17: =(1+PPI)^('Future Trunk Assets - Water'!X17-YEAR) -> 1.253683981 | Z17: =IF(X17<YEAR,1,IF('General Input Sheet'!$E$32="WACC1",1/(1+WACC1)^(X17-YEAR), IF('General Input Sheet'!$E$32="WACC2",1/(1+WACC2)^(X17-YEAR),"Check WACC Option in General Input Sheet"))) -> 0.6950665164 | AA17: 0 | AB17: =IFERROR((W17*Y17*(1-AA17)+(N17*((1+Landind)^(X17-YEAR)))),0) -> 288347.3157 | AC17: =IFERROR(AB17*Z17,0) -> 200420.5642 | AH17: y | BI17: =IF(AD17="y",BI$16,IF(AND(AD17>0,AD17<=1),AD17*BI$16,"")) ->  | BM17: 75 | BN17: =IF(AI17="y",BN$16,IF(AND(AI17>0,AI17<=1),AI17*BN$16,"")) ->  | BY17: =IF(AT17="y",BY$16,IF(AND(AT17>0,AT17<=1),AT17*BY$16,"")) ->  | CC17: =IF(AX17="y",CC$16,IF(AND(AX17>0,AX17<=1),AX17*CC$16,"")) ->  | CG17: =IF(BB17="y",CG$16,IF(AND(BB17>0,BB17<=1),BB17*CG$16,"")) ->  | CM17: =SUM(BI17:CL17) -> 75 | CO17: =IF(BI17="","",(BI17/$CM17)*$AC17) ->  | CP17: =IF(BJ17="","",(BJ17/$CM17)*$AC17) ->  | CQ17: =IF(BK17="","",(BK17/$CM17)*$AC17) ->  | CR17: =IF(BL17="","",(BL17/$CM17)*$AC17) ->  | CS17: =IF(BM17="","",(BM17/$CM17)*$AC17) -> 200420.5642 | CT17: =IF(BN17="","",(BN17/$CM17)*$AC17) ->  | CU17: =IF(BO17="","",(BO17/$CM17)*$AC17) ->  | CV17: =IF(BP17="","",(BP17/$CM17)*$AC17) ->  | CW17: =IF(BQ17="","",(BQ17/$CM17)*$AC17) ->  | CX17: =IF(BR17="","",(BR17/$CM17)*$AC17) ->  | CY17: =IF(BS17="","",(BS17/$CM17)*$AC17) ->  | CZ17: =IF(BT17="","",(BT17/$CM17)*$AC17) ->  | DA17: =IF(BU17="","",(BU17/$CM17)*$AC17) ->  | DB17: =IF(BV17="","",(BV17/$CM17)*$AC17) ->  | DC17: =IF(BW17="","",(BW17/$CM17)*$AC17) ->  | DD17: =IF(BX17="","",(BX17/$CM17)*$AC17) ->  | DE17: =IF(BY17="","",(BY17/$CM17)*$AC17) ->  | DF17: =IF(BZ17="","",(BZ17/$CM17)*$AC17) ->  | DG17: =IF(CA17="","",(CA17/$CM17)*$AC17) ->  | DH17: =IF(CB17="","",(CB17/$CM17)*$AC17) ->  | DI17: =IF(CC17="","",(CC17/$CM17)*$AC17) ->  | DJ17: =IF(CD17="","",(CD17/$CM17)*$AC17) ->  | DK17: =IF(CE17="","",(CE17/$CM17)*$AC17) ->  | DL17: =IF(CF17="","",(CF17/$CM17)*$AC17) ->  | DM17: =IF(CG17="","",(CG17/$CM17)*$AC17) ->  | DN17: =IF(CH17="","",(CH17/$CM17)*$AC17) ->  | DO17: =IF(CI17="","",(CI17/$CM17)*$AC17) ->  | DP17: =IF(CJ17="","",(CJ17/$CM17)*$AC17) ->  | DQ17: =IF(CK17="","",(CK17/$CM17)*$AC17) ->  | DR17: =IF(CL17="","",(CL17/$CM17)*$AC17) ->  | DS17: =IF(SUM(CO17:DR17)=AC17,"","ERROR") -> 
C18: W02 | F18: New reservoir | M18: =IF(K18="",'Unit Rates - Land'!landcst,IF($E$10="Landuse",VLOOKUP(K18,LAndcost3,2,FALSE),IF($E$10="Location",VLOOKUP(K18,Landcost2,2,FALSE),"Error"))) -> 0 | N18: 0 | O18: 0 | P18: 200000 | Q18: 2017 | R18: =IFERROR(('General Input Sheet'!$G$38/(VLOOKUP(Q18,Histindex,3,FALSE))),1) -> 1 | T18: =IF(S18="",1,VLOOKUP(S18,'Unit Rates - Water'!$H$12:$I$23,2,FALSE)) -> 1 | U18: 0.15 | W18: 230000 | X18: 2022 | Y18: =(1+PPI)^('Future Trunk Assets - Water'!X18-YEAR) -> 1.253683981 | Z18: =IF(X18<YEAR,1,IF('General Input Sheet'!$E$32="WACC1",1/(1+WACC1)^(X18-YEAR), IF('General Input Sheet'!$E$32="WACC2",1/(1+WACC2)^(X18-YEAR),"Check WACC Option in General Input Sheet"))) -> 0.6950665164 | AA18: 0 | AB18: 288347.3157 | AC18: 200420.5642 | AG18: y | BL18: 238 | CM18: 238 | CR18: 200420.5642
C19: W03 | F19: Pressure pumps for fire flow | M19: =IF(K19="",'Unit Rates - Land'!landcst,IF($E$10="Landuse",VLOOKUP(K19,LAndcost3,2,FALSE),IF($E$10="Location",VLOOKUP(K19,Landcost2,2,FALSE),"Error"))) -> 0 | N19: 0 | O19: 0 | P19: 150000 | Q19: 2017 | R19: =IFERROR(('General Input Sheet'!$G$38/(VLOOKUP(Q19,Histindex,3,FALSE))),1) -> 1 | T19: =IF(S19="",1,VLOOKUP(S19,'Unit Rates - Water'!$H$12:$I$23,2,FALSE)) -> 1 | U19: 0.2 | W19: 180000 | X19: 2034 | Y19: =(1+PPI)^('Future Trunk Assets - Water'!X19-YEAR) -> 1.970444606 | Z19: =IF(X19<YEAR,1,IF('General Input Sheet'!$E$32="WACC1",1/(1+WACC1)^(X19-YEAR), IF('General Input Sheet'!$E$32="WACC2",1/(1+WACC2)^(X19-YEAR),"Check WACC Option in General Input Sheet"))) -> 0.3357987715 | AA19: 0 | AB19: 354680.029 | AC19: 119101.118 | AG19: y | BL19: 238 | CM19: 238 | CR19: 119101.118
C20: W04 | F20: Upgrade potable water main from reservoir to town | M20: =IF(K20="",'Unit Rates - Land'!landcst,IF($E$10="Landuse",VLOOKUP(K20,LAndcost3,2,FALSE),IF($E$10="Location",VLOOKUP(K20,Landcost2,2,FALSE),"Error"))) -> 0 | N20: 0 | O20: 0 | P20: 400000 | Q20: 2017 | R20: =IFERROR(('General Input Sheet'!$G$38/(VLOOKUP(Q20,Histindex,3,FALSE))),1) -> 1 | T20: =IF(S20="",1,VLOOKUP(S20,'Unit Rates - Water'!$H$12:$I$23,2,FALSE)) -> 1 | U20: 0.2 | W20: 480000 | X20: 2028 | Y20: =(1+PPI)^('Future Trunk Assets - Water'!X20-YEAR) -> 1.571723525 | Z20: =IF(X20<YEAR,1,IF('General Input Sheet'!$E$32="WACC1",1/(1+WACC1)^(X20-YEAR), IF('General Input Sheet'!$E$32="WACC2",1/(1+WACC2)^(X20-YEAR),"Check WACC Option in General Input Sheet"))) -> 0.4831174623 | AA20: 0 | AB20: 754427.2918 | AC20: 364476.9987 | AF20: y | BK20: 726 | CM20: 726 | CQ20: 364476.9987
C21: W05 | F21: Graity Potable main from Reserviour upgrade | M21: =IF(K21="",'Unit Rates - Land'!landcst,IF($E$10="Landuse",VLOOKUP(K21,LAndcost3,2,FALSE),IF($E$10="Location",VLOOKUP(K21,Landcost2,2,FALSE),"Error"))) -> 0 | N21: 0 | O21: 0 | P21: 250000 | Q21: 2017 | R21: =IFERROR(('General Input Sheet'!$G$38/(VLOOKUP(Q21,Histindex,3,FALSE))),1) -> 1 | T21: =IF(S21="",1,VLOOKUP(S21,'Unit Rates - Water'!$H$12:$I$23,2,FALSE)) -> 1 | U21: 0.2 | W21: 300000 | X21: 2034 | Y21: =(1+PPI)^('Future Trunk Assets - Water'!X21-YEAR) -> 1.970444606 | Z21: =IF(X21<YEAR,1,IF('General Input Sheet'!$E$32="WACC1",1/(1+WACC1)^(X21-YEAR), IF('General Input Sheet'!$E$32="WACC2",1/(1+WACC2)^(X21-YEAR),"Check WACC Option in General Input Sheet"))) -> 0.3357987715 | AA21: 0 | AB21: 591133.3817 | AC21: 198501.8634 | AE21: y | BJ21: 699 | CM21: 699 | CP21: 198501.8634
C22: W06 | F22: Goondiwindi WTP1 | M22: =IF(K22="",'Unit Rates - Land'!landcst,IF($E$10="Landuse",VLOOKUP(K22,LAndcost3,2,FALSE),IF($E$10="Location",VLOOKUP(K22,Landcost2,2,FALSE),"Error"))) -> 0 | N22: 0 | O22: 0 | P22: 10000000 | Q22: 2017 | R22: =IFERROR(('General Input Sheet'!$G$38/(VLOOKUP(Q22,Histindex,3,FALSE))),1) -> 1 | T22: =IF(S22="",1,VLOOKUP(S22,'Unit Rates - Water'!$H$12:$I$23,2,FALSE)) -> 1 | U22: 0.2 | W22: 12000000 | X22: 2034 | Y22: =(1+PPI)^('Future Trunk Assets - Water'!X22-YEAR) -> 1.970444606 | Z22: =IF(X22<YEAR,1,IF('General Input Sheet'!$E$32="WACC1",1/(1+WACC1)^(X22-YEAR), IF('General Input Sheet'!$E$32="WACC2",1/(1+WACC2)^(X22-YEAR),"Check WACC Option in General Input Sheet"))) -> 0.3357987715 | AA22: 0 | AB22: 23645335.27 | AC22: 7940074.535 | AD22: y | BI22: 5592 | CM22: 5592 | CO22: 7940074.535
C23: W07 | F23: Goondiwindi WFP2 | M23: =IF(K23="",'Unit Rates - Land'!landcst,IF($E$10="Landuse",VLOOKUP(K23,LAndcost3,2,FALSE),IF($E$10="Location",VLOOKUP(K23,Landcost2,2,FALSE),"Error"))) -> 0 | N23: 0 | O23: 0 | P23: 10000000 | Q23: 2017 | R23: =IFERROR(('General Input Sheet'!$G$38/(VLOOKUP(Q23,Histindex,3,FALSE))),1) -> 1 | T23: =IF(S23="",1,VLOOKUP(S23,'Unit Rates - Water'!$H$12:$I$23,2,FALSE)) -> 1 | U23: 0.2 | W23: 12000000 | X23: 2034 | Y23: =(1+PPI)^('Future Trunk Assets - Water'!X23-YEAR) -> 1.970444606 | Z23: =IF(X23<YEAR,1,IF('General Input Sheet'!$E$32="WACC1",1/(1+WACC1)^(X23-YEAR), IF('General Input Sheet'!$E$32="WACC2",1/(1+WACC2)^(X23-YEAR),"Check WACC Option in General Input Sheet"))) -> 0.3357987715 | AA23: 0 | AB23: 23645335.27 | AC23: 7940074.535 | AD23: y | BI23: 5592 | CM23: 5592 | CO23: 7940074.535
C24: W08 | F24: New reservoir | M24: =IF(K24="",'Unit Rates - Land'!landcst,IF($E$10="Landuse",VLOOKUP(K24,LAndcost3,2,FALSE),IF($E$10="Location",VLOOKUP(K24,Landcost2,2,FALSE),"Error"))) -> 0 | N24: 0 | O24: 0 | P24: 1000000 | Q24: 2017 | R24: =IFERROR(('General Input Sheet'!$G$38/(VLOOKUP(Q24,Histindex,3,FALSE))),1) -> 1 | T24: =IF(S24="",1,VLOOKUP(S24,'Unit Rates - Water'!$H$12:$I$23,2,FALSE)) -> 1 | U24: 0.15 | W24: 1150000 | X24: 2022 | Y24: =(1+PPI)^('Future Trunk Assets - Water'!X24-YEAR) -> 1.253683981 | Z24: =IF(X24<YEAR,1,IF('General Input Sheet'!$E$32="WACC1",1/(1+WACC1)^(X24-YEAR), IF('General Input Sheet'!$E$32="WACC2",1/(1+WACC2)^(X24-YEAR),"Check WACC Option in General Input Sheet"))) -> 0.6950665164 | AA24: 0 | AB24: 1441736.578 | AC24: 1002102.821 | AD24: y | BI24: 5592 | CM24: 5592 | CO24: 1002102.821
C25: W09 | F25: Upgrade Raw water main | M25: =IF(K25="",'Unit Rates - Land'!landcst,IF($E$10="Landuse",VLOOKUP(K25,LAndcost3,2,FALSE),IF($E$10="Location",VLOOKUP(K25,Landcost2,2,FALSE),"Error"))) -> 0 | N25: 0 | O25: 0 | P25: 800000 | Q25: 2017 | R25: =IFERROR(('General Input Sheet'!$G$38/(VLOOKUP(Q25,Histindex,3,FALSE))),1) -> 1 | T25: =IF(S25="",1,VLOOKUP(S25,'Unit Rates - Water'!$H$12:$I$23,2,FALSE)) -> 1 | U25: 0.15 | W25: 920000 | X25: 2022 | Y25: =(1+PPI)^('Future Trunk Assets - Water'!X25-YEAR) -> 1.253683981 | Z25: =IF(X25<YEAR,1,IF('General Input Sheet'!$E$32="WACC1",1/(1+WACC1)^(X25-YEAR), IF('General Input Sheet'!$E$32="WACC2",1/(1+WACC2)^(X25-YEAR),"Check WACC Option in General Input Sheet"))) -> 0.6950665164 | AA25: 0 | AB25: 1153389.263 | AC25: 801682.2569 | AE25: y | BJ25: 699 | CM25: 699 | CP25: 801682.2569
C26: W10 | F26: Upgrade Riddles Booster Pump | M26: =IF(K26="",'Unit Rates - Land'!landcst,IF($E$10="Landuse",VLOOKUP(K26,LAndcost3,2,FALSE),IF($E$10="Location",VLOOKUP(K26,Landcost2,2,FALSE),"Error"))) -> 0 | N26: 0 | O26: 0 | P26: 300000 | Q26: 2017 | R26: =IFERROR(('General Input Sheet'!$G$38/(VLOOKUP(Q26,Histindex,3,FALSE))),1) -> 1 | T26: =IF(S26="",1,VLOOKUP(S26,'Unit Rates - Water'!$H$12:$I$23,2,FALSE)) -> 1 | U26: 0.15 | W26: 345000 | X26: 2022 | Y26: =(1+PPI)^('Future Trunk Assets - Water'!X26-YEAR) -> 1.253683981 | Z26: =IF(X26<YEAR,1,IF('General Input Sheet'!$E$32="WACC1",1/(1+WACC1)^(X26-YEAR), IF('General Input Sheet'!$E$32="WACC2",1/(1+WACC2)^(X26-YEAR),"Check WACC Option in General Input Sheet"))) -> 0.6950665164 | AA26: 0 | AB26: 432520.9735 | AC26: 300630.8463 | AD26: y | BI26: 5592 | CM26: 5592 | CO26: 300630.8463
C27: W11 | F27: Upgrade Raw water main | M27: =IF(K27="",'Unit Rates - Land'!landcst,IF($E$10="Landuse",VLOOKUP(K27,LAndcost3,2,FALSE),IF($E$10="Location",VLOOKUP(K27,Landcost2,2,FALSE),"Error"))) -> 0 | N27: 0 | O27: 0 | P27: 300000 | Q27: 2017 | R27: =IFERROR(('General Input Sheet'!$G$38/(VLOOKUP(Q27,Histindex,3,FALSE))),1) -> 1 | T27: =IF(S27="",1,VLOOKUP(S27,'Unit Rates - Water'!$H$12:$I$23,2,FALSE)) -> 1 | U27: 0.2 | W27: 360000 | X27: 2028 | Y27: =(1+PPI)^('Future Trunk Assets - Water'!X27-YEAR) -> 1.571723525 | Z27: =IF(X27<YEAR,1,IF('General Input Sheet'!$E$32="WACC1",1/(1+WACC1)^(X27-YEAR), IF('General Input Sheet'!$E$32="WACC2",1/(1+WACC2)^(X27-YEAR),"Check WACC Option in General Input Sheet"))) -> 0.4831174623 | AA27: 0 | AB27: 565820.4689 | AC27: 273357.749 | AG27: y | BL27: 238 | CM27: 238 | CR27: 273357.749
C28: W12 | F28: Water Allocation Purchase | M28: =IF(K28="",'Unit Rates - Land'!landcst,IF($E$10="Landuse",VLOOKUP(K28,LAndcost3,2,FALSE),IF($E$10="Location",VLOOKUP(K28,Landcost2,2,FALSE),"Error"))) -> 0 | N28: 0 | O28: 0 | P28: 2500000 | Q28: 2017 | R28: =IFERROR(('General Input Sheet'!$G$38/(VLOOKUP(Q28,Histindex,3,FALSE))),1) -> 1 | T28: =IF(S28="",1,VLOOKUP(S28,'Unit Rates - Water'!$H$12:$I$23,2,FALSE)) -> 1 | U28: 0.2 | W28: 3000000 | X28: 2028 | Y28: =(1+PPI)^('Future Trunk Assets - Water'!X28-YEAR) -> 1.571723525 | Z28: =IF(X28<YEAR,1,IF('General Input Sheet'!$E$32="WACC1",1/(1+WACC1)^(X28-YEAR), IF('General Input Sheet'!$E$32="WACC2",1/(1+WACC2)^(X28-YEAR),"Check WACC Option in General Input Sheet"))) -> 0.4831174623 | AA28: 0 | AB28: 4715170.574 | AC28: 2277981.242 | AD28: y | AE28: y | AF28: y | AG28: y | AH28: y | BI28: 5592 | BJ28: 699 | BK28: 726 | BL28: 238 | BM28: 75 | CM28: 7330 | CO28: 1737854.175 | CP28: 217231.7719 | CQ28: 225622.6987 | CR28: 73964.46597 | CS28: 23308.13003
C29: W13 | F29: Upgrade Potable water Rising main | M29: =IF(K29="",'Unit Rates - Land'!landcst,IF($E$10="Landuse",VLOOKUP(K29,LAndcost3,2,FALSE),IF($E$10="Location",VLOOKUP(K29,Landcost2,2,FALSE),"Error"))) -> 0 | N29: 0 | O29: 0 | P29: 1200000 | Q29: 2017 | R29: =IFERROR(('General Input Sheet'!$G$38/(VLOOKUP(Q29,Histindex,3,FALSE))),1) -> 1 | T29: =IF(S29="",1,VLOOKUP(S29,'Unit Rates - Water'!$H$12:$I$23,2,FALSE)) -> 1 | U29: 0.2 | W29: 1440000 | X29: 2028 | Y29: =(1+PPI)^('Future Trunk Assets - Water'!X29-YEAR) -> 1.571723525 | Z29: =IF(X29<YEAR,1,IF('General Input Sheet'!$E$32="WACC1",1/(1+WACC1)^(X29-YEAR), IF('General Input Sheet'!$E$32="WACC2",1/(1+WACC2)^(X29-YEAR),"Check WACC Option in General Input Sheet"))) -> 0.4831174623 | AA29: 0 | AB29: 2263281.875 | AC29: 1093430.996 | AG29: y | BL29: 238 | CM29: 238 | CR29: 1093430.996
C30: W14 | F30: Replace Telemetry | M30: =IF(K30="",'Unit Rates - Land'!landcst,IF($E$10="Landuse",VLOOKUP(K30,LAndcost3,2,FALSE),IF($E$10="Location",VLOOKUP(K30,Landcost2,2,FALSE),"Error"))) -> 0 | N30: 0 | O30: 0 | P30: 150000 | Q30: 2017 | R30: =IFERROR(('General Input Sheet'!$G$38/(VLOOKUP(Q30,Histindex,3,FALSE))),1) -> 1 | T30: =IF(S30="",1,VLOOKUP(S30,'Unit Rates - Water'!$H$12:$I$23,2,FALSE)) -> 1 | U30: 0.2 | W30: 180000 | X30: 2028 | Y30: =(1+PPI)^('Future Trunk Assets - Water'!X30-YEAR) -> 1.571723525 | Z30: =IF(X30<YEAR,1,IF('General Input Sheet'!$E$32="WACC1",1/(1+WACC1)^(X30-YEAR), IF('General Input Sheet'!$E$32="WACC2",1/(1+WACC2)^(X30-YEAR),"Check WACC Option in General Input Sheet"))) -> 0.4831174623 | AA30: 0 | AB30: 282910.2344 | AC30: 136678.8745 | AE30: y | BJ30: 699 | CM30: 699 | CP30: 136678.8745
C31: W15 | F31: Replace Telemetry | M31: =IF(K31="",'Unit Rates - Land'!landcst,IF($E$10="Landuse",VLOOKUP(K31,LAndcost3,2,FALSE),IF($E$10="Location",VLOOKUP(K31,Landcost2,2,FALSE),"Error"))) -> 0 | N31: 0 | O31: 0 | P31: 100000 | Q31: 2017 | R31: =IFERROR(('General Input Sheet'!$G$38/(VLOOKUP(Q31,Histindex,3,FALSE))),1) -> 1 | T31: =IF(S31="",1,VLOOKUP(S31,'Unit Rates - Water'!$H$12:$I$23,2,FALSE)) -> 1 | U31: 0.2 | W31: 120000 | X31: 2028 | Y31: =(1+PPI)^('Future Trunk Assets - Water'!X31-YEAR) -> 1.571723525 | Z31: =IF(X31<YEAR,1,IF('General Input Sheet'!$E$32="WACC1",1/(1+WACC1)^(X31-YEAR), IF('General Input Sheet'!$E$32="WACC2",1/(1+WACC2)^(X31-YEAR),"Check WACC Option in General Input Sheet"))) -> 0.4831174623 | AA31: 0 | AB31: 188606.823 | AC31: 91119.24967 | AH31: y | BM31: 75 | CM31: 75 | CS31: 91119.24967
C32: W16 | F32: Replace Telemetry | M32: =IF(K32="",'Unit Rates - Land'!landcst,IF($E$10="Landuse",VLOOKUP(K32,LAndcost3,2,FALSE),IF($E$10="Location",VLOOKUP(K32,Landcost2,2,FALSE),"Error"))) -> 0 | N32: 0 | O32: 0 | P32: 300000 | Q32: 2017 | R32: =IFERROR(('General Input Sheet'!$G$38/(VLOOKUP(Q32,Histindex,3,FALSE))),1) -> 1 | T32: =IF(S32="",1,VLOOKUP(S32,'Unit Rates - Water'!$H$12:$I$23,2,FALSE)) -> 1 | U32: 0.2 | W32: 360000 | X32: 2028 | Y32: =(1+PPI)^('Future Trunk Assets - Water'!X32-YEAR) -> 1.571723525 | Z32: =IF(X32<YEAR,1,IF('General Input Sheet'!$E$32="WACC1",1/(1+WACC1)^(X32-YEAR), IF('General Input Sheet'!$E$32="WACC2",1/(1+WACC2)^(X32-YEAR),"Check WACC Option in General Input Sheet"))) -> 0.4831174623 | AA32: 0 | AB32: 565820.4689 | AC32: 273357.749 | AD32: y | BI32: 5592 | BP32: =IF(AK32="y",BP$16,IF(AND(AK32>0,AK32<=1),AK32*BP$16,"")) ->  | CM32: 5592 | CO32: 273357.749
C33: W17 | F33: Replace Telemetry | M33: =IF(K33="",'Unit Rates - Land'!landcst,IF($E$10="Landuse",VLOOKUP(K33,LAndcost3,2,FALSE),IF($E$10="Location",VLOOKUP(K33,Landcost2,2,FALSE),"Error"))) -> 0 | N33: 0 | O33: 0 | P33: 150000 | Q33: 2017 | R33: =IFERROR(('General Input Sheet'!$G$38/(VLOOKUP(Q33,Histindex,3,FALSE))),1) -> 1 | T33: =IF(S33="",1,VLOOKUP(S33,'Unit Rates - Water'!$H$12:$I$23,2,FALSE)) -> 1 | U33: 0.2 | W33: 180000 | X33: 2028 | Y33: =(1+PPI)^('Future Trunk Assets - Water'!X33-YEAR) -> 1.571723525 | Z33: =IF(X33<YEAR,1,IF('General Input Sheet'!$E$32="WACC1",1/(1+WACC1)^(X33-YEAR), IF('General Input Sheet'!$E$32="WACC2",1/(1+WACC2)^(X33-YEAR),"Check WACC Option in General Input Sheet"))) -> 0.4831174623 | AA33: 0 | AB33: 282910.2344 | AC33: 136678.8745 | AF33: y | BK33: 726 | CM33: 726 | CQ33: 136678.8745
C34: W18 | F34: Replace Telemetry | M34: =IF(K34="",'Unit Rates - Land'!landcst,IF($E$10="Landuse",VLOOKUP(K34,LAndcost3,2,FALSE),IF($E$10="Location",VLOOKUP(K34,Landcost2,2,FALSE),"Error"))) -> 0 | N34: 0 | O34: 0 | P34: 100000 | Q34: 2017 | R34: =IFERROR(('General Input Sheet'!$G$38/(VLOOKUP(Q34,Histindex,3,FALSE))),1) -> 1 | T34: =IF(S34="",1,VLOOKUP(S34,'Unit Rates - Water'!$H$12:$I$23,2,FALSE)) -> 1 | U34: 0.2 | W34: 120000 | X34: 2028 | Y34: =(1+PPI)^('Future Trunk Assets - Water'!X34-YEAR) -> 1.571723525 | Z34: =IF(X34<YEAR,1,IF('General Input Sheet'!$E$32="WACC1",1/(1+WACC1)^(X34-YEAR), IF('General Input Sheet'!$E$32="WACC2",1/(1+WACC2)^(X34-YEAR),"Check WACC Option in General Input Sheet"))) -> 0.4831174623 | AA34: 0 | AB34: 188606.823 | AC34: 91119.24967 | AG34: y | BL34: 238 | CM34: 238 | CR34: 91119.24967
C35: W19 | F35: Replace Telemetry | M35: =IF(K35="",'Unit Rates - Land'!landcst,IF($E$10="Landuse",VLOOKUP(K35,LAndcost3,2,FALSE),IF($E$10="Location",VLOOKUP(K35,Landcost2,2,FALSE),"Error"))) -> 0 | N35: 0 | O35: 0 | P35: 80000 | Q35: 2017 | R35: =IFERROR(('General Input Sheet'!$G$38/(VLOOKUP(Q35,Histindex,3,FALSE))),1) -> 1 | T35: =IF(S35="",1,VLOOKUP(S35,'Unit Rates - Water'!$H$12:$I$23,2,FALSE)) -> 1 | U35: 0.2 | W35: 96000 | X35: 2028 | Y35: =(1+PPI)^('Future Trunk Assets - Water'!X35-YEAR) -> 1.571723525 | Z35: =IF(X35<YEAR,1,IF('General Input Sheet'!$E$32="WACC1",1/(1+WACC1)^(X35-YEAR), IF('General Input Sheet'!$E$32="WACC2",1/(1+WACC2)^(X35-YEAR),"Check WACC Option in General Input Sheet"))) -> 0.4831174623 | AA35: 0 | AB35: 150885.4584 | AC35: 72895.39974 | AI35: y | AJ35: y | BN35: 220 | BO35: 195 | CJ35: =IF(BE35="y",CJ$16,IF(AND(BE35>0,BE35<=1),BE35*CJ$16,"")) ->  | CM35: 415 | CT35: 38643.34444 | CU35: 34252.0553
C36: W20 | F36: Generator for Raw Water | M36: =IF(K36="",'Unit Rates - Land'!landcst,IF($E$10="Landuse",VLOOKUP(K36,LAndcost3,2,FALSE),IF($E$10="Location",VLOOKUP(K36,Landcost2,2,FALSE),"Error"))) -> 0 | N36: 0 | O36: 0 | P36: 60000 | Q36: 2017 | R36: =IFERROR(('General Input Sheet'!$G$38/(VLOOKUP(Q36,Histindex,3,FALSE))),1) -> 1 | T36: =IF(S36="",1,VLOOKUP(S36,'Unit Rates - Water'!$H$12:$I$23,2,FALSE)) -> 1 | U36: 0.15 | W36: 69000 | X36: 2022 | Y36: =(1+PPI)^('Future Trunk Assets - Water'!X36-YEAR) -> 1.253683981 | Z36: =IF(X36<YEAR,1,IF('General Input Sheet'!$E$32="WACC1",1/(1+WACC1)^(X36-YEAR), IF('General Input Sheet'!$E$32="WACC2",1/(1+WACC2)^(X36-YEAR),"Check WACC Option in General Input Sheet"))) -> 0.6950665164 | AA36: 0 | AB36: 86504.1947 | AC36: 60126.16927 | AE36: y | BJ36: 699 | CM36: 699 | CP36: 60126.16927
C37: W21 | F37: Potable rising main to Reserviour line | M37: =IF(K37="",'Unit Rates - Land'!landcst,IF($E$10="Landuse",VLOOKUP(K37,LAndcost3,2,FALSE),IF($E$10="Location",VLOOKUP(K37,Landcost2,2,FALSE),"Error"))) -> 0 | N37: 0 | O37: 0 | P37: 250000 | Q37: 2017 | R37: =IFERROR(('General Input Sheet'!$G$38/(VLOOKUP(Q37,Histindex,3,FALSE))),1) -> 1 | T37: =IF(S37="",1,VLOOKUP(S37,'Unit Rates - Water'!$H$12:$I$23,2,FALSE)) -> 1 | U37: 0.2 | W37: 300000 | X37: 2034 | Y37: =(1+PPI)^('Future Trunk Assets - Water'!X37-YEAR) -> 1.970444606 | Z37: =IF(X37<YEAR,1,IF('General Input Sheet'!$E$32="WACC1",1/(1+WACC1)^(X37-YEAR), IF('General Input Sheet'!$E$32="WACC2",1/(1+WACC2)^(X37-YEAR),"Check WACC Option in General Input Sheet"))) -> 0.3357987715 | AA37: 0 | AB37: 591133.3817 | AC37: 198501.8634 | AF37: y | BK37: 726 | CM37: 726 | CQ37: 198501.8634
C38: W22 | F38: Replace Filters | M38: =IF(K38="",'Unit Rates - Land'!landcst,IF($E$10="Landuse",VLOOKUP(K38,LAndcost3,2,FALSE),IF($E$10="Location",VLOOKUP(K38,Landcost2,2,FALSE),"Error"))) -> 0 | N38: 0 | O38: 0 | P38: 150000 | Q38: 2017 | R38: =IFERROR(('General Input Sheet'!$G$38/(VLOOKUP(Q38,Histindex,3,FALSE))),1) -> 1 | T38: =IF(S38="",1,VLOOKUP(S38,'Unit Rates - Water'!$H$12:$I$23,2,FALSE)) -> 1 | U38: 0.2 | W38: 180000 | X38: 2034 | Y38: =(1+PPI)^('Future Trunk Assets - Water'!X38-YEAR) -> 1.970444606 | Z38: =IF(X38<YEAR,1,IF('General Input Sheet'!$E$32="WACC1",1/(1+WACC1)^(X38-YEAR), IF('General Input Sheet'!$E$32="WACC2",1/(1+WACC2)^(X38-YEAR),"Check WACC Option in General Input Sheet"))) -> 0.3357987715 | AA38: 0 | AB38: 354680.029 | AC38: 119101.118 | AF38: y | BK38: 726 | CM38: 726 | CQ38: 119101.118
C39: W23 | F39: Replace Filters | M39: =IF(K39="",'Unit Rates - Land'!landcst,IF($E$10="Landuse",VLOOKUP(K39,LAndcost3,2,FALSE),IF($E$10="Location",VLOOKUP(K39,Landcost2,2,FALSE),"Error"))) -> 0 | N39: 0 | O39: 0 | P39: 150000 | Q39: 2017 | R39: =IFERROR(('General Input Sheet'!$G$38/(VLOOKUP(Q39,Histindex,3,FALSE))),1) -> 1 | T39: =IF(S39="",1,VLOOKUP(S39,'Unit Rates - Water'!$H$12:$I$23,2,FALSE)) -> 1 | U39: 0.2 | W39: 180000 | X39: 2034 | Y39: =(1+PPI)^('Future Trunk Assets - Water'!X39-YEAR) -> 1.970444606 | Z39: =IF(X39<YEAR,1,IF('General Input Sheet'!$E$32="WACC1",1/(1+WACC1)^(X39-YEAR), IF('General Input Sheet'!$E$32="WACC2",1/(1+WACC2)^(X39-YEAR),"Check WACC Option in General Input Sheet"))) -> 0.3357987715 | AA39: 0 | AB39: 354680.029 | AC39: 119101.118 | AE39: y | BJ39: 699 | CM39: 699 | CP39: 119101.118
C40: W24 | F40: Generator for Raw Water | M40: =IF(K40="",'Unit Rates - Land'!landcst,IF($E$10="Landuse",VLOOKUP(K40,LAndcost3,2,FALSE),IF($E$10="Location",VLOOKUP(K40,Landcost2,2,FALSE),"Error"))) -> 0 | N40: 0 | O40: 0 | P40: 30000 | Q40: 2017 | R40: =IFERROR(('General Input Sheet'!$G$38/(VLOOKUP(Q40,Histindex,3,FALSE))),1) -> 1 | T40: =IF(S40="",1,VLOOKUP(S40,'Unit Rates - Water'!$H$12:$I$23,2,FALSE)) -> 1 | U40: 0.15 | W40: 34500 | X40: 2022 | Y40: =(1+PPI)^('Future Trunk Assets - Water'!X40-YEAR) -> 1.253683981 | Z40: =IF(X40<YEAR,1,IF('General Input Sheet'!$E$32="WACC1",1/(1+WACC1)^(X40-YEAR), IF('General Input Sheet'!$E$32="WACC2",1/(1+WACC2)^(X40-YEAR),"Check WACC Option in General Input Sheet"))) -> 0.6950665164 | AA40: 0 | AB40: 43252.09735 | AC40: 30063.08463 | AH40: y | BM40: 75 | CM40: 75 | CS40: 30063.08463
C41: W25 | F41: Replace Raw Pumps | M41: =IF(K41="",'Unit Rates - Land'!landcst,IF($E$10="Landuse",VLOOKUP(K41,LAndcost3,2,FALSE),IF($E$10="Location",VLOOKUP(K41,Landcost2,2,FALSE),"Error"))) -> 0 | N41: 0 | O41: 0 | P41: 50000 | Q41: 2017 | R41: =IFERROR(('General Input Sheet'!$G$38/(VLOOKUP(Q41,Histindex,3,FALSE))),1) -> 1 | T41: =IF(S41="",1,VLOOKUP(S41,'Unit Rates - Water'!$H$12:$I$23,2,FALSE)) -> 1 | U41: 0.2 | W41: 60000 | X41: 2028 | Y41: =(1+PPI)^('Future Trunk Assets - Water'!X41-YEAR) -> 1.571723525 | Z41: =IF(X41<YEAR,1,IF('General Input Sheet'!$E$32="WACC1",1/(1+WACC1)^(X41-YEAR), IF('General Input Sheet'!$E$32="WACC2",1/(1+WACC2)^(X41-YEAR),"Check WACC Option in General Input Sheet"))) -> 0.4831174623 | AA41: 0 | AB41: 94303.41148 | AC41: 45559.62484 | AI41: y | BN41: 220 | CM41: 220 | CT41: 45559.62484
C42: W26 | F42: Replace Raw Rising Main | M42: =IF(K42="",'Unit Rates - Land'!landcst,IF($E$10="Landuse",VLOOKUP(K42,LAndcost3,2,FALSE),IF($E$10="Location",VLOOKUP(K42,Landcost2,2,FALSE),"Error"))) -> 0 | N42: 0 | O42: 0 | P42: 150000 | Q42: 2017 | R42: =IFERROR(('General Input Sheet'!$G$38/(VLOOKUP(Q42,Histindex,3,FALSE))),1) -> 1 | T42: =IF(S42="",1,VLOOKUP(S42,'Unit Rates - Water'!$H$12:$I$23,2,FALSE)) -> 1 | U42: 0.2 | W42: 180000 | X42: 2034 | Y42: =(1+PPI)^('Future Trunk Assets - Water'!X42-YEAR) -> 1.970444606 | Z42: =IF(X42<YEAR,1,IF('General Input Sheet'!$E$32="WACC1",1/(1+WACC1)^(X42-YEAR), IF('General Input Sheet'!$E$32="WACC2",1/(1+WACC2)^(X42-YEAR),"Check WACC Option in General Input Sheet"))) -> 0.3357987715 | AA42: 0 | AB42: 354680.029 | AC42: 119101.118 | AI42: y | BN42: 220 | CM42: 220 | CT42: 119101.118
C43: W27 | F43: Replace Pressure pump system | M43: =IF(K43="",'Unit Rates - Land'!landcst,IF($E$10="Landuse",VLOOKUP(K43,LAndcost3,2,FALSE),IF($E$10="Location",VLOOKUP(K43,Landcost2,2,FALSE),"Error"))) -> 0 | N43: 0 | O43: 0 | P43: 30000 | Q43: 2017 | R43: =IFERROR(('General Input Sheet'!$G$38/(VLOOKUP(Q43,Histindex,3,FALSE))),1) -> 1 | T43: =IF(S43="",1,VLOOKUP(S43,'Unit Rates - Water'!$H$12:$I$23,2,FALSE)) -> 1 | U43: 0.15 | W43: 34500 | X43: 2022 | Y43: =(1+PPI)^('Future Trunk Assets - Water'!X43-YEAR) -> 1.253683981 | Z43: =IF(X43<YEAR,1,IF('General Input Sheet'!$E$32="WACC1",1/(1+WACC1)^(X43-YEAR), IF('General Input Sheet'!$E$32="WACC2",1/(1+WACC2)^(X43-YEAR),"Check WACC Option in General Input Sheet"))) -> 0.6950665164 | AA43: 0 | AB43: 43252.09735 | AC43: 30063.08463 | AI43: y | BN43: 220 | CM43: 220 | CT43: 30063.08463
C44: W28 | F44: Replace Bore Rising Main | M44: =IF(K44="",'Unit Rates - Land'!landcst,IF($E$10="Landuse",VLOOKUP(K44,LAndcost3,2,FALSE),IF($E$10="Location",VLOOKUP(K44,Landcost2,2,FALSE),"Error"))) -> 0 | N44: 0 | O44: 0 | P44: 50000 | Q44: 2017 | R44: =IFERROR(('General Input Sheet'!$G$38/(VLOOKUP(Q44,Histindex,3,FALSE))),1) -> 1 | T44: =IF(S44="",1,VLOOKUP(S44,'Unit Rates - Water'!$H$12:$I$23,2,FALSE)) -> 1 | U44: 0.2 | W44: 60000 | X44: 2028 | Y44: =(1+PPI)^('Future Trunk Assets - Water'!X44-YEAR) -> 1.571723525 | Z44: =IF(X44<YEAR,1,IF('General Input Sheet'!$E$32="WACC1",1/(1+WACC1)^(X44-YEAR), IF('General Input Sheet'!$E$32="WACC2",1/(1+WACC2)^(X44-YEAR),"Check WACC Option in General Input Sheet"))) -> 0.4831174623 | AA44: 0 | AB44: 94303.41148 | AC44: 45559.62484 | AI44: y | BN44: 220 | CB44: =IF(AW44="y",CB$16,IF(AND(AW44>0,AW44<=1),AW44*CB$16,"")) ->  | CM44: 220 | CT44: 45559.62484
C45: W29 | F45: Praw Water Pump Replacement | M45: =IF(K45="",'Unit Rates - Land'!landcst,IF($E$10="Landuse",VLOOKUP(K45,LAndcost3,2,FALSE),IF($E$10="Location",VLOOKUP(K45,Landcost2,2,FALSE),"Error"))) -> 0 | N45: 0 | O45: 0 | P45: 60000 | Q45: 2017 | R45: =IFERROR(('General Input Sheet'!$G$38/(VLOOKUP(Q45,Histindex,3,FALSE))),1) -> 1 | T45: =IF(S45="",1,VLOOKUP(S45,'Unit Rates - Water'!$H$12:$I$23,2,FALSE)) -> 1 | U45: 0.2 | W45: 72000 | X45: 2028 | Y45: =(1+PPI)^('Future Trunk Assets - Water'!X45-YEAR) -> 1.571723525 | Z45: =IF(X45<YEAR,1,IF('General Input Sheet'!$E$32="WACC1",1/(1+WACC1)^(X45-YEAR), IF('General Input Sheet'!$E$32="WACC2",1/(1+WACC2)^(X45-YEAR),"Check WACC Option in General Input Sheet"))) -> 0.4831174623 | AA45: 0 | AB45: 113164.0938 | AC45: 54671.5498 | AJ45: y | BO45: 195 | CM45: 195 | CU45: 54671.5498
C46: W30 | F46: Water Quality Upgrade | M46: =IF(K46="",'Unit Rates - Land'!landcst,IF($E$10="Landuse",VLOOKUP(K46,LAndcost3,2,FALSE),IF($E$10="Location",VLOOKUP(K46,Landcost2,2,FALSE),"Error"))) -> 0 | N46: 0 | O46: 0 | P46: 300000 | Q46: 2017 | R46: =IFERROR(('General Input Sheet'!$G$38/(VLOOKUP(Q46,Histindex,3,FALSE))),1) -> 1 | T46: =IF(S46="",1,VLOOKUP(S46,'Unit Rates - Water'!$H$12:$I$23,2,FALSE)) -> 1 | U46: 0.15 | W46: 345000 | X46: 2022 | Y46: =(1+PPI)^('Future Trunk Assets - Water'!X46-YEAR) -> 1.253683981 | Z46: =IF(X46<YEAR,1,IF('General Input Sheet'!$E$32="WACC1",1/(1+WACC1)^(X46-YEAR), IF('General Input Sheet'!$E$32="WACC2",1/(1+WACC2)^(X46-YEAR),"Check WACC Option in General Input Sheet"))) -> 0.6950665164 | AA46: 0 | AB46: 432520.9735 | AC46: 300630.8463 | AJ46: y | BO46: 195 | CM46: =SUM(BI46:CL46) -> 195 | CO46: =IF(BI46="","",(BI46/$CM46)*$AC46) ->  | CP46: =IF(BJ46="","",(BJ46/$CM46)*$AC46) ->  | CQ46: =IF(BK46="","",(BK46/$CM46)*$AC46) ->  | CR46: =IF(BL46="","",(BL46/$CM46)*$AC46) ->  | CS46: =IF(BM46="","",(BM46/$CM46)*$AC46) ->  | CT46: =IF(BN46="","",(BN46/$CM46)*$AC46) ->  | CU46: =IF(BO46="","",(BO46/$CM46)*$AC46) -> 300630.8463 | CV46: =IF(BP46="","",(BP46/$CM46)*$AC46) ->  | CW46: =IF(BQ46="","",(BQ46/$CM46)*$AC46) ->  | CX46: =IF(BR46="","",(BR46/$CM46)*$AC46) ->  | CY46: =IF(BS46="","",(BS46/$CM46)*$AC46) ->  | CZ46: =IF(BT46="","",(BT46/$CM46)*$AC46) ->  | DA46: =IF(BU46="","",(BU46/$CM46)*$AC46) ->  | DB46: =IF(BV46="","",(BV46/$CM46)*$AC46) ->  | DC46: =IF(BW46="","",(BW46/$CM46)*$AC46) ->  | DD46: =IF(BX46="","",(BX46/$CM46)*$AC46) ->  | DE46: =IF(BY46="","",(BY46/$CM46)*$AC46) ->  | DF46: =IF(BZ46="","",(BZ46/$CM46)*$AC46) ->  | DG46: =IF(CA46="","",(CA46/$CM46)*$AC46) ->  | DH46: =IF(CB46="","",(CB46/$CM46)*$AC46) ->  | DI46: =IF(CC46="","",(CC46/$CM46)*$AC46) ->  | DJ46: =IF(CD46="","",(CD46/$CM46)*$AC46) ->  | DK46: =IF(CE46="","",(CE46/$CM46)*$AC46) ->  | DL46: =IF(CF46="","",(CF46/$CM46)*$AC46) ->  | DM46: =IF(CG46="","",(CG46/$CM46)*$AC46) ->  | DN46: =IF(CH46="","",(CH46/$CM46)*$AC46) ->  | DO46: =IF(CI46="","",(CI46/$CM46)*$AC46) ->  | DP46: =IF(CJ46="","",(CJ46/$CM46)*$AC46) ->  | DQ46: =IF(CK46="","",(CK46/$CM46)*$AC46) ->  | DR46: =IF(CL46="","",(CL46/$CM46)*$AC46) ->  | DS46: =IF(SUM(CO46:DR46)=AC46,"","ERROR") -> 
C47: W31 | F47: Pressure Zone implementation | M47: =IF(K47="",'Unit Rates - Land'!landcst,IF($E$10="Landuse",VLOOKUP(K47,LAndcost3,2,FALSE),IF($E$10="Location",VLOOKUP(K47,Landcost2,2,FALSE),"Error"))) -> 0 | N47: 0 | O47: 0 | P47: 400000 | Q47: 2017 | R47: =IFERROR(('General Input Sheet'!$G$38/(VLOOKUP(Q47,Histindex,3,FALSE))),1) -> 1 | T47: =IF(S47="",1,VLOOKUP(S47,'Unit Rates - Water'!$H$12:$I$23,2,FALSE)) -> 1 | U47: 0.2 | W47: 480000 | X47: 2028 | Y47: =(1+PPI)^('Future Trunk Assets - Water'!X47-YEAR) -> 1.571723525 | Z47: =IF(X47<YEAR,1,IF('General Input Sheet'!$E$32="WACC1",1/(1+WACC1)^(X47-YEAR), IF('General Input Sheet'!$E$32="WACC2",1/(1+WACC2)^(X47-YEAR),"Check WACC Option in General Input Sheet"))) -> 0.4831174623 | AA47: 0 | AB47: 754427.2918 | AC47: 364476.9987 | AD47: y | BI47: 5592 | BO47: =IF(AJ47="y",BO$16,IF(AND(AJ47>0,AJ47<=1),AJ47*BO$16,"")) ->  | CM47: 5592 | CO47: 364476.9987
M48: =IF(K48="",'Unit Rates - Land'!landcst,IF($E$10="Landuse",VLOOKUP(K48,LAndcost3,2,FALSE),IF($E$10="Location",VLOOKUP(K48,Landcost2,2,FALSE),"Error"))) -> 0 | N48: 0 | O48: 0 | R48: =IFERROR(('General Input Sheet'!$G$38/(VLOOKUP(Q48,Histindex,3,FALSE))),1) -> 1 | T48: =IF(S48="",1,VLOOKUP(S48,'Unit Rates - Water'!$H$12:$I$23,2,FALSE)) -> 1 | X48: =IF(L48="Passive",(W48*Q48),"") ->  | Y48: =(1+PPI)^('Future Trunk Assets - Water'!X48-YEAR) ->  | Z48: =IF(X48<YEAR,1,IF('General Input Sheet'!$E$32="WACC1",1/(1+WACC1)^(X48-YEAR), IF('General Input Sheet'!$E$32="WACC2",1/(1+WACC2)^(X48-YEAR),"Check WACC Option in General Input Sheet"))) ->  | AA48: 0 | AB48: 0 | AC48: 0 | BI48: =IF(AD48="y",BI$16,IF(AND(AD48>0,AD48<=1),AD48*BI$16,"")) ->  | CM48: 0
M49: =IF(K49="",'Unit Rates - Land'!landcst,IF($E$10="Landuse",VLOOKUP(K49,LAndcost3,2,FALSE),IF($E$10="Location",VLOOKUP(K49,Landcost2,2,FALSE),"Error"))) -> 0 | N49: 0 | O49: 0 | R49: =IFERROR(('General Input Sheet'!$G$38/(VLOOKUP(Q49,Histindex,3,FALSE))),1) -> 1 | T49: =IF(S49="",1,VLOOKUP(S49,'Unit Rates - Water'!$H$12:$I$23,2,FALSE)) -> 1 | Y49: =(1+PPI)^('Future Trunk Assets - Water'!X49-YEAR) ->  | Z49: =IF(X49<YEAR,1,IF('General Input Sheet'!$E$32="WACC1",1/(1+WACC1)^(X49-YEAR), IF('General Input Sheet'!$E$32="WACC2",1/(1+WACC2)^(X49-YEAR),"Check WACC Option in General Input Sheet"))) ->  | AA49: 0 | AB49: 0 | AC49: 0 | CM49: 0
M50: =IF(K50="",'Unit Rates - Land'!landcst,IF($E$10="Landuse",VLOOKUP(K50,LAndcost3,2,FALSE),IF($E$10="Location",VLOOKUP(K50,Landcost2,2,FALSE),"Error"))) -> 0 | N50: 0 | O50: 0 | R50: =IFERROR(('General Input Sheet'!$G$38/(VLOOKUP(Q50,Histindex,3,FALSE))),1) -> 1 | T50: =IF(S50="",1,VLOOKUP(S50,'Unit Rates - Water'!$H$12:$I$23,2,FALSE)) -> 1 | Y50: =(1+PPI)^('Future Trunk Assets - Water'!X50-YEAR) ->  | Z50: =IF(X50<YEAR,1,IF('General Input Sheet'!$E$32="WACC1",1/(1+WACC1)^(X50-YEAR), IF('General Input Sheet'!$E$32="WACC2",1/(1+WACC2)^(X50-YEAR),"Check WACC Option in General Input Sheet"))) ->  | AA50: 0 | AB50: 0 | AC50: 0 | CM50: 0
M51: =IF(K51="",'Unit Rates - Land'!landcst,IF($E$10="Landuse",VLOOKUP(K51,LAndcost3,2,FALSE),IF($E$10="Location",VLOOKUP(K51,Landcost2,2,FALSE),"Error"))) -> 0 | N51: 0 | O51: 0 | R51: =IFERROR(('General Input Sheet'!$G$38/(VLOOKUP(Q51,Histindex,3,FALSE))),1) -> 1 | T51: =IF(S51="",1,VLOOKUP(S51,'Unit Rates - Water'!$H$12:$I$23,2,FALSE)) -> 1 | Y51: =(1+PPI)^('Future Trunk Assets - Water'!X51-YEAR) ->  | Z51: =IF(X51<YEAR,1,IF('General Input Sheet'!$E$32="WACC1",1/(1+WACC1)^(X51-YEAR), IF('General Input Sheet'!$E$32="WACC2",1/(1+WACC2)^(X51-YEAR),"Check WACC Option in General Input Sheet"))) ->  | AA51: 0 | AB51: 0 | AC51: 0 | CM51: 0
M52: =IF(K52="",'Unit Rates - Land'!landcst,IF($E$10="Landuse",VLOOKUP(K52,LAndcost3,2,FALSE),IF($E$10="Location",VLOOKUP(K52,Landcost2,2,FALSE),"Error"))) -> 0 | N52: 0 | O52: 0 | R52: =IFERROR(('General Input Sheet'!$G$38/(VLOOKUP(Q52,Histindex,3,FALSE))),1) -> 1 | T52: =IF(S52="",1,VLOOKUP(S52,'Unit Rates - Water'!$H$12:$I$23,2,FALSE)) -> 1 | Y52: =(1+PPI)^('Future Trunk Assets - Water'!X52-YEAR) ->  | Z52: =IF(X52<YEAR,1,IF('General Input Sheet'!$E$32="WACC1",1/(1+WACC1)^(X52-YEAR), IF('General Input Sheet'!$E$32="WACC2",1/(1+WACC2)^(X52-YEAR),"Check WACC Option in General Input Sheet"))) ->  | AA52: 0 | AB52: 0 | AC52: 0 | CM52: 0
M53: =IF(K53="",'Unit Rates - Land'!landcst,IF($E$10="Landuse",VLOOKUP(K53,LAndcost3,2,FALSE),IF($E$10="Location",VLOOKUP(K53,Landcost2,2,FALSE),"Error"))) -> 0 | N53: 0 | O53: 0 | R53: =IFERROR(('General Input Sheet'!$G$38/(VLOOKUP(Q53,Histindex,3,FALSE))),1) -> 1 | T53: =IF(S53="",1,VLOOKUP(S53,'Unit Rates - Water'!$H$12:$I$23,2,FALSE)) -> 1 | Y53: =(1+PPI)^('Future Trunk Assets - Water'!X53-YEAR) ->  | Z53: =IF(X53<YEAR,1,IF('General Input Sheet'!$E$32="WACC1",1/(1+WACC1)^(X53-YEAR), IF('General Input Sheet'!$E$32="WACC2",1/(1+WACC2)^(X53-YEAR),"Check WACC Option in General Input Sheet"))) ->  | AA53: 0 | AB53: 0 | AC53: 0 | CM53: 0
M54: =IF(K54="",'Unit Rates - Land'!landcst,IF($E$10="Landuse",VLOOKUP(K54,LAndcost3,2,FALSE),IF($E$10="Location",VLOOKUP(K54,Landcost2,2,FALSE),"Error"))) -> 0 | N54: 0 | O54: 0 | R54: =IFERROR(('General Input Sheet'!$G$38/(VLOOKUP(Q54,Histindex,3,FALSE))),1) -> 1 | T54: =IF(S54="",1,VLOOKUP(S54,'Unit Rates - Water'!$H$12:$I$23,2,FALSE)) -> 1 | Y54: =(1+PPI)^('Future Trunk Assets - Water'!X54-YEAR) ->  | Z54: =IF(X54<YEAR,1,IF('General Input Sheet'!$E$32="WACC1",1/(1+WACC1)^(X54-YEAR), IF('General Input Sheet'!$E$32="WACC2",1/(1+WACC2)^(X54-YEAR),"Check WACC Option in General Input Sheet"))) ->  | AA54: 0 | AB54: 0 | AC54: 0 | CM54: 0
M55: =IF(K55="",'Unit Rates - Land'!landcst,IF($E$10="Landuse",VLOOKUP(K55,LAndcost3,2,FALSE),IF($E$10="Location",VLOOKUP(K55,Landcost2,2,FALSE),"Error"))) -> 0 | N55: 0 | O55: 0 | R55: =IFERROR(('General Input Sheet'!$G$38/(VLOOKUP(Q55,Histindex,3,FALSE))),1) -> 1 | T55: =IF(S55="",1,VLOOKUP(S55,'Unit Rates - Water'!$H$12:$I$23,2,FALSE)) -> 1 | Y55: =(1+PPI)^('Future Trunk Assets - Water'!X55-YEAR) ->  | Z55: =IF(X55<YEAR,1,IF('General Input Sheet'!$E$32="WACC1",1/(1+WACC1)^(X55-YEAR), IF('General Input Sheet'!$E$32="WACC2",1/(1+WACC2)^(X55-YEAR),"Check WACC Option in General Input Sheet"))) ->  | AA55: 0 | AB55: 0 | AC55: 0 | CM55: 0
M56: =IF(K56="",'Unit Rates - Land'!landcst,IF($E$10="Landuse",VLOOKUP(K56,LAndcost3,2,FALSE),IF($E$10="Location",VLOOKUP(K56,Landcost2,2,FALSE),"Error"))) -> 0 | N56: 0 | O56: 0 | R56: =IFERROR(('General Input Sheet'!$G$38/(VLOOKUP(Q56,Histindex,3,FALSE))),1) -> 1 | T56: =IF(S56="",1,VLOOKUP(S56,'Unit Rates - Water'!$H$12:$I$23,2,FALSE)) -> 1 | Y56: =(1+PPI)^('Future Trunk Assets - Water'!X56-YEAR) ->  | Z56: =IF(X56<YEAR,1,IF('General Input Sheet'!$E$32="WACC1",1/(1+WACC1)^(X56-YEAR), IF('General Input Sheet'!$E$32="WACC2",1/(1+WACC2)^(X56-YEAR),"Check WACC Option in General Input Sheet"))) ->  | AA56: 0 | AB56: 0 | AC56: 0 | BV56: =IF(AQ56="y",BV$16,IF(AND(AQ56>0,AQ56<=1),AQ56*BV$16,"")) ->  | CM56: 0
M57: =IF(K57="",'Unit Rates - Land'!landcst,IF($E$10="Landuse",VLOOKUP(K57,LAndcost3,2,FALSE),IF($E$10="Location",VLOOKUP(K57,Landcost2,2,FALSE),"Error"))) -> 0 | N57: 0 | O57: 0 | R57: =IFERROR(('General Input Sheet'!$G$38/(VLOOKUP(Q57,Histindex,3,FALSE))),1) -> 1 | T57: =IF(S57="",1,VLOOKUP(S57,'Unit Rates - Water'!$H$12:$I$23,2,FALSE)) -> 1 | Y57: =(1+PPI)^('Future Trunk Assets - Water'!X57-YEAR) ->  | Z57: =IF(X57<YEAR,1,IF('General Input Sheet'!$E$32="WACC1",1/(1+WACC1)^(X57-YEAR), IF('General Input Sheet'!$E$32="WACC2",1/(1+WACC2)^(X57-YEAR),"Check WACC Option in General Input Sheet"))) ->  | AA57: 0 | AB57: 0 | AC57: 0 | CM57: =SUM(BI57:CL57) -> 0 | CO57: =IF(BI57="","",(BI57/$CM57)*$AC57) ->  | CP57: =IF(BJ57="","",(BJ57/$CM57)*$AC57) ->  | CQ57: =IF(BK57="","",(BK57/$CM57)*$AC57) ->  | CR57: =IF(BL57="","",(BL57/$CM57)*$AC57) ->  | CS57: =IF(BM57="","",(BM57/$CM57)*$AC57) ->  | CT57: =IF(BN57="","",(BN57/$CM57)*$AC57) ->  | CU57: =IF(BO57="","",(BO57/$CM57)*$AC57) ->  | CV57: =IF(BP57="","",(BP57/$CM57)*$AC57) ->  | CW57: =IF(BQ57="","",(BQ57/$CM57)*$AC57) ->  | CX57: =IF(BR57="","",(BR57/$CM57)*$AC57) ->  | CY57: =IF(BS57="","",(BS57/$CM57)*$AC57) ->  | CZ57: =IF(BT57="","",(BT57/$CM57)*$AC57) ->  | DA57: =IF(BU57="","",(BU57/$CM57)*$AC57) ->  | DB57: =IF(BV57="","",(BV57/$CM57)*$AC57) ->  | DC57: =IF(BW57="","",(BW57/$CM57)*$AC57) ->  | DD57: =IF(BX57="","",(BX57/$CM57)*$AC57) ->  | DE57: =IF(BY57="","",(BY57/$CM57)*$AC57) ->  | DF57: =IF(BZ57="","",(BZ57/$CM57)*$AC57) ->  | DG57: =IF(CA57="","",(CA57/$CM57)*$AC57) ->  | DH57: =IF(CB57="","",(CB57/$CM57)*$AC57) ->  | DI57: =IF(CC57="","",(CC57/$CM57)*$AC57) ->  | DJ57: =IF(CD57="","",(CD57/$CM57)*$AC57) ->  | DK57: =IF(CE57="","",(CE57/$CM57)*$AC57) ->  | DL57: =IF(CF57="","",(CF57/$CM57)*$AC57) ->  | DM57: =IF(CG57="","",(CG57/$CM57)*$AC57) ->  | DN57: =IF(CH57="","",(CH57/$CM57)*$AC57) ->  | DO57: =IF(CI57="","",(CI57/$CM57)*$AC57) ->  | DP57: =IF(CJ57="","",(CJ57/$CM57)*$AC57) ->  | DQ57: =IF(CK57="","",(CK57/$CM57)*$AC57) ->  | DR57: =IF(CL57="","",(CL57/$CM57)*$AC57) ->  | DS57: =IF(SUM(CO57:DR57)=AC57,"","ERROR") -> 
M58: =IF(K58="",'Unit Rates - Land'!landcst,IF($E$10="Landuse",VLOOKUP(K58,LAndcost3,2,FALSE),IF($E$10="Location",VLOOKUP(K58,Landcost2,2,FALSE),"Error"))) -> 0 | N58: 0 | O58: 0 | R58: =IFERROR(('General Input Sheet'!$G$38/(VLOOKUP(Q58,Histindex,3,FALSE))),1) -> 1 | T58: =IF(S58="",1,VLOOKUP(S58,'Unit Rates - Water'!$H$12:$I$23,2,FALSE)) -> 1 | Y58: =(1+PPI)^('Future Trunk Assets - Water'!X58-YEAR) ->  | Z58: =IF(X58<YEAR,1,IF('General Input Sheet'!$E$32="WACC1",1/(1+WACC1)^(X58-YEAR), IF('General Input Sheet'!$E$32="WACC2",1/(1+WACC2)^(X58-YEAR),"Check WACC Option in General Input Sheet"))) ->  | AA58: 0 | AB58: 0 | AC58: 0 | CM58: 0
M59: =IF(K59="",'Unit Rates - Land'!landcst,IF($E$10="Landuse",VLOOKUP(K59,LAndcost3,2,FALSE),IF($E$10="Location",VLOOKUP(K59,Landcost2,2,FALSE),"Error"))) -> 0 | N59: 0 | O59: 0 | R59: =IFERROR(('General Input Sheet'!$G$38/(VLOOKUP(Q59,Histindex,3,FALSE))),1) -> 1 | T59: =IF(S59="",1,VLOOKUP(S59,'Unit Rates - Water'!$H$12:$I$23,2,FALSE)) -> 1 | Y59: =(1+PPI)^('Future Trunk Assets - Water'!X59-YEAR) ->  | Z59: =IF(X59<YEAR,1,IF('General Input Sheet'!$E$32="WACC1",1/(1+WACC1)^(X59-YEAR), IF('General Input Sheet'!$E$32="WACC2",1/(1+WACC2)^(X59-YEAR),"Check WACC Option in General Input Sheet"))) ->  | AA59: 0 | AB59: 0 | AC59: 0 | CM59: 0
M60: =IF(K60="",'Unit Rates - Land'!landcst,IF($E$10="Landuse",VLOOKUP(K60,LAndcost3,2,FALSE),IF($E$10="Location",VLOOKUP(K60,Landcost2,2,FALSE),"Error"))) -> 0 | N60: 0 | O60: 0 | R60: =IFERROR(('General Input Sheet'!$G$38/(VLOOKUP(Q60,Histindex,3,FALSE))),1) -> 1 | T60: =IF(S60="",1,VLOOKUP(S60,'Unit Rates - Water'!$H$12:$I$23,2,FALSE)) -> 1 | Y60: =(1+PPI)^('Future Trunk Assets - Water'!X60-YEAR) ->  | Z60: =IF(X60<YEAR,1,IF('General Input Sheet'!$E$32="WACC1",1/(1+WACC1)^(X60-YEAR), IF('General Input Sheet'!$E$32="WACC2",1/(1+WACC2)^(X60-YEAR),"Check WACC Option in General Input Sheet"))) ->  | AA60: 0 | AB60: 0 | AC60: 0 | CM60: 0
M61: =IF(K61="",'Unit Rates - Land'!landcst,IF($E$10="Landuse",VLOOKUP(K61,LAndcost3,2,FALSE),IF($E$10="Location",VLOOKUP(K61,Landcost2,2,FALSE),"Error"))) -> 0 | N61: 0 | O61: 0 | R61: =IFERROR(('General Input Sheet'!$G$38/(VLOOKUP(Q61,Histindex,3,FALSE))),1) -> 1 | T61: =IF(S61="",1,VLOOKUP(S61,'Unit Rates - Water'!$H$12:$I$23,2,FALSE)) -> 1 | Y61: =(1+PPI)^('Future Trunk Assets - Water'!X61-YEAR) ->  | Z61: =IF(X61<YEAR,1,IF('General Input Sheet'!$E$32="WACC1",1/(1+WACC1)^(X61-YEAR), IF('General Input Sheet'!$E$32="WACC2",1/(1+WACC2)^(X61-YEAR),"Check WACC Option in General Input Sheet"))) ->  | AA61: 0 | AB61: 0 | AC61: 0 | CM61: 0
M62: =IF(K62="",'Unit Rates - Land'!landcst,IF($E$10="Landuse",VLOOKUP(K62,LAndcost3,2,FALSE),IF($E$10="Location",VLOOKUP(K62,Landcost2,2,FALSE),"Error"))) -> 0 | N62: 0 | O62: 0 | R62: =IFERROR(('General Input Sheet'!$G$38/(VLOOKUP(Q62,Histindex,3,FALSE))),1) -> 1 | T62: =IF(S62="",1,VLOOKUP(S62,'Unit Rates - Water'!$H$12:$I$23,2,FALSE)) -> 1 | Y62: =(1+PPI)^('Future Trunk Assets - Water'!X62-YEAR) ->  | Z62: =IF(X62<YEAR,1,IF('General Input Sheet'!$E$32="WACC1",1/(1+WACC1)^(X62-YEAR), IF('General Input Sheet'!$E$32="WACC2",1/(1+WACC2)^(X62-YEAR),"Check WACC Option in General Input Sheet"))) ->  | AA62: 0 | AB62: 0 | AC62: 0 | CM62: 0
M63: =IF(K63="",'Unit Rates - Land'!landcst,IF($E$10="Landuse",VLOOKUP(K63,LAndcost3,2,FALSE),IF($E$10="Location",VLOOKUP(K63,Landcost2,2,FALSE),"Error"))) -> 0 | N63: 0 | O63: 0 | R63: =IFERROR(('General Input Sheet'!$G$38/(VLOOKUP(Q63,Histindex,3,FALSE))),1) -> 1 | T63: =IF(S63="",1,VLOOKUP(S63,'Unit Rates - Water'!$H$12:$I$23,2,FALSE)) -> 1 | Y63: =(1+PPI)^('Future Trunk Assets - Water'!X63-YEAR) ->  | Z63: =IF(X63<YEAR,1,IF('General Input Sheet'!$E$32="WACC1",1/(1+WACC1)^(X63-YEAR), IF('General Input Sheet'!$E$32="WACC2",1/(1+WACC2)^(X63-YEAR),"Check WACC Option in General Input Sheet"))) ->  | AA63: 0 | AB63: 0 | AC63: 0 | CM63: 0
M64: =IF(K64="",'Unit Rates - Land'!landcst,IF($E$10="Landuse",VLOOKUP(K64,LAndcost3,2,FALSE),IF($E$10="Location",VLOOKUP(K64,Landcost2,2,FALSE),"Error"))) -> 0 | N64: 0 | O64: 0 | R64: =IFERROR(('General Input Sheet'!$G$38/(VLOOKUP(Q64,Histindex,3,FALSE))),1) -> 1 | T64: =IF(S64="",1,VLOOKUP(S64,'Unit Rates - Water'!$H$12:$I$23,2,FALSE)) -> 1 | Y64: =(1+PPI)^('Future Trunk Assets - Water'!X64-YEAR) ->  | Z64: =IF(X64<YEAR,1,IF('General Input Sheet'!$E$32="WACC1",1/(1+WACC1)^(X64-YEAR), IF('General Input Sheet'!$E$32="WACC2",1/(1+WACC2)^(X64-YEAR),"Check WACC Option in General Input Sheet"))) ->  | AA64: 0 | AB64: 0 | AC64: 0 | CM64: 0
M65: =IF(K65="",'Unit Rates - Land'!landcst,IF($E$10="Landuse",VLOOKUP(K65,LAndcost3,2,FALSE),IF($E$10="Location",VLOOKUP(K65,Landcost2,2,FALSE),"Error"))) -> 0 | N65: 0 | O65: 0 | R65: =IFERROR(('General Input Sheet'!$G$38/(VLOOKUP(Q65,Histindex,3,FALSE))),1) -> 1 | T65: =IF(S65="",1,VLOOKUP(S65,'Unit Rates - Water'!$H$12:$I$23,2,FALSE)) -> 1 | Y65: =(1+PPI)^('Future Trunk Assets - Water'!X65-YEAR) ->  | Z65: =IF(X65<YEAR,1,IF('General Input Sheet'!$E$32="WACC1",1/(1+WACC1)^(X65-YEAR), IF('General Input Sheet'!$E$32="WACC2",1/(1+WACC2)^(X65-YEAR),"Check WACC Option in General Input Sheet"))) ->  | AA65: 0 | AB65: 0 | AC65: 0 | CM65: 0
M66: =IF(K66="",'Unit Rates - Land'!landcst,IF($E$10="Landuse",VLOOKUP(K66,LAndcost3,2,FALSE),IF($E$10="Location",VLOOKUP(K66,Landcost2,2,FALSE),"Error"))) -> 0 | N66: 0 | O66: =IF(H66=TYPE1,VLOOKUP(J66,WaterUnitrates1,2,FALSE),IF(H66=TYPE2,VLOOKUP(J66,Unitrates2,2,FALSE),0)) -> 0 | R66: =IFERROR(('General Input Sheet'!$G$38/(VLOOKUP(Q66,Histindex,3,FALSE))),1) -> 1 | T66: =IF(S66="",1,VLOOKUP(S66,'Unit Rates - Water'!$H$12:$I$23,2,FALSE)) -> 1 | U66: =IF(X66="","",IF(X66<=YEAR+5,0.075,IF(AND(X66>YEAR+5,X66<=YEAR+10),0.15,IF(AND(X66>YEAR+10,X66<=YEAR+20),0.2,IF(X66>YEAR+20,0.25,""))))) ->  | Y66: =(1+PPI)^('Future Trunk Assets - Water'!X66-YEAR) ->  | Z66: =IF(X66<YEAR,1,IF('General Input Sheet'!$E$32="WACC1",1/(1+WACC1)^(X66-YEAR), IF('General Input Sheet'!$E$32="WACC2",1/(1+WACC2)^(X66-YEAR),"Check WACC Option in General Input Sheet"))) ->  | AA66: 0 | AB66: =IFERROR((W66*Y66*(1-AA66)+(N66*((1+Landind)^(X66-YEAR)))),0) -> 0 | AC66: 0 | CM66: 0
M67: =IF(K67="",'Unit Rates - Land'!landcst,IF($E$10="Landuse",VLOOKUP(K67,LAndcost3,2,FALSE),IF($E$10="Location",VLOOKUP(K67,Landcost2,2,FALSE),"Error"))) -> 0 | N67: =IF(M67="",0,M67*10000*L67) -> 0 | O67: 0 | R67: =IFERROR(('General Input Sheet'!$G$38/(VLOOKUP(Q67,Histindex,3,FALSE))),1) -> 1 | T67: =IF(S67="",1,VLOOKUP(S67,'Unit Rates - Water'!$H$12:$I$23,2,FALSE)) -> 1 | W67: =IFERROR(IF(P67="","",P67*T67*(1+U67)*(1+V67)*R67),"") ->  | Y67: =(1+PPI)^('Future Trunk Assets - Water'!X67-YEAR) ->  | Z67: =IF(X67<YEAR,1,IF('General Input Sheet'!$E$32="WACC1",1/(1+WACC1)^(X67-YEAR), IF('General Input Sheet'!$E$32="WACC2",1/(1+WACC2)^(X67-YEAR),"Check WACC Option in General Input Sheet"))) ->  | AA67: 0 | AB67: 0 | AC67: =IFERROR(AB67*Z67,0) -> 0 | CM67: 0
M68: =IF(K68="",'Unit Rates - Land'!landcst,IF($E$10="Landuse",VLOOKUP(K68,LAndcost3,2,FALSE),IF($E$10="Location",VLOOKUP(K68,Landcost2,2,FALSE),"Error"))) -> 0 | N68: 0 | O68: 0 | R68: =IFERROR(('General Input Sheet'!$G$38/(VLOOKUP(Q68,Histindex,3,FALSE))),1) -> 1 | T68: =IF(S68="",1,VLOOKUP(S68,'Unit Rates - Water'!$H$12:$I$23,2,FALSE)) -> 1 | Y68: =(1+PPI)^('Future Trunk Assets - Water'!X68-YEAR) ->  | Z68: =IF(X68<YEAR,1,IF('General Input Sheet'!$E$32="WACC1",1/(1+WACC1)^(X68-YEAR), IF('General Input Sheet'!$E$32="WACC2",1/(1+WACC2)^(X68-YEAR),"Check WACC Option in General Input Sheet"))) ->  | AA68: 0 | AB68: 0 | AC68: 0 | CM68: 0
M69: =IF(K69="",'Unit Rates - Land'!landcst,IF($E$10="Landuse",VLOOKUP(K69,LAndcost3,2,FALSE),IF($E$10="Location",VLOOKUP(K69,Landcost2,2,FALSE),"Error"))) -> 0 | N69: 0 | O69: 0 | R69: =IFERROR(('General Input Sheet'!$G$38/(VLOOKUP(Q69,Histindex,3,FALSE))),1) -> 1 | T69: =IF(S69="",1,VLOOKUP(S69,'Unit Rates - Water'!$H$12:$I$23,2,FALSE)) -> 1 | Y69: =(1+PPI)^('Future Trunk Assets - Water'!X69-YEAR) ->  | Z69: =IF(X69<YEAR,1,IF('General Input Sheet'!$E$32="WACC1",1/(1+WACC1)^(X69-YEAR), IF('General Input Sheet'!$E$32="WACC2",1/(1+WACC2)^(X69-YEAR),"Check WACC Option in General Input Sheet"))) ->  | AA69: 0 | AB69: 0 | AC69: 0 | CM69: 0
M70: =IF(K70="",'Unit Rates - Land'!landcst,IF($E$10="Landuse",VLOOKUP(K70,LAndcost3,2,FALSE),IF($E$10="Location",VLOOKUP(K70,Landcost2,2,FALSE),"Error"))) -> 0 | N70: 0 | O70: 0 | R70: =IFERROR(('General Input Sheet'!$G$38/(VLOOKUP(Q70,Histindex,3,FALSE))),1) -> 1 | T70: =IF(S70="",1,VLOOKUP(S70,'Unit Rates - Water'!$H$12:$I$23,2,FALSE)) -> 1 | Y70: =(1+PPI)^('Future Trunk Assets - Water'!X70-YEAR) ->  | Z70: =IF(X70<YEAR,1,IF('General Input Sheet'!$E$32="WACC1",1/(1+WACC1)^(X70-YEAR), IF('General Input Sheet'!$E$32="WACC2",1/(1+WACC2)^(X70-YEAR),"Check WACC Option in General Input Sheet"))) ->  | AA70: 0 | AB70: 0 | AC70: 0 | CM70: 0
M71: =IF(K71="",'Unit Rates - Land'!landcst,IF($E$10="Landuse",VLOOKUP(K71,LAndcost3,2,FALSE),IF($E$10="Location",VLOOKUP(K71,Landcost2,2,FALSE),"Error"))) -> 0 | N71: 0 | O71: 0 | R71: =IFERROR(('General Input Sheet'!$G$38/(VLOOKUP(Q71,Histindex,3,FALSE))),1) -> 1 | T71: =IF(S71="",1,VLOOKUP(S71,'Unit Rates - Water'!$H$12:$I$23,2,FALSE)) -> 1 | Y71: =(1+PPI)^('Future Trunk Assets - Water'!X71-YEAR) ->  | Z71: =IF(X71<YEAR,1,IF('General Input Sheet'!$E$32="WACC1",1/(1+WACC1)^(X71-YEAR), IF('General Input Sheet'!$E$32="WACC2",1/(1+WACC2)^(X71-YEAR),"Check WACC Option in General Input Sheet"))) ->  | AA71: 0 | AB71: 0 | AC71: 0 | CM71: 0
M72: =IF(K72="",'Unit Rates - Land'!landcst,IF($E$10="Landuse",VLOOKUP(K72,LAndcost3,2,FALSE),IF($E$10="Location",VLOOKUP(K72,Landcost2,2,FALSE),"Error"))) -> 0 | N72: 0 | O72: 0 | R72: =IFERROR(('General Input Sheet'!$G$38/(VLOOKUP(Q72,Histindex,3,FALSE))),1) -> 1 | T72: =IF(S72="",1,VLOOKUP(S72,'Unit Rates - Water'!$H$12:$I$23,2,FALSE)) -> 1 | Y72: =(1+PPI)^('Future Trunk Assets - Water'!X72-YEAR) ->  | Z72: =IF(X72<YEAR,1,IF('General Input Sheet'!$E$32="WACC1",1/(1+WACC1)^(X72-YEAR), IF('General Input Sheet'!$E$32="WACC2",1/(1+WACC2)^(X72-YEAR),"Check WACC Option in General Input Sheet"))) ->  | AA72: 0 | AB72: 0 | AC72: 0 | CM72: 0
M73: =IF(K73="",'Unit Rates - Land'!landcst,IF($E$10="Landuse",VLOOKUP(K73,LAndcost3,2,FALSE),IF($E$10="Location",VLOOKUP(K73,Landcost2,2,FALSE),"Error"))) -> 0 | N73: 0 | O73: 0 | R73: =IFERROR(('General Input Sheet'!$G$38/(VLOOKUP(Q73,Histindex,3,FALSE))),1) -> 1 | T73: =IF(S73="",1,VLOOKUP(S73,'Unit Rates - Water'!$H$12:$I$23,2,FALSE)) -> 1 | Y73: =(1+PPI)^('Future Trunk Assets - Water'!X73-YEAR) ->  | Z73: =IF(X73<YEAR,1,IF('General Input Sheet'!$E$32="WACC1",1/(1+WACC1)^(X73-YEAR), IF('General Input Sheet'!$E$32="WACC2",1/(1+WACC2)^(X73-YEAR),"Check WACC Option in General Input Sheet"))) ->  | AA73: 0 | AB73: 0 | AC73: 0 | CM73: 0
M74: =IF(K74="",'Unit Rates - Land'!landcst,IF($E$10="Landuse",VLOOKUP(K74,LAndcost3,2,FALSE),IF($E$10="Location",VLOOKUP(K74,Landcost2,2,FALSE),"Error"))) -> 0 | N74: 0 | O74: 0 | R74: =IFERROR(('General Input Sheet'!$G$38/(VLOOKUP(Q74,Histindex,3,FALSE))),1) -> 1 | T74: =IF(S74="",1,VLOOKUP(S74,'Unit Rates - Water'!$H$12:$I$23,2,FALSE)) -> 1 | Y74: =(1+PPI)^('Future Trunk Assets - Water'!X74-YEAR) -> 1.020484038e-33 | Z74: =IF(X74<YEAR,1,IF('General Input Sheet'!$E$32="WACC1",1/(1+WACC1)^(X74-YEAR), IF('General Input Sheet'!$E$32="WACC2",1/(1+WACC2)^(X74-YEAR),"Check WACC Option in General Input Sheet"))) -> 1 | AA74: 0 | AB74: 0 | AC74: 0 | CM74: 0
M75: =IF(K75="",'Unit Rates - Land'!landcst,IF($E$10="Landuse",VLOOKUP(K75,LAndcost3,2,FALSE),IF($E$10="Location",VLOOKUP(K75,Landcost2,2,FALSE),"Error"))) -> 0 | N75: 0 | O75: 0 | R75: =IFERROR(('General Input Sheet'!$G$38/(VLOOKUP(Q75,Histindex,3,FALSE))),1) -> 1 | T75: =IF(S75="",1,VLOOKUP(S75,'Unit Rates - Water'!$H$12:$I$23,2,FALSE)) -> 1 | Y75: =(1+PPI)^('Future Trunk Assets - Water'!X75-YEAR) -> 1.020484038e-33 | Z75: =IF(X75<YEAR,1,IF('General Input Sheet'!$E$32="WACC1",1/(1+WACC1)^(X75-YEAR), IF('General Input Sheet'!$E$32="WACC2",1/(1+WACC2)^(X75-YEAR),"Check WACC Option in General Input Sheet"))) -> 1 | AA75: 0 | AB75: 0 | AC75: 0 | CI75: =IF(BD75="y",CI$16,IF(AND(BD75>0,BD75<=1),BD75*CI$16,"")) ->  | CM75: 0
M76: =IF(K76="",'Unit Rates - Land'!landcst,IF($E$10="Landuse",VLOOKUP(K76,LAndcost3,2,FALSE),IF($E$10="Location",VLOOKUP(K76,Landcost2,2,FALSE),"Error"))) -> 0 | N76: 0 | O76: 0 | R76: =IFERROR(('General Input Sheet'!$G$38/(VLOOKUP(Q76,Histindex,3,FALSE))),1) -> 1 | T76: =IF(S76="",1,VLOOKUP(S76,'Unit Rates - Water'!$H$12:$I$23,2,FALSE)) -> 1 | Y76: =(1+PPI)^('Future Trunk Assets - Water'!X76-YEAR) -> 1.020484038e-33 | Z76: =IF(X76<YEAR,1,IF('General Input Sheet'!$E$32="WACC1",1/(1+WACC1)^(X76-YEAR), IF('General Input Sheet'!$E$32="WACC2",1/(1+WACC2)^(X76-YEAR),"Check WACC Option in General Input Sheet"))) -> 1 | AA76: 0 | AB76: 0 | AC76: 0 | CM76: 0
M77: =IF(K77="",'Unit Rates - Land'!landcst,IF($E$10="Landuse",VLOOKUP(K77,LAndcost3,2,FALSE),IF($E$10="Location",VLOOKUP(K77,Landcost2,2,FALSE),"Error"))) -> 0 | N77: 0 | O77: 0 | R77: =IFERROR(('General Input Sheet'!$G$38/(VLOOKUP(Q77,Histindex,3,FALSE))),1) -> 1 | T77: =IF(S77="",1,VLOOKUP(S77,'Unit Rates - Water'!$H$12:$I$23,2,FALSE)) -> 1 | Y77: =(1+PPI)^('Future Trunk Assets - Water'!X77-YEAR) -> 1.020484038e-33 | Z77: =IF(X77<YEAR,1,IF('General Input Sheet'!$E$32="WACC1",1/(1+WACC1)^(X77-YEAR), IF('General Input Sheet'!$E$32="WACC2",1/(1+WACC2)^(X77-YEAR),"Check WACC Option in General Input Sheet"))) -> 1 | AA77: 0 | AB77: 0 | AC77: 0 | CM77: 0
M78: =IF(K78="",'Unit Rates - Land'!landcst,IF($E$10="Landuse",VLOOKUP(K78,LAndcost3,2,FALSE),IF($E$10="Location",VLOOKUP(K78,Landcost2,2,FALSE),"Error"))) -> 0 | N78: 0 | O78: 0 | R78: =IFERROR(('General Input Sheet'!$G$38/(VLOOKUP(Q78,Histindex,3,FALSE))),1) -> 1 | T78: =IF(S78="",1,VLOOKUP(S78,'Unit Rates - Water'!$H$12:$I$23,2,FALSE)) -> 1 | Y78: =(1+PPI)^('Future Trunk Assets - Water'!X78-YEAR) -> 1.020484038e-33 | Z78: =IF(X78<YEAR,1,IF('General Input Sheet'!$E$32="WACC1",1/(1+WACC1)^(X78-YEAR), IF('General Input Sheet'!$E$32="WACC2",1/(1+WACC2)^(X78-YEAR),"Check WACC Option in General Input Sheet"))) -> 1 | AA78: 0 | AB78: 0 | AC78: 0 | CM78: 0
M79: =IF(K79="",'Unit Rates - Land'!landcst,IF($E$10="Landuse",VLOOKUP(K79,LAndcost3,2,FALSE),IF($E$10="Location",VLOOKUP(K79,Landcost2,2,FALSE),"Error"))) -> 0 | N79: 0 | O79: 0 | R79: =IFERROR(('General Input Sheet'!$G$38/(VLOOKUP(Q79,Histindex,3,FALSE))),1) -> 1 | T79: =IF(S79="",1,VLOOKUP(S79,'Unit Rates - Water'!$H$12:$I$23,2,FALSE)) -> 1 | Y79: =(1+PPI)^('Future Trunk Assets - Water'!X79-YEAR) -> 1.020484038e-33 | Z79: =IF(X79<YEAR,1,IF('General Input Sheet'!$E$32="WACC1",1/(1+WACC1)^(X79-YEAR), IF('General Input Sheet'!$E$32="WACC2",1/(1+WACC2)^(X79-YEAR),"Check WACC Option in General Input Sheet"))) -> 1 | AA79: 0 | AB79: 0 | AC79: 0 | CM79: 0
M80: =IF(K80="",'Unit Rates - Land'!landcst,IF($E$10="Landuse",VLOOKUP(K80,LAndcost3,2,FALSE),IF($E$10="Location",VLOOKUP(K80,Landcost2,2,FALSE),"Error"))) -> 0 | N80: 0 | O80: 0 | R80: =IFERROR(('General Input Sheet'!$G$38/(VLOOKUP(Q80,Histindex,3,FALSE))),1) -> 1 | T80: =IF(S80="",1,VLOOKUP(S80,'Unit Rates - Water'!$H$12:$I$23,2,FALSE)) -> 1 | Y80: =(1+PPI)^('Future Trunk Assets - Water'!X80-YEAR) -> 1.020484038e-33 | Z80: =IF(X80<YEAR,1,IF('General Input Sheet'!$E$32="WACC1",1/(1+WACC1)^(X80-YEAR), IF('General Input Sheet'!$E$32="WACC2",1/(1+WACC2)^(X80-YEAR),"Check WACC Option in General Input Sheet"))) -> 1 | AA80: 0 | AB80: 0 | AC80: 0 | CM80: 0
M81: =IF(K81="",'Unit Rates - Land'!landcst,IF($E$10="Landuse",VLOOKUP(K81,LAndcost3,2,FALSE),IF($E$10="Location",VLOOKUP(K81,Landcost2,2,FALSE),"Error"))) -> 0 | N81: 0 | O81: 0 | R81: =IFERROR(('General Input Sheet'!$G$38/(VLOOKUP(Q81,Histindex,3,FALSE))),1) -> 1 | T81: =IF(S81="",1,VLOOKUP(S81,'Unit Rates - Water'!$H$12:$I$23,2,FALSE)) -> 1 | Y81: =(1+PPI)^('Future Trunk Assets - Water'!X81-YEAR) -> 1.020484038e-33 | Z81: =IF(X81<YEAR,1,IF('General Input Sheet'!$E$32="WACC1",1/(1+WACC1)^(X81-YEAR), IF('General Input Sheet'!$E$32="WACC2",1/(1+WACC2)^(X81-YEAR),"Check WACC Option in General Input Sheet"))) -> 1 | AA81: 0 | AB81: 0 | AC81: 0 | CM81: 0
M82: =IF(K82="",'Unit Rates - Land'!landcst,IF($E$10="Landuse",VLOOKUP(K82,LAndcost3,2,FALSE),IF($E$10="Location",VLOOKUP(K82,Landcost2,2,FALSE),"Error"))) -> 0 | N82: 0 | O82: 0 | R82: =IFERROR(('General Input Sheet'!$G$38/(VLOOKUP(Q82,Histindex,3,FALSE))),1) -> 1 | T82: =IF(S82="",1,VLOOKUP(S82,'Unit Rates - Water'!$H$12:$I$23,2,FALSE)) -> 1 | Y82: =(1+PPI)^('Future Trunk Assets - Water'!X82-YEAR) -> 1.020484038e-33 | Z82: =IF(X82<YEAR,1,IF('General Input Sheet'!$E$32="WACC1",1/(1+WACC1)^(X82-YEAR), IF('General Input Sheet'!$E$32="WACC2",1/(1+WACC2)^(X82-YEAR),"Check WACC Option in General Input Sheet"))) -> 1 | AA82: 0 | AB82: 0 | AC82: 0 | CM82: 0
